Workbook

Sheet Disclaimers (hidden)
B2: BETA Disclaimers / Limitations
B6: 3. Log space is calculated to ensure that every mailbox server can become the lagged server

Sheet Input
B1: Exchange 2010 Mailbox Server Role Requirements Calculator
B2: Author: Ross Smith IV | F2: ="Version: " & CalcVersion -> Version: 17.2
B3: Contributors: Matt Gossage
B4: Questions: Email strgcalc@microsoft.com
B5: Latest version available at: http://msexchangeteam.com/archive/2009/11/09/453117.aspx
B7: Legal Information: This is provided "AS IS" with no warranties, and confers no rights. Use of this application is subject to the Terms of Use - http://technet.microsoft.com/en-us/library/ee221168(EXCHG.80).aspx.
B9: Instructions: Fill in the blue variables. Choose the appropriate drop-downs for the red variables. The calculator will do the rest.
B10: Important: This tool should only be used for storage modeling purposes. The example configuration provided within this calculator is just that, an example, and as such, each input option needs to be evaluated as to how it will affect your design. Please consult with your storage vendor regarding the appropriate storage design for your environment and follow recommended storage design testing processes.
B13: Note1: This calculator assumes that the only role installed on the server is the Mailbox Server Role from a CPU sizing perspective.
B14: Note2: The calculated IOPS value has an accuracy of +/- 20% accuracy and does not include third-party products that may generate additional database I/O.
B15: Note3: If third-party applications/services will be utilized, please refer to the third-party manufacturer to determine if the application/service will have any I/O or capacity impacts on the solution.
B16: Note4: This calculator distributes the different tiers of mailboxes across each database (in other words, mailbox tiers do not have dedicated databases).
B18: Role Requirements Input Factors - Environment Configuration
B19: Step 1 - Please enter in the appropriate information for cells that are blue and choose the appropriate drop-downs for cells that are red concerning your messaging environment's configuration. For optimal sizing, choose a multiple of the total number of database copies you have selected for the number of mailbox servers.
B22: Exchange Environment Configuration | C22: Value | E22: Site Resilience Configuration | F22: Value
B23: Global Catalog Server Architecture | C23: 64-bit | E23: Site Resilient Deployment | F23: No
B24: Server Multi-Role Configuration (MBX+CAS+HT) | C24: Yes | E24: Site Resilience User Distribution Model | F24: Active/Passive
B25: Server Role Virtualization | C25: No | E25: Site Resilience Recovery Point Objective (Hours) | F25: 24
B26: High Availability Deployment | C26: Yes | E26: Activation Block Secondary Datacenter Mailbox Servers | F26: Yes
B27: =IF(HAOption="Yes",IF(SiteResilienceEnabled="Yes","Number of Mailbox Servers Hosting Active Mailboxes / DAG (Primary Datacenter)","Number of Mailbox Servers Hosting Active Mailboxes / DAG"),"Number of Mailbox Servers") -> Number of Mailbox Servers Hosting Active Mailboxes / DAG | C27: 6 | E27: Dedicated Disaster Recovery Mailbox Servers in Secondary Datacenter | F27: No
B28: =IF(AND(HAOption="Yes",SiteResilienceEnabled="Yes",SRModel="Active/Active (Multiple DAGs)"),"Database Availability Group Multiplier", "Number of Database Availability Groups") -> Number of Database Availability Groups | C28: 1
B30: Mailbox Database Copy Configuration | C30: Value | E30: Lagged Database Copy Configuration | F30: Value
B31: Total Number of HA Database Copy Instances (Includes Active Copy) within DAG | C31: 4 | E31: Lagged Database Copies Hosted on Dedicated Servers | F31: Yes
B32: Total Number of Lagged Database Copy Instances within DAG | C32: 0 | E32: Lagged Copy Log Replay Delay (Hours) | F32: 24
B33: Number of HA Database Copy Instances Deployed in Secondary Datacenter | C33: 0 | E33: Lagged Copy Log Truncation Delay (Hours) | F33: 0
B34: Number of Lagged Database Copy Instances in Secondary Datacenter | C34: 0
B36: Exchange Data Configuration | C36: Value | E36: Database Configuration | F36: Value
B37: Data Overhead Factor | C37: 0.2 | E37: Maximum Database Size Configuration | F37: Default
B38: Mailbox Moves / Week Percentage | C38: 0.01 | E38: Maximum Database Size (GB) | F38: 0
B39: Dedicated Maintenance / Restore LUN? | C39: Yes | E39: ="Automatically Calculate Number of Unique Databases" & IF(HAOption="Yes"," / DAG","") -> Automatically Calculate Number of Unique Databases / DAG | F39: Yes
B40: LUN Free Space Percentage | C40: 0.2 | E40: ="Custom Number of Databases" & IF(HAOption="Yes"," / DAG"," / Server") -> Custom Number of Databases / DAG | F40: 0
B41: Log Shipping Network Compression | C41: Enabled | E41: Calculate Number of Unique Databases / DAG for Symmetrical Distribution | F41: No
B42: Log Shipping Compression Percentage | C42: 0.3
B44: Exchange I/O Configuration | C44: Value
B45: I/O Overhead Factor | C45: 0.2
B46: Additional I/O Requirement / Server | C46: 0
B48: Role Requirements Input Factors - Mailbox Configuration
B49: Step 2 - Please enter in the appropriate information for cells that are blue and choose the appropriate drop-downs for cells that are red concerning your mailbox population. If the server(s) will house multiple mailbox types, then please enter that information in the Tier-2 and Tier-3 User Mailbox tables. Otherwise, only use the Tier-1 User Mailbox table.
B52: Tier-1 User Mailbox Configuration | C52: Value | E52: Tier-3 User Mailbox Configuration | F52: Value
B53: Total Number of Tier-1 User Mailboxes / Environment | C53: 24000 | E53: Total Number of Tier-3 Mailboxes / Environment | F53: 0
B54: Projected Mailbox Number Growth Percentage | C54: 0 | E54: Projected Mailbox Number Growth Percentage | F54: 0
B55: Total Send/Receive Capability / Mailbox / Day | C55: 100 messages | E55: Total Send/Receive Capability / Mailbox / Day | F55: 100 messages
B56: Average Message Size (KB) | C56: 75 | E56: Average Message Size (KB) | F56: 75
B57: Mailbox Size Limit (MB) | C57: 5120 | E57: Mailbox Size Limit (MB) | F57: 2048
B58: Personal Archive Mailbox Size Limit (MB) | C58: 0 | E58: Personal Archive Mailbox Size Limit (MB) | F58: 0
B59: Deleted Item Retention Window (Days) | C59: 14 | E59: Deleted Item Retention Window (Days) | F59: 14
B60: Single Item Recovery | C60: Enabled | E60: Single Item Recovery | F60: Enabled
B61: Calendar Version Storage | C61: Enabled | E61: Calendar Version Storage | F61: Enabled
B62: IOPS Multiplication Factor | C62: 1 | E62: IOPS Multiplication Factor | F62: 1
B63: Megacycles Multiplication Factor | C63: 1 | E63: Megacycles Multiplication Factor | F63: 1
B64: Desktop Search Engines Enabled (for Online Mode Clients) | C64: No | E64: Desktop Search Engines Enabled (for Online Mode Clients) | F64: No
B65: Predict IOPS Value? | C65: Yes | E65: Predict IOPS Value? | F65: Yes
B66: Tier-1 User IOPS / mailbox | C66: 0 | E66: Tier-3 User IOPS / mailbox | F66: 0
B67: Tier-1 Database Read:Write Ratio | C67: 3:2 | E67: Tier-3 Database Read:Write Ratio | F67: 3:2
B69: Tier-2 User Mailbox Configuration | C69: Value | E69: Tier-4 User Mailbox Configuration | F69: Value
B70: Total Number of Tier-2 User Mailboxes / Environment | C70: 0 | E70: Total Number of Tier-4 Mailboxes / Environment | F70: 0
B71: Projected Mailbox Number Growth Percentage | C71: 0 | E71: Projected Mailbox Number Growth Percentage | F71: 0
B72: Total Send/Receive Capability / Mailbox / Day | C72: 100 messages | E72: Total Send/Receive Capability / Mailbox / Day | F72: 100 messages
B73: Average Message Size (KB) | C73: 75 | E73: Average Message Size (KB) | F73: 75
B74: Mailbox Size Limit (MB) | C74: 2048 | E74: Mailbox Size Limit (MB) | F74: 2048
B75: Personal Archive Mailbox Size Limit (MB) | C75: 0 | E75: Personal Archive Mailbox Size Limit (MB) | F75: 0
B76: Deleted Item Retention Window (Days) | C76: 14 | E76: Deleted Item Retention Window (Days) | F76: 14
B77: Single Item Recovery | C77: Enabled | E77: Single Item Recovery | F77: Enabled
B78: Calendar Version Storage | C78: Enabled | E78: Calendar Version Storage | F78: Enabled
B79: IOPS Multiplication Factor | C79: 1 | E79: IOPS Multiplication Factor | F79: 1
B80: Megacycles Multiplication Factor | C80: 1 | E80: Megacycles Multiplication Factor | F80: 1
B81: Desktop Search Engines Enabled (for Online Mode Clients) | C81: No | E81: Desktop Search Engines Enabled (for Online Mode Clients) | F81: No
B82: Predict IOPS Value? | C82: Yes | E82: Predict IOPS Value? | F82: Yes
B83: Tier-2 User IOPS / mailbox | C83: 0 | E83: Tier-3 User IOPS / mailbox | F83: 0
B84: Tier-2 Database Read:Write Ratio | C84: 3:2 | E84: Tier-3 Database Read:Write Ratio | F84: 3:2
B86: Role Requirements Input Factors - Backup Configuration
B87: Step 3 - Please enter in the appropriate information for cells that are blue and choose the appropriate drop-downs for cells that are red concerning your server(s) backup configuration, failure tolerance thresholds, and whether you will isolate the database from the transaction logs.
B90: Backup Configuration | C90: Value
B91: Backup Methodology | C91: Exchange Native Data Protection
B92: Backup Frequency | C92: Weekly Full / Daily Incremental
B93: Database and Log Isolation Configured | C93: No
B94: Backup/Truncation Failure Tolerance | C94: 3
B95: Network Failure Tolerance (Days) | C95: 0
B97: Role Requirements Input Factors - Storage Configuration
B98: Step 4 - Please select the appropriate disk capacities and disk types that you will be using for your database, transaction logs, and restore LUNs. Also, if you are deploying mailbox resiliency with 3 or more copies, you will have the option to choose whether to require RAID, or allow the calculator to determine whether the solution can designed with JBOD storage.
B101: Storage Options | C101: Value | E101: =IF(OR(RecJBODRLDisksPDC="Insufficient Disk Capacity",RecJBODRLDiskTypePDC="Insufficient Disk Capacity",RecJBODDiskTypePDC="Insufficient Disk Capacity",RecJBODDisksPDC="Insufficient Disk Capacity"),varJBODInvDiskCap,IF(OR(RecJBODRLDisksPDC="Insufficient Disk IO Capacity",RecJBODRLDiskTypePDC="Insufficient Disk IO Capacity",RecJBODDiskTypePDC="Insufficient Disk IO Capacity",RecJBODDisksPDC="Insufficient Disk IO Capacity"),varJBODInvDiskIO,"")) -> 
B102: Consider Storage Designs Utilizing JBOD (if applicable) | C102: Yes
B104: =IF(AND(HAOption="Yes",SiteResilienceEnabled="Yes",SRModel="Active/Active (Single DAG)"),"Datacenter 1 ","Primary Datacenter ") & "Server Disk Configuration" -> Primary Datacenter Server Disk Configuration | C104: Disk Capacity | D104: Disk Type
B105: =IF(LUNArchitecture="1 LUN / DB","Database + Log","Database") -> Database + Log | C105: 2000 GB | D105: 7.2K RPM SAS 3.5"
B106: Log | C106: 2000 GB | D106: 7.2K RPM SAS 3.5"
B107: Restore LUN | C107: 2000 GB | D107: 7.2K RPM SAS 3.5"
B109: =IF(AND(HAOption="Yes",SiteResilienceEnabled="Yes",SRModel="Active/Active (Single DAG)"),"Datacenter 2 ","Secondary Datacenter ") & "Server Disk Configuration" -> Secondary Datacenter Server Disk Configuration | C109: Disk Capacity | D109: Disk Type
B110: =IF(LUNArchitecture="1 LUN / DB","Database + Log","Database") -> Database + Log | C110: 2000 GB | D110: 7.2K RPM SAS 3.5"
B111: Log | C111: 2000 GB | D111: 7.2K RPM SAS 3.5"
B112: Restore LUN | C112: 2000 GB | D112: 7.2K RPM SAS 3.5"
B114: Role Requirements Input Factors - Processor Configuration
B115: Step 5 (Optional) - Please enter in the appropriate information for cells that are blue and choose the appropriate drop-downs for cells that are red concerning your mailbox server processor configuration. For more information on how to determine your SPECint2006 Rate Value, please see http://www.spec.org.
B118: Server Configuration | C118: Processor Cores / Server | D118: SPECint2006 Rate Value
B119: =IF(VirtualizationEnabled="Yes",IF(AND(HAOption="Yes",SiteResilienceEnabled="Yes"),"Primary Datacenter Mailbox Server Guest Machines","Mailbox Server Guest Machines"),IF(AND(HAOption="Yes",SiteResilienceEnabled="Yes"),"Primary Datacenter Mailbox Servers","Mailbox Servers")) -> Mailbox Servers | C119: 12 | D119: 0
B120: =IF(VirtualizationEnabled="Yes","Secondary Datacenter Mailbox Server Guest Machines","Secondary Datacenter Mailbox Servers") -> Secondary Datacenter Mailbox Servers | C120: 12 | D120: 0
B121: =IF(VirtualizationEnabled="Yes","Lagged Copy Server Guest Machines","Lagged Copy Servers") -> Lagged Copy Servers | C121: 12 | D121: 0
B123: Processor Configuration | C123: Value
B124: Hypervisor CPU Adjustment Factor | C124: 0.1
B126: Role Requirements Input Factors - Log Replication Configuration
B127: Step 6 (Optional) - If the solution will replicate data between physical locations, then in order to determine the bandwidth requirements, please enter in the appropriate information for cells that are blue concerning your log generation frequency on an hourly basis and network link latency. Also, choose the appropriate network link type via the red drop-down cell. This data will help determine the appropriate log bandwidth requirements for the database copies that are being replicated to the secondary datacenter. When entering the log generation data, enter it for a single server that is representative of the environment.
B131: Log Replication Configuration | E131: Network Configuration | F131: Value
B132: Hours in the Day | C132: Logs Generated / Hour Percentage | E132: Network Link Type | F132: Gigabit Ethernet
B133: 1 | C133: 0 | E133: Network Link Latency (ms) | F133: 50
B134: 2 | C134: 0
B135: 3 | C135: 0
B136: 4 | C136: 0
B137: 5 | C137: 0
B138: 6 | C138: 0
B139: 7 | C139: 0
B140: 8 | C140: 0
B141: 9 | C141: 0
B142: 10 | C142: 0
B143: 11 | C143: 0
B144: 12 | C144: 0
B145: 13 | C145: 0
B146: 14 | C146: 0
B147: 15 | C147: 0
B148: 16 | C148: 0
B149: 17 | C149: 0
B150: 18 | C150: 0
B151: 19 | C151: 0
B152: 20 | C152: 0
B153: 21 | C153: 0
B154: 22 | C154: 0
B155: 23 | C155: 0
B156: 24 | C156: 0
B157: Total | C157: =SUBTOTAL(9,Table12[Logs Generated / Hour Percentage]) -> 0

Sheet Role Requirements
B1: Note1: Do not make any changes to this sheet. This sheet is only used for calculation purposes.
B2: Note2: The calculated IOPS/mbx value has an accuracy of +/- 20% accuracy and does not include third-party products that may generate additional Database Reads and Writes.
B3: Note3: While the transaction log capacity for the move mailbox operations is calculated in terms of the entire weekly mailbox moves being performed on the same day (worst case), the average transaction logs generated per day assumes the opposite (i.e., a percentage of the weekly mailbox moves are performed each day) to facilitate log generation planning scenarios (e.g. VSS solutions).
B5: Note4: For the purposes of this calculator, the term "primary datacenter" refers to the datacenter that is preferred for hosting the active copies for a given set of databases, while the term "secondary datacenter" refers to the disaster recovery datacenter that is used for datacenter activation and cross-site database failover events.
B7: Role Requirements Calculations Pane
B9: Tier-1 User Mailbox Calculations | C9: Value | H9: Tier-2 User Mailbox Calculations | I9: Value
B10: Number of Tier-1 Mailboxes | C10: =NumTier1MBX+(NumTier1MBX*Tier1NumGrowth) -> 24000 | H10: Number of Tier-2 Mailboxes | I10: =NumTier2MBX+(NumTier2MBX*Tier2NumGrowth) -> 0
B11: Message Profile / Mailbox | C11: =IF(calcTier1MBX<>0,VLOOKUP(Tier1SendReceive,TblSendReceive,3,FALSE),"--") -> 100 | H11: Message Profile / Mailbox | I11: =IF(calcTier2MBX<>0,VLOOKUP(Tier2SendReceive,TblSendReceive,3,FALSE),"--") -> --
B12: Total Active Megacycles / Mailbox | C12: =IF(calcTier1MBX<>0,VLOOKUP(Tier1SendReceive,TblSendReceive,5,FALSE)*Tier1MCFactor,0) -> 2 | H12: Total Active Megacycles / Mailbox | I12: =IF(calcTier2MBX<>0,VLOOKUP(Tier2SendReceive,TblSendReceive,5,FALSE)*Tier2MCFactor,0) -> 0
B13: DB Cache Profile / Mailbox | C13: =IF(calcTier1MBX<>0,VLOOKUP(Tier1SendReceive,TblSendReceive,2,FALSE),0) -> 6 | H13: DB Cache Profile / Mailbox | I13: =IF(calcTier2MBX<>0,VLOOKUP(Tier2SendReceive,TblSendReceive,2,FALSE),0) -> 0
B14: Transaction Logs Generated / Mailbox / Day | C14: =IF(calcTier1MBX<>0,VLOOKUP(Tier1SendReceive,TblSendReceive,4,FALSE)*MROUND(Tier1AvgMessageSize/78.9473684210526,0.1),0) -> 20 | H14: Transaction Logs Generated / Mailbox / Day | I14: =IF(calcTier2MBX<>0,VLOOKUP(Tier2SendReceive,TblSendReceive,4,FALSE)*MROUND(Tier2AvgMessageSize/78.9473684210526,0.1),0) -> 0
B15: Primary Mailbox Dumpster and Whitespace Size | C15: =IF(calcTier1MBX<>0,MIN((VLOOKUP(Tier1SendReceive,TblSendReceive,3,FALSE)*(Tier1AvgMessageSize/1024)*Tier1DIRW)+IF(Tier1SIREnabled="Enabled",Tier1MBXLimit*varSIRVersionsFactor,0)+IF(Tier1CalVersionStoreEnabled="Enabled",Tier1MBXLimit*varCalRetentionFactor,0),30720)+(VLOOKUP(Tier1SendReceive,TblSendReceive,3,FALSE)*(Tier1AvgMessageSize/1024)),0) -> 324.9032812 | H15: Primary Mailbox Dumpster and Whitespace Size | I15: =IF(calcTier2MBX<>0,MIN((VLOOKUP(Tier2SendReceive,TblSendReceive,3,FALSE)*(Tier2AvgMessageSize/1024)*Tier2DIRW)+IF(Tier2SIREnabled="Enabled",Tier2MBXLimit*varSIRVersionsFactor,0)+IF(Tier2CalVersionStoreEnabled="Enabled",Tier2MBXLimit*varCalRetentionFactor,0),30720)+(VLOOKUP(Tier2SendReceive,TblSendReceive,3,FALSE)*(Tier2AvgMessageSize/1024)),0) -> 0
B16: Personal Archive Dumpster and Whitespace Size | C16: =IF(Tier1ArchiveMBXLimit<>0,MIN((VLOOKUP(Tier1SendReceive,TblSendReceive,3,FALSE)*(Tier1AvgMessageSize/1024)*Tier1DIRW)+IF(Tier1SIREnabled="Enabled",Tier1ArchiveMBXLimit*varSIRVersionsFactor,0)+IF(Tier1CalVersionStoreEnabled="Enabled",Tier1ArchiveMBXLimit*varCalRetentionFactor,0),30720)+(VLOOKUP(Tier1SendReceive,TblSendReceive,3,FALSE)*(Tier1AvgMessageSize/1024)),0) -> 0 | H16: Personal Archive Dumpster and Whitespace Size | I16: =IF(Tier2ArchiveMBXLimit<>0,MIN((VLOOKUP(Tier2SendReceive,TblSendReceive,3,FALSE)*(Tier2AvgMessageSize/1024)*Tier2DIRW)+IF(Tier2SIREnabled="Enabled",Tier2ArchiveMBXLimit*varSIRVersionsFactor,0)+IF(Tier2CalVersionStoreEnabled="Enabled",Tier2ArchiveMBXLimit*varCalRetentionFactor,0),30720)+(VLOOKUP(Tier2SendReceive,TblSendReceive,3,FALSE)*(Tier2AvgMessageSize/1024)),0) -> 0
B17: Mailbox Size on Disk | C17: =ROUNDUP(IF(calcTier1MBX<>0,Tier1MBXLimit+Tier1DumpsterSize+Tier1ArchiveMBXLimit+Tier1ArchiveDumpsterSize),0) -> 5445 | H17: Mailbox Size on Disk | I17: =ROUNDUP(IF(calcTier2MBX<>0,Tier2MBXLimit+Tier2DumpsterSize+Tier2ArchiveMBXLimit+Tier2ArchiveDumpsterSize),0) -> 0
B18: Base IOPS Profile / Mailbox | C18: =IF(calcTier1MBX<>0,IF(Tier1PredictIOPS="Yes",IF(HAOption="Yes",Tier1MessageProfile*0.001,Tier1MessageProfile*0.0012),0),0) -> 0.1 | H18: Base IOPS Profile / Mailbox | I18: =IF(calcTier2MBX<>0,IF(Tier2PredictIOPS="Yes",IF(HAOption="Yes",Tier2MessageProfile*0.001,Tier2MessageProfile*0.0012),0),0) -> 0
B19: Base DB Reads / Mailbox | C19: =Tier1BaseIOPS*calcTier1RWRatio -> 0.06 | H19: Base DB Reads / Mailbox | I19: =Tier2BaseIOPS*calcTier2RWRatio -> 0
B20: Base DB Writes / Mailbox | C20: =Tier1BaseIOPS*(1-calcTier1RWRatio) -> 0.04 | H20: Base DB Writes / Mailbox | I20: =Tier2BaseIOPS*(1-calcTier2RWRatio) -> 0
B21: Desktop Search Impact | C21: =IF(AND(Tier1DesktopSearch="Yes",Tier1MBXSize>=128),MROUND(Tier1MBXSize/170.666666,0.5),1) -> 1 | H21: Desktop Search Impact | I21: =IF(AND(Tier2DesktopSearch="Yes",Tier2MBXSize>=128),MROUND(Tier2MBXSize/170.666666,0.5),1) -> 1
B22: Total DB Reads / Mailbox | C22: =IF(calcTier1MBX<>0,IF(Tier1PredictIOPS="Yes",IF(AND(calcTier1DesktopSearchIO=1,Tier1IOFactor=1),Tier1BaseDBReads,IF(AND(calcTier1DesktopSearchIO=1,Tier1IOFactor<>1),Tier1BaseDBReads*Tier1IOFactor,IF(AND(calcTier1DesktopSearchIO<>1,Tier1IOFactor=1),Tier1BaseDBReads*calcTier1DesktopSearchIO,(Tier1BaseDBReads*calcTier1DesktopSearchIO)+(Tier1BaseDBReads*Tier1IOFactor)))),0),0) -> 0.06 | H22: Total DB Reads / Mailbox | I22: =IF(calcTier2MBX<>0,IF(Tier2PredictIOPS="Yes",IF(AND(calcTier2DesktopSearchIO=1,Tier2IOFactor=1),Tier2BaseDBReads,IF(AND(calcTier2DesktopSearchIO=1,Tier2IOFactor<>1),Tier2BaseDBReads*Tier2IOFactor,IF(AND(calcTier2DesktopSearchIO<>1,Tier2IOFactor=1),Tier2BaseDBReads*calcTier2DesktopSearchIO,(Tier2BaseDBReads*calcTier2DesktopSearchIO)+(Tier2BaseDBReads*Tier2IOFactor)))),0),0) -> 0
B23: Total DB Writes / Mailbox | C23: =IF(calcTier1MBX<>0,IF(Tier1PredictIOPS="Yes",Tier1BaseDBWrites*IF(Tier1IOFactor=1,1,Tier1IOFactor),),0) -> 0.04 | H23: Total DB Writes / Mailbox | I23: =IF(calcTier2MBX<>0,IF(Tier2PredictIOPS="Yes",Tier2BaseDBWrites*IF(Tier2IOFactor=1,1,Tier2IOFactor),0),0) -> 0
B24: Read:Write Ratio | C24: =IF(calcTier1MBX<>0,IF(Tier1PredictIOPS="Yes",IF(HAOption="Yes",IF(Tier1MessageProfile<=250,0.6,0.5),IF(Tier1MessageProfile<=250,0.5,0.4)),VLOOKUP(Tier1RWRatio,tblRWRatio,2,FALSE)),0) -> 0.6 | H24: Read:Write Ratio | I24: =IF(calcTier2MBX<>0,IF(Tier2PredictIOPS="Yes",IF(HAOption="Yes",IF(Tier2MessageProfile<=250,0.6,0.5),IF(Tier2MessageProfile<=250,0.5,0.4)),VLOOKUP(Tier2RWRatio,tblRWRatio,2,FALSE)),0) -> 0
B25: IOPS Profile / Mailbox | C25: =IF(calcTier1MBX<>0,IF(Tier1PredictIOPS="Yes",(calcTier1DBReads+calcTier1DBWrites),(Tier1IOPS*IF(Tier1IOFactor=0,1,Tier1IOFactor))),0) -> 0.1 | H25: IOPS Profile / Mailbox | I25: =IF(calcTier2MBX<>0,IF(Tier2PredictIOPS="Yes",(calcTier2DBReads+calcTier2DBWrites),(Tier2IOPS*IF(Tier2IOFactor=0,1,Tier2IOFactor))),0) -> 0
B26: DB Total Transfers/s | C26: =IF(HAOption="Yes",calcTier1MBX/calcNumDAGs*TotTier1IOPS,calcTier1MBX/numMBXServers*TotTier1IOPS) -> 2400 | H26: DB Total Transfers/s | I26: =IF(HAOption="Yes",calcTier2MBX/calcNumDAGs*TotTier2IOPS,calcTier2MBX/numMBXServers*TotTier2IOPS) -> 0
B27: DB Read Transfers/s | C27: =Tier1DBTransfers*calcTier1RWRatio -> 1440 | H27: DB Read Transfers/s | I27: =Tier2DBTransfers*calcTier2RWRatio -> 0
B28: DB Write Transfers/s | C28: =Tier1DBTransfers*(1-calcTier1RWRatio) -> 960 | H28: DB Write Transfers/s | I28: =Tier2DBTransfers*(1-calcTier2RWRatio) -> 0
B30: Tier-3 User Mailbox Calculations | C30: Value | H30: Tier-4 User Mailbox Calculations | I30: Value
B31: Number of Tier-3 Mailboxes | C31: =NumTier3MBX+(NumTier3MBX*Tier3NumGrowth) -> 0 | H31: Number of Tier-4 Mailboxes | I31: =NumTier4MBX+(NumTier4MBX*Tier4NumGrowth) -> 0
B32: Message Profile / Mailbox | C32: =IF(calcTier3MBX<>0,VLOOKUP(Tier3SendReceive,TblSendReceive,3,FALSE),"--") -> -- | H32: Message Profile / Mailbox | I32: =IF(calcTier4MBX<>0,VLOOKUP(Tier4SendReceive,TblSendReceive,3,FALSE),"--") -> --
B33: Total Active Megacycles / Mailbox | C33: =IF(calcTier3MBX<>0,VLOOKUP(Tier3SendReceive,TblSendReceive,5,FALSE)*Tier3MCFactor,0) -> 0 | H33: Total Active Megacycles / Mailbox | I33: =IF(calcTier4MBX<>0,VLOOKUP(Tier4SendReceive,TblSendReceive,5,FALSE)*Tier4MCFactor,0) -> 0
B34: DB Cache Profile / Mailbox | C34: =IF(calcTier3MBX<>0,VLOOKUP(Tier3SendReceive,TblSendReceive,2,FALSE),0) -> 0 | H34: DB Cache Profile / Mailbox | I34: =IF(calcTier4MBX<>0,VLOOKUP(Tier4SendReceive,TblSendReceive,2,FALSE),0) -> 0
B35: Transaction Logs Generated / Mailbox / Day | C35: =IF(calcTier3MBX<>0,VLOOKUP(Tier3SendReceive,TblSendReceive,4,FALSE)*MROUND(Tier3AvgMessageSize/78.9473684210526,0.1),0) -> 0 | H35: Transaction Logs Generated / Mailbox / Day | I35: =IF(calcTier4MBX<>0,VLOOKUP(Tier4SendReceive,TblSendReceive,4,FALSE)*MROUND(Tier4AvgMessageSize/78.9473684210526,0.1),0) -> 0
B36: Primary Mailbox Dumpster and Whitespace Size | C36: =IF(calcTier3MBX<>0,MIN((VLOOKUP(Tier3SendReceive,TblSendReceive,3,FALSE)*(Tier3AvgMessageSize/1024)*Tier3DIRW)+IF(Tier3SIREnabled="Enabled",Tier3MBXLimit*varSIRVersionsFactor,0)+IF(Tier3CalVersionStoreEnabled="Enabled",Tier3MBXLimit*varCalRetentionFactor,0),30720)+(VLOOKUP(Tier3SendReceive,TblSendReceive,3,FALSE)*(Tier3AvgMessageSize/1024)),0) -> 0 | H36: Primary Mailbox Dumpster and Whitespace Size | I36: =IF(calcTier4MBX<>0,MIN((VLOOKUP(Tier4SendReceive,TblSendReceive,3,FALSE)*(Tier4AvgMessageSize/1024)*Tier4DIRW)+IF(Tier4SIREnabled="Enabled",Tier4MBXLimit*varSIRVersionsFactor,0)+IF(Tier4CalVersionStoreEnabled="Enabled",Tier4MBXLimit*varCalRetentionFactor,0),30720)+(VLOOKUP(Tier4SendReceive,TblSendReceive,3,FALSE)*(Tier4AvgMessageSize/1024)),0) -> 0
B37: Personal Archive Dumpster and Whitespace Size | C37: =IF(Tier3ArchiveMBXLimit<>0,MIN((VLOOKUP(Tier3SendReceive,TblSendReceive,3,FALSE)*(Tier3AvgMessageSize/1024)*Tier3DIRW)+IF(Tier3SIREnabled="Enabled",Tier3ArchiveMBXLimit*varSIRVersionsFactor,0)+IF(Tier3CalVersionStoreEnabled="Enabled",Tier3ArchiveMBXLimit*varCalRetentionFactor,0),30720)+(VLOOKUP(Tier3SendReceive,TblSendReceive,3,FALSE)*(Tier3AvgMessageSize/1024)),0) -> 0 | H37: Personal Archive Dumpster and Whitespace Size | I37: =IF(Tier4ArchiveMBXLimit<>0,MIN((VLOOKUP(Tier4SendReceive,TblSendReceive,3,FALSE)*(Tier4AvgMessageSize/1024)*Tier4DIRW)+IF(Tier4SIREnabled="Enabled",Tier4ArchiveMBXLimit*varSIRVersionsFactor,0)+IF(Tier4CalVersionStoreEnabled="Enabled",Tier4ArchiveMBXLimit*varCalRetentionFactor,0),30720)+(VLOOKUP(Tier4SendReceive,TblSendReceive,3,FALSE)*(Tier4AvgMessageSize/1024)),0) -> 0
B38: Mailbox Size on Disk | C38: =ROUNDUP(IF(calcTier3MBX<>0,Tier3MBXLimit+Tier3DumpsterSize+Tier3ArchiveMBXLimit+Tier3ArchiveDumpsterSize),0) -> 0 | H38: Mailbox Size on Disk | I38: =ROUNDUP(IF(calcTier4MBX<>0,Tier4MBXLimit+Tier4DumpsterSize+Tier4ArchiveMBXLimit+Tier4ArchiveDumpsterSize),0) -> 0
B39: Base IOPS Profile / Mailbox | C39: =IF(calcTier3MBX<>0,IF(Tier3PredictIOPS="Yes",IF(HAOption="Yes",Tier3MessageProfile*0.001,Tier3MessageProfile*0.0012),0),0) -> 0 | H39: Base IOPS Profile / Mailbox | I39: =IF(calcTier4MBX<>0,IF(Tier4PredictIOPS="Yes",IF(HAOption="Yes",Tier4MessageProfile*0.001,Tier4MessageProfile*0.0012),0),0) -> 0
B40: Base DB Reads / Mailbox | C40: =Tier3BaseIOPS*calcTier3RWRatio -> 0 | H40: Base DB Reads / Mailbox | I40: =Tier4BaseIOPS*calcTier4RWRatio -> 0
B41: Base DB Writes / Mailbox | C41: =Tier3BaseIOPS*(1-calcTier3RWRatio) -> 0 | H41: Base DB Writes / Mailbox | I41: =Tier4BaseIOPS*(1-calcTier4RWRatio) -> 0
B42: Desktop Search Impact | C42: =IF(AND(Tier3DesktopSearch="Yes",Tier3MBXSize>=128),MROUND(Tier3MBXSize/170.666666,0.5),1) -> 1 | H42: Desktop Search Impact | I42: =IF(AND(Tier4DesktopSearch="Yes",Tier4MBXSize>=128),MROUND(Tier4MBXSize/170.666666,0.5),1) -> 1
B43: Total DB Reads / Mailbox | C43: =IF(calcTier3MBX<>0,IF(Tier3PredictIOPS="Yes",IF(AND(calcTier3DesktopSearchIO=1,Tier3IOFactor=1),Tier3BaseDBReads,IF(AND(calcTier3DesktopSearchIO=1,Tier3IOFactor<>1),Tier3BaseDBReads*Tier3IOFactor,IF(AND(calcTier3DesktopSearchIO<>1,Tier3IOFactor=1),Tier3BaseDBReads*calcTier3DesktopSearchIO,(Tier3BaseDBReads*calcTier3DesktopSearchIO)+(Tier3BaseDBReads*Tier3IOFactor)))),0),0) -> 0 | H43: Total DB Reads / Mailbox | I43: =IF(calcTier4MBX<>0,IF(Tier4PredictIOPS="Yes",IF(AND(calcTier4DesktopSearchIO=1,Tier4IOFactor=1),Tier4BaseDBReads,IF(AND(calcTier4DesktopSearchIO=1,Tier4IOFactor<>1),Tier4BaseDBReads*Tier4IOFactor,IF(AND(calcTier4DesktopSearchIO<>1,Tier4IOFactor=1),Tier4BaseDBReads*calcTier4DesktopSearchIO,(Tier4BaseDBReads*calcTier4DesktopSearchIO)+(Tier4BaseDBReads*Tier4IOFactor)))),0),0) -> 0
B44: Total DB Writes / Mailbox | C44: =IF(calcTier3MBX<>0,IF(Tier3PredictIOPS="Yes",Tier3BaseDBWrites*IF(Tier3IOFactor=1,1,Tier3IOFactor),0),0) -> 0 | H44: Total DB Writes / Mailbox | I44: =IF(calcTier4MBX<>0,IF(Tier4PredictIOPS="Yes",Tier4BaseDBWrites*IF(Tier4IOFactor=1,1,Tier4IOFactor),0),0) -> 0
B45: Read:Write Ratio | C45: =IF(calcTier3MBX<>0,IF(Tier3PredictIOPS="Yes",IF(HAOption="Yes",IF(Tier3MessageProfile<=250,0.6,0.5),IF(Tier3MessageProfile<=250,0.5,0.4)),VLOOKUP(Tier3RWRatio,tblRWRatio,2,FALSE)),0) -> 0 | H45: Read:Write Ratio | I45: =IF(calcTier4MBX<>0,IF(Tier4PredictIOPS="Yes",IF(HAOption="Yes",IF(Tier4MessageProfile<=250,0.6,0.5),IF(Tier4MessageProfile<=250,0.5,0.4)),VLOOKUP(Tier4RWRatio,tblRWRatio,2,FALSE)),0) -> 0
B46: IOPS Profile / Mailbox | C46: =IF(calcTier3MBX<>0,IF(Tier3PredictIOPS="Yes",(calcTier3DBWrites+calcTier3DBReads),(Tier3IOPS*IF(Tier3IOFactor=0,1,Tier3IOFactor))),0) -> 0 | H46: IOPS Profile / Mailbox | I46: =IF(calcTier4MBX<>0,IF(Tier4PredictIOPS="Yes",(calcTier4DBWrites+calcTier4DBReads),(Tier4IOPS*IF(Tier4IOFactor=0,1,Tier4IOFactor))),0) -> 0
B47: DB Total Transfers/s | C47: =IF(HAOption="Yes",calcTier3MBX/calcNumDAGs*TotTier3IOPS,calcTier3MBX/numMBXServers*TotTier3IOPS) -> 0 | H47: DB Total Transfers/s | I47: =IF(HAOption="Yes",calcTier4MBX/calcNumDAGs*TotTier4IOPS,calcTier4MBX/numMBXServers*TotTier4IOPS) -> 0
B48: DB Read Transfers/s | C48: =Tier3DBTransfers*calcTier3RWRatio -> 0 | H48: DB Read Transfers/s | I48: =Tier4DBTransfers*calcTier4RWRatio -> 0
B49: DB Write Transfers/s | C49: =Tier3DBTransfers*(1-calcTier3RWRatio) -> 0 | H49: DB Write Transfers/s | I49: =Tier4DBTransfers*(1-calcTier4RWRatio) -> 0
B51: Database Calculations | C51: Value | H51: Database Copy Instance Configuration | I51: Value
B52: Calculated Maximum Database Size | C52: =IF(DBSizeOverride="Default",IF(AND(HAOption="Yes",NumDBCopies+numLagDBCopies>=2),IF(PreferredStorageArch="JBOD",ROUNDUP(((MIN(varMax2CopyDBSize,DBRawDiskCap1)*1000*1000*1000/1024/1024/1024)*(1-LUNGrowth))/((1+CIFactor)),0),varMax2CopyDBSize),varMaxSADBSize),CustomMaxDBSize) -> 1355 | H52: Number of HA DB Copy Instances in PDC | I52: =IF(HAOption="Yes",NumDBCopies-IF(SiteResilienceEnabled="Yes",numDBCopiesSDC,0),0) -> 4
B53: Maximum Number of Supported Databases / Server | C53: =IF(LUNDesign="1/7",varMaxNumDBLUNBS,varMaxNumDBs) -> 100 | H53: Number of HA DB Copy Instances in SDC | I53: =IF(AND(HAOption="Yes",SiteResilienceEnabled="Yes"),numDBCopiesSDC,0) -> 0
B54: Calculated Number of Supported Databases / DAG | C54: =IF(HAOption="Yes",calcMaxNumDBs*numActMBXSvrsPerDC/(calcNumDBCopyInPDC+IF(DedLaggedCopyServer="No",calcNumLagCopyInPDC,0)),"--") -> 150 | H54: Number of Lagged DB Copy Instances in PDC | I54: =IF(AND(HAOption="Yes",numLagDBCopies<>0),numLagDBCopies-IF(SiteResilienceEnabled="Yes",numLaggedCopiesSDC,0),0) -> 0
B55: Tier-1 User Mailbox Ratio | C55: =calcTier1MBX/TotalMBX -> 1 | H55: Number of Lagged DB Copy Instances in SDC | I55: =IF(AND(HAOption="Yes",SiteResilienceEnabled="Yes",numLagDBCopies>0),numLaggedCopiesSDC,0) -> 0
B56: Tier-2 User Mailbox Ratio | C56: =calcTier2MBX/TotalMBX -> 0
B57: Tier-3 User Mailbox Ratio | C57: =calcTier3MBX/TotalMBX -> 0 | H57: I/O Calculations | I57: Value
B58: Tier-4 User Mailbox Ratio | C58: =calcTier4MBX/TotalMBX -> 0 | H58: Aggregate Database Read:Write Ratio | I58: =(Tier1ReadTransfers+Tier2ReadTransfers+Tier3ReadTransfers+Tier4ReadTransfers)/(Tier1DBTransfers+Tier2DBTransfers+Tier3DBTransfers+Tier4DBTransfers) -> 0.6
B59: Tier-1 Number of Mailboxes / DB | C59: =MBXPerDB*Tier1MBXRatio -> 200 | H59: Peak IOPS | I59: =(Tier1DBTransfers+Tier3DBTransfers+Tier2DBTransfers+Tier4DBTransfers+AdditionalIO)*(1+IOGrowth) -> 2880
B60: Tier-2 Number of Mailboxes / DB | C60: =MBXPerDB*Tier2MBXRatio -> 0 | H60: Peak IOPS / Server | I60: =IF(HAOption="Yes",EnvPeakIOPS/RecNumDBs*TotNumDBCopiesServer,EnvPeakIOPS) -> 1920
B61: Tier-3 Number of Mailboxes / DB | C61: =MBXPerDB*Tier3MBXRatio -> 0 | H61: DB Read Transfers/s / Server | I61: =PeakIOPS*aggRWRatio -> 1152
B62: Tier-4 Number of Mailboxes / DB | C62: =MBXPerDB*Tier4MBXRatio -> 0 | H62: DB Write Transfers/s / Server | I62: =PeakIOPS*(1-aggRWRatio) -> 768
B63: Number of Mailboxes per Database (I/O Driven) | C63: =IF(PreferredStorageArch="JBOD",IF(MOD(ROUNDDOWN(RandDBDiskIO1/(EnvPeakIOPS/TotMBXPerDAG),0),2)=1,ROUNDDOWN(RandDBDiskIO1/(EnvPeakIOPS/TotMBXPerDAG),0)-1,ROUNDDOWN(RandDBDiskIO1/(EnvPeakIOPS/TotMBXPerDAG),0)),"--") -> 478 | H63: Log Write Transfers/s /Server | I63: =WriteTransfers *IF(HAOption="Yes",0.5,0.4) -> 384
B64: Number of Mailboxes per Database (Capacity Driven) | C64: =(calcMaxDBSize*(1-DataGrowth)*1024)/((Tier1MBXRatio*Tier1MBXSize)+(Tier3MBXRatio*Tier3MBXSize)+(Tier2MBXRatio*Tier2MBXSize)+(Tier4MBXRatio*Tier4MBXSize)) -> 203.8596878 | H64: Log Read Transfers/s /Server | I64: =IF(HAOption="Yes",EnvPeakIOPS/RecNumDBs*(1-aggRWRatio)*0.5*0.1*calcNumDBMemSizing,0) -> 14.4
B65: Calculated Number of Mailboxes / DB | C65: =ROUNDUP(MIN(calcNumMBXPerDBIO,calcNumMBXPerDBCap),0) -> 204 | H65: IOPS Required / Database | I65: =EnvPeakIOPS/RecNumDBs -> 24
B66: =IF(HAOption="Yes","Calculated Number of Databases / DAG","Calculated Number of Databases / Server") -> Calculated Number of Databases / DAG | C66: =MIN(IF(ROUNDUP(IF(HAOption="Yes",TotMBXPerDAG,TotalMBXPerSvr)/calcMBXPerDB,0)<2,ROUNDUP(IF(HAOption="Yes",TotMBXPerDAG,TotalMBXPerSvr)/calcMBXPerDB,0),CEILING(IF(HAOption="Yes",TotMBXPerDAG,TotalMBXPerSvr)/calcMBXPerDB,2)),IF(HAOption="Yes",calcMaxNumDBDAG,calcMaxNumDBs)) -> 118 | H66: IOPS Required / Log Stream | I66: =((I65*(1-aggRWRatio))*IF(HAOption="Yes",0.5,0.4))+IF(HAOption="Yes",EnvPeakIOPS/RecNumDBs*(1-aggRWRatio)*0.5*0.1,0) -> 5.28
B67: Calculated Number of Databases for Symmetrical Distribution | C67: =CEILING(calcNumDBs,PERMUT(calcNumAMBXServersDC1,calcNumDBCopyInPDC)) -> 360
B68: =IF(HAOption="Yes","Recommended Number of Databases / DAG","Recommended Number of Databases / Server") -> Recommended Number of Databases / DAG | C68: =IF(NumDBsOverride="No",IF(HAOption="Yes",IF(CustomNumDBs>calcMaxNumDBDAG,calcMaxNumDBDAG,CustomNumDBs),IF(CustomNumDBs>calcMaxNumDBs,calcMaxNumDBs,CustomNumDBs)),IF(HAOption="Yes",IF(AND(DBPermOverride="Yes",calcMaxNumDBDAG>calcDBPerm),calcDBPerm,IF(calcNumDBs=calcMaxNumDBDAG,calcNumDBs,IF(calcNumDBs<=1,1,CEILING(calcNumDBs,numActMBXSvrsPerDC*IF(AND(HAOption="Yes",SiteResilienceEnabled="Yes",SRModel="Active/Active (Single DAG)"),2,1))))),IF(calcNumDBs<=1,1,calcNumDBs))) -> 120
B69: Recommended Number of Mailboxes / DB | C69: =IF(HAOption="Yes",TotMBXPerDAG,TotalMBXPerSvr)/RecNumDBs -> 200
B71: Database Copy Calculations | C71: Value | H71: Server Calculations | I71: Value
B72: =IF(HAOption="Yes","Number of Active Databases in Datacenter 1 / DAG","Number of Databases in Datacenter 1 / Server") -> Number of Active Databases in Datacenter 1 / DAG | C72: =ROUNDUP(RecNumDBs*IF(AND(HAOption="Yes",SiteResilienceEnabled="Yes",SRModel="Active/Active (Single DAG)"),PercentUsersinDC1,1),0) -> 120 | H72: Number of Active Mailbox Servers in DC1 / DAG | I72: =numMBXServers -> 6
B73: Number of Active Databases in Datacenter 2 / DAG | C73: =IF(AND(HAOption="Yes",SiteResilienceEnabled="Yes",SRModel="Active/Active (Single DAG)"),RecNumDBs-RecNumDBsDC1,0) -> 0 | H73: Number of DR Mailbox Servers in DC1 / DAG | I73: =IF(AND(HAOption="Yes",SiteResilienceEnabled="Yes",numActMBXSvrsPerDC>1,calcNumDBCopyInPDC>=1,SRModel="Active/Active (Single DAG)",SRAASDDRServers="Yes"),ROUNDUP(calcTotNumPassiveCopiesDC2inDC1/TotNumDBCopiesServer,0),0) -> 0
B74: Number of DC1 Active+Passive HA DB Copies in DC1 / DAG | C74: =IF(HAOption="Yes",RecNumDBsDC1*calcNumDBCopyInPDC,0) -> 480 | H74: Number of Active Mailbox Servers in DC2 / DAG | I74: =IF(AND(HAOption="Yes",SiteResilienceEnabled="Yes",SRModel="Active/Active (Single DAG)"),ROUNDUP((calcTotNumHACopiesDC2inDC2+IF(SRAASDDRServers="No",calcNumHAPassCopiesDC1inDC2,0)+IF(DedLaggedCopyServer="No",TotNumLagDBCopiesDC2,0))/TotNumDBCopiesServer,0),0) -> 0
B75: Number of DC2 Active+Passive HA DB Copies in DC2 / DAG | C75: =IF(AND(HAOption="Yes",SiteResilienceEnabled="Yes",SRModel="Active/Active (Single DAG)"),RecNumDBsDC2*calcNumDBCopyInPDC,0) -> 0 | H75: Number of DR Mailbox Servers in DC2 / DAG | I75: =IF(AND(HAOption="Yes",SiteResilienceEnabled="Yes",numDBCopiesSDC>0),IF(OR(AND(SRModel="Active/Active (Single DAG)",SRAASDDRServers="No"),AND(numActMBXSvrsPerDC=1,SRModel="Active/Active (Single DAG)")),0,ROUNDUP(calcTotNumPassiveCopiesDC1inDC2/TotNumDBCopiesServer,0)),0) -> 0
B76: =IF(AND(HAOption="Yes",SiteResilienceEnabled="Yes",SRModel="Active/Active (Single DAG)"),"Number of DC1 Passive HA DB Copies in DC2 / DAG","Number of Passive HA DB Copies in DC2 / DAG") -> Number of Passive HA DB Copies in DC2 / DAG | C76: =IF(AND(HAOption="Yes",SiteResilienceEnabled="Yes",numDBCopiesSDC>0),calcNumDBCopyInSDC*RecNumDBsDC1,0) -> 0 | H76: Total Number of Active Mailbox Servers / DAG | I76: =calcNumAMBXServersDC1+calcNumAMBXServersDC2 -> 6
B77: =IF(AND(HAOption="Yes",SiteResilienceEnabled="Yes",SRModel="Active/Active (Single DAG)"),"Total Number of DC1 Passive DB Copies in DC2 / DAG","Total Number of Passive DB Copies in DC2 / DAG") -> Total Number of Passive DB Copies in DC2 / DAG | C77: =calcNumHAPassCopiesDC1inDC2+IF(AND(numLaggedCopiesSDC>0,DedLaggedCopyServer="No"),calcTotNumLagDBCopiesSDC,0) -> 0
B78: Number of DC2 Passive HA DB Copies in DC1 / DAG | C78: =IF(AND(HAOption="Yes",SiteResilienceEnabled="Yes",SRModel="Active/Active (Single DAG)",numDBCopiesSDC>0),calcNumDBCopyInSDC*RecNumDBsDC2,0) -> 0
B79: Total Number of DC2 Passive DB Copies in DC1 / DAG | C79: =calcNumHAPassCopiesDC2inDC1+IF(AND(numLaggedCopiesSDC>0,DedLaggedCopyServer="No"),calcTotNumLagDBCopiesSDC,0) -> 0
B81: Server Calculations | C81: Value | H81: Lag Calculations | I81: Value
B82: Total DAGs in the Environment | C82: =numDAGs*IF(AND(HAOption="Yes",SiteResilienceEnabled="Yes",SRModel="Active/Active (Multiple DAGs)"),2,1) -> 1 | H82: Log Replay Lag Time | I82: =IF(numLagDBCopies<>0,MIN(ReplayLagHours/24,14),0) -> 0
B83: Total Mailboxes in the Environment | C83: =calcTier1MBX+calcTier3MBX+calcTier2MBX+calcTier4MBX -> 24000 | H83: Log Truncation Lag Time | I83: =IF(numLagDBCopies<>0,MIN(TruncationLagHours/24,14),0) -> 0
B84: Total Mailboxes / DAG | C84: =IF(HAOption="Yes",TotalMBX/calcNumDAGs,"--") -> 24000 | H84: Number of Lagged Copy Servers / DAG | I84: =IF(AND(numLagDBCopies>0,DedLaggedCopyServer="Yes",HAOption="Yes"),ROUNDUP(calcTotNumLagDBCopiesPDC/TotNumDBCopiesServer,0)+ROUNDUP(calcTotNumLagDBCopiesSDC/TotNumDBCopiesServer,0),0) -> 0
B85: Number of Servers Hosting Active Mailboxes / Datacenter | C85: =numMBXServers -> 6 | H85: Number of Lagged Copy Servers in DC1 / DAG | I85: =calcNumLagMBXServers-calcNumLagMBXServersSDC -> 0
B86: Total Active Mailboxes / Server (Normal Runtime) | C86: =IF(HAOption="Yes",calcNumActiveDBs*MBXPerDB,TotalMBX/numMBXServers) -> 4000 | H86: Number of Lagged Copy Servers in DC2 / DAG | I86: =IF(AND(HAOption="Yes",SiteResilienceEnabled="Yes",DedLaggedCopyServer="Yes",numLaggedCopiesSDC>0),ROUNDUP(calcTotNumLagDBCopiesSDC/TotNumDBCopiesServer,0),0) -> 0
B87: Calculated Total Number of Mailboxes / Server | C87: =IF(HAOption="Yes",MBXPerDB*TotNumDBCopiesServer,TotalMBX/numMBXServers) -> 16000 | H87: Number of Lagged Copies / DAG in DC1 | I87: =IF(AND(HAOption="Yes",SiteResilienceEnabled="Yes",OR(SRModel="Active/Passive",SRModel="Active/Active (Multiple DAGs)")),calcNumLagCopyInPDC*RecNumDBs,(IF(calcNumLagCopyInPDC>0,calcNumLagCopyInPDC,0)+calcNumLagCopyInSDC)*RecNumDBsDC1) -> 0
B88: =IF(HAOption="Yes","Total Number of Database Copies per Server","Total Number of Databases per Server") -> Total Number of Database Copies per Server | C88: =IF(HAOption="Yes",ROUND((calcTotNumHACopiesDC1inDC1+IF(AND(SiteResilienceEnabled="Yes",SRModel="Active/Active (Single DAG)",SRAASDDRServers="No"),calcNumHAPassCopiesDC2inDC1,0)+IF(DedLaggedCopyServer="No",TotNumLagDBCopiesDC1,0))/numActMBXSvrsPerDC,0),RecNumDBsDC1) -> 80 | H88: Number of Lagged Copies / DAG in DC2 | I88: =(IF(AND(calcNumLagCopyInPDC>0,HAOption="Yes",SiteResilienceEnabled="Yes",SRModel="Active/Active (Single DAG)"),calcNumLagCopyInPDC,0)+calcNumLagCopyInSDC)*IF(AND(HAOption="Yes",SiteResilienceEnabled="Yes",OR(SRModel="Active/Passive",SRModel="Active/Active (Multiple DAGs)")),RecNumDBsDC1,RecNumDBsDC2) -> 0
B89: Number of Databases Used in Memory Sizing | C89: =IF(HAOption="Yes",IF(AND(calcNumActiveDBsFF="--",calcNumActiveDBsSF="--"),calcNumActiveDBs*IF(AND(calcNumAMBXServersDC1=1,calcNumDBCopyInPDC=1,SiteResilienceEnabled="Yes",SRModel="Active/Active (Single DAG)"),2,1),IF(AND(SiteResilienceEnabled="Yes",SRModel="Active/Active (Single DAG)",SRAASDDRServers="No"),MAX(calcNumActiveDBsFF,calcNumActiveDBsSF,calcNumDBMemSizingSDC),MAX(calcNumActiveDBsFF,calcNumActiveDBsSF))),RecNumDBsDC1) -> 30 | H89: Lagged Copy Server RAM Configuration | I89: =IF(AND(numLagDBCopies>0,DedLaggedCopyServer="Yes",HAOption="Yes"),ServerRAMConfig,"--") -> --
B90: Actual DB Cache / Mailbox | C90: =calcDBCacheSize/calcNumDBMemSizing*1/MBXPerDB*1024 -> 7.509333333
B93: Active Database Distribution Calculations | C93: Datacenter 1 | D93: Datacenter 2 | H93: Total Number of Database Copies | I93: Value
B94: Number of Active Databases / PDC Server (Normal Run time) | C94: =IF(HAOption="Yes",ROUNDUP(IF(RecNumDBsDC1=1,RecNumDBsDC1,RecNumDBsDC1/numActMBXSvrsPerDC),0),"--") -> 20 | D94: =IF(AND(HAOption="Yes",SiteResilienceEnabled="Yes",SRModel="Active/Active (Single DAG)"),ROUNDUP(IF(RecNumDBsDC2=1,RecNumDBsDC2,RecNumDBsDC2/numActMBXSvrsPerDC),0),"--") -> -- | H94: Number of HA DB Copies / DAG in Datacenter 1 | I94: =IF(HAOption="Yes",IF(SiteResilienceEnabled="Yes",IF(OR(SRModel="Active/Passive",SRModel="Active/Active (Multiple DAGs)"),calcTotNumHACopiesDC1inDC1,calcTotNumHACopiesDC1inDC1+calcNumHAPassCopiesDC2inDC1),calcTotNumHACopiesDC1inDC1),0) -> 480
B95: Number of Active Databases / PDC Server (After First PDC Server Failure) | C95: =IF(HAOption="Yes",IF(calcNumDBCopyInPDC>1,IF(RecNumDBsDC1=1,RecNumDBsDC1,IF(ROUNDUP(calcNumActiveDBs+(calcNumActiveDBs/(numActMBXSvrsPerDC-1)),0)=calcNumActiveDBs,"--",ROUNDUP(calcNumActiveDBs+(calcNumActiveDBs/(numActMBXSvrsPerDC-1)),0))),IF(AND(SRActivationBlocked="No",numActMBXSvrsPerDC>1),calcNumActiveDBs,"--")),"--") -> 24 | D95: =IF(AND(HAOption="Yes",SiteResilienceEnabled="Yes",SRModel="Active/Active (Single DAG)"),IF(calcNumDBCopyInPDC>1,IF(RecNumDBsDC2=1,RecNumDBsDC2,IF(ROUNDUP(calcNumActiveDBsDC2+(calcNumActiveDBsDC2/(numActMBXSvrsPerDC-1)),0)=calcNumActiveDBsDC2,"--",ROUNDUP(calcNumActiveDBsDC2+(calcNumActiveDBsDC2/(numActMBXSvrsPerDC-1)),0))),IF(AND(SRActivationBlocked="No",numActMBXSvrsPerDC>1),calcNumActiveDBsDC2,"--")),"--") -> -- | H95: Number of HA DB Copies / DAG in Datacenter 2 | I95: =IF(AND(HAOption="Yes",SiteResilienceEnabled="Yes"),IF(OR(SRModel="Active/Passive",SRModel="Active/Active (Multiple DAGs)"),calcNumHAPassCopiesDC1inDC2,calcTotNumHACopiesDC2inDC2+calcNumHAPassCopiesDC1inDC2),0) -> 0
B96: Number of Active Databases / SDC Server (After First PDC Server Failure) | C96: =IF(AND(HAOption="Yes",SiteResilienceEnabled="Yes",numDBCopiesSDC>=1,calcNumDBCopyInPDC<3,SRActivationBlocked="No",ValidationCheck=FALSE),ROUNDUP(IF(calcNumDBCopyInPDC=1,(RecNumDBsDC1-IF(calcNumActiveDBsFF="--",0,calcNumActiveDBsFF))/IF(AND(calcNumDBCopyInPDC=1,OR(numActMBXSvrsPerDC=1,SRAASDDRServers="No"),SiteResilienceEnabled="Yes",SRModel="Active/Active (Single DAG)"),calcNumAMBXServersDC2,calcNumPMBXServersDC2),0),0),"--") -> -- | D96: =IF(AND(HAOption="Yes",SiteResilienceEnabled="Yes",SRModel="Active/Active (Single DAG)",numDBCopiesSDC>=1,calcNumDBCopyInPDC<3,SRActivationBlocked="No",ValidationCheck=FALSE),ROUNDUP(IF(calcNumDBCopyInPDC=1,(RecNumDBsDC2-IF(calcNumActiveDBsFFDC2="--",0,calcNumActiveDBsFFDC2))/IF(AND(calcNumDBCopyInPDC=1,OR(numActMBXSvrsPerDC=1,SRAASDDRServers="No"),SiteResilienceEnabled="Yes",SRModel="Active/Active (Single DAG)"),calcNumAMBXServersDC1,calcNumPMBXServersDC1),0),0),"--") -> -- | H96: Number of Lagged DB Copies / DAG in Datacenter 1 | I96: =calcTotNumLagDBCopiesPDC -> 0
B97: Number of Active Databases / PDC (After First PDC Server Failure) | C97: =IF(OR(calcNumActiveDBsPDCFFinSDC="--",calcNumActiveDBsPDCFFinSDC=0),"--",IF(AND(numActMBXSvrsPerDC>1,calcNumDBCopyInPDC>1),RecNumDBsDC1-(ROUNDUP((calcNumActiveDBs/(numActMBXSvrsPerDC-1)),0)),0)) -> -- | D97: =IF(OR(calcNumActiveDBsPDCFFinSDCDC2="--",calcNumActiveDBsPDCFFinSDCDC2=0),"--",IF(AND(numActMBXSvrsPerDC>1,calcNumDBCopyInPDC>1),RecNumDBsDC2-(ROUNDUP((calcNumActiveDBsDC2/(numActMBXSvrsPerDC-1)),0)),0)) -> -- | H97: Number of Lagged DB Copies / DAG in Datacenter 2 | I97: =calcTotNumLagDBCopiesSDC -> 0
B98: Number of Active Databases / SDC (After First PDC Server Failure) | C98: =IF(OR(calcNumActiveDBsPDCFFinSDC="--",calcNumActiveDBsPDCFFinSDC=0),"--",RecNumDBsDC1-calcTotActiveDBsPDCFFinPDC) -> -- | D98: =IF(OR(calcNumActiveDBsPDCFFinSDCDC2="--",calcNumActiveDBsPDCFFinSDCDC2=0),"--",RecNumDBsDC2-calcTotActiveDBsPDCFFinPDCDC2) -> --
B99: Number of Active Databases / PDC Server (After Second PDC Server Failure) | C99: =IF(HAOption="Yes",IF(SiteResilienceEnabled="Yes",IF(SRActivationBlocked="No",IF(AND(NumDBCopies>=3,numActMBXSvrsPerDC+IF(AND(SRModel="Active/Active (Single DAG)",SRAASDDRServers="No"),calcNumAMBXServersDC2,calcNumPMBXServersDC2)>=4),IF(calcNumDBCopyInPDC>=3,MIN(TotNumDBCopiesServer,IF(numActMBXSvrsPerDC-2=1,TotNumDBCopiesServer/2,ROUNDUP(calcNumActiveDBs+((calcNumActiveDBs*2)/(numActMBXSvrsPerDC-2)),0))),IF(numActMBXSvrsPerDC>2,MIN(TotNumDBCopiesServer,ROUNDUP((RecNumDBsDC1-(ROUNDUP((calcNumActiveDBs/(numActMBXSvrsPerDC-1)),0)*2))/(numActMBXSvrsPerDC-2),0)),0)),"--"),IF(AND(calcNumDBCopyInPDC>=3,calcNumAMBXServersDC1+calcNumPMBXServersDC2>=4),MIN(TotNumDBCopiesServer,ROUNDUP(calcNumActiveDBs+((calcNumActiveDBs*2)/(numActMBXSvrsPerDC-2)),0)),"--")),IF(AND(calcNumDBCopyInPDC>=3,numActMBXSvrsPerDC>=4),MIN(TotNumDBCopiesServer,IF(numActMBXSvrsPerDC-2=1,TotNumDBCopiesServer/2,ROUNDUP(calcNumActiveDBs+((calcNumActiveDBs*2)/(numActMBXSvrsPerDC-2)),0))),"--")),"--") -> 30 | D99: =IF(AND(HAOption="Yes",SiteResilienceEnabled="Yes",SRModel="Active/Active (Single DAG)"),IF(SiteResilienceEnabled="Yes",IF(SRActivationBlocked="No",IF(AND(NumDBCopies>=3,numActMBXSvrsPerDC+IF(AND(SRModel="Active/Active (Single DAG)",SRAASDDRServers="No"),calcNumAMBXServersDC1,calcNumPMBXServersDC1)>=4),IF(calcNumDBCopyInPDC>=3,MIN(TotNumDBCopiesServer,IF(numActMBXSvrsPerDC-2=1,TotNumDBCopiesServer/2,ROUNDUP(calcNumActiveDBsDC2+((calcNumActiveDBsDC2*2)/(numActMBXSvrsPerDC-2)),0))),IF(numActMBXSvrsPerDC>2,MIN(TotNumDBCopiesServer,ROUNDUP((RecNumDBsDC2-(ROUNDUP((calcNumActiveDBsDC2/(numActMBXSvrsPerDC-1)),0)*2))/(numActMBXSvrsPerDC-2),0)),0)),"--"),IF(AND(calcNumDBCopyInPDC>=3,numActMBXSvrsPerDC>=4),MIN(TotNumDBCopiesServer,IF(numActMBXSvrsPerDC-2=1,TotNumDBCopiesServer/2,ROUNDUP(calcNumActiveDBsDC2+((calcNumActiveDBsDC2*2)/(numActMBXSvrsPerDC-2)),0))),"--")),IF(AND(calcNumDBCopyInPDC>=3,numActMBXSvrsPerDC>=4),MIN(TotNumDBCopiesServer,IF(numActMBXSvrsPerDC-2=1,TotNumDBCopiesServer/2,ROUNDUP(calcNumActiveDBsDC2+((calcNumActiveDBsDC2*2)/(numActMBXSvrsPerDC-2)),0))),"--")),"--") -> --
B100: Number of Active Databases / SDC Server (After Second PDC Server Failure) | C100: =IF(AND(HAOption="Yes",SiteResilienceEnabled="Yes",SRActivationBlocked="No",numDBCopiesSDC>=1,OR(calcNumDBCopyInPDC<3,numActMBXSvrsPerDC<4),ValidationCheck=FALSE,calcNumActiveDBsSF<>"--"),ROUNDUP(((calcNumActiveDBsFF-calcNumActiveDBs)*2)/IF(AND(SRModel="Active/Active (Single DAG)",SRAASDDRServers="No"),calcNumAMBXServersDC2,calcNumPMBXServersDC2),0),"--") -> -- | D100: =IF(AND(HAOption="Yes",SiteResilienceEnabled="Yes",SRActivationBlocked="No",SRModel="Active/Active (Single DAG)",numDBCopiesSDC>=1,OR(calcNumDBCopyInPDC<3,numActMBXSvrsPerDC<4),ValidationCheck=FALSE,calcNumActiveDBsSFDC2<>"--"),ROUNDUP(((calcNumActiveDBsFFDC2-calcNumActiveDBsDC2)*2)/IF(AND(SRModel="Active/Active (Single DAG)",SRAASDDRServers="No"),calcNumAMBXServersDC1,calcNumPMBXServersDC1),0),"--") -> --
B101: Number of Active Databases / PDC (After Second PDC Server Failure) | C101: =IF(calcNumActiveDBsPDCSFinSDC="--","--",RecNumDBsDC1-(ROUNDUP((calcNumActiveDBs/(numActMBXSvrsPerDC-1)),0)*2)) -> -- | D101: =IF(calcNumActiveDBsPDCSFinSDCDC2="--","--",RecNumDBsDC2-(ROUNDUP((calcNumActiveDBsDC2/(numActMBXSvrsPerDC-1)),0)*2)) -> --
B102: Number of Active Databases / SDC (After First PDC Server Failure) | C102: =IF(calcNumActiveDBsPDCSFinSDC="--","--",ROUNDUP((calcNumActiveDBs/(numActMBXSvrsPerDC-1)),0)*2) -> -- | D102: =IF(calcNumActiveDBsPDCSFinSDCDC2="--","--",ROUNDUP((calcNumActiveDBsDC2/(numActMBXSvrsPerDC-1)),0)*2) -> --
B104: Second Datacenter Activation (DR) Calculations | C104: Value | H104: Storage Architecture | I104: Value
B105: Number of Active Databases / Server (After Activation) | C105: =IF(AND(HAOption="Yes",SiteResilienceEnabled="Yes",numDBCopiesSDC<>0,ValidationCheck=FALSE),IF(OR(AND(SiteResilienceEnabled="Yes",SRModel="Active/Active (Single DAG)",SRAASDDRServers="No"),AND(calcNumDBCopyInPDC=1,numActMBXSvrsPerDC=1,SiteResilienceEnabled="Yes",SRModel="Active/Active (Single DAG)")),ROUNDUP(RecNumDBs/calcNumAMBXServersDC2,0),ROUNDUP(IF(numDBCopiesSDC=1,calcNumHAPassCopiesDC1inDC2/calcNumPMBXServersDC2,IF(SRModel="Active/Active (Single DAG)",RecNumDBsDC2,RecNumDBs)/calcNumPMBXServersDC2),0)),"--") -> -- | H105: Preferred Storage Architecture (Primary Datacenter) | I105: =IF(IF(DedLaggedCopyServer="No",AND(JBODEvaluation="Yes",LUNArchitecture="1 LUN / DB",NumDBCopies>=3,OR(calcNumLagCopyInPDC=0,calcNumLagCopyInPDC>=2)),AND(JBODEvaluation="Yes",LUNArchitecture="1 LUN / DB",NumDBCopies>=3)),IF(AND(SiteResilienceEnabled="Yes",SRModel="Active/Active (Single DAG)",SRAASDDRServers="No",calcNumDBCopyInSDC=1),"RAID","JBOD"),"RAID") -> JBOD
B106: Number of Active Databases / Server (1st Server Failure after Activation) | C106: =IF(AND(HAOption="Yes",SiteResilienceEnabled="Yes",numDBCopiesSDC>=2,ValidationCheck=FALSE),IF(AND(SRModel="Active/Active (Single DAG)",SRAASDDRServers="No",calcNumAMBXServersDC2>=2),IF(calcNumAMBXServersDC2=numActMBXSvrsPerDC,calcNumActiveDBsFF,ROUNDUP(RecNumDBs/(calcNumAMBXServersDC2-1),0))+calcNumActiveDBsFF,IF(calcNumPMBXServersDC2>=2,IF(calcNumPMBXServersDC2=numActMBXSvrsPerDC,calcNumActiveDBsFF,ROUNDUP(RecNumDBs/(calcNumPMBXServersDC2-1),0)),"--")),"--") -> -- | H106: Preferred Storage Architecture (Second Datacenter) | I106: =IF(AND(HAOption="Yes",SiteResilienceEnabled="Yes",ValidationCheck=FALSE,numDBCopiesSDC>0),IF(IF(DedLaggedCopyServer="No",AND(JBODEvaluation="Yes",LUNArchitecture="1 LUN / DB",calcNumDBCopyInSDC>=2,OR(calcNumLagCopyInSDC=0,calcNumLagCopyInSDC>=2)),AND(JBODEvaluation="Yes",LUNArchitecture="1 LUN / DB",calcNumDBCopyInSDC>=2)),"JBOD","RAID"),"--") -> --
B107: Number of Active Databases / Server (2nd Server Failure after Activation) | C107: =IF(AND(HAOption="Yes",SiteResilienceEnabled="Yes",numDBCopiesSDC>=3,ValidationCheck=FALSE),IF(AND(SRModel="Active/Active (Single DAG)",SRAASDDRServers="No",calcNumAMBXServersDC2>=4),IF(calcNumAMBXServersDC2=numActMBXSvrsPerDC,calcNumActiveDBsSF,ROUNDUP(RecNumDBs/(calcNumAMBXServersDC2-2),0))+calcNumActiveDBsSF,IF(calcNumPMBXServersDC2>=4,IF(calcNumPMBXServersDC2=numActMBXSvrsPerDC,calcNumActiveDBsSF,ROUNDUP(RecNumDBs/(calcNumPMBXServersDC2-2),0)),"--")),"--") -> -- | H107: Preferred Storage Architecture (Lagged Copy Server) | I107: =IF(AND(DedLaggedCopyServer="Yes",numLagDBCopies>0,ValidationCheck=FALSE,HAOption="Yes"),IF(AND(JBODEvaluation="Yes",LUNArchitecture="1 LUN / DB",OR(calcNumLagCopyInPDC>=2,calcNumLagCopyInSDC>2)),"JBOD","RAID"),"--") -> --
B108: Number of Databases Used in Memory Sizing in Secondary Datacenter | C108: =IF(AND(HAOption="Yes",SiteResilienceEnabled="Yes"),IF(AND(calcNumAMBXServersDC1=1,calcNumDBCopyInPDC=1,SiteResilienceEnabled="Yes",SRModel="Active/Active (Single DAG)"),calcNumDBMemSizing,MAX(calcNumActiveDBsSiteF,calcNumActiveDBsSiteF1F,calcNumActiveDBsSiteF2F)),"--") -> --
B110: Memory Calculations (Primary Datacenter) | C110: Value | H110: Memory Calculations (Secondary Datacenter) | I110: Value
B111: Minimum ESE Database Cache Required Memory (Mailboxes) | C111: =IF(HAOption="Yes",ROUNDUP((NumTier1MBXDB*calcNumDBMemSizing*Tier1MemoryProfile/1024)+(NumTier2MBXDB*calcNumDBMemSizing*Tier2MemoryProfile/1024)+(NumTier3MBXDB*calcNumDBMemSizing*Tier3MemoryProfile/1024)+(NumTier4MBXDB*calcNumDBMemSizing*Tier4MemoryProfile/1024),0),ROUNDUP((calcTier1MBX/numMBXServers*Tier1MemoryProfile/1024)+(calcTier3MBX/numMBXServers*Tier3MemoryProfile/1024)+(calcTier2MBX/numMBXServers*Tier2MemoryProfile/1024)+(calcTier4MBX/numMBXServers*Tier4MemoryProfile/1024),0)) -> 36 | H111: Minimum DB Cache Required Memory (Mailboxes) | I111: =IF(AND(OR(calcNumAMBXServersDC2<>0,calcNumPMBXServersDC2>0),SiteResilienceEnabled="Yes",ValidationCheck=FALSE,calcNumDBMemSizingSDC<>"--"),ROUNDUP((NumTier1MBXDB*calcNumDBMemSizingSDC*Tier1MemoryProfile/1024)+(NumTier2MBXDB*calcNumDBMemSizingSDC*Tier2MemoryProfile/1024)+(NumTier3MBXDB*calcNumDBMemSizingSDC*Tier3MemoryProfile/1024)+(NumTier4MBXDB*calcNumDBMemSizingSDC*Tier4MemoryProfile/1024),0),"--") -> --
B112: Minimum Database Required Memory | C112: =VLOOKUP(IF(HAOption="Yes",TotNumDBCopiesServer,RecNumDBs),tblMinESECacheReq,3,TRUE) -> 16 | H112: Recommended Minimum ESE DB Cache RAM Size | I112: =IF(AND(OR(calcNumAMBXServersDC2<>0,calcNumPMBXServersDC2>0),SiteResilienceEnabled="Yes",ValidationCheck=FALSE,calcNumActiveDBsSiteF<>"--"),MAX(minDBCacheMemMBXSDC,minDBReqMemory),"--") -> --
B113: Recommended Minimum ESE Database Cache RAM Size | C113: =MAX(minDBCacheMemMBX,minDBReqMemory) -> 36 | H113: Calculated Amount of Server RAM | I113: =IF(AND(OR(calcNumAMBXServersDC2<>0,calcNumPMBXServersDC2>0),SiteResilienceEnabled="Yes",ValidationCheck=FALSE,calcNumActiveDBsSiteF<>"--"),ROUND(IF(MultiRoleEnabled="Yes",IF(minRecDBCacheSizeMBXSDC>=4,(minRecDBCacheSizeMBXSDC+4)/0.75,minRecDBCacheSizeMBXSDC/0.25),IF(minRecDBCacheSizeMBXSDC>1,(minRecDBCacheSizeMBXSDC+4)/0.9,minRecDBCacheSizeMBXSDC/0.25)),0),"--") -> --
B114: Calculated Amount of Server RAM | C114: =ROUND(IF(MultiRoleEnabled="Yes",IF(minRecDBCacheSize>=4,(minRecDBCacheSize+4)/0.75,minRecDBCacheSize/0.25),IF(minRecDBCacheSize>1,(minRecDBCacheSize+4)/0.9,minRecDBCacheSize/0.25)),0) -> 53 | H114: Total Server RAM Configuration | I114: =IF(AND(OR(calcNumAMBXServersDC2<>0,calcNumPMBXServersDC2>0),SiteResilienceEnabled="Yes",ValidationCheck=FALSE,calcNumActiveDBsSiteF<>"--"),IF(IF(calcMBXSDCRAM>=64,CEILING(calcMBXSDCRAM,32),IF(calcMBXSDCRAM>=32,CEILING(calcMBXSDCRAM,16),IF(calcMBXSDCRAM>=16,CEILING(calcMBXSDCRAM,8),IF(calcMBXSDCRAM>=4,CEILING(calcMBXSDCRAM,4),CEILING(calcMBXSDCRAM,2)))))<ServerRAMConfig,ServerRAMConfig,IF(calcMBXSDCRAM>=64,CEILING(calcMBXSDCRAM,32),IF(calcMBXSDCRAM>=32,CEILING(calcMBXSDCRAM,16),IF(calcMBXSDCRAM>=16,CEILING(calcMBXSDCRAM,8),IF(calcMBXSDCRAM>=4,CEILING(calcMBXSDCRAM,4),CEILING(calcMBXSDCRAM,2)))))),"--") -> --
B115: Total Server RAM Configuration | C115: =IF(calcServerRAM>=64,CEILING(calcServerRAM,32),IF(calcServerRAM>=32,CEILING(calcServerRAM,16),IF(calcServerRAM>=16,CEILING(calcServerRAM,8),IF(calcServerRAM>=4,CEILING(calcServerRAM,4),CEILING(calcServerRAM,2))))) -> 64
B116: Calculated ESE Database Cache Size Based on Server Memory | C116: =IF(MultiRoleEnabled="No",IF(ServerRAMConfig<=4,ServerRAMConfig*0.25,(ServerRAMConfig*0.9)-4),IF(ServerRAMConfig<=8,ServerRAMConfig*0.25,(ServerRAMConfig*0.75)-4)) -> 44
B118: Transaction Log Calculations | C118: Value | H118: Disk Capacity Calculations | I118: Value
B119: User Transaction Logs Generated / Day | C119: =IF(HAOption="Yes",((Tier1LogGen*calcTier1MBX/calcNumDAGs)+(Tier3LogGen*calcTier3MBX/calcNumDAGs)+(Tier2LogGen*calcTier2MBX/calcNumDAGs)+(Tier4LogGen*calcTier4MBX/calcNumDAGs)),((Tier1LogGen*calcTier1MBX/numMBXServers)+(Tier3LogGen*calcTier3MBX/numMBXServers)+(Tier2LogGen*calcTier2MBX/numMBXServers)+(Tier4LogGen*calcTier4MBX/numMBXServers)))*(1+DataGrowth) -> 576000 | H119: Database Disk Space Required | I119: =DBSizeOverhead*RecNumDBs -> 153140.625
B120: User Transaction Logs Generated / Day / DB | C120: =CalcNumUserTLogs/RecNumDBs -> 4800 | H120: Database Disk Space Required for all Copies | I120: =IF(HAOption="Yes",TotDBDiskSpaceReq*(NumDBCopies+numLagDBCopies),"--") -> 612562.5
B121: Log Disk Space Required - Backups | C121: =IF(AND(HAOption="Yes",BackupMethod="Exchange Native Data Protection",NumDBCopies+numLagDBCopies>=3),CalcNumUserTLogs*MAX(MAX(BackupFailureTol,NetFailureTol),ReplayLagTime+TruncationLagTime,1)/1024,CalcNumUserTLogs*(IF(BackupFreq="Weekly Full / Daily Differential",MAX(MAX(7,MAX(BackupFailureTol,NetFailureTol),ReplayLagTime+TruncationLagTime),7*MAX(BackupFailureTol,NetFailureTol)),IF(RestoreLUN="Yes",MAX(MAX(BackupFailureTol,NetFailureTol),ReplayLagTime+TruncationLagTime),IF(BackupFreq="Weekly Full / Daily Incremental",MAX(MAX(BackupFailureTol,NetFailureTol),ReplayLagTime+TruncationLagTime,7),IF(BackupFreq="Bi-Monthly Full / Daily Incremental",MAX(MAX(BackupFailureTol,NetFailureTol),ReplayLagTime+TruncationLagTime,14),MAX(MAX(BackupFailureTol,NetFailureTol),ReplayLagTime+TruncationLagTime))))))*1/1024) -> 1687.5 | H121: Database Disk Space Required / DAG Member | I121: =IF(HAOption="Yes",DBSizeOverhead*TotNumDBCopiesServer,"--") -> 102093.75
B122: Log Disk Space Required - Mailbox Moves | C122: =IF(HAOption="Yes",(((calcTier1MBX/calcNumDAGs*MBXMoveRate)*(Tier1MBXSize/1024))+((calcTier3MBX/calcNumDAGs*MBXMoveRate)*(Tier3MBXSize/1024))+((calcTier2MBX/calcNumDAGs*MBXMoveRate)*(Tier2MBXSize/1024))+((calcTier4MBX/calcNumDAGs*MBXMoveRate)*(Tier4MBXSize/1024))),(((calcTier1MBX/numMBXServers*MBXMoveRate)*(Tier1MBXSize/1024))+((calcTier3MBX/numMBXServers*MBXMoveRate)*(Tier3MBXSize/1024))+((calcTier2MBX/numMBXServers*MBXMoveRate)*(Tier2MBXSize/1024))+((calcTier4MBX/numMBXServers*MBXMoveRate)*(Tier4MBXSize/1024))))*(1+DataGrowth) -> 1531.40625 | H122: Total Log Disk Space Required | I122: =(LogDiskSpaceReqBackup+LogDiskSpaceReqMove) -> 3218.90625
B123: Mailbox Move Transaction Logs Generated / Week | C123: =LogDiskSpaceReqMove*1024 -> 1568160 | H123: Total Log Disk Space Required for all Copies | I123: =IF(HAOption="Yes",TotLogDiskSpace*(NumDBCopies+numLagDBCopies),"--") -> 12875.625
B124: Mailbox Move Transaction Logs Generated / Week / DB | C124: =NumMoveMBXTLogPerWk/RecNumDBs -> 13068 | H124: Log Disk Space Required / DAG Member | I124: =IF(HAOption="Yes",LogSizeOverhead*TotNumDBCopiesServer,"--") -> 2145.9375
B125: Mailbox Move Transaction Logs Generated / Day | C125: =NumMoveMBXTLogPerWk/7 -> 224022.8571
B126: Mailbox Move Transaction Logs Generated / Day / DB | C126: =NumMoveMBXTLogPerWkPerDB/7 -> 1866.857143
B127: Average Transaction Logs Generated / DB / Day | C127: =NumDBMoveMbxTLogs+CalcNumDBUserTLogs -> 6666.857143
B128: Average Transaction Logs Generated / Day | C128: =NumMoveMBXTLogs+CalcNumUserTLogs -> 800022.8571
B130: Processor Megacycle Calculations | C130: Value | H130: CPU Utilization | I130: Value
B131: Adjusted Megacycles / Core per Primary Datacenter Server | C131: =numSpecRatePDC/numProcCoresPDC*3333/18.75 -> 0 | H131: Primary Datacenter Servers | I131: =IF(numMCyclesPerCorePDC<>0,(calcMBXServerACPU+calcMBXServerPCPU)/calcAvSvrMCycles,"--") -> --
B132: Adjusted Megacycles / Core per Secondary Datacenter Server | C132: =IF(AND(OR(calcNumAMBXServersDC2<>0,calcNumPMBXServersDC2<>0),ValidationCheck=FALSE),numSpecRateSDC/numProcCoresSDC*3333/18.75,0) -> 0 | H132: Secondary Datacenter Servers | I132: =IF(AND(OR(calcNumPMBXServersDC2<>0,calcNumAMBXServersDC2<>0),ValidationCheck=FALSE,numMCyclesPerCoreSDC<>0),(calcMBXServerACPUSDC+calcMBXServerPCPUSDC)/calcAvSvrMCyclesSDC,"--") -> --
B133: Adjusted Megacycles / Core per Lagged Copy Server | C133: =IF(AND(HAOption="Yes",DedLaggedCopyServer="Yes",numLagDBCopies<>0,ValidationCheck=FALSE),numSpecRateLCS/numProcCoresLCS*3333/18.75,0) -> 0 | H133: Lagged Copy Servers | I133: =IF(AND(calcNumLagMBXServers<>0,ValidationCheck=FALSE,numMCyclesPerCoreLCS<>0),calcLaggedServerCPU/calcAvSvrMCyclesLCS,"--") -> --
B134: Available Megacycles / Primary Datacenter Server | C134: =IF(numMCyclesPerCorePDC<>0,numProcCoresPDC*numMCyclesPerCorePDC,"--") -> --
B135: Available Megacycles / Secondary Datacenter Server | C135: =IF(AND(OR(calcNumAMBXServersDC2<>0,calcNumPMBXServersDC2<>0),ValidationCheck=FALSE),numProcCoresSDC*numMCyclesPerCoreSDC,"--") -> --
B136: Available Megacycles / Lagged Copy Server | C136: =IF(AND(HAOption="Yes",DedLaggedCopyServer="Yes",numLagDBCopies<>0,ValidationCheck=FALSE),numProcCoresLCS*numMCyclesPerCoreLCS,"--") -> -- | H136: Validation Checks | I136: Value
B137: Active Mailbox CPU Requirements (Mcycles) / Pri-DC Server | C137: =calcNumDBMemSizing*((NumTier1MBXDB*Tier1ActiveMegacycles)+(NumTier2MBXDB*Tier2ActiveMegacycles)+(NumTier3MBXDB*Tier3ActiveMegacycles)+(NumTier4MBXDB*Tier4ActiveMegacycles))*IF(HAOption="Yes",(1 + ((NumDBCopies+numLagDBCopies-1)*0.1)),1)*IF(VirtualizationEnabled="Yes",(1+VirtCPUFactor),1) -> 15600 | H137: Too Many DAG Members Validation Check | I137: =IF(HAOption="Yes",IF(calcNumAMBXServersDC1+calcNumPMBXServersDC1+calcNumLagMBXServers+calcNumPMBXServersDC2+calcNumAMBXServersDC2>16,TRUE,FALSE),FALSE) -> FALSE
B138: Passive Mailbox CPU Requirements (Mcycles) / Pri-DC Server | C138: =IF(HAOption="Yes",(TotNumDBCopiesServer-calcNumDBMemSizing)*((NumTier1MBXDB*VLOOKUP(Tier1SendReceive,TblSendReceive,6,FALSE))+(NumTier2MBXDB*VLOOKUP(Tier2SendReceive,TblSendReceive,6,FALSE))+(NumTier3MBXDB*VLOOKUP(Tier3SendReceive,TblSendReceive,6,FALSE))+(NumTier4MBXDB*VLOOKUP(Tier4SendReceive,TblSendReceive,6,FALSE)))*IF(VirtualizationEnabled="Yes",(1+VirtCPUFactor),1),0) -> 3000 | H138: DB Copy Count Validation Check | I138: =IF(HAOption="Yes",IF(AND(numDBCopiesSDC>NumDBCopies-1,numMBXServers>1),TRUE,FALSE),FALSE) -> FALSE
B139: Active Mailbox CPU Requirements (Mcycles) / Sec-DC Server | C139: =IF(AND(OR(calcNumAMBXServersDC2<>0,calcNumPMBXServersDC2<>0),ValidationCheck=FALSE),IF(calcNumHAPassCopiesDC1inDC2<>0,calcNumDBMemSizingSDC*((NumTier1MBXDB*Tier1ActiveMegacycles)+(NumTier2MBXDB*Tier2ActiveMegacycles)+(NumTier3MBXDB*Tier3ActiveMegacycles)+(NumTier4MBXDB*Tier4ActiveMegacycles))*(1 + ((NumDBCopies+numLagDBCopies-1)*0.1))*IF(VirtualizationEnabled="Yes",(1+VirtCPUFactor),1),0),"--") -> -- | H139: Calculator Validation Check | I139: =IF(OR(DAGMemberValCheck=TRUE,DBCopyValCheck=TRUE),TRUE,FALSE) -> FALSE
B140: Passive Mailbox CPU Requirements (Mcycles) / Sec-DC Server | C140: =IF(AND(OR(calcNumAMBXServersDC2<>0,calcNumPMBXServersDC2<>0),ValidationCheck=FALSE),IF(calcNumHAPassCopiesDC1inDC2<>0,(TotNumDBCopiesServer-calcNumDBMemSizingSDC)*((NumTier1MBXDB*VLOOKUP(Tier1SendReceive,TblSendReceive,6,FALSE))+(NumTier2MBXDB*VLOOKUP(Tier2SendReceive,TblSendReceive,6,FALSE))+(NumTier3MBXDB*VLOOKUP(Tier3SendReceive,TblSendReceive,6,FALSE))+(NumTier4MBXDB*VLOOKUP(Tier4SendReceive,TblSendReceive,6,FALSE)))*IF(VirtualizationEnabled="Yes",(1+VirtCPUFactor),1),TotNumDBCopiesServer*((NumTier1MBXDB*VLOOKUP(Tier1SendReceive,TblSendReceive,6,FALSE))+(NumTier2MBXDB*VLOOKUP(Tier2SendReceive,TblSendReceive,6,FALSE))+(NumTier3MBXDB*VLOOKUP(Tier3SendReceive,TblSendReceive,6,FALSE))+(NumTier4MBXDB*VLOOKUP(Tier4SendReceive,TblSendReceive,6,FALSE)))*IF(VirtualizationEnabled="Yes",(1+VirtCPUFactor),1)),"--") -> --
B141: Passive Mailbox CPU Requirements (Mcycles) / Lagged Server | C141: =IF(AND(HAOption="Yes",DedLaggedCopyServer="Yes",numLagDBCopies<>0,ValidationCheck=FALSE),TotNumDBCopiesServer*((NumTier1MBXDB*VLOOKUP(Tier1SendReceive,TblSendReceive,6,FALSE))+(NumTier2MBXDB*VLOOKUP(Tier2SendReceive,TblSendReceive,6,FALSE))+(NumTier3MBXDB*VLOOKUP(Tier3SendReceive,TblSendReceive,6,FALSE))+(NumTier4MBXDB*VLOOKUP(Tier4SendReceive,TblSendReceive,6,FALSE)))*IF(VirtualizationEnabled="Yes",(1+VirtCPUFactor),1),"--") -> --
B143: Processor Core Ratio Calculations | C143: Value | H143: Log Stream Calculations | I143: Value
B144: Number of Required Mailbox Processor Cores (Primary Datacenter) | C144: =IF(numMCyclesPerCorePDC<>0,IF(calcMBXServerACPU>=numMCyclesPerCorePDC,ROUNDUP(calcMBXServerACPU/numMCyclesPerCorePDC*IF(HAOption="Yes",IF(AND(SiteResilienceEnabled="Yes",SRModel="Active/Active (Single DAG)",SRAASDDRServers="No"),IF(calcNumActiveDBsSiteF2F<>"--",calcNumAMBXServersDC2-2,IF(calcNumActiveDBsSiteF1F<>"--",calcNumAMBXServersDC2-1,calcNumAMBXServersDC2)),IF(AND(calcNumActiveDBsSF<>0,calcNumActiveDBsSF<>"--"),calcNumAMBXServersDC1-2,IF(calcNumActiveDBsFF<>"--",calcNumAMBXServersDC1-1,calcNumAMBXServersDC1)))*numDAGs,numMBXServers),0),(1*IF(HAOption="Yes",numDAGs,numMBXServers)))+(IF(AND(HAOption="Yes",SiteResilienceEnabled="Yes",numMCyclesPerCoreSDC<>0,calcNumDBCopyInSDC>0,OR(AND(SRModel="Active/Active (Single DAG)",SRAASDDRServers="Yes"),SRModel="Active/Active (Multiple DAGs)")),IF(AND(calcNumAMBXServersDC1=1,SRModel="Active/Active (Single DAG)"),0,IF(calcMBXServerACPUSDC>=numMCyclesPerCoreSDC,IF(AND(calcNumDBCopyInPDC=1,numActMBXSvrsPerDC=1,SiteResilienceEnabled="Yes",SRModel="Active/Active (Single DAG)"),ROUNDUP(calcMBXServerACPUSDC/numMCyclesPerCoreSDC*IF(calcNumActiveDBsSiteF2F<>"--",calcNumAMBXServersDC2-2,IF(calcNumActiveDBsSiteF1F<>"--",calcNumAMBXServersDC2-1,calcNumAMBXServersDC2))*numDAGs,0),ROUNDUP(calcMBXServerACPUSDC/numMCyclesPerCoreSDC*IF(calcNumActiveDBsSiteF2F<>"--",calcNumPMBXServersDC2-2,IF(calcNumActiveDBsSiteF1F<>"--",calcNumPMBXServersDC2-1,calcNumPMBXServersDC2))*numDAGs,0)),(1*numDAGs))),0)),"--") -> -- | H144: Number of Source Mailbox DBs in DC1 / DAG | I144: =IF(AND(HAOption="Yes",SiteResilienceEnabled="Yes"),RecNumDBsDC1,0) -> 0
B145: Recommended Min Number of HT Cores (Primary Datacenter) | C145: =IF(AND(MultiRoleEnabled="No",numMCyclesPerCorePDC<>0),ROUNDUP(calcReqMBXCoresPDC/5,0),"--") -> -- | H145: Number of Target Mailbox DBs in DC1 / DAG | I145: =IF(AND(HAOption="Yes",SiteResilienceEnabled="Yes"),IF(SRModel="Active/Passive",0,calcNumSrcDBDC2*calcNumDBCopyInSDC),0) -> 0
B146: Recommended Min Number of CAS Cores (Primary Datacenter) | C146: =IF(AND(MultiRoleEnabled="No",numMCyclesPerCorePDC<>0),ROUNDUP((3*calcReqMBXCoresPDC)/4,0),"--") -> -- | H146: Number of Source Mailbox DBs in DC2 / DAG | I146: =IF(AND(HAOption="Yes",SiteResilienceEnabled="Yes"),IF(SRModel="Active/Passive",0,RecNumDBsDC2),0) -> 0
B147: Recommended Min Number of GC Cores (Primary Datacenter) | C147: =IF(numMCyclesPerCorePDC<>0,ROUNDUP(calcReqMBXCoresPDC/IF(GCServerArch="64-bit",8,4),0),"--") -> -- | H147: Number of Target Mailbox DBs in DC2 / DAG | I147: =IF(AND(HAOption="Yes",SiteResilienceEnabled="Yes"),calcNumSrcDBDC1*calcNumDBCopyInSDC,0) -> 0
B148: Number of Required Mailbox Processor Cores (Secondary Datacenter) | C148: =IF(AND(SiteResilienceEnabled="Yes",HAOption="Yes",numMCyclesPerCoreSDC<>0,calcNumDBCopyInSDC>0),IF(calcMBXServerACPUSDC>=numMCyclesPerCoreSDC,IF(OR(AND(SiteResilienceEnabled="Yes",SRModel="Active/Active (Single DAG)",SRAASDDRServers="No"),AND(calcNumDBCopyInPDC=1,numActMBXSvrsPerDC=1,SiteResilienceEnabled="Yes",SRModel="Active/Active (Single DAG)")),ROUNDUP(calcMBXServerACPUSDC/numMCyclesPerCoreSDC*IF(calcNumActiveDBsSiteF2F<>"--",calcNumAMBXServersDC2-2,IF(calcNumActiveDBsSiteF1F<>"--",calcNumAMBXServersDC2-1,calcNumAMBXServersDC2))*numDAGs,0),ROUNDUP(calcMBXServerACPUSDC/numMCyclesPerCoreSDC*IF(calcNumActiveDBsSiteF2F<>"--",calcNumPMBXServersDC2-2,IF(calcNumActiveDBsSiteF1F<>"--",calcNumPMBXServersDC2-1,calcNumPMBXServersDC2))*numDAGs,0)),(1*numDAGs))+(IF(AND(HAOption="Yes",SiteResilienceEnabled="Yes",OR(AND(SRModel="Active/Active (Single DAG)",SRAASDDRServers="Yes"),SRModel="Active/Active (Multiple DAGs)")),IF(AND(calcNumAMBXServersDC1=1,SRModel="Active/Active (Single DAG)"),0,IF(numMCyclesPerCorePDC<>0,IF(calcMBXServerACPU>=numMCyclesPerCorePDC,ROUNDUP(calcMBXServerACPU/numMCyclesPerCorePDC*IF(HAOption="Yes",IF(calcNumActiveDBsSF<>"--",calcNumAMBXServersDC1-2,IF(calcNumActiveDBsFF<>"--",calcNumAMBXServersDC1-1,calcNumAMBXServersDC1))*numDAGs,numMBXServers),0),(1*numDAGs)),0)),0)),"--") -> -- | H148: Number of Target Lagged DBs in DC1 / DAG | I148: =IF(AND(HAOption="Yes",SiteResilienceEnabled="Yes",numLaggedCopiesSDC>0),IF(OR(SRModel="Active/Passive",SRModel="Active/Active (Multiple DAGs)"),0,calcNumLagCopyInSDC*RecNumDBsDC2),0) -> 0
B149: Recommended Min Number of HT Cores (Secondary Datacenter) | C149: =IF(AND(MultiRoleEnabled="No",calcReqMBXCoresSDC<>"--"),ROUNDUP(calcReqMBXCoresSDC/5,0),"--") -> -- | H149: Number of Target Lagged DBs in DC2 / DAG | I149: =IF(AND(HAOption="Yes",SiteResilienceEnabled="Yes",numLaggedCopiesSDC>0),calcNumLagCopyInSDC*RecNumDBsDC1,0) -> 0
B150: Recommended Min Number of CAS Cores (Secondary Datacenter) | C150: =IF(AND(MultiRoleEnabled="No",calcReqMBXCoresSDC<>"--"),ROUNDUP((3*calcReqMBXCoresSDC)/4,0),"--") -> -- | H150: Number of Log Streams Between Datacenters / DAG | I150: =calcNumTgtDBDC2+calcNumTgtDBDC1+calcNumTgtLagDBDC2+calcNumTgtLagDBDC1 -> 0
B151: Recommended Min Number of GC Cores (Secondary Datacenter) | C151: =IF(calcReqMBXCoresSDC<>"--",ROUNDUP(calcReqMBXCoresSDC/IF(GCServerArch="64-bit",8,4),0),"--") -> --
B153: Role Requirements Results Pane - Environment Configuration
B155: Processor Core Ratio Requirements | C155: =IF(AND(HAOption="Yes",SiteResilienceEnabled="Yes",OR(SRModel="Active/Active (Single DAG)",SRModel="Active/Active (Multiple DAGs)")),"/ Datacenter 1","/ Primary Datacenter") -> / Primary Datacenter | D155: =IF(AND(HAOption="Yes",SiteResilienceEnabled="Yes",OR(SRModel="Active/Active (Single DAG)",SRModel="Active/Active (Multiple DAGs)")),"/ Datacenter 2","/ Secondary Datacenter") -> / Secondary Datacenter | G155: ="ERROR: " & IF(DAGMemberValCheck=TRUE,"The design parameters you have chosen have resulted in more mailbox servers being required to support the design than what a DAG can support. Please adjust your design inputs.",IF(DBCopyValCheck=TRUE,"The design parameters you have chosen have resulted in more HA database copies being deployed in the secondary datacenter than in the primary datacenter. Please adjust your design inputs.")) -> ERROR: FALSE
B156: Number of Mailbox Cores Required to Support Activated Databases | C156: =IF(ValidationCheck=FALSE,calcReqMBXCoresPDC,"--") -> -- | D156: =IF(ValidationCheck=FALSE,calcReqMBXCoresSDC,"--") -> --
B157: Recommended Minimum Number of Hub Transport Cores | C157: =IF(ValidationCheck=FALSE,calcRecHTCoresPDC,"--") -> -- | D157: =calcRecHTCoresSDC -> --
B158: Recommended Minimum Number of Client Access Cores | C158: =IF(ValidationCheck=FALSE,calcRecCASCoresPDC,"--") -> -- | D158: =calcRecCASCoresSDC -> --
B159: Recommended Minimum Number of Global Catalog Cores | C159: =IF(ValidationCheck=FALSE,calcRecGCCoresPDC,"--") -> -- | D159: =calcRecGCCoresSDC -> --
B161: Environment Configuration | C161: / Primary Datacenter | D161: / Secondary Datacenter | E161: / DAG | F161: / Environment
B162: Number of DAGs | C162: -- | D162: -- | E162: -- | F162: =IF(AND(HAOption="Yes",ValidationCheck=FALSE),calcNumDAGs,"--") -> 1
B163: =IF(HAOption="Yes","Number of Active Mailboxes (Normal Run Time)","Number of Mailboxes") -> Number of Active Mailboxes (Normal Run Time) | C163: =IF(HAOption="Yes",IF(SiteResilienceEnabled="Yes",IF(SRModel="Active/Passive",TotalMBX,TotalMBX*PercentUsersinDC1),TotalMBX),TotalMBX) -> 24000 | D163: =IF(HAOption="Yes",IF(SiteResilienceEnabled="Yes",IF(SRModel="Active/Passive","--",TotalMBX*(1-PercentUsersinDC1)),"--"),"--") -> -- | E163: =IF(HAOption="Yes",TotMBXPerDAG,"--") -> 24000 | F163: =TotalMBX -> 24000
B164: =IF(HAOption="Yes","Number of Mailbox Servers / DAG","Number of Mailbox Servers") -> Number of Mailbox Servers / DAG | C164: =IF(ValidationCheck=FALSE,IF(HAOption="Yes",IF(AND(SiteResilienceEnabled="Yes",SRModel="Active/Active (Multiple DAGs)"),calcNumAMBXServersDC1,(calcNumAMBXServersDC1+calcNumPMBXServersDC1)),numMBXServers),"--") -> 6 | D164: =IF(AND(HAOption="Yes",SiteResilienceEnabled="Yes",ValidationCheck=FALSE),IF(SRModel="Active/Active (Multiple DAGs)",calcNumPMBXServersDC2,(calcNumPMBXServersDC2+calcNumAMBXServersDC2)),"--") -> -- | E164: =IF(HAOption="Yes",SUM(Table24[[#This Row],[ / Primary Datacenter]:[/ Secondary Datacenter]]),"--") -> 6 | F164: =IF(HAOption="Yes",calcNumDAGs*Table24[[#This Row],[/ DAG]],Table24[[#This Row],[ / Primary Datacenter]]) -> 6
B165: Number of Lagged Copy Servers / DAG | C165: =IF(AND(HAOption="Yes",ValidationCheck=FALSE,numLagDBCopies<>0,DedLaggedCopyServer="Yes"),calcNumLagMBXServersPDC,0) -> 0 | D165: =IF(AND(HAOption="Yes",numLagDBCopies<>0,DedLaggedCopyServer="Yes",numLaggedCopiesSDC<>0,ValidationCheck=FALSE),calcNumLagMBXServersSDC,0) -> 0 | E165: =IF(HAOption="Yes",SUM(Table24[[#This Row],[ / Primary Datacenter]:[/ Secondary Datacenter]]),"--") -> 0 | F165: =IF(HAOption="Yes",calcNumDAGs*Table24[[#This Row],[/ DAG]],"--") -> 0
B166: Total Number of Servers / DAG | C166: =SUM(C164,C165) -> 6 | D166: =IF(HAOption="Yes",SUM(D164,D165),"--") -> 0 | E166: =IF(HAOption="Yes",SUM(E164,E165),"--") -> 6 | F166: =SUM(F164,F165) -> 6
B168: User Mailbox Configuration | C168: Tier-1 | D168: Tier-2 | E168: Tier-3 | F168: Tier-4
B169: Number of User Mailboxes / Environment | C169: =IF(calcTier1MBX=0,"--",calcTier1MBX) -> 24000 | D169: =IF(calcTier2MBX=0,"--",calcTier2MBX) -> -- | E169: =IF(calcTier3MBX=0,"--",calcTier3MBX) -> -- | F169: =IF(calcTier4MBX=0,"--",calcTier4MBX) -> --
B170: Number of Mailboxes / Database | C170: =IF(OR(ValidationCheck=TRUE,NumTier1MBXDB=0),"--",NumTier1MBXDB) -> 200 | D170: =IF(OR(ValidationCheck=TRUE,NumTier2MBXDB=0),"--",NumTier2MBXDB) -> -- | E170: =IF(OR(ValidationCheck=TRUE,NumTier3MBXDB=0),"--",NumTier3MBXDB) -> -- | F170: =IF(OR(ValidationCheck=TRUE,NumTier4MBXDB=0),"--",NumTier4MBXDB) -> --
B171: User Mailbox Size within Database | C171: =IF(OR(ValidationCheck=TRUE,Tier1MBXSize=0),"--",Tier1MBXSize) -> 5445 | D171: =IF(OR(ValidationCheck=TRUE,Tier2MBXSize=0),"--",Tier2MBXSize) -> -- | E171: =IF(OR(ValidationCheck=TRUE,Tier3MBXSize=0),"--",Tier3MBXSize) -> -- | F171: =IF(OR(ValidationCheck=TRUE,Tier4MBXSize=0),"--",Tier4MBXSize) -> --
B172: Transaction Logs Generated / Mailbox / Day | C172: =IF(OR(ValidationCheck=TRUE,Tier1LogGen=0),"--",Tier1LogGen) -> 20 | D172: =IF(OR(ValidationCheck=TRUE,Tier2LogGen=0),"--",Tier2LogGen) -> -- | E172: =IF(OR(ValidationCheck=TRUE,Tier3LogGen=0),"--",Tier3LogGen) -> -- | F172: =IF(OR(ValidationCheck=TRUE,Tier4LogGen=0),"--",Tier4LogGen) -> --
B173: IOPS Profile / Mailbox | C173: =IF(OR(ValidationCheck=TRUE,TotTier1IOPS=0),"--",TotTier1IOPS) -> 0.1 | D173: =IF(OR(ValidationCheck=TRUE,TotTier2IOPS=0),"--",TotTier2IOPS) -> -- | E173: =IF(OR(ValidationCheck=TRUE,TotTier3IOPS=0),"--",TotTier3IOPS) -> -- | F173: =IF(OR(ValidationCheck=TRUE,TotTier4IOPS=0),"--",TotTier4IOPS) -> --
B174: Read:Write Ratio / Mailbox | C174: =IF(OR(ValidationCheck=TRUE,calcTier1RWRatio=0),"--",VLOOKUP(calcTier1RWRatio,tblReadPercentage,2,FALSE)) -> 3:2 | D174: =IF(OR(ValidationCheck=TRUE,calcTier2RWRatio=0),"--",VLOOKUP(calcTier2RWRatio,tblReadPercentage,2,FALSE)) -> -- | E174: =IF(OR(ValidationCheck=TRUE,calcTier3RWRatio=0),"--",VLOOKUP(calcTier3RWRatio,tblReadPercentage,2,FALSE)) -> -- | F174: =IF(OR(ValidationCheck=TRUE,calcTier4RWRatio=0),"--",VLOOKUP(calcTier4RWRatio,tblReadPercentage,2,FALSE)) -> --
B176: Database Copy Instance Configuration | C176: / Primary Datacenter | D176: / Secondary Datacenter | E176: Total
B177: Number of HA Database Copy Instances / DAG | C177: =IF(ValidationCheck=TRUE,"--",calcNumDBCopyInPDC) -> 4 | D177: =IF(ValidationCheck=TRUE,"--",calcNumDBCopyInSDC) -> 0 | E177: =IF(HAOption="Yes",SUM(Table2433[[#This Row],[ / Primary Datacenter]:[/ Secondary Datacenter]]),"--") -> 4
B178: Number of Lagged Database Copy Instances / DAG | C178: =IF(ValidationCheck=TRUE,"--",calcNumLagCopyInPDC) -> 0 | D178: =IF(ValidationCheck=TRUE,"--",calcNumLagCopyInSDC) -> 0 | E178: =IF(HAOption="Yes",SUM(Table2433[[#This Row],[ / Primary Datacenter]:[/ Secondary Datacenter]]),"--") -> 0
B179: Total Number of Database Copy Instances | C179: =SUM(C177:C178) -> 4 | D179: =SUM(D177:D178) -> 0 | E179: =IF(HAOption="Yes",SUM(E177:E178),"--") -> 4
B181: Database Configuration
B182: ="Number of Databases" & IF(HAOption="Yes"," / DAG"," in the Environment") -> Number of Databases / DAG | C182: =IF(ValidationCheck=FALSE,IF(HAOption="Yes",RecNumDBs,RecNumDBs*numMBXServers),"--") -> 120
B183: Recommended Number of Mailboxes / Database | C183: =IF(ValidationCheck=FALSE,MBXPerDB,"--") -> 200
B184: Available Database Cache / Mailbox | C184: =IF(ValidationCheck=FALSE,calcAvDBCache,"--") -> 7.509333333
B186: Database Copy Configuration | C186: / Server | D186: / DAG | E186: / Environment
B187: =IF(HAOption="Yes","Number of Database Copies","Number of Databases") -> Number of Database Copies | C187: =IF(ValidationCheck=FALSE,IF(HAOption="Yes",TotNumDBCopiesServer,RecNumDBs),"--") -> 80 | D187: =IF(AND(HAOption="Yes",ValidationCheck=FALSE),(TotNumDBCopiesDC1+TotNumLagDBCopiesDC1+TotNumLagDBCopiesDC2+TotNumDBCopiesDC2),"--") -> 480 | E187: =IF(ValidationCheck=FALSE,IF(HAOption="Yes",Table2421[[#This Row],[/ DAG]]*calcNumDAGs,Table2421[] Table2421 Table2421[ / Server] *numMBXServers),"--") -> 480
B189: Role Requirements Results Pane - Server Configuration
B191: Server Configuration | C191: ="/ Primary Datacenter Server" & IF(HAOption="Yes",IF(calcNumActiveDBsSF<>"--"," (Double Failure)",IF(calcNumActiveDBsFF<>"--"," (Single Failure)","")),"") -> / Primary Datacenter Server (Double Failure) | D191: ="/ Secondary Datacenter DR Server" & IF(HAOption="Yes",IF(calcNumActiveDBsSiteF2F<>"--"," (Double Failure)",IF(calcNumActiveDBsSiteF1F<>"--"," (Single Failure)","")),"") -> / Secondary Datacenter DR Server | E191: / Lagged Copy Server
B192: Recommended RAM Configuration | C192: =IF(ValidationCheck=FALSE,ServerRAMConfig,"--") -> 64 | D192: =IF(AND(HAOption="Yes",SiteResilienceEnabled="Yes",numDBCopiesSDC<>0,ValidationCheck=FALSE),MBXSDCRAM,"--") -> -- | E192: =IF(ValidationCheck=FALSE,LagSvrRAM,"--") -> --
B193: Server Total Available Adjusted Megacycles | C193: =calcAvSvrMCycles -> -- | D193: =calcAvSvrMCyclesSDC -> -- | E193: =calcAvSvrMCyclesLCS -> --
B194: Mailbox Role CPU Megacycle Requirements | C194: =IF(ValidationCheck=FALSE,calcMBXServerACPU+calcMBXServerPCPU,"--") -> 18600 | D194: =IF(AND(OR(calcNumAMBXServersDC2<>0,calcNumPMBXServersDC2<>0),ValidationCheck=FALSE),calcMBXServerACPUSDC+calcMBXServerPCPUSDC,"--") -> -- | E194: =IF(AND(calcNumLagMBXServers<>0,ValidationCheck=FALSE),calcLaggedServerCPU,"--") -> --
B195: Mailbox Role CPU Utilization | C195: =IF(ValidationCheck=FALSE,calcCPUUtilPDC,"--") -> -- | D195: =calcCPUUtilSDC -> -- | E195: =calcCPUUtilLCS -> --
B196: Possible Storage Architecture | C196: =IF(ValidationCheck=FALSE,PreferredStorageArch,"--") -> JBOD | D196: =PreferredStorageArchSDC -> -- | E196: =LaggedCopySvrPrefStorageArch -> --
B198: Role Requirements Results Pane - Log, Disk Space, and IO Requirements
B200: Transaction Log Requirements | C200: / Database | D200: / Server | E200: / DAG | F200: / Environment
B201: User Transaction Logs Generated / Day | C201: =IF(ValidationCheck=FALSE,CalcNumDBUserTLogs,"--") -> 4800 | D201: =IF(ValidationCheck=FALSE,IF(HAOption="Yes",CalcNumUserTLogs/TotNumActiveMBXServers,CalcNumUserTLogs),"--") -> 96000 | E201: =IF(AND(HAOption="Yes",ValidationCheck=FALSE),CalcNumUserTLogs,"--") -> 576000 | F201: =IF(ValidationCheck=FALSE,IF(HAOption="Yes",CalcNumUserTLogs*calcNumDAGs,CalcNumUserTLogs*numMBXServers),"--") -> 576000
B202: Average Move Mailbox Transaction Logs Generated / Day | C202: =IF(ValidationCheck=FALSE,NumDBMoveMbxTLogs,"--") -> 1866.857143 | D202: =IF(ValidationCheck=FALSE,IF(HAOption="Yes",NumMoveMBXTLogs/TotNumActiveMBXServers,NumMoveMBXTLogs),"--") -> 37337.14286 | E202: =IF(AND(HAOption="Yes",ValidationCheck=FALSE),NumMoveMBXTLogs,"--") -> 224022.8571 | F202: =IF(ValidationCheck=FALSE,IF(HAOption="Yes",NumMoveMBXTLogs*calcNumDAGs,NumMoveMBXTLogs*numMBXServers),"--") -> 224022.8571
B203: Average Transaction Logs Generated / Day | C203: =IF(ValidationCheck=FALSE,TotDBTLogsGenerated,"--") -> 6666.857143 | D203: =IF(ValidationCheck=FALSE,IF(HAOption="Yes",TotTLogsGenerated/TotNumActiveMBXServers,TotTLogsGenerated),"--") -> 133337.1429 | E203: =IF(AND(HAOption="Yes",ValidationCheck=FALSE),TotTLogsGenerated,"--") -> 800022.8571 | F203: =IF(ValidationCheck=FALSE,IF(HAOption="Yes",TotTLogsGenerated*calcNumDAGs,TotTLogsGenerated*numMBXServers),"--") -> 800022.8571
B205: Disk Space Requirements | C205: / Database | D205: / Server | E205: / DAG | F205: / Environment
B206: Database Space Required | C206: =DBSizeOverhead -> 1276.171875 | D206: =IF(HAOption="Yes",TotDBDiskSpaceReqDAGMember,TotDBDiskSpaceReq) -> 102093.75 | E206: =IF(AND(HAOption="Yes",ValidationCheck=FALSE),TotDBCopiesDiskSpaceReq,"--") -> 612562.5 | F206: =IF(ValidationCheck=FALSE,IF(HAOption="Yes",Table28[[#This Row],[/ DAG]]*calcNumDAGs,TotDBDiskSpaceReq*numMBXServers),"--") -> 612562.5
B207: Log Space Required | C207: =LogSizeOverhead -> 26.82421875 | D207: =IF(HAOption="Yes",TotLogDiskSpaceDAGMember,TotLogDiskSpace) -> 2145.9375 | E207: =IF(AND(HAOption="Yes",ValidationCheck=FALSE),TotLogCopiesDiskSpace,"--") -> 12875.625 | F207: =IF(ValidationCheck=FALSE,IF(HAOption="Yes",Table28[[#This Row],[/ DAG]]*calcNumDAGs,TotLogDiskSpace*numMBXServers),"--") -> 12875.625
B208: =IF(LUNArchitecture<>"1 LUN / DB","Database LUN Space Required","Database+Log LUN Space Required") -> Database+Log LUN Space Required | C208: =IF(LUNArchitecture<>"2 LUNs / Backup Set",DBLUNSize,"--") -> 1788.266602 | D208: =TotDBLUNSpace -> 143061.3281 | E208: =IF(AND(HAOption="Yes",ValidationCheck=FALSE),TotDBLUNSpaceDAG,"--") -> 858367.9688 | F208: =TotDBLUNSpaceEnv -> 858367.9688
B209: Log LUN Space Required | C209: =IF(LUNArchitecture<>"2 LUNs / Backup Set",LogLUNSize,"--") -> 0 | D209: =TotLogLUNSpace -> 0 | E209: =IF(AND(HAOption="Yes",ValidationCheck=FALSE),TotLogLUNSpaceDAG,"--") -> 0 | F209: =TotLogLUNSpaceEnv -> 0
B210: Restore LUN Space Required | C210: -- | D210: =IF(RestoreLUNSize="0","--",RestoreLUNSize) -> 1628.745117 | E210: =IF(AND(HAOption="Yes",ValidationCheck=FALSE),IF(RestoreLUNSize="0","--",RestoreLUNSize)*totNumMBXServersPerDag,"--") -> 9772.470703 | F210: =IF(ValidationCheck=FALSE,IF(HAOption="Yes",Table28[[#This Row],[/ DAG]]*calcNumDAGs,IF(RestoreLUNSize="0","--",RestoreLUNSize)*numMBXServers),"--") -> 9772.470703
B212: Host IO and Throughput Requirements | C212: / Database | D212: / Server | E212: / DAG | F212: / Environment
B213: Total Database Required IOPS | C213: =IF(ValidationCheck=FALSE,calcIOPSPerDB,"--") -> 24 | D213: =IF(ValidationCheck=FALSE,PeakIOPS,"--") -> 1920 | E213: =IF(AND(HAOption="Yes",ValidationCheck=FALSE),DBIOPSReplicaSS*totNumMBXServersPerDag,"--") -> 11520 | F213: =IF(ValidationCheck=FALSE,IF(HAOption="Yes",Table76[[#This Row],[/ DAG]]*calcNumDAGs,EnvPeakIOPS*numMBXServers),"--") -> 11520
B214: Total Log Required IOPS | C214: =IF(ValidationCheck=FALSE,calcIOPSPerLog,"--") -> 5.28 | D214: =IF(ValidationCheck=FALSE,LogWriteTransfers+LogReadTransfers,"--") -> 398.4 | E214: =IF(AND(HAOption="Yes",ValidationCheck=FALSE),LogIOPSReplicaSS*totNumMBXServersPerDag,"--") -> 2390.4 | F214: =IF(ValidationCheck=FALSE,IF(HAOption="Yes",Table76[[#This Row],[/ DAG]]*calcNumDAGs,(LogWriteTransfers+LogReadTransfers)*numMBXServers),"--") -> 2390.4
B215: Database Read I/O Percentage | C215: =IF(ValidationCheck=FALSE,aggRWRatio,"--") -> 0.6 | D215: -- | E215: -- | F215: --
B216: Background Database Maintenance Throughput Requirements | C216: =IF(ValidationCheck=FALSE,5,"--") -> 5 | D216: =IF(ValidationCheck=FALSE,Table76[[#This Row],[/ Database]]*IF(HAOption="Yes",TotNumDBCopiesServer,RecNumDBs)) -> 400 | E216: =IF(AND(HAOption="Yes",ValidationCheck=FALSE),Table76[[#This Row],[ / Server]]*totNumMBXServersPerDag,"--") -> 2400 | F216: =IF(ValidationCheck=FALSE,IF(HAOption="Yes",Table76[[#This Row],[/ DAG]]*calcNumDAGs,Table76[[#This Row],[ / Server]]*numMBXServers),"--") -> 2400
B218: Special Notes
B219: =IF(OR(DBLUNSize>2048,LogLUNSize>2048),varLUNSizeResponse,"N/A") -> N/A

Sheet Activation Scenarios
B1: Note1: Do not make any changes to this sheet. This sheet is only used for calculation purposes.
B2: Note2: For the purposes of this calculator, the term "primary datacenter" refers to the datacenter that is preferred for hosting the active copies for a given set of databases, while the term "secondary datacenter" refers to the disaster recovery datacenter that is used for datacenter activation and cross-site database failover events.
B4: Activation Scenarios Calculations Pane
B7: Activation Scenarios Results Pane - Single Datacenter and Active/Passive Environments
B9: DAG Member Layout | C9: Primary Datacenter | D9: Secondary Datacenter | F9: ="Be sure to execute Set-MailboxServer <Server Name> -MaximumActiveDatabases " & calcNumDBMemSizing & " on all mailbox servers within the DAG" & IF(AND(SiteResilienceEnabled="Yes",numDBCopiesSDC=1)," that are located in the primary datacenter","") & "." -> Be sure to execute Set-MailboxServer <Server Name> -MaximumActiveDatabases 30 on all mailbox servers within the DAG.
B10: Active Mailbox Servers / DAG | C10: =IF(OR(AND(HAOption="Yes",SiteResilienceEnabled="No",ValidationCheck=FALSE),AND(HAOption="Yes",SiteResilienceEnabled="Yes",ValidationCheck=FALSE,SRModel="Active/Passive")),calcNumAMBXServersDC1,"--") -> 6 | D10: =IF(OR(AND(HAOption="Yes",SiteResilienceEnabled="No",ValidationCheck=FALSE),AND(HAOption="Yes",SiteResilienceEnabled="Yes",ValidationCheck=FALSE,SRModel="Active/Passive")),calcNumAMBXServersDC2,"--") -> 0
B11: DR Mailbox Servers / DAG | C11: =IF(OR(AND(HAOption="Yes",SiteResilienceEnabled="No",ValidationCheck=FALSE),AND(HAOption="Yes",SiteResilienceEnabled="Yes",ValidationCheck=FALSE,SRModel="Active/Passive")),calcNumPMBXServersDC1,"--") -> 0 | D11: =IF(OR(AND(HAOption="Yes",SiteResilienceEnabled="No",ValidationCheck=FALSE),AND(HAOption="Yes",SiteResilienceEnabled="Yes",ValidationCheck=FALSE,SRModel="Active/Passive")),calcNumPMBXServersDC2,"--") -> 0
B12: Lagged Copy Servers / DAG | C12: =IF(OR(AND(HAOption="Yes",SiteResilienceEnabled="No",ValidationCheck=FALSE),AND(HAOption="Yes",SiteResilienceEnabled="Yes",ValidationCheck=FALSE,SRModel="Active/Passive")),calcNumLagMBXServersPDC,"--") -> 0 | D12: =IF(OR(AND(HAOption="Yes",SiteResilienceEnabled="No",ValidationCheck=FALSE),AND(HAOption="Yes",SiteResilienceEnabled="Yes",ValidationCheck=FALSE,SRModel="Active/Passive")),calcNumLagMBXServersSDC,"--") -> 0
B14: Active Database Configuration / DAG | C14: / Primary Datacenter Server | D14: / Secondary Datacenter Server | E14: Active Mailboxes / PDC Server | F14: / Primary Datacenter | G14: / Secondary Datacenter
B15: Number of Active Databases (Normal Run Time) | C15: =IF(OR(AND(HAOption="Yes",SiteResilienceEnabled="No",ValidationCheck=FALSE),AND(HAOption="Yes",SiteResilienceEnabled="Yes",ValidationCheck=FALSE,SRModel="Active/Passive")),calcNumActiveDBs,"--") -> 20 | D15: -- | E15: =IF(OR(AND(HAOption="Yes",SiteResilienceEnabled="No",ValidationCheck=FALSE),AND(HAOption="Yes",SiteResilienceEnabled="Yes",ValidationCheck=FALSE,SRModel="Active/Passive")),MBXPerDB*calcNumActiveDBs,"--") -> 4000 | F15: =IF(OR(AND(HAOption="Yes",SiteResilienceEnabled="No",ValidationCheck=FALSE),AND(HAOption="Yes",SiteResilienceEnabled="Yes",ValidationCheck=FALSE,SRModel="Active/Passive")),RecNumDBsDC1,"--") -> 120 | G15: --
B16: Number of Active Databases (After First PDC Server Failure) | C16: =IF(OR(AND(HAOption="Yes",SiteResilienceEnabled="No",ValidationCheck=FALSE),AND(HAOption="Yes",SiteResilienceEnabled="Yes",ValidationCheck=FALSE,SRModel="Active/Passive")),calcNumActiveDBsFF,"--") -> 24 | D16: =IF(OR(AND(HAOption="Yes",SiteResilienceEnabled="No",ValidationCheck=FALSE),AND(HAOption="Yes",SiteResilienceEnabled="Yes",ValidationCheck=FALSE,SRModel="Active/Passive")),calcNumActiveDBsPDCFFinSDC,"--") -> -- | E16: =IF(OR(AND(HAOption="Yes",SiteResilienceEnabled="No",ValidationCheck=FALSE),AND(HAOption="Yes",SiteResilienceEnabled="Yes",ValidationCheck=FALSE,SRModel="Active/Passive")),IF(calcNumActiveDBsFF<>"--",MBXPerDB*calcNumActiveDBsFF,"--"),"--") -> 4800 | F16: =IF(OR(AND(HAOption="Yes",SiteResilienceEnabled="No",ValidationCheck=FALSE),AND(HAOption="Yes",SiteResilienceEnabled="Yes",ValidationCheck=FALSE,SRModel="Active/Passive")),IF(calcNumActiveDBsFF="--","--",IF(calcTotActiveDBsPDCFFinPDC="--",RecNumDBs,calcTotActiveDBsPDCFFinPDC)),"--") -> 120 | G16: =IF(OR(AND(HAOption="Yes",SiteResilienceEnabled="No",ValidationCheck=FALSE),AND(HAOption="Yes",SiteResilienceEnabled="Yes",ValidationCheck=FALSE,SRModel="Active/Passive")),IF(calcTotActiveDBsPDCFFinSDC="--","--",calcTotActiveDBsPDCFFinSDC),"--") -> --
B17: Number of Active Databases (After Second PDC Server Failure) | C17: =IF(OR(AND(HAOption="Yes",SiteResilienceEnabled="No",ValidationCheck=FALSE),AND(HAOption="Yes",SiteResilienceEnabled="Yes",ValidationCheck=FALSE,SRModel="Active/Passive")),calcNumActiveDBsSF,"--") -> 30 | D17: =IF(OR(AND(HAOption="Yes",SiteResilienceEnabled="No",ValidationCheck=FALSE),AND(HAOption="Yes",SiteResilienceEnabled="Yes",ValidationCheck=FALSE,SRModel="Active/Passive")),calcNumActiveDBsPDCSFinSDC,"--") -> -- | E17: =IF(OR(AND(HAOption="Yes",SiteResilienceEnabled="No",ValidationCheck=FALSE),AND(HAOption="Yes",SiteResilienceEnabled="Yes",ValidationCheck=FALSE,SRModel="Active/Passive")),IF(calcNumActiveDBsSF<>"--",MBXPerDB*calcNumActiveDBsSF,"--"),"--") -> 6000 | F17: =IF(OR(AND(HAOption="Yes",SiteResilienceEnabled="No",ValidationCheck=FALSE),AND(HAOption="Yes",SiteResilienceEnabled="Yes",ValidationCheck=FALSE,SRModel="Active/Passive")),IF(calcNumActiveDBsSF="--","--",IF(calcTotActiveDBsPDCSFinPDC="--",RecNumDBs,calcTotActiveDBsPDCSFinPDC)),"--") -> 120 | G17: =IF(OR(AND(HAOption="Yes",SiteResilienceEnabled="No",ValidationCheck=FALSE),AND(HAOption="Yes",SiteResilienceEnabled="Yes",ValidationCheck=FALSE,SRModel="Active/Passive")),IF(calcTotActiveDBsPDCSFinSDC="--","--",calcTotActiveDBsPDCSFinSDC),"--") -> --
B19: Secondary Datacenter Database Activation Configuration / DAG | C19: / Secondary Datacenter Server | D19: Active Mailboxes / Server
B20: Number of Active Databases (Secondary Datacenter Activation) | C20: =IF(OR(AND(HAOption="Yes",SiteResilienceEnabled="No",ValidationCheck=FALSE),AND(HAOption="Yes",SiteResilienceEnabled="Yes",ValidationCheck=FALSE,SRModel="Active/Passive")),calcNumActiveDBsSiteF,"--") -> -- | D20: =IF(OR(AND(HAOption="Yes",SiteResilienceEnabled="No",ValidationCheck=FALSE),AND(HAOption="Yes",SiteResilienceEnabled="Yes",ValidationCheck=FALSE,SRModel="Active/Passive")),IF(Table24214079[[#This Row],[ / Secondary Datacenter Server]]<>"--",MBXPerDB*calcNumActiveDBsSiteF,"--"),"--") -> --
B21: Number of Active Databases (First Server Failure after SDC Activation) | C21: =IF(OR(AND(HAOption="Yes",SiteResilienceEnabled="No",ValidationCheck=FALSE),AND(HAOption="Yes",SiteResilienceEnabled="Yes",ValidationCheck=FALSE,SRModel="Active/Passive")),calcNumActiveDBsSiteF1F,"--") -> -- | D21: =IF(OR(AND(HAOption="Yes",SiteResilienceEnabled="No",ValidationCheck=FALSE),AND(HAOption="Yes",SiteResilienceEnabled="Yes",ValidationCheck=FALSE,SRModel="Active/Passive")),IF(Table24214079[[#This Row],[ / Secondary Datacenter Server]]<>"--",MBXPerDB*calcNumActiveDBsSiteF1F,"--"),"--") -> --
B22: Number of Active Databases (Second Server Failure after SDC Activation) | C22: =IF(OR(AND(HAOption="Yes",SiteResilienceEnabled="No",ValidationCheck=FALSE),AND(HAOption="Yes",SiteResilienceEnabled="Yes",ValidationCheck=FALSE,SRModel="Active/Passive")),calcNumActiveDBsSiteF2F,"--") -> -- | D22: =IF(OR(AND(HAOption="Yes",SiteResilienceEnabled="No",ValidationCheck=FALSE),AND(HAOption="Yes",SiteResilienceEnabled="Yes",ValidationCheck=FALSE,SRModel="Active/Passive")),IF(Table24214079[[#This Row],[ / Secondary Datacenter Server]]<>"--",MBXPerDB*calcNumActiveDBsSiteF2F,"--"),"--") -> --
B24: Activation Scenarios Results Pane - Active/Active Environments
B26: =IF(AND(HAOption="Yes",SiteResilienceEnabled="Yes",SRModel="Active/Active (Multiple DAGs)"),"DAG-A Member Layout","DAG Member Layout") -> DAG Member Layout | C26: Datacenter 1 (Primary Datacenter) | D26: Datacenter 2 (Secondary Datacenter) | F26: ="Be sure to execute Set-MailboxServer <Server Name> -MaximumActiveDatabases " & calcNumDBMemSizing & " on all mailbox servers within the DAG" & IF(AND(SiteResilienceEnabled="Yes",numDBCopiesSDC=1)," that are located in the primary datacenter","") & "." -> Be sure to execute Set-MailboxServer <Server Name> -MaximumActiveDatabases 30 on all mailbox servers within the DAG.
B27: Active Mailbox Servers / DAG | C27: =IF(AND(HAOption="Yes",SiteResilienceEnabled="Yes",ValidationCheck=FALSE,SRModel<>"Active/Passive"),calcNumAMBXServersDC1,"--") -> -- | D27: =IF(AND(HAOption="Yes",SiteResilienceEnabled="Yes",ValidationCheck=FALSE,SRModel<>"Active/Passive"),calcNumAMBXServersDC2,"--") -> --
B28: DR Mailbox Servers / DAG | C28: =IF(AND(HAOption="Yes",SiteResilienceEnabled="Yes",ValidationCheck=FALSE,SRModel<>"Active/Passive"),calcNumPMBXServersDC1,"--") -> -- | D28: =IF(AND(HAOption="Yes",SiteResilienceEnabled="Yes",ValidationCheck=FALSE,SRModel<>"Active/Passive"),calcNumPMBXServersDC2,"--") -> --
B29: Lagged Copy Servers / DAG | C29: =IF(AND(HAOption="Yes",SiteResilienceEnabled="Yes",ValidationCheck=FALSE,SRModel<>"Active/Passive"),calcNumLagMBXServersPDC,"--") -> -- | D29: =IF(AND(HAOption="Yes",SiteResilienceEnabled="Yes",ValidationCheck=FALSE,SRModel<>"Active/Passive"),calcNumLagMBXServersSDC,"--") -> --
B31: =IF(AND(HAOption="Yes",SiteResilienceEnabled="Yes",SRModel="Active/Active (Multiple DAGs)"),"DAG-A Active Database Configuration / DAG","DAG Active Database Configuration / DAG") -> DAG Active Database Configuration / DAG | C31: / Datacenter 1 Active Server | D31: =IF(AND(SRModel="Active/Active (Single DAG)",SRAASDDRServers="No"),"/ Datacenter 2 Active Server","/ Datacenter 2 DR Server") -> / Datacenter 2 DR Server | E31: Active Mailboxes / DC1 Server | F31: / Datacenter 1 | G31: / Datacenter 2
B32: Number of Active Databases (Normal Run Time) | C32: =IF(AND(HAOption="Yes",SiteResilienceEnabled="Yes",ValidationCheck=FALSE,SRModel<>"Active/Passive"),calcNumActiveDBs,"--") -> -- | D32: -- | E32: =IF(AND(HAOption="Yes",SiteResilienceEnabled="Yes",ValidationCheck=FALSE,SRModel<>"Active/Passive"),MBXPerDB*calcNumActiveDBs,"--") -> -- | F32: =IF(AND(HAOption="Yes",SiteResilienceEnabled="Yes",ValidationCheck=FALSE,SRModel<>"Active/Passive"),RecNumDBsDC1,"--") -> -- | G32: --
B33: Number of Active Databases (After First PDC Server Failure) | C33: =IF(AND(HAOption="Yes",SiteResilienceEnabled="Yes",ValidationCheck=FALSE,SRModel<>"Active/Passive"),calcNumActiveDBsFF,"--") -> -- | D33: =IF(AND(HAOption="Yes",SiteResilienceEnabled="Yes",ValidationCheck=FALSE,SRModel<>"Active/Passive"),calcNumActiveDBsPDCFFinSDC,"--") -> -- | E33: =IF(AND(HAOption="Yes",SiteResilienceEnabled="Yes",ValidationCheck=FALSE,SRModel<>"Active/Passive"),IF(calcNumActiveDBsFF<>"--",MBXPerDB*calcNumActiveDBsFF,"--"),"--") -> -- | F33: =IF(AND(HAOption="Yes",SiteResilienceEnabled="Yes",ValidationCheck=FALSE,SRModel<>"Active/Passive"),IF(calcNumActiveDBsFF="--","--",IF(calcTotActiveDBsPDCFFinPDC="--",RecNumDBsDC1,calcTotActiveDBsPDCFFinPDC)),"--") -> -- | G33: =IF(AND(HAOption="Yes",SiteResilienceEnabled="Yes",ValidationCheck=FALSE,SRModel<>"Active/Passive"),IF(calcTotActiveDBsPDCFFinSDC="--","--",calcTotActiveDBsPDCFFinSDC),"--") -> --
B34: Number of Active Databases (After Second PDC Server Failure) | C34: =IF(AND(HAOption="Yes",SiteResilienceEnabled="Yes",ValidationCheck=FALSE,SRModel<>"Active/Passive"),calcNumActiveDBsSF,"--") -> -- | D34: =IF(AND(HAOption="Yes",SiteResilienceEnabled="Yes",ValidationCheck=FALSE,SRModel<>"Active/Passive"),calcNumActiveDBsPDCSFinSDC,"--") -> -- | E34: =IF(AND(HAOption="Yes",SiteResilienceEnabled="Yes",ValidationCheck=FALSE,SRModel<>"Active/Passive"),IF(calcNumActiveDBsSF<>"--",MBXPerDB*calcNumActiveDBsSF,"--"),"--") -> -- | F34: =IF(AND(HAOption="Yes",SiteResilienceEnabled="Yes",ValidationCheck=FALSE,SRModel<>"Active/Passive"),IF(calcNumActiveDBsSF="--","--",IF(calcTotActiveDBsPDCSFinPDC="--",RecNumDBsDC1,calcTotActiveDBsPDCSFinPDC)),"--") -> -- | G34: =IF(AND(HAOption="Yes",SiteResilienceEnabled="Yes",ValidationCheck=FALSE,SRModel<>"Active/Passive"),IF(calcTotActiveDBsPDCSFinSDC="--","--",calcTotActiveDBsPDCSFinSDC),"--") -> --
B36: =IF(AND(HAOption="Yes",SiteResilienceEnabled="Yes",SRModel="Active/Active (Multiple DAGs)"),"DAG-A Active Database Activation Configuration (DC1 Site Failure) / DAG","Active Database Activation Configuration (DC1 Site Failure) / DAG") -> Active Database Activation Configuration (DC1 Site Failure) / DAG | C36: =IF(AND(SRModel="Active/Active (Single DAG)",SRAASDDRServers="No"),"/ Datacenter 2 Active Server","/ Datacenter 2 DR Server") -> / Datacenter 2 DR Server | D36: =IF(AND(SRModel="Active/Active (Single DAG)",SRAASDDRServers="No"),"Active Mailboxes / Server","Active Mailboxes / DR Server") -> Active Mailboxes / DR Server | E36: / Datacenter 2 | F36: Total Active Mailboxes in DC2
B37: Number of Active Databases (Secondary Datacenter (DC2) Activation) | C37: =IF(AND(HAOption="Yes",SiteResilienceEnabled="Yes",ValidationCheck=FALSE,SRModel<>"Active/Passive"),calcNumActiveDBsSiteF,"--") -> -- | D37: =IF(AND(HAOption="Yes",SiteResilienceEnabled="Yes",ValidationCheck=FALSE,SRModel<>"Active/Passive"),IF(Table242140799597[[#This Row],[/ Datacenter 2 DR Server]]<>"--",MBXPerDB*calcNumActiveDBsSiteF,"--"),"--") -> -- | E37: =IF(AND(HAOption="Yes",SiteResilienceEnabled="Yes",ValidationCheck=FALSE,SRModel<>"Active/Passive"),IF(Table242140799597[[#This Row],[/ Datacenter 2 DR Server]]<>"--",RecNumDBs,"--"),"--") -> -- | F37: =IF(AND(HAOption="Yes",SiteResilienceEnabled="Yes",ValidationCheck=FALSE,SRModel<>"Active/Passive"),IF(Table242140799597[[#This Row],[/ Datacenter 2 DR Server]]<>"--",TotMBXPerDAG,"--"),"--") -> --
B38: Number of Active Databases (First Server Failure after SDC Activation) | C38: =IF(AND(HAOption="Yes",SiteResilienceEnabled="Yes",ValidationCheck=FALSE,SRModel<>"Active/Passive"),calcNumActiveDBsSiteF1F,"--") -> -- | D38: =IF(AND(HAOption="Yes",SiteResilienceEnabled="Yes",ValidationCheck=FALSE,SRModel<>"Active/Passive"),IF(Table242140799597[[#This Row],[/ Datacenter 2 DR Server]]<>"--",MBXPerDB*calcNumActiveDBsSiteF1F,"--"),"--") -> -- | E38: =IF(AND(HAOption="Yes",SiteResilienceEnabled="Yes",ValidationCheck=FALSE,SRModel<>"Active/Passive"),IF(Table242140799597[[#This Row],[/ Datacenter 2 DR Server]]<>"--",RecNumDBs,"--"),"--") -> -- | F38: =IF(AND(HAOption="Yes",SiteResilienceEnabled="Yes",ValidationCheck=FALSE,SRModel<>"Active/Passive"),IF(Table242140799597[[#This Row],[/ Datacenter 2 DR Server]]<>"--",TotMBXPerDAG,"--"),"--") -> --
B39: Number of Active Databases (Second Server Failure after SDC Activation) | C39: =IF(AND(HAOption="Yes",SiteResilienceEnabled="Yes",ValidationCheck=FALSE,SRModel<>"Active/Passive"),calcNumActiveDBsSiteF2F,"--") -> -- | D39: =IF(AND(HAOption="Yes",SiteResilienceEnabled="Yes",ValidationCheck=FALSE,SRModel<>"Active/Passive"),IF(Table242140799597[[#This Row],[/ Datacenter 2 DR Server]]<>"--",MBXPerDB*calcNumActiveDBsSiteF2F,"--"),"--") -> -- | E39: =IF(AND(HAOption="Yes",SiteResilienceEnabled="Yes",ValidationCheck=FALSE,SRModel<>"Active/Passive"),IF(Table242140799597[[#This Row],[/ Datacenter 2 DR Server]]<>"--",RecNumDBs,"--"),"--") -> -- | F39: =IF(AND(HAOption="Yes",SiteResilienceEnabled="Yes",ValidationCheck=FALSE,SRModel<>"Active/Passive"),IF(Table242140799597[[#This Row],[/ Datacenter 2 DR Server]]<>"--",TotMBXPerDAG,"--"),"--") -> --
B41: =IF(AND(HAOption="Yes",SiteResilienceEnabled="Yes",SRModel="Active/Active (Multiple DAGs)"),"DAG-B Member Layout","DAG Member Layout") -> DAG Member Layout | C41: Datacenter 2 (Primary Datacenter) | D41: Datacenter 1 (Secondary Datacenter)
B42: Active Mailbox Servers / DAG | C42: =IF(AND(HAOption="Yes",SiteResilienceEnabled="Yes",ValidationCheck=FALSE),IF(SRModel="Active/Active (Multiple DAGs)",calcNumAMBXServersDC1,IF(SRModel="Active/Active (Single DAG)",calcNumAMBXServersDC2,"--")),"--") -> -- | D42: =IF(AND(HAOption="Yes",SiteResilienceEnabled="Yes",ValidationCheck=FALSE),IF(SRModel="Active/Active (Multiple DAGs)",calcNumAMBXServersDC2,IF(SRModel="Active/Active (Single DAG)",calcNumAMBXServersDC1,"--")),"--") -> --
B43: DR Mailbox Servers / DAG | C43: =IF(AND(HAOption="Yes",SiteResilienceEnabled="Yes",ValidationCheck=FALSE),IF(SRModel="Active/Active (Multiple DAGs)",calcNumPMBXServersDC1,IF(SRModel="Active/Active (Single DAG)",calcNumPMBXServersDC2,"--")),"--") -> -- | D43: =IF(AND(HAOption="Yes",SiteResilienceEnabled="Yes",ValidationCheck=FALSE),IF(SRModel="Active/Active (Multiple DAGs)",calcNumPMBXServersDC2,IF(SRModel="Active/Active (Single DAG)",calcNumPMBXServersDC1,"--")),"--") -> --
B44: Lagged Copy Servers / DAG | C44: =IF(AND(HAOption="Yes",SiteResilienceEnabled="Yes",ValidationCheck=FALSE),IF(SRModel="Active/Active (Multiple DAGs)",calcNumLagMBXServersPDC,IF(SRModel="Active/Active (Single DAG)",calcNumLagMBXServersSDC,"--")),"--") -> -- | D44: =IF(AND(HAOption="Yes",SiteResilienceEnabled="Yes",ValidationCheck=FALSE),IF(SRModel="Active/Active (Multiple DAGs)",calcNumLagMBXServersSDC,IF(SRModel="Active/Active (Single DAG)",calcNumLagMBXServersPDC,"--")),"--") -> --
B46: =IF(AND(HAOption="Yes",SiteResilienceEnabled="Yes",SRModel="Active/Active (Multiple DAGs)"),"DAG-B Active Database Configuration / DAG","DAG Active Database Configuration / DAG") -> DAG Active Database Configuration / DAG | C46: / Datacenter 2 Active Server | D46: =IF(AND(SRModel="Active/Active (Single DAG)",SRAASDDRServers="No"),"/ Datacenter 1 Active Server","/ Datacenter 1 DR Server") -> / Datacenter 1 DR Server | E46: Active Mailboxes / DC2 Server | F46: / Datacenter 2 | G46: / Datacenter 1
B47: Number of Active Databases (Normal Run Time) | C47: =IF(AND(HAOption="Yes",SiteResilienceEnabled="Yes",ValidationCheck=FALSE,SRModel<>"Active/Passive"),IF(SRModel="Active/Active (Single DAG)",calcNumActiveDBsDC2,calcNumActiveDBs),"--") -> -- | D47: -- | E47: =IF(AND(HAOption="Yes",SiteResilienceEnabled="Yes",ValidationCheck=FALSE,SRModel<>"Active/Passive"),MBXPerDB*IF(SRModel="Active/Active (Single DAG)",calcNumActiveDBsDC2,calcNumActiveDBs),"--") -> -- | F47: =IF(AND(HAOption="Yes",SiteResilienceEnabled="Yes",ValidationCheck=FALSE,SRModel<>"Active/Passive"),IF(SRModel="Active/Active (Single DAG)",RecNumDBsDC2,RecNumDBsDC1),"--") -> -- | G47: --
B48: Number of Active Databases (After First PDC Server Failure) | C48: =IF(AND(HAOption="Yes",SiteResilienceEnabled="Yes",ValidationCheck=FALSE,SRModel<>"Active/Passive"),IF(SRModel="Active/Active (Single DAG)",calcNumActiveDBsFFDC2,calcNumActiveDBsFF),"--") -> -- | D48: =IF(AND(HAOption="Yes",SiteResilienceEnabled="Yes",ValidationCheck=FALSE,SRModel<>"Active/Passive"),IF(SRModel="Active/Active (Single DAG)",calcNumActiveDBsPDCFFinSDCDC2,calcNumActiveDBsPDCFFinSDC),"--") -> -- | E48: =IF(AND(HAOption="Yes",SiteResilienceEnabled="Yes",ValidationCheck=FALSE,SRModel<>"Active/Passive"),IF(calcNumActiveDBsFF<>"--",MBXPerDB*IF(SRModel="Active/Active (Single DAG)",calcNumActiveDBsFFDC2,calcNumActiveDBsFF),"--"),"--") -> -- | F48: =IF(AND(HAOption="Yes",SiteResilienceEnabled="Yes",ValidationCheck=FALSE,SRModel<>"Active/Passive"),IF(calcNumActiveDBsFF="--","--",IF(SRModel="Active/Active (Single DAG)",IF(calcTotActiveDBsPDCFFinPDCDC2="--",RecNumDBsDC2,calcTotActiveDBsPDCFFinPDCDC2),IF(calcTotActiveDBsPDCFFinPDC="--",RecNumDBsDC1,calcTotActiveDBsPDCFFinPDC))),"--") -> -- | G48: =IF(AND(HAOption="Yes",SiteResilienceEnabled="Yes",ValidationCheck=FALSE,SRModel<>"Active/Passive"),IF(SRModel="Active/Active (Single DAG)",IF(calcTotActiveDBsPDCFFinSDCDC2="--","--",calcTotActiveDBsPDCFFinSDCDC2),IF(calcTotActiveDBsPDCFFinSDC="--","--",calcTotActiveDBsPDCFFinSDC)),"--") -> --
B49: Number of Active Databases (After Second PDC Server Failure) | C49: =IF(AND(HAOption="Yes",SiteResilienceEnabled="Yes",ValidationCheck=FALSE,SRModel<>"Active/Passive"),IF(SRModel="Active/Active (Single DAG)",calcNumActiveDBsSFDC2,calcNumActiveDBsSF),"--") -> -- | D49: =IF(AND(HAOption="Yes",SiteResilienceEnabled="Yes",ValidationCheck=FALSE,SRModel<>"Active/Passive"),IF(SRModel="Active/Active (Single DAG)",calcNumActiveDBsPDCSFinSDCDC2,calcNumActiveDBsPDCSFinSDC),"--") -> -- | E49: =IF(AND(HAOption="Yes",SiteResilienceEnabled="Yes",ValidationCheck=FALSE,SRModel<>"Active/Passive"),IF(calcNumActiveDBsSF<>"--",MBXPerDB*IF(SRModel="Active/Active (Single DAG)",calcNumActiveDBsSFDC2,calcNumActiveDBsSF),"--"),"--") -> -- | F49: =IF(AND(HAOption="Yes",SiteResilienceEnabled="Yes",ValidationCheck=FALSE,SRModel<>"Active/Passive"),IF(calcNumActiveDBsSF="--","--",IF(SRModel="Active/Active (Single DAG)",IF(calcTotActiveDBsPDCSFinPDCDC2="--",RecNumDBsDC2,calcTotActiveDBsPDCSFinPDCDC2),IF(calcTotActiveDBsPDCSFinPDC="--",RecNumDBsDC1,calcTotActiveDBsPDCSFinPDC))),"--") -> -- | G49: =IF(AND(HAOption="Yes",SiteResilienceEnabled="Yes",ValidationCheck=FALSE,SRModel<>"Active/Passive"),IF(SRModel="Active/Active (Single DAG)",IF(calcTotActiveDBsPDCSFinSDCDC2="--","--",calcTotActiveDBsPDCSFinSDCDC2),IF(calcTotActiveDBsPDCSFinSDC="--","--",calcTotActiveDBsPDCSFinSDC)),"--") -> --
B51: =IF(AND(HAOption="Yes",SiteResilienceEnabled="Yes",SRModel="Active/Active (Multiple DAGs)"),"DAG-B Active Database Activation Configuration (DC2 Site Failure) / DAG","Active Database Activation Configuration (DC2 Site Failure) / DAG") -> Active Database Activation Configuration (DC2 Site Failure) / DAG | C51: =IF(AND(SRModel="Active/Active (Single DAG)",SRAASDDRServers="No"),"/ Datacenter 1 Active Server","/ Datacenter 1 DR Server") -> / Datacenter 1 DR Server | D51: =IF(AND(SRModel="Active/Active (Single DAG)",SRAASDDRServers="No"),"Active Mailboxes / Server","Active Mailboxes / DR Server") -> Active Mailboxes / DR Server | E51: / Datacenter 1 | F51: Total Active Mailboxes in DC1
B52: Number of Active Databases (Secondary Datacenter (DC1) Activation) | C52: =IF(AND(HAOption="Yes",SiteResilienceEnabled="Yes",ValidationCheck=FALSE,SRModel<>"Active/Passive"),calcNumActiveDBsSiteF,"--") -> -- | D52: =IF(AND(HAOption="Yes",SiteResilienceEnabled="Yes",ValidationCheck=FALSE,SRModel<>"Active/Passive"),IF(Table2421407995[[#This Row],[/ Datacenter 1 DR Server]]<>"--",MBXPerDB*calcNumActiveDBsSiteF,"--"),"--") -> -- | E52: =IF(AND(HAOption="Yes",SiteResilienceEnabled="Yes",ValidationCheck=FALSE,SRModel<>"Active/Passive"),IF(Table2421407995[[#This Row],[/ Datacenter 1 DR Server]]<>"--",RecNumDBs,"--"),"--") -> -- | F52: =IF(AND(HAOption="Yes",SiteResilienceEnabled="Yes",ValidationCheck=FALSE,SRModel<>"Active/Passive"),IF(Table2421407995[[#This Row],[/ Datacenter 1 DR Server]]<>"--",TotMBXPerDAG,"--"),"--") -> --
B53: Number of Active Databases (First Server Failure after SDC Activation) | C53: =IF(AND(HAOption="Yes",SiteResilienceEnabled="Yes",ValidationCheck=FALSE,SRModel<>"Active/Passive"),calcNumActiveDBsSiteF1F,"--") -> -- | D53: =IF(AND(HAOption="Yes",SiteResilienceEnabled="Yes",ValidationCheck=FALSE,SRModel<>"Active/Passive"),IF(Table2421407995[[#This Row],[/ Datacenter 1 DR Server]]<>"--",MBXPerDB*calcNumActiveDBsSiteF1F,"--"),"--") -> -- | E53: =IF(AND(HAOption="Yes",SiteResilienceEnabled="Yes",ValidationCheck=FALSE,SRModel<>"Active/Passive"),IF(Table2421407995[[#This Row],[/ Datacenter 1 DR Server]]<>"--",RecNumDBs,"--"),"--") -> -- | F53: =IF(AND(HAOption="Yes",SiteResilienceEnabled="Yes",ValidationCheck=FALSE,SRModel<>"Active/Passive"),IF(Table2421407995[[#This Row],[/ Datacenter 1 DR Server]]<>"--",TotMBXPerDAG,"--"),"--") -> --
B54: Number of Active Databases (Second Server Failure after SDC Activation) | C54: =IF(AND(HAOption="Yes",SiteResilienceEnabled="Yes",ValidationCheck=FALSE,SRModel<>"Active/Passive"),calcNumActiveDBsSiteF2F,"--") -> -- | D54: =IF(AND(HAOption="Yes",SiteResilienceEnabled="Yes",ValidationCheck=FALSE,SRModel<>"Active/Passive"),IF(Table2421407995[[#This Row],[/ Datacenter 1 DR Server]]<>"--",MBXPerDB*calcNumActiveDBsSiteF2F,"--"),"--") -> -- | E54: =IF(AND(HAOption="Yes",SiteResilienceEnabled="Yes",ValidationCheck=FALSE,SRModel<>"Active/Passive"),IF(Table2421407995[[#This Row],[/ Datacenter 1 DR Server]]<>"--",RecNumDBs,"--"),"--") -> -- | F54: =IF(AND(HAOption="Yes",SiteResilienceEnabled="Yes",ValidationCheck=FALSE,SRModel<>"Active/Passive"),IF(Table2421407995[[#This Row],[/ Datacenter 1 DR Server]]<>"--",TotMBXPerDAG,"--"),"--") -> --

Sheet Distribution
B1: Note1: Do not make any changes to this sheet. This sheet is only used for calculation purposes.
J3: DAG Quroum OK
C8: Status OK
E11: File Share Witness is active.
D15: Tot/Active
D16: =CONCATENATE(120,"/",SUM(E19:T19)) -> 120/120
D18: Assigned | E18: =COUNTIF(OFFSET(E21,0,0):OFFSET(E21,1600,0),"<>") -> 80 | F18: =COUNTIF(OFFSET(F21,0,0):OFFSET(F21,1600,0),"<>") -> 80 | G18: =COUNTIF(OFFSET(G21,0,0):OFFSET(G21,1600,0),"<>") -> 80 | H18: =COUNTIF(OFFSET(H21,0,0):OFFSET(H21,1600,0),"<>") -> 80 | I18: =COUNTIF(OFFSET(I21,0,0):OFFSET(I21,1600,0),"<>") -> 80 | J18: =COUNTIF(OFFSET(J21,0,0):OFFSET(J21,1600,0),"<>") -> 80
D19: Active | E19: =COUNTIF(OFFSET(E21,0,-1):OFFSET(E21,1600,-1),"=1") -> 20 | F19: =COUNTIF(OFFSET(E21,0,-1):OFFSET(E21,1600,-1),"=2") -> 20 | G19: =COUNTIF(OFFSET(E21,0,-1):OFFSET(E21,1600,-1),"=3") -> 20 | H19: =COUNTIF(OFFSET(E21,0,-1):OFFSET(E21,1600,-1),"=4") -> 20 | I19: =COUNTIF(OFFSET(E21,0,-1):OFFSET(E21,1600,-1),"=5") -> 20 | J19: =COUNTIF(OFFSET(E21,0,-1):OFFSET(E21,1600,-1),"=6") -> 20
D20: Active Server | E20: Server 1 | F20: Server 2 | G20: Server 3 | H20: Server 4 | I20: Server 5 | J20: Server 6
C21: DB1 | D21: =IF(ISNA(MATCH(MIN(E21:T21),E21:T21,0)),"FAILED", IF(OR(MATCH(MIN(E21:T21),E21:T21,0)<17,AND(MIN(E21:T21)<17,IsSecSiteActive())),GetServer(MATCH(MIN(E21:T21),E21:T21,0)),"FAILED")) -> 1 | E21: 1 | F21: 2 | G21: 3 | H21: 4
C22: DB2 | D22: =IF(ISNA(MATCH(MIN(E22:T22),E22:T22,0)),"FAILED", IF(OR(MATCH(MIN(E22:T22),E22:T22,0)<17,AND(MIN(E22:T22)<17,IsSecSiteActive())),GetServer(MATCH(MIN(E22:T22),E22:T22,0)),"FAILED")) -> 2 | F22: 1 | G22: 2 | H22: 3 | I22: 4
C23: DB3 | D23: =IF(ISNA(MATCH(MIN(E23:T23),E23:T23,0)),"FAILED", IF(OR(MATCH(MIN(E23:T23),E23:T23,0)<17,AND(MIN(E23:T23)<17,IsSecSiteActive())),GetServer(MATCH(MIN(E23:T23),E23:T23,0)),"FAILED")) -> 3 | G23: 1 | H23: 2 | I23: 3 | J23: 4
C24: DB4 | D24: =IF(ISNA(MATCH(MIN(E24:T24),E24:T24,0)),"FAILED", IF(OR(MATCH(MIN(E24:T24),E24:T24,0)<17,AND(MIN(E24:T24)<17,IsSecSiteActive())),GetServer(MATCH(MIN(E24:T24),E24:T24,0)),"FAILED")) -> 4 | E24: 4 | H24: 1 | I24: 2 | J24: 3
C25: DB5 | D25: =IF(ISNA(MATCH(MIN(E25:T25),E25:T25,0)),"FAILED", IF(OR(MATCH(MIN(E25:T25),E25:T25,0)<17,AND(MIN(E25:T25)<17,IsSecSiteActive())),GetServer(MATCH(MIN(E25:T25),E25:T25,0)),"FAILED")) -> 5 | E25: 3 | F25: 4 | I25: 1 | J25: 2
C26: DB6 | D26: =IF(ISNA(MATCH(MIN(E26:T26),E26:T26,0)),"FAILED", IF(OR(MATCH(MIN(E26:T26),E26:T26,0)<17,AND(MIN(E26:T26)<17,IsSecSiteActive())),GetServer(MATCH(MIN(E26:T26),E26:T26,0)),"FAILED")) -> 6 | E26: 2 | F26: 3 | G26: 4 | J26: 1
C27: DB7 | D27: =IF(ISNA(MATCH(MIN(E27:T27),E27:T27,0)),"FAILED", IF(OR(MATCH(MIN(E27:T27),E27:T27,0)<17,AND(MIN(E27:T27)<17,IsSecSiteActive())),GetServer(MATCH(MIN(E27:T27),E27:T27,0)),"FAILED")) -> 1 | E27: 1 | G27: 2 | H27: 3 | I27: 4
C28: DB8 | D28: =IF(ISNA(MATCH(MIN(E28:T28),E28:T28,0)),"FAILED", IF(OR(MATCH(MIN(E28:T28),E28:T28,0)<17,AND(MIN(E28:T28)<17,IsSecSiteActive())),GetServer(MATCH(MIN(E28:T28),E28:T28,0)),"FAILED")) -> 2 | F28: 1 | H28: 2 | I28: 3 | J28: 4
C29: DB9 | D29: =IF(ISNA(MATCH(MIN(E29:T29),E29:T29,0)),"FAILED", IF(OR(MATCH(MIN(E29:T29),E29:T29,0)<17,AND(MIN(E29:T29)<17,IsSecSiteActive())),GetServer(MATCH(MIN(E29:T29),E29:T29,0)),"FAILED")) -> 3 | E29: 4 | G29: 1 | I29: 2 | J29: 3
C30: DB10 | D30: =IF(ISNA(MATCH(MIN(E30:T30),E30:T30,0)),"FAILED", IF(OR(MATCH(MIN(E30:T30),E30:T30,0)<17,AND(MIN(E30:T30)<17,IsSecSiteActive())),GetServer(MATCH(MIN(E30:T30),E30:T30,0)),"FAILED")) -> 4 | E30: 3 | F30: 4 | H30: 1 | J30: 2
C31: DB11 | D31: =IF(ISNA(MATCH(MIN(E31:T31),E31:T31,0)),"FAILED", IF(OR(MATCH(MIN(E31:T31),E31:T31,0)<17,AND(MIN(E31:T31)<17,IsSecSiteActive())),GetServer(MATCH(MIN(E31:T31),E31:T31,0)),"FAILED")) -> 5 | E31: 2 | F31: 3 | G31: 4 | I31: 1
C32: DB12 | D32: =IF(ISNA(MATCH(MIN(E32:T32),E32:T32,0)),"FAILED", IF(OR(MATCH(MIN(E32:T32),E32:T32,0)<17,AND(MIN(E32:T32)<17,IsSecSiteActive())),GetServer(MATCH(MIN(E32:T32),E32:T32,0)),"FAILED")) -> 6 | F32: 2 | G32: 3 | H32: 4 | J32: 1
C33: DB13 | D33: =IF(ISNA(MATCH(MIN(E33:T33),E33:T33,0)),"FAILED", IF(OR(MATCH(MIN(E33:T33),E33:T33,0)<17,AND(MIN(E33:T33)<17,IsSecSiteActive())),GetServer(MATCH(MIN(E33:T33),E33:T33,0)),"FAILED")) -> 1 | E33: 1 | H33: 2 | I33: 3 | J33: 4
C34: DB14 | D34: =IF(ISNA(MATCH(MIN(E34:T34),E34:T34,0)),"FAILED", IF(OR(MATCH(MIN(E34:T34),E34:T34,0)<17,AND(MIN(E34:T34)<17,IsSecSiteActive())),GetServer(MATCH(MIN(E34:T34),E34:T34,0)),"FAILED")) -> 2 | E34: 4 | F34: 1 | I34: 2 | J34: 3
C35: DB15 | D35: =IF(ISNA(MATCH(MIN(E35:T35),E35:T35,0)),"FAILED", IF(OR(MATCH(MIN(E35:T35),E35:T35,0)<17,AND(MIN(E35:T35)<17,IsSecSiteActive())),GetServer(MATCH(MIN(E35:T35),E35:T35,0)),"FAILED")) -> 3 | E35: 3 | F35: 4 | G35: 1 | J35: 2
C36: DB16 | D36: =IF(ISNA(MATCH(MIN(E36:T36),E36:T36,0)),"FAILED", IF(OR(MATCH(MIN(E36:T36),E36:T36,0)<17,AND(MIN(E36:T36)<17,IsSecSiteActive())),GetServer(MATCH(MIN(E36:T36),E36:T36,0)),"FAILED")) -> 4 | E36: 2 | F36: 3 | G36: 4 | H36: 1
C37: DB17 | D37: =IF(ISNA(MATCH(MIN(E37:T37),E37:T37,0)),"FAILED", IF(OR(MATCH(MIN(E37:T37),E37:T37,0)<17,AND(MIN(E37:T37)<17,IsSecSiteActive())),GetServer(MATCH(MIN(E37:T37),E37:T37,0)),"FAILED")) -> 5 | F37: 2 | G37: 3 | H37: 4 | I37: 1
C38: DB18 | D38: =IF(ISNA(MATCH(MIN(E38:T38),E38:T38,0)),"FAILED", IF(OR(MATCH(MIN(E38:T38),E38:T38,0)<17,AND(MIN(E38:T38)<17,IsSecSiteActive())),GetServer(MATCH(MIN(E38:T38),E38:T38,0)),"FAILED")) -> 6 | G38: 2 | H38: 3 | I38: 4 | J38: 1
C39: DB19 | D39: =IF(ISNA(MATCH(MIN(E39:T39),E39:T39,0)),"FAILED", IF(OR(MATCH(MIN(E39:T39),E39:T39,0)<17,AND(MIN(E39:T39)<17,IsSecSiteActive())),GetServer(MATCH(MIN(E39:T39),E39:T39,0)),"FAILED")) -> 1 | E39: 1 | F39: 4 | I39: 2 | J39: 3
C40: DB20 | D40: =IF(ISNA(MATCH(MIN(E40:T40),E40:T40,0)),"FAILED", IF(OR(MATCH(MIN(E40:T40),E40:T40,0)<17,AND(MIN(E40:T40)<17,IsSecSiteActive())),GetServer(MATCH(MIN(E40:T40),E40:T40,0)),"FAILED")) -> 2 | E40: 3 | F40: 1 | G40: 4 | J40: 2
C41: DB21 | D41: =IF(ISNA(MATCH(MIN(E41:T41),E41:T41,0)),"FAILED", IF(OR(MATCH(MIN(E41:T41),E41:T41,0)<17,AND(MIN(E41:T41)<17,IsSecSiteActive())),GetServer(MATCH(MIN(E41:T41),E41:T41,0)),"FAILED")) -> 3 | E41: 2 | F41: 3 | G41: 1 | H41: 4
C42: DB22 | D42: =IF(ISNA(MATCH(MIN(E42:T42),E42:T42,0)),"FAILED", IF(OR(MATCH(MIN(E42:T42),E42:T42,0)<17,AND(MIN(E42:T42)<17,IsSecSiteActive())),GetServer(MATCH(MIN(E42:T42),E42:T42,0)),"FAILED")) -> 4 | F42: 2 | G42: 3 | H42: 1 | I42: 4
C43: DB23 | D43: =IF(ISNA(MATCH(MIN(E43:T43),E43:T43,0)),"FAILED", IF(OR(MATCH(MIN(E43:T43),E43:T43,0)<17,AND(MIN(E43:T43)<17,IsSecSiteActive())),GetServer(MATCH(MIN(E43:T43),E43:T43,0)),"FAILED")) -> 5 | G43: 2 | H43: 3 | I43: 1 | J43: 4
C44: DB24 | D44: =IF(ISNA(MATCH(MIN(E44:T44),E44:T44,0)),"FAILED", IF(OR(MATCH(MIN(E44:T44),E44:T44,0)<17,AND(MIN(E44:T44)<17,IsSecSiteActive())),GetServer(MATCH(MIN(E44:T44),E44:T44,0)),"FAILED")) -> 6 | E44: 4 | H44: 2 | I44: 3 | J44: 1
C45: DB25 | D45: =IF(ISNA(MATCH(MIN(E45:T45),E45:T45,0)),"FAILED", IF(OR(MATCH(MIN(E45:T45),E45:T45,0)<17,AND(MIN(E45:T45)<17,IsSecSiteActive())),GetServer(MATCH(MIN(E45:T45),E45:T45,0)),"FAILED")) -> 1 | E45: 1 | F45: 3 | G45: 4 | J45: 2
C46: DB26 | D46: =IF(ISNA(MATCH(MIN(E46:T46),E46:T46,0)),"FAILED", IF(OR(MATCH(MIN(E46:T46),E46:T46,0)<17,AND(MIN(E46:T46)<17,IsSecSiteActive())),GetServer(MATCH(MIN(E46:T46),E46:T46,0)),"FAILED")) -> 2 | E46: 2 | F46: 1 | G46: 3 | H46: 4
C47: DB27 | D47: =IF(ISNA(MATCH(MIN(E47:T47),E47:T47,0)),"FAILED", IF(OR(MATCH(MIN(E47:T47),E47:T47,0)<17,AND(MIN(E47:T47)<17,IsSecSiteActive())),GetServer(MATCH(MIN(E47:T47),E47:T47,0)),"FAILED")) -> 3 | F47: 2 | G47: 1 | H47: 3 | I47: 4
C48: DB28 | D48: =IF(ISNA(MATCH(MIN(E48:T48),E48:T48,0)),"FAILED", IF(OR(MATCH(MIN(E48:T48),E48:T48,0)<17,AND(MIN(E48:T48)<17,IsSecSiteActive())),GetServer(MATCH(MIN(E48:T48),E48:T48,0)),"FAILED")) -> 4 | G48: 2 | H48: 1 | I48: 3 | J48: 4
C49: DB29 | D49: =IF(ISNA(MATCH(MIN(E49:T49),E49:T49,0)),"FAILED", IF(OR(MATCH(MIN(E49:T49),E49:T49,0)<17,AND(MIN(E49:T49)<17,IsSecSiteActive())),GetServer(MATCH(MIN(E49:T49),E49:T49,0)),"FAILED")) -> 5 | E49: 4 | H49: 2 | I49: 1 | J49: 3
C50: DB30 | D50: =IF(ISNA(MATCH(MIN(E50:T50),E50:T50,0)),"FAILED", IF(OR(MATCH(MIN(E50:T50),E50:T50,0)<17,AND(MIN(E50:T50)<17,IsSecSiteActive())),GetServer(MATCH(MIN(E50:T50),E50:T50,0)),"FAILED")) -> 6 | E50: 3 | F50: 4 | I50: 2 | J50: 1
C51: DB31 | D51: =IF(ISNA(MATCH(MIN(E51:T51),E51:T51,0)),"FAILED", IF(OR(MATCH(MIN(E51:T51),E51:T51,0)<17,AND(MIN(E51:T51)<17,IsSecSiteActive())),GetServer(MATCH(MIN(E51:T51),E51:T51,0)),"FAILED")) -> 1 | E51: 1 | F51: 2 | H51: 3 | I51: 4
C52: DB32 | D52: =IF(ISNA(MATCH(MIN(E52:T52),E52:T52,0)),"FAILED", IF(OR(MATCH(MIN(E52:T52),E52:T52,0)<17,AND(MIN(E52:T52)<17,IsSecSiteActive())),GetServer(MATCH(MIN(E52:T52),E52:T52,0)),"FAILED")) -> 2 | F52: 1 | G52: 2 | I52: 3 | J52: 4
C53: DB33 | D53: =IF(ISNA(MATCH(MIN(E53:T53),E53:T53,0)),"FAILED", IF(OR(MATCH(MIN(E53:T53),E53:T53,0)<17,AND(MIN(E53:T53)<17,IsSecSiteActive())),GetServer(MATCH(MIN(E53:T53),E53:T53,0)),"FAILED")) -> 3 | E53: 4 | G53: 1 | H53: 2 | J53: 3
C54: DB34 | D54: =IF(ISNA(MATCH(MIN(E54:T54),E54:T54,0)),"FAILED", IF(OR(MATCH(MIN(E54:T54),E54:T54,0)<17,AND(MIN(E54:T54)<17,IsSecSiteActive())),GetServer(MATCH(MIN(E54:T54),E54:T54,0)),"FAILED")) -> 4 | E54: 3 | F54: 4 | H54: 1 | I54: 2
C55: DB35 | D55: =IF(ISNA(MATCH(MIN(E55:T55),E55:T55,0)),"FAILED", IF(OR(MATCH(MIN(E55:T55),E55:T55,0)<17,AND(MIN(E55:T55)<17,IsSecSiteActive())),GetServer(MATCH(MIN(E55:T55),E55:T55,0)),"FAILED")) -> 5 | F55: 3 | G55: 4 | I55: 1 | J55: 2
C56: DB36 | D56: =IF(ISNA(MATCH(MIN(E56:T56),E56:T56,0)),"FAILED", IF(OR(MATCH(MIN(E56:T56),E56:T56,0)<17,AND(MIN(E56:T56)<17,IsSecSiteActive())),GetServer(MATCH(MIN(E56:T56),E56:T56,0)),"FAILED")) -> 6 | E56: 2 | G56: 3 | H56: 4 | J56: 1
C57: DB37 | D57: =IF(ISNA(MATCH(MIN(E57:T57),E57:T57,0)),"FAILED", IF(OR(MATCH(MIN(E57:T57),E57:T57,0)<17,AND(MIN(E57:T57)<17,IsSecSiteActive())),GetServer(MATCH(MIN(E57:T57),E57:T57,0)),"FAILED")) -> 1 | E57: 1 | G57: 2 | I57: 3 | J57: 4
C58: DB38 | D58: =IF(ISNA(MATCH(MIN(E58:T58),E58:T58,0)),"FAILED", IF(OR(MATCH(MIN(E58:T58),E58:T58,0)<17,AND(MIN(E58:T58)<17,IsSecSiteActive())),GetServer(MATCH(MIN(E58:T58),E58:T58,0)),"FAILED")) -> 2 | E58: 4 | F58: 1 | H58: 2 | J58: 3
C59: DB39 | D59: =IF(ISNA(MATCH(MIN(E59:T59),E59:T59,0)),"FAILED", IF(OR(MATCH(MIN(E59:T59),E59:T59,0)<17,AND(MIN(E59:T59)<17,IsSecSiteActive())),GetServer(MATCH(MIN(E59:T59),E59:T59,0)),"FAILED")) -> 3 | E59: 3 | F59: 4 | G59: 1 | I59: 2
C60: DB40 | D60: =IF(ISNA(MATCH(MIN(E60:T60),E60:T60,0)),"FAILED", IF(OR(MATCH(MIN(E60:T60),E60:T60,0)<17,AND(MIN(E60:T60)<17,IsSecSiteActive())),GetServer(MATCH(MIN(E60:T60),E60:T60,0)),"FAILED")) -> 4 | F60: 3 | G60: 4 | H60: 1 | J60: 2
C61: DB41 | D61: =IF(ISNA(MATCH(MIN(E61:T61),E61:T61,0)),"FAILED", IF(OR(MATCH(MIN(E61:T61),E61:T61,0)<17,AND(MIN(E61:T61)<17,IsSecSiteActive())),GetServer(MATCH(MIN(E61:T61),E61:T61,0)),"FAILED")) -> 5 | E61: 2 | G61: 3 | H61: 4 | I61: 1
C62: DB42 | D62: =IF(ISNA(MATCH(MIN(E62:T62),E62:T62,0)),"FAILED", IF(OR(MATCH(MIN(E62:T62),E62:T62,0)<17,AND(MIN(E62:T62)<17,IsSecSiteActive())),GetServer(MATCH(MIN(E62:T62),E62:T62,0)),"FAILED")) -> 6 | F62: 2 | H62: 3 | I62: 4 | J62: 1
C63: DB43 | D63: =IF(ISNA(MATCH(MIN(E63:T63),E63:T63,0)),"FAILED", IF(OR(MATCH(MIN(E63:T63),E63:T63,0)<17,AND(MIN(E63:T63)<17,IsSecSiteActive())),GetServer(MATCH(MIN(E63:T63),E63:T63,0)),"FAILED")) -> 1 | E63: 1 | F63: 4 | H63: 2 | J63: 3
C64: DB44 | D64: =IF(ISNA(MATCH(MIN(E64:T64),E64:T64,0)),"FAILED", IF(OR(MATCH(MIN(E64:T64),E64:T64,0)<17,AND(MIN(E64:T64)<17,IsSecSiteActive())),GetServer(MATCH(MIN(E64:T64),E64:T64,0)),"FAILED")) -> 2 | E64: 3 | F64: 1 | G64: 4 | I64: 2
C65: DB45 | D65: =IF(ISNA(MATCH(MIN(E65:T65),E65:T65,0)),"FAILED", IF(OR(MATCH(MIN(E65:T65),E65:T65,0)<17,AND(MIN(E65:T65)<17,IsSecSiteActive())),GetServer(MATCH(MIN(E65:T65),E65:T65,0)),"FAILED")) -> 3 | F65: 3 | G65: 1 | H65: 4 | J65: 2
C66: DB46 | D66: =IF(ISNA(MATCH(MIN(E66:T66),E66:T66,0)),"FAILED", IF(OR(MATCH(MIN(E66:T66),E66:T66,0)<17,AND(MIN(E66:T66)<17,IsSecSiteActive())),GetServer(MATCH(MIN(E66:T66),E66:T66,0)),"FAILED")) -> 4 | E66: 2 | G66: 3 | H66: 1 | I66: 4
C67: DB47 | D67: =IF(ISNA(MATCH(MIN(E67:T67),E67:T67,0)),"FAILED", IF(OR(MATCH(MIN(E67:T67),E67:T67,0)<17,AND(MIN(E67:T67)<17,IsSecSiteActive())),GetServer(MATCH(MIN(E67:T67),E67:T67,0)),"FAILED")) -> 5 | F67: 2 | H67: 3 | I67: 1 | J67: 4
C68: DB48 | D68: =IF(ISNA(MATCH(MIN(E68:T68),E68:T68,0)),"FAILED", IF(OR(MATCH(MIN(E68:T68),E68:T68,0)<17,AND(MIN(E68:T68)<17,IsSecSiteActive())),GetServer(MATCH(MIN(E68:T68),E68:T68,0)),"FAILED")) -> 6 | E68: 4 | G68: 2 | I68: 3 | J68: 1
C69: DB49 | D69: =IF(ISNA(MATCH(MIN(E69:T69),E69:T69,0)),"FAILED", IF(OR(MATCH(MIN(E69:T69),E69:T69,0)<17,AND(MIN(E69:T69)<17,IsSecSiteActive())),GetServer(MATCH(MIN(E69:T69),E69:T69,0)),"FAILED")) -> 1 | E69: 1 | F69: 3 | G69: 4 | I69: 2
C70: DB50 | D70: =IF(ISNA(MATCH(MIN(E70:T70),E70:T70,0)),"FAILED", IF(OR(MATCH(MIN(E70:T70),E70:T70,0)<17,AND(MIN(E70:T70)<17,IsSecSiteActive())),GetServer(MATCH(MIN(E70:T70),E70:T70,0)),"FAILED")) -> 2 | F70: 1 | G70: 3 | H70: 4 | J70: 2
C71: DB51 | D71: =IF(ISNA(MATCH(MIN(E71:T71),E71:T71,0)),"FAILED", IF(OR(MATCH(MIN(E71:T71),E71:T71,0)<17,AND(MIN(E71:T71)<17,IsSecSiteActive())),GetServer(MATCH(MIN(E71:T71),E71:T71,0)),"FAILED")) -> 3 | E71: 2 | G71: 1 | H71: 3 | I71: 4
C72: DB52 | D72: =IF(ISNA(MATCH(MIN(E72:T72),E72:T72,0)),"FAILED", IF(OR(MATCH(MIN(E72:T72),E72:T72,0)<17,AND(MIN(E72:T72)<17,IsSecSiteActive())),GetServer(MATCH(MIN(E72:T72),E72:T72,0)),"FAILED")) -> 4 | F72: 2 | H72: 1 | I72: 3 | J72: 4
C73: DB53 | D73: =IF(ISNA(MATCH(MIN(E73:T73),E73:T73,0)),"FAILED", IF(OR(MATCH(MIN(E73:T73),E73:T73,0)<17,AND(MIN(E73:T73)<17,IsSecSiteActive())),GetServer(MATCH(MIN(E73:T73),E73:T73,0)),"FAILED")) -> 5 | E73: 4 | G73: 2 | I73: 1 | J73: 3
C74: DB54 | D74: =IF(ISNA(MATCH(MIN(E74:T74),E74:T74,0)),"FAILED", IF(OR(MATCH(MIN(E74:T74),E74:T74,0)<17,AND(MIN(E74:T74)<17,IsSecSiteActive())),GetServer(MATCH(MIN(E74:T74),E74:T74,0)),"FAILED")) -> 6 | E74: 3 | F74: 4 | H74: 2 | J74: 1
C75: DB55 | D75: =IF(ISNA(MATCH(MIN(E75:T75),E75:T75,0)),"FAILED", IF(OR(MATCH(MIN(E75:T75),E75:T75,0)<17,AND(MIN(E75:T75)<17,IsSecSiteActive())),GetServer(MATCH(MIN(E75:T75),E75:T75,0)),"FAILED")) -> 1 | E75: 1 | G75: 3 | H75: 4 | J75: 2
C76: DB56 | D76: =IF(ISNA(MATCH(MIN(E76:T76),E76:T76,0)),"FAILED", IF(OR(MATCH(MIN(E76:T76),E76:T76,0)<17,AND(MIN(E76:T76)<17,IsSecSiteActive())),GetServer(MATCH(MIN(E76:T76),E76:T76,0)),"FAILED")) -> 2 | E76: 2 | F76: 1 | H76: 3 | I76: 4
C77: DB57 | D77: =IF(ISNA(MATCH(MIN(E77:T77),E77:T77,0)),"FAILED", IF(OR(MATCH(MIN(E77:T77),E77:T77,0)<17,AND(MIN(E77:T77)<17,IsSecSiteActive())),GetServer(MATCH(MIN(E77:T77),E77:T77,0)),"FAILED")) -> 3 | F77: 2 | G77: 1 | I77: 3 | J77: 4
C78: DB58 | D78: =IF(ISNA(MATCH(MIN(E78:T78),E78:T78,0)),"FAILED", IF(OR(MATCH(MIN(E78:T78),E78:T78,0)<17,AND(MIN(E78:T78)<17,IsSecSiteActive())),GetServer(MATCH(MIN(E78:T78),E78:T78,0)),"FAILED")) -> 4 | E78: 4 | G78: 2 | H78: 1 | J78: 3
C79: DB59 | D79: =IF(ISNA(MATCH(MIN(E79:T79),E79:T79,0)),"FAILED", IF(OR(MATCH(MIN(E79:T79),E79:T79,0)<17,AND(MIN(E79:T79)<17,IsSecSiteActive())),GetServer(MATCH(MIN(E79:T79),E79:T79,0)),"FAILED")) -> 5 | E79: 3 | F79: 4 | H79: 2 | I79: 1
C80: DB60 | D80: =IF(ISNA(MATCH(MIN(E80:T80),E80:T80,0)),"FAILED", IF(OR(MATCH(MIN(E80:T80),E80:T80,0)<17,AND(MIN(E80:T80)<17,IsSecSiteActive())),GetServer(MATCH(MIN(E80:T80),E80:T80,0)),"FAILED")) -> 6 | F80: 3 | G80: 4 | I80: 2 | J80: 1
C81: DB61 | D81: =IF(ISNA(MATCH(MIN(E81:T81),E81:T81,0)),"FAILED", IF(OR(MATCH(MIN(E81:T81),E81:T81,0)<17,AND(MIN(E81:T81)<17,IsSecSiteActive())),GetServer(MATCH(MIN(E81:T81),E81:T81,0)),"FAILED")) -> 1 | E81: 1 | F81: 2 | I81: 3 | J81: 4
C82: DB62 | D82: =IF(ISNA(MATCH(MIN(E82:T82),E82:T82,0)),"FAILED", IF(OR(MATCH(MIN(E82:T82),E82:T82,0)<17,AND(MIN(E82:T82)<17,IsSecSiteActive())),GetServer(MATCH(MIN(E82:T82),E82:T82,0)),"FAILED")) -> 2 | E82: 4 | F82: 1 | G82: 2 | J82: 3
C83: DB63 | D83: =IF(ISNA(MATCH(MIN(E83:T83),E83:T83,0)),"FAILED", IF(OR(MATCH(MIN(E83:T83),E83:T83,0)<17,AND(MIN(E83:T83)<17,IsSecSiteActive())),GetServer(MATCH(MIN(E83:T83),E83:T83,0)),"FAILED")) -> 3 | E83: 3 | F83: 4 | G83: 1 | H83: 2
C84: DB64 | D84: =IF(ISNA(MATCH(MIN(E84:T84),E84:T84,0)),"FAILED", IF(OR(MATCH(MIN(E84:T84),E84:T84,0)<17,AND(MIN(E84:T84)<17,IsSecSiteActive())),GetServer(MATCH(MIN(E84:T84),E84:T84,0)),"FAILED")) -> 4 | F84: 3 | G84: 4 | H84: 1 | I84: 2
C85: DB65 | D85: =IF(ISNA(MATCH(MIN(E85:T85),E85:T85,0)),"FAILED", IF(OR(MATCH(MIN(E85:T85),E85:T85,0)<17,AND(MIN(E85:T85)<17,IsSecSiteActive())),GetServer(MATCH(MIN(E85:T85),E85:T85,0)),"FAILED")) -> 5 | G85: 3 | H85: 4 | I85: 1 | J85: 2
C86: DB66 | D86: =IF(ISNA(MATCH(MIN(E86:T86),E86:T86,0)),"FAILED", IF(OR(MATCH(MIN(E86:T86),E86:T86,0)<17,AND(MIN(E86:T86)<17,IsSecSiteActive())),GetServer(MATCH(MIN(E86:T86),E86:T86,0)),"FAILED")) -> 6 | E86: 2 | H86: 3 | I86: 4 | J86: 1
C87: DB67 | D87: =IF(ISNA(MATCH(MIN(E87:T87),E87:T87,0)),"FAILED", IF(OR(MATCH(MIN(E87:T87),E87:T87,0)<17,AND(MIN(E87:T87)<17,IsSecSiteActive())),GetServer(MATCH(MIN(E87:T87),E87:T87,0)),"FAILED")) -> 1 | E87: 1 | F87: 4 | G87: 2 | J87: 3
C88: DB68 | D88: =IF(ISNA(MATCH(MIN(E88:T88),E88:T88,0)),"FAILED", IF(OR(MATCH(MIN(E88:T88),E88:T88,0)<17,AND(MIN(E88:T88)<17,IsSecSiteActive())),GetServer(MATCH(MIN(E88:T88),E88:T88,0)),"FAILED")) -> 2 | E88: 3 | F88: 1 | G88: 4 | H88: 2
C89: DB69 | D89: =IF(ISNA(MATCH(MIN(E89:T89),E89:T89,0)),"FAILED", IF(OR(MATCH(MIN(E89:T89),E89:T89,0)<17,AND(MIN(E89:T89)<17,IsSecSiteActive())),GetServer(MATCH(MIN(E89:T89),E89:T89,0)),"FAILED")) -> 3 | F89: 3 | G89: 1 | H89: 4 | I89: 2
C90: DB70 | D90: =IF(ISNA(MATCH(MIN(E90:T90),E90:T90,0)),"FAILED", IF(OR(MATCH(MIN(E90:T90),E90:T90,0)<17,AND(MIN(E90:T90)<17,IsSecSiteActive())),GetServer(MATCH(MIN(E90:T90),E90:T90,0)),"FAILED")) -> 4 | G90: 3 | H90: 1 | I90: 4 | J90: 2
C91: DB71 | D91: =IF(ISNA(MATCH(MIN(E91:T91),E91:T91,0)),"FAILED", IF(OR(MATCH(MIN(E91:T91),E91:T91,0)<17,AND(MIN(E91:T91)<17,IsSecSiteActive())),GetServer(MATCH(MIN(E91:T91),E91:T91,0)),"FAILED")) -> 5 | E91: 2 | H91: 3 | I91: 1 | J91: 4
C92: DB72 | D92: =IF(ISNA(MATCH(MIN(E92:T92),E92:T92,0)),"FAILED", IF(OR(MATCH(MIN(E92:T92),E92:T92,0)<17,AND(MIN(E92:T92)<17,IsSecSiteActive())),GetServer(MATCH(MIN(E92:T92),E92:T92,0)),"FAILED")) -> 6 | E92: 4 | F92: 2 | I92: 3 | J92: 1
C93: DB73 | D93: =IF(ISNA(MATCH(MIN(E93:T93),E93:T93,0)),"FAILED", IF(OR(MATCH(MIN(E93:T93),E93:T93,0)<17,AND(MIN(E93:T93)<17,IsSecSiteActive())),GetServer(MATCH(MIN(E93:T93),E93:T93,0)),"FAILED")) -> 1 | E93: 1 | F93: 3 | G93: 4 | H93: 2
C94: DB74 | D94: =IF(ISNA(MATCH(MIN(E94:T94),E94:T94,0)),"FAILED", IF(OR(MATCH(MIN(E94:T94),E94:T94,0)<17,AND(MIN(E94:T94)<17,IsSecSiteActive())),GetServer(MATCH(MIN(E94:T94),E94:T94,0)),"FAILED")) -> 2 | F94: 1 | G94: 3 | H94: 4 | I94: 2
C95: DB75 | D95: =IF(ISNA(MATCH(MIN(E95:T95),E95:T95,0)),"FAILED", IF(OR(MATCH(MIN(E95:T95),E95:T95,0)<17,AND(MIN(E95:T95)<17,IsSecSiteActive())),GetServer(MATCH(MIN(E95:T95),E95:T95,0)),"FAILED")) -> 3 | G95: 1 | H95: 3 | I95: 4 | J95: 2
C96: DB76 | D96: =IF(ISNA(MATCH(MIN(E96:T96),E96:T96,0)),"FAILED", IF(OR(MATCH(MIN(E96:T96),E96:T96,0)<17,AND(MIN(E96:T96)<17,IsSecSiteActive())),GetServer(MATCH(MIN(E96:T96),E96:T96,0)),"FAILED")) -> 4 | E96: 2 | H96: 1 | I96: 3 | J96: 4
C97: DB77 | D97: =IF(ISNA(MATCH(MIN(E97:T97),E97:T97,0)),"FAILED", IF(OR(MATCH(MIN(E97:T97),E97:T97,0)<17,AND(MIN(E97:T97)<17,IsSecSiteActive())),GetServer(MATCH(MIN(E97:T97),E97:T97,0)),"FAILED")) -> 5 | E97: 4 | F97: 2 | I97: 1 | J97: 3
C98: DB78 | D98: =IF(ISNA(MATCH(MIN(E98:T98),E98:T98,0)),"FAILED", IF(OR(MATCH(MIN(E98:T98),E98:T98,0)<17,AND(MIN(E98:T98)<17,IsSecSiteActive())),GetServer(MATCH(MIN(E98:T98),E98:T98,0)),"FAILED")) -> 6 | E98: 3 | F98: 4 | G98: 2 | J98: 1
C99: DB79 | D99: =IF(ISNA(MATCH(MIN(E99:T99),E99:T99,0)),"FAILED", IF(OR(MATCH(MIN(E99:T99),E99:T99,0)<17,AND(MIN(E99:T99)<17,IsSecSiteActive())),GetServer(MATCH(MIN(E99:T99),E99:T99,0)),"FAILED")) -> 1 | E99: 1 | G99: 3 | H99: 4 | I99: 2
C100: DB80 | D100: =IF(ISNA(MATCH(MIN(E100:T100),E100:T100,0)),"FAILED", IF(OR(MATCH(MIN(E100:T100),E100:T100,0)<17,AND(MIN(E100:T100)<17,IsSecSiteActive())),GetServer(MATCH(MIN(E100:T100),E100:T100,0)),"FAILED")) -> 2 | F100: 1 | H100: 3 | I100: 4 | J100: 2
C101: DB81 | D101: =IF(ISNA(MATCH(MIN(E101:T101),E101:T101,0)),"FAILED", IF(OR(MATCH(MIN(E101:T101),E101:T101,0)<17,AND(MIN(E101:T101)<17,IsSecSiteActive())),GetServer(MATCH(MIN(E101:T101),E101:T101,0)),"FAILED")) -> 3 | E101: 2 | G101: 1 | I101: 3 | J101: 4
C102: DB82 | D102: =IF(ISNA(MATCH(MIN(E102:T102),E102:T102,0)),"FAILED", IF(OR(MATCH(MIN(E102:T102),E102:T102,0)<17,AND(MIN(E102:T102)<17,IsSecSiteActive())),GetServer(MATCH(MIN(E102:T102),E102:T102,0)),"FAILED")) -> 4 | E102: 4 | F102: 2 | H102: 1 | J102: 3
C103: DB83 | D103: =IF(ISNA(MATCH(MIN(E103:T103),E103:T103,0)),"FAILED", IF(OR(MATCH(MIN(E103:T103),E103:T103,0)<17,AND(MIN(E103:T103)<17,IsSecSiteActive())),GetServer(MATCH(MIN(E103:T103),E103:T103,0)),"FAILED")) -> 5 | E103: 3 | F103: 4 | G103: 2 | I103: 1
C104: DB84 | D104: =IF(ISNA(MATCH(MIN(E104:T104),E104:T104,0)),"FAILED", IF(OR(MATCH(MIN(E104:T104),E104:T104,0)<17,AND(MIN(E104:T104)<17,IsSecSiteActive())),GetServer(MATCH(MIN(E104:T104),E104:T104,0)),"FAILED")) -> 6 | F104: 3 | G104: 4 | H104: 2 | J104: 1
C105: DB85 | D105: =IF(ISNA(MATCH(MIN(E105:T105),E105:T105,0)),"FAILED", IF(OR(MATCH(MIN(E105:T105),E105:T105,0)<17,AND(MIN(E105:T105)<17,IsSecSiteActive())),GetServer(MATCH(MIN(E105:T105),E105:T105,0)),"FAILED")) -> 1 | E105: 1 | H105: 3 | I105: 4 | J105: 2
C106: DB86 | D106: =IF(ISNA(MATCH(MIN(E106:T106),E106:T106,0)),"FAILED", IF(OR(MATCH(MIN(E106:T106),E106:T106,0)<17,AND(MIN(E106:T106)<17,IsSecSiteActive())),GetServer(MATCH(MIN(E106:T106),E106:T106,0)),"FAILED")) -> 2 | E106: 2 | F106: 1 | I106: 3 | J106: 4
C107: DB87 | D107: =IF(ISNA(MATCH(MIN(E107:T107),E107:T107,0)),"FAILED", IF(OR(MATCH(MIN(E107:T107),E107:T107,0)<17,AND(MIN(E107:T107)<17,IsSecSiteActive())),GetServer(MATCH(MIN(E107:T107),E107:T107,0)),"FAILED")) -> 3 | E107: 4 | F107: 2 | G107: 1 | J107: 3
C108: DB88 | D108: =IF(ISNA(MATCH(MIN(E108:T108),E108:T108,0)),"FAILED", IF(OR(MATCH(MIN(E108:T108),E108:T108,0)<17,AND(MIN(E108:T108)<17,IsSecSiteActive())),GetServer(MATCH(MIN(E108:T108),E108:T108,0)),"FAILED")) -> 4 | E108: 3 | F108: 4 | G108: 2 | H108: 1
C109: DB89 | D109: =IF(ISNA(MATCH(MIN(E109:T109),E109:T109,0)),"FAILED", IF(OR(MATCH(MIN(E109:T109),E109:T109,0)<17,AND(MIN(E109:T109)<17,IsSecSiteActive())),GetServer(MATCH(MIN(E109:T109),E109:T109,0)),"FAILED")) -> 5 | F109: 3 | G109: 4 | H109: 2 | I109: 1
C110: DB90 | D110: =IF(ISNA(MATCH(MIN(E110:T110),E110:T110,0)),"FAILED", IF(OR(MATCH(MIN(E110:T110),E110:T110,0)<17,AND(MIN(E110:T110)<17,IsSecSiteActive())),GetServer(MATCH(MIN(E110:T110),E110:T110,0)),"FAILED")) -> 6 | G110: 3 | H110: 4 | I110: 2 | J110: 1
C111: DB91 | D111: =IF(ISNA(MATCH(MIN(E111:T111),E111:T111,0)),"FAILED", IF(OR(MATCH(MIN(E111:T111),E111:T111,0)<17,AND(MIN(E111:T111)<17,IsSecSiteActive())),GetServer(MATCH(MIN(E111:T111),E111:T111,0)),"FAILED")) -> 1 | E111: 1 | F111: 2 | G111: 4 | J111: 3
C112: DB92 | D112: =IF(ISNA(MATCH(MIN(E112:T112),E112:T112,0)),"FAILED", IF(OR(MATCH(MIN(E112:T112),E112:T112,0)<17,AND(MIN(E112:T112)<17,IsSecSiteActive())),GetServer(MATCH(MIN(E112:T112),E112:T112,0)),"FAILED")) -> 2 | E112: 3 | F112: 1 | G112: 2 | H112: 4
C113: DB93 | D113: =IF(ISNA(MATCH(MIN(E113:T113),E113:T113,0)),"FAILED", IF(OR(MATCH(MIN(E113:T113),E113:T113,0)<17,AND(MIN(E113:T113)<17,IsSecSiteActive())),GetServer(MATCH(MIN(E113:T113),E113:T113,0)),"FAILED")) -> 3 | F113: 3 | G113: 1 | H113: 2 | I113: 4
C114: DB94 | D114: =IF(ISNA(MATCH(MIN(E114:T114),E114:T114,0)),"FAILED", IF(OR(MATCH(MIN(E114:T114),E114:T114,0)<17,AND(MIN(E114:T114)<17,IsSecSiteActive())),GetServer(MATCH(MIN(E114:T114),E114:T114,0)),"FAILED")) -> 4 | G114: 3 | H114: 1 | I114: 2 | J114: 4
C115: DB95 | D115: =IF(ISNA(MATCH(MIN(E115:T115),E115:T115,0)),"FAILED", IF(OR(MATCH(MIN(E115:T115),E115:T115,0)<17,AND(MIN(E115:T115)<17,IsSecSiteActive())),GetServer(MATCH(MIN(E115:T115),E115:T115,0)),"FAILED")) -> 5 | E115: 4 | H115: 3 | I115: 1 | J115: 2
C116: DB96 | D116: =IF(ISNA(MATCH(MIN(E116:T116),E116:T116,0)),"FAILED", IF(OR(MATCH(MIN(E116:T116),E116:T116,0)<17,AND(MIN(E116:T116)<17,IsSecSiteActive())),GetServer(MATCH(MIN(E116:T116),E116:T116,0)),"FAILED")) -> 6 | E116: 2 | F116: 4 | I116: 3 | J116: 1
C117: DB97 | D117: =IF(ISNA(MATCH(MIN(E117:T117),E117:T117,0)),"FAILED", IF(OR(MATCH(MIN(E117:T117),E117:T117,0)<17,AND(MIN(E117:T117)<17,IsSecSiteActive())),GetServer(MATCH(MIN(E117:T117),E117:T117,0)),"FAILED")) -> 1 | E117: 1 | F117: 3 | G117: 2 | H117: 4
C118: DB98 | D118: =IF(ISNA(MATCH(MIN(E118:T118),E118:T118,0)),"FAILED", IF(OR(MATCH(MIN(E118:T118),E118:T118,0)<17,AND(MIN(E118:T118)<17,IsSecSiteActive())),GetServer(MATCH(MIN(E118:T118),E118:T118,0)),"FAILED")) -> 2 | F118: 1 | G118: 3 | H118: 2 | I118: 4
C119: DB99 | D119: =IF(ISNA(MATCH(MIN(E119:T119),E119:T119,0)),"FAILED", IF(OR(MATCH(MIN(E119:T119),E119:T119,0)<17,AND(MIN(E119:T119)<17,IsSecSiteActive())),GetServer(MATCH(MIN(E119:T119),E119:T119,0)),"FAILED")) -> 3 | G119: 1 | H119: 3 | I119: 2 | J119: 4
C120: DB100 | D120: =IF(ISNA(MATCH(MIN(E120:T120),E120:T120,0)),"FAILED", IF(OR(MATCH(MIN(E120:T120),E120:T120,0)<17,AND(MIN(E120:T120)<17,IsSecSiteActive())),GetServer(MATCH(MIN(E120:T120),E120:T120,0)),"FAILED")) -> 4 | E120: 4 | H120: 1 | I120: 3 | J120: 2
C121: DB101 | D121: =IF(ISNA(MATCH(MIN(E121:T121),E121:T121,0)),"FAILED", IF(OR(MATCH(MIN(E121:T121),E121:T121,0)<17,AND(MIN(E121:T121)<17,IsSecSiteActive())),GetServer(MATCH(MIN(E121:T121),E121:T121,0)),"FAILED")) -> 5 | E121: 2 | F121: 4 | I121: 1 | J121: 3
C122: DB102 | D122: =IF(ISNA(MATCH(MIN(E122:T122),E122:T122,0)),"FAILED", IF(OR(MATCH(MIN(E122:T122),E122:T122,0)<17,AND(MIN(E122:T122)<17,IsSecSiteActive())),GetServer(MATCH(MIN(E122:T122),E122:T122,0)),"FAILED")) -> 6 | E122: 3 | F122: 2 | G122: 4 | J122: 1
C123: DB103 | D123: =IF(ISNA(MATCH(MIN(E123:T123),E123:T123,0)),"FAILED", IF(OR(MATCH(MIN(E123:T123),E123:T123,0)<17,AND(MIN(E123:T123)<17,IsSecSiteActive())),GetServer(MATCH(MIN(E123:T123),E123:T123,0)),"FAILED")) -> 1 | E123: 1 | G123: 3 | H123: 2 | I123: 4
C124: DB104 | D124: =IF(ISNA(MATCH(MIN(E124:T124),E124:T124,0)),"FAILED", IF(OR(MATCH(MIN(E124:T124),E124:T124,0)<17,AND(MIN(E124:T124)<17,IsSecSiteActive())),GetServer(MATCH(MIN(E124:T124),E124:T124,0)),"FAILED")) -> 2 | F124: 1 | H124: 3 | I124: 2 | J124: 4
C125: DB105 | D125: =IF(ISNA(MATCH(MIN(E125:T125),E125:T125,0)),"FAILED", IF(OR(MATCH(MIN(E125:T125),E125:T125,0)<17,AND(MIN(E125:T125)<17,IsSecSiteActive())),GetServer(MATCH(MIN(E125:T125),E125:T125,0)),"FAILED")) -> 3 | E125: 4 | G125: 1 | I125: 3 | J125: 2
C126: DB106 | D126: =IF(ISNA(MATCH(MIN(E126:T126),E126:T126,0)),"FAILED", IF(OR(MATCH(MIN(E126:T126),E126:T126,0)<17,AND(MIN(E126:T126)<17,IsSecSiteActive())),GetServer(MATCH(MIN(E126:T126),E126:T126,0)),"FAILED")) -> 4 | E126: 2 | F126: 4 | H126: 1 | J126: 3
C127: DB107 | D127: =IF(ISNA(MATCH(MIN(E127:T127),E127:T127,0)),"FAILED", IF(OR(MATCH(MIN(E127:T127),E127:T127,0)<17,AND(MIN(E127:T127)<17,IsSecSiteActive())),GetServer(MATCH(MIN(E127:T127),E127:T127,0)),"FAILED")) -> 5 | E127: 3 | F127: 2 | G127: 4 | I127: 1
C128: DB108 | D128: =IF(ISNA(MATCH(MIN(E128:T128),E128:T128,0)),"FAILED", IF(OR(MATCH(MIN(E128:T128),E128:T128,0)<17,AND(MIN(E128:T128)<17,IsSecSiteActive())),GetServer(MATCH(MIN(E128:T128),E128:T128,0)),"FAILED")) -> 6 | F128: 3 | G128: 2 | H128: 4 | J128: 1
C129: DB109 | D129: =IF(ISNA(MATCH(MIN(E129:T129),E129:T129,0)),"FAILED", IF(OR(MATCH(MIN(E129:T129),E129:T129,0)<17,AND(MIN(E129:T129)<17,IsSecSiteActive())),GetServer(MATCH(MIN(E129:T129),E129:T129,0)),"FAILED")) -> 1 | E129: 1 | H129: 3 | I129: 2 | J129: 4
C130: DB110 | D130: =IF(ISNA(MATCH(MIN(E130:T130),E130:T130,0)),"FAILED", IF(OR(MATCH(MIN(E130:T130),E130:T130,0)<17,AND(MIN(E130:T130)<17,IsSecSiteActive())),GetServer(MATCH(MIN(E130:T130),E130:T130,0)),"FAILED")) -> 2 | E130: 4 | F130: 1 | I130: 3 | J130: 2
C131: DB111 | D131: =IF(ISNA(MATCH(MIN(E131:T131),E131:T131,0)),"FAILED", IF(OR(MATCH(MIN(E131:T131),E131:T131,0)<17,AND(MIN(E131:T131)<17,IsSecSiteActive())),GetServer(MATCH(MIN(E131:T131),E131:T131,0)),"FAILED")) -> 3 | E131: 2 | F131: 4 | G131: 1 | J131: 3
C132: DB112 | D132: =IF(ISNA(MATCH(MIN(E132:T132),E132:T132,0)),"FAILED", IF(OR(MATCH(MIN(E132:T132),E132:T132,0)<17,AND(MIN(E132:T132)<17,IsSecSiteActive())),GetServer(MATCH(MIN(E132:T132),E132:T132,0)),"FAILED")) -> 4 | E132: 3 | F132: 2 | G132: 4 | H132: 1
C133: DB113 | D133: =IF(ISNA(MATCH(MIN(E133:T133),E133:T133,0)),"FAILED", IF(OR(MATCH(MIN(E133:T133),E133:T133,0)<17,AND(MIN(E133:T133)<17,IsSecSiteActive())),GetServer(MATCH(MIN(E133:T133),E133:T133,0)),"FAILED")) -> 5 | F133: 3 | G133: 2 | H133: 4 | I133: 1
C134: DB114 | D134: =IF(ISNA(MATCH(MIN(E134:T134),E134:T134,0)),"FAILED", IF(OR(MATCH(MIN(E134:T134),E134:T134,0)<17,AND(MIN(E134:T134)<17,IsSecSiteActive())),GetServer(MATCH(MIN(E134:T134),E134:T134,0)),"FAILED")) -> 6 | G134: 3 | H134: 2 | I134: 4 | J134: 1
C135: DB115 | D135: =IF(ISNA(MATCH(MIN(E135:T135),E135:T135,0)),"FAILED", IF(OR(MATCH(MIN(E135:T135),E135:T135,0)<17,AND(MIN(E135:T135)<17,IsSecSiteActive())),GetServer(MATCH(MIN(E135:T135),E135:T135,0)),"FAILED")) -> 1 | E135: 1 | F135: 4 | I135: 3 | J135: 2
C136: DB116 | D136: =IF(ISNA(MATCH(MIN(E136:T136),E136:T136,0)),"FAILED", IF(OR(MATCH(MIN(E136:T136),E136:T136,0)<17,AND(MIN(E136:T136)<17,IsSecSiteActive())),GetServer(MATCH(MIN(E136:T136),E136:T136,0)),"FAILED")) -> 2 | E136: 2 | F136: 1 | G136: 4 | J136: 3
C137: DB117 | D137: =IF(ISNA(MATCH(MIN(E137:T137),E137:T137,0)),"FAILED", IF(OR(MATCH(MIN(E137:T137),E137:T137,0)<17,AND(MIN(E137:T137)<17,IsSecSiteActive())),GetServer(MATCH(MIN(E137:T137),E137:T137,0)),"FAILED")) -> 3 | E137: 3 | F137: 2 | G137: 1 | H137: 4
C138: DB118 | D138: =IF(ISNA(MATCH(MIN(E138:T138),E138:T138,0)),"FAILED", IF(OR(MATCH(MIN(E138:T138),E138:T138,0)<17,AND(MIN(E138:T138)<17,IsSecSiteActive())),GetServer(MATCH(MIN(E138:T138),E138:T138,0)),"FAILED")) -> 4 | F138: 3 | G138: 2 | H138: 1 | I138: 4
C139: DB119 | D139: =IF(ISNA(MATCH(MIN(E139:T139),E139:T139,0)),"FAILED", IF(OR(MATCH(MIN(E139:T139),E139:T139,0)<17,AND(MIN(E139:T139)<17,IsSecSiteActive())),GetServer(MATCH(MIN(E139:T139),E139:T139,0)),"FAILED")) -> 5 | G139: 3 | H139: 2 | I139: 1 | J139: 4
C140: DB120 | D140: =IF(ISNA(MATCH(MIN(E140:T140),E140:T140,0)),"FAILED", IF(OR(MATCH(MIN(E140:T140),E140:T140,0)<17,AND(MIN(E140:T140)<17,IsSecSiteActive())),GetServer(MATCH(MIN(E140:T140),E140:T140,0)),"FAILED")) -> 6 | E140: 4 | H140: 3 | I140: 2 | J140: 1

Sheet LUN Requirements
B1: Note1: Do not make any changes to this sheet. This sheet is only used for calculation purposes.
B3: LUN Requirements Calculations Pane
B5: DB Number | C5: DB Grouping | D5: DB Group # | H5: LUN Configuration | I5: Value
B6: =IF(B121="DB-x",1,B121) -> 1 | C6: =IF(B121="--","",ROUNDUP(Table30[[#This Row],[DB Number]]/NumDBPerLUN,0)) -> 1 | D6: =IF(H121="--","",ROUNDUP(VALUE(IF(LEFT(RIGHT(H121,2),1)="B",RIGHT(H121,1),RIGHT(H121,2)))/NumDBPerLUN,0)) -> 1 | H6: LUN Design Approach | I6: =IF(OR(BackupMethod="Hardware VSS Backup/Restore",AND(HAOption="Yes",NumDBCopies>=2,DBLogIsolation="No")),1,VLOOKUP(BackupFreq,TblBackupFreq,2,FALSE)) -> 1
B7: =IF(B122<>"--",IF(B122="DB-x",B6+1,B122),"") -> 2 | C7: =IF(B122="--","",ROUNDUP(Table30[[#This Row],[DB Number]]/NumDBPerLUN,0)) -> 2 | D7: 2 | H7: Number of DBs / LUN | I7: =VALUE(IF(LEFT(RIGHT(H121,2),1)="B",RIGHT(H121,1),RIGHT(H121,2))) -> 1
B8: 3 | C8: =IF(B123="--","",ROUNDUP(Table30[[#This Row],[DB Number]]/NumDBPerLUN,0)) -> 3 | D8: 3 | H8: Number of DB LUNs | I8: =IF(LUNDesign="1/7",VLOOKUP(TotNumDBCopiesServer,tblLUNBackupSet,2,TRUE),1) -> 1
B9: 4 | C9: =IF(B124="--","",ROUNDUP(Table30[[#This Row],[DB Number]]/NumDBPerLUN,0)) -> 4 | D9: 4 | H9: Restore LUN Size (GB) | I9: =IF(RestoreLUN="Yes",((SUMIF(C$6:C$105,D6,E$121:E$220)+SUMIF(C$6:C$105,D6,F$121:F$220))*IF(NumDBCopies+numLagDBCopies>=2,1,IF(LUNDesign=1,VLOOKUP(RecNumDBs,TblNumRestoreLun,2,TRUE),1)))/(1-LUNGrowth),0) -> 1628.745117
B10: 5 | C10: =IF(B125="--","",ROUNDUP(Table30[[#This Row],[DB Number]]/NumDBPerLUN,0)) -> 5 | D10: 5
B11: 6 | C11: =IF(B126="--","",ROUNDUP(Table30[[#This Row],[DB Number]]/NumDBPerLUN,0)) -> 6 | D11: 6
B12: 7 | C12: =IF(B127="--","",ROUNDUP(Table30[[#This Row],[DB Number]]/NumDBPerLUN,0)) -> 7 | D12: 7
B13: 8 | C13: =IF(B128="--","",ROUNDUP(Table30[[#This Row],[DB Number]]/NumDBPerLUN,0)) -> 8 | D13: 8
B14: 9 | C14: =IF(B129="--","",ROUNDUP(Table30[[#This Row],[DB Number]]/NumDBPerLUN,0)) -> 9 | D14: 9
B15: 10 | C15: =IF(B130="--","",ROUNDUP(Table30[[#This Row],[DB Number]]/NumDBPerLUN,0)) -> 10 | D15: 10
B16: 11 | C16: =IF(B131="--","",ROUNDUP(Table30[[#This Row],[DB Number]]/NumDBPerLUN,0)) -> 11 | D16: 11
B17: 12 | C17: =IF(B132="--","",ROUNDUP(Table30[[#This Row],[DB Number]]/NumDBPerLUN,0)) -> 12 | D17: 12
B18: 13 | C18: =IF(B133="--","",ROUNDUP(Table30[[#This Row],[DB Number]]/NumDBPerLUN,0)) -> 13 | D18: 13
B19: 14 | C19: =IF(B134="--","",ROUNDUP(Table30[[#This Row],[DB Number]]/NumDBPerLUN,0)) -> 14 | D19: 14
B20: 15 | C20: =IF(B135="--","",ROUNDUP(Table30[[#This Row],[DB Number]]/NumDBPerLUN,0)) -> 15 | D20: 15
B21: 16 | C21: =IF(B136="--","",ROUNDUP(Table30[[#This Row],[DB Number]]/NumDBPerLUN,0)) -> 16 | D21: 16
B22: 17 | C22: =IF(B137="--","",ROUNDUP(Table30[[#This Row],[DB Number]]/NumDBPerLUN,0)) -> 17 | D22: 17
B23: 18 | C23: =IF(B138="--","",ROUNDUP(Table30[[#This Row],[DB Number]]/NumDBPerLUN,0)) -> 18 | D23: 18
B24: 19 | C24: =IF(B139="--","",ROUNDUP(Table30[[#This Row],[DB Number]]/NumDBPerLUN,0)) -> 19 | D24: 19
B25: 20 | C25: =IF(B140="--","",ROUNDUP(Table30[[#This Row],[DB Number]]/NumDBPerLUN,0)) -> 20 | D25: 20
B26: 21 | C26: =IF(B141="--","",ROUNDUP(Table30[[#This Row],[DB Number]]/NumDBPerLUN,0)) -> 21 | D26: 21
B27: 22 | C27: =IF(B142="--","",ROUNDUP(Table30[[#This Row],[DB Number]]/NumDBPerLUN,0)) -> 22 | D27: 22
B28: 23 | C28: =IF(B143="--","",ROUNDUP(Table30[[#This Row],[DB Number]]/NumDBPerLUN,0)) -> 23 | D28: 23
B29: 24 | C29: =IF(B144="--","",ROUNDUP(Table30[[#This Row],[DB Number]]/NumDBPerLUN,0)) -> 24 | D29: 24
B30: 25 | C30: =IF(B145="--","",ROUNDUP(Table30[[#This Row],[DB Number]]/NumDBPerLUN,0)) -> 25 | D30: 25
B31: 26 | C31: =IF(B146="--","",ROUNDUP(Table30[[#This Row],[DB Number]]/NumDBPerLUN,0)) -> 26 | D31: 26
B32: 27 | C32: =IF(B147="--","",ROUNDUP(Table30[[#This Row],[DB Number]]/NumDBPerLUN,0)) -> 27 | D32: 27
B33: 28 | C33: =IF(B148="--","",ROUNDUP(Table30[[#This Row],[DB Number]]/NumDBPerLUN,0)) -> 28 | D33: 28
B34: 29 | C34: =IF(B149="--","",ROUNDUP(Table30[[#This Row],[DB Number]]/NumDBPerLUN,0)) -> 29 | D34: 29
B35: 30 | C35: =IF(B150="--","",ROUNDUP(Table30[[#This Row],[DB Number]]/NumDBPerLUN,0)) -> 30 | D35: 30
B36: 31 | C36: =IF(B151="--","",ROUNDUP(Table30[[#This Row],[DB Number]]/NumDBPerLUN,0)) -> 31 | D36: 31
B37: 32 | C37: =IF(B152="--","",ROUNDUP(Table30[[#This Row],[DB Number]]/NumDBPerLUN,0)) -> 32 | D37: 32
B38: 33 | C38: =IF(B153="--","",ROUNDUP(Table30[[#This Row],[DB Number]]/NumDBPerLUN,0)) -> 33 | D38: =IF(H153="--","",ROUNDUP(VALUE(IF(LEFT(RIGHT(H153,2),1)="B",RIGHT(H153,1),RIGHT(H153,2)))/NumDBPerLUN,0)) -> 33
B39: =IF(B154<>"--",IF(B154="DB-x",B38+1,B154),"") -> 34 | C39: =IF(B154="--","",ROUNDUP(Table30[[#This Row],[DB Number]]/NumDBPerLUN,0)) -> 34 | D39: 34
B40: 35 | C40: =IF(B155="--","",ROUNDUP(Table30[[#This Row],[DB Number]]/NumDBPerLUN,0)) -> 35 | D40: 35
B41: 36 | C41: =IF(B156="--","",ROUNDUP(Table30[[#This Row],[DB Number]]/NumDBPerLUN,0)) -> 36 | D41: 36
B42: 37 | C42: =IF(B157="--","",ROUNDUP(Table30[[#This Row],[DB Number]]/NumDBPerLUN,0)) -> 37 | D42: 37
B43: 38 | C43: =IF(B158="--","",ROUNDUP(Table30[[#This Row],[DB Number]]/NumDBPerLUN,0)) -> 38 | D43: 38
B44: 39 | C44: =IF(B159="--","",ROUNDUP(Table30[[#This Row],[DB Number]]/NumDBPerLUN,0)) -> 39 | D44: 39
B45: 40 | C45: =IF(B160="--","",ROUNDUP(Table30[[#This Row],[DB Number]]/NumDBPerLUN,0)) -> 40 | D45: 40
B46: 41 | C46: =IF(B161="--","",ROUNDUP(Table30[[#This Row],[DB Number]]/NumDBPerLUN,0)) -> 41 | D46: 41
B47: 42 | C47: =IF(B162="--","",ROUNDUP(Table30[[#This Row],[DB Number]]/NumDBPerLUN,0)) -> 42 | D47: 42
B48: 43 | C48: =IF(B163="--","",ROUNDUP(Table30[[#This Row],[DB Number]]/NumDBPerLUN,0)) -> 43 | D48: 43
B49: 44 | C49: =IF(B164="--","",ROUNDUP(Table30[[#This Row],[DB Number]]/NumDBPerLUN,0)) -> 44 | D49: 44
B50: 45 | C50: =IF(B165="--","",ROUNDUP(Table30[[#This Row],[DB Number]]/NumDBPerLUN,0)) -> 45 | D50: 45
B51: 46 | C51: =IF(B166="--","",ROUNDUP(Table30[[#This Row],[DB Number]]/NumDBPerLUN,0)) -> 46 | D51: 46
B52: 47 | C52: =IF(B167="--","",ROUNDUP(Table30[[#This Row],[DB Number]]/NumDBPerLUN,0)) -> 47 | D52: 47
B53: 48 | C53: =IF(B168="--","",ROUNDUP(Table30[[#This Row],[DB Number]]/NumDBPerLUN,0)) -> 48 | D53: 48
B54: 49 | C54: =IF(B169="--","",ROUNDUP(Table30[[#This Row],[DB Number]]/NumDBPerLUN,0)) -> 49 | D54: 49
B55: 50 | C55: =IF(B170="--","",ROUNDUP(Table30[[#This Row],[DB Number]]/NumDBPerLUN,0)) -> 50 | D55: 50
B56: 51 | C56: =IF(B171="--","",ROUNDUP(Table30[[#This Row],[DB Number]]/NumDBPerLUN,0)) -> 51 | D56: 51
B57: 52 | C57: =IF(B172="--","",ROUNDUP(Table30[[#This Row],[DB Number]]/NumDBPerLUN,0)) -> 52 | D57: 52
B58: 53 | C58: =IF(B173="--","",ROUNDUP(Table30[[#This Row],[DB Number]]/NumDBPerLUN,0)) -> 53 | D58: 53
B59: 54 | C59: =IF(B174="--","",ROUNDUP(Table30[[#This Row],[DB Number]]/NumDBPerLUN,0)) -> 54 | D59: 54
B60: 55 | C60: =IF(B175="--","",ROUNDUP(Table30[[#This Row],[DB Number]]/NumDBPerLUN,0)) -> 55 | D60: 55
B61: 56 | C61: =IF(B176="--","",ROUNDUP(Table30[[#This Row],[DB Number]]/NumDBPerLUN,0)) -> 56 | D61: 56
B62: 57 | C62: =IF(B177="--","",ROUNDUP(Table30[[#This Row],[DB Number]]/NumDBPerLUN,0)) -> 57 | D62: 57
B63: 58 | C63: =IF(B178="--","",ROUNDUP(Table30[[#This Row],[DB Number]]/NumDBPerLUN,0)) -> 58 | D63: 58
B64: 59 | C64: =IF(B179="--","",ROUNDUP(Table30[[#This Row],[DB Number]]/NumDBPerLUN,0)) -> 59 | D64: 59
B65: 60 | C65: =IF(B180="--","",ROUNDUP(Table30[[#This Row],[DB Number]]/NumDBPerLUN,0)) -> 60 | D65: 60
B66: 61 | C66: =IF(B181="--","",ROUNDUP(Table30[[#This Row],[DB Number]]/NumDBPerLUN,0)) -> 61 | D66: 61
B67: 62 | C67: =IF(B182="--","",ROUNDUP(Table30[[#This Row],[DB Number]]/NumDBPerLUN,0)) -> 62 | D67: 62
B68: 63 | C68: =IF(B183="--","",ROUNDUP(Table30[[#This Row],[DB Number]]/NumDBPerLUN,0)) -> 63 | D68: 63
B69: 64 | C69: =IF(B184="--","",ROUNDUP(Table30[[#This Row],[DB Number]]/NumDBPerLUN,0)) -> 64 | D69: 64
B70: 65 | C70: =IF(B185="--","",ROUNDUP(Table30[[#This Row],[DB Number]]/NumDBPerLUN,0)) -> 65 | D70: =IF(H185="--","",ROUNDUP(VALUE(IF(LEFT(RIGHT(H185,2),1)="B",RIGHT(H185,1),RIGHT(H185,2)))/NumDBPerLUN,0)) -> 65
B71: =IF(B186<>"--",IF(B186="DB-x",B70+1,B186),"") -> 66 | C71: =IF(B186="--","",ROUNDUP(Table30[[#This Row],[DB Number]]/NumDBPerLUN,0)) -> 66 | D71: 66
B72: 67 | C72: =IF(B187="--","",ROUNDUP(Table30[[#This Row],[DB Number]]/NumDBPerLUN,0)) -> 67 | D72: 67
B73: 68 | C73: =IF(B188="--","",ROUNDUP(Table30[[#This Row],[DB Number]]/NumDBPerLUN,0)) -> 68 | D73: 68
B74: 69 | C74: =IF(B189="--","",ROUNDUP(Table30[[#This Row],[DB Number]]/NumDBPerLUN,0)) -> 69 | D74: 69
B75: 70 | C75: =IF(B190="--","",ROUNDUP(Table30[[#This Row],[DB Number]]/NumDBPerLUN,0)) -> 70 | D75: 70
B76: 71 | C76: =IF(B191="--","",ROUNDUP(Table30[[#This Row],[DB Number]]/NumDBPerLUN,0)) -> 71 | D76: 71
B77: 72 | C77: =IF(B192="--","",ROUNDUP(Table30[[#This Row],[DB Number]]/NumDBPerLUN,0)) -> 72 | D77: 72
B78: 73 | C78: =IF(B193="--","",ROUNDUP(Table30[[#This Row],[DB Number]]/NumDBPerLUN,0)) -> 73 | D78: 73
B79: 74 | C79: =IF(B194="--","",ROUNDUP(Table30[[#This Row],[DB Number]]/NumDBPerLUN,0)) -> 74 | D79: 74
B80: 75 | C80: =IF(B195="--","",ROUNDUP(Table30[[#This Row],[DB Number]]/NumDBPerLUN,0)) -> 75 | D80: 75
B81: 76 | C81: =IF(B196="--","",ROUNDUP(Table30[[#This Row],[DB Number]]/NumDBPerLUN,0)) -> 76 | D81: 76
B82: 77 | C82: =IF(B197="--","",ROUNDUP(Table30[[#This Row],[DB Number]]/NumDBPerLUN,0)) -> 77 | D82: 77
B83: 78 | C83: =IF(B198="--","",ROUNDUP(Table30[[#This Row],[DB Number]]/NumDBPerLUN,0)) -> 78 | D83: 78
B84: 79 | C84: =IF(B199="--","",ROUNDUP(Table30[[#This Row],[DB Number]]/NumDBPerLUN,0)) -> 79 | D84: 79
B85: 80 | C85: =IF(B200="--","",ROUNDUP(Table30[[#This Row],[DB Number]]/NumDBPerLUN,0)) -> 80 | D85: 80
C86: =IF(B201="--","",ROUNDUP(Table30[[#This Row],[DB Number]]/NumDBPerLUN,0)) -> 
C87: =IF(B202="--","",ROUNDUP(Table30[[#This Row],[DB Number]]/NumDBPerLUN,0)) -> 
C88: =IF(B203="--","",ROUNDUP(Table30[[#This Row],[DB Number]]/NumDBPerLUN,0)) -> 
C89: =IF(B204="--","",ROUNDUP(Table30[[#This Row],[DB Number]]/NumDBPerLUN,0)) -> 
C90: =IF(B205="--","",ROUNDUP(Table30[[#This Row],[DB Number]]/NumDBPerLUN,0)) -> 
C91: =IF(B206="--","",ROUNDUP(Table30[[#This Row],[DB Number]]/NumDBPerLUN,0)) -> 
C92: =IF(B207="--","",ROUNDUP(Table30[[#This Row],[DB Number]]/NumDBPerLUN,0)) -> 
C93: =IF(B208="--","",ROUNDUP(Table30[[#This Row],[DB Number]]/NumDBPerLUN,0)) -> 
C94: =IF(B209="--","",ROUNDUP(Table30[[#This Row],[DB Number]]/NumDBPerLUN,0)) -> 
C95: =IF(B210="--","",ROUNDUP(Table30[[#This Row],[DB Number]]/NumDBPerLUN,0)) -> 
C96: =IF(B211="--","",ROUNDUP(Table30[[#This Row],[DB Number]]/NumDBPerLUN,0)) -> 
C97: =IF(B212="--","",ROUNDUP(Table30[[#This Row],[DB Number]]/NumDBPerLUN,0)) -> 
C98: =IF(B213="--","",ROUNDUP(Table30[[#This Row],[DB Number]]/NumDBPerLUN,0)) -> 
C99: =IF(B214="--","",ROUNDUP(Table30[[#This Row],[DB Number]]/NumDBPerLUN,0)) -> 
C100: =IF(B215="--","",ROUNDUP(Table30[[#This Row],[DB Number]]/NumDBPerLUN,0)) -> 
C101: =IF(B216="--","",ROUNDUP(Table30[[#This Row],[DB Number]]/NumDBPerLUN,0)) -> 
C102: =IF(B217="--","",ROUNDUP(Table30[[#This Row],[DB Number]]/NumDBPerLUN,0)) ->  | D102: =IF(H217="--","",ROUNDUP(VALUE(IF(LEFT(RIGHT(H217,2),1)="B",RIGHT(H217,1),RIGHT(H217,2)))/NumDBPerLUN,0)) -> 
B103: =IF(B218<>"--",IF(B218="DB-x",B102+1,B218),"") ->  | C103: =IF(B218="--","",ROUNDUP(Table30[[#This Row],[DB Number]]/NumDBPerLUN,0)) ->  | D103: =IF(H218="--","",ROUNDUP(VALUE(IF(LEFT(RIGHT(H218,2),1)="B",RIGHT(H218,1),RIGHT(H218,2)))/NumDBPerLUN,0)) -> 
B104: =IF(B219<>"--",IF(B219="DB-x",B103+1,B219),"") ->  | C104: =IF(B219="--","",ROUNDUP(Table30[[#This Row],[DB Number]]/NumDBPerLUN,0)) ->  | D104: =IF(H219="--","",ROUNDUP(VALUE(IF(LEFT(RIGHT(H219,2),1)="B",RIGHT(H219,1),RIGHT(H219,2)))/NumDBPerLUN,0)) -> 
B105: =IF(B220<>"--",IF(B220="DB-x",B104+1,B220),"") ->  | C105: =IF(B220="--","",ROUNDUP(Table30[[#This Row],[DB Number]]/NumDBPerLUN,0)) ->  | D105: =IF(H220="--","",ROUNDUP(VALUE(IF(LEFT(RIGHT(H220,2),1)="B",RIGHT(H220,1),RIGHT(H220,3)))/NumDBPerLUN,0)) -> 
B107: LUN Requirements Results Pane (per Server)
B109: LUN Design | I109: Restore LUN Design
B110: LUN Design Architecture | C110: =IF(LUNDesign="1/7","2 LUNs / Backup Set",IF(AND(HAOption="Yes",NumDBCopies+numLagDBCopies>=2,DBLogIsolation="No",BackupMethod<>"Hardware VSS Backup/Restore"),"1 LUN / DB","2 LUNs / DB")) -> 1 LUN / DB | I110: Restore LUN Size | J110: =IF(RestoreLUNSize=0,"--",RestoreLUNSize) -> 1628.745117
B112: LUN Configuration
B113: Recommended Number of Databases / LUN | E113: =IF(ValidationCheck=FALSE,NumDBPerLUN,"--") -> 1 | H113: Note: The DB and Log LUN Design Table identifies databases by a unique number. However, databases copies are distributed across the servers, and thus, these numbers hold no significance and are used solely as an example to show a server's LUN layout.
B114: =IF(LUNArchitecture<>"1 LUN / DB","Recommended Number of Database LUNs / Server","Recommended Number of Database+Log LUNs / Server") -> Recommended Number of Database+Log LUNs / Server | E114: =IF(ValidationCheck=FALSE,ABS(COUNTIF(H121:H220,"--")-COUNTA(H121:H220)),"--") -> 80
B115: Recommended Number of Transaction Log LUNs / Server | E115: =IF(ValidationCheck=FALSE,IF(LUNArchitecture="1 LUN / DB",0,E114),"--") -> 0
B116: Number of Restore LUNs / Server | E116: =IF(ValidationCheck=FALSE,IF(RestoreLUN="Yes",1,0),"--") -> 1
B117: Total Recommended Exchange LUNs / Server | E117: =IF(ValidationCheck=FALSE,SUM(E114:E116),"--") -> 81
B119: Database and Log Configuration / Server | H119: DB and Log LUN Design / Server
B120: =IF(HAOption="Yes","Database Copy","Database Number") -> Database Copy | C120: Max Mailboxes / DB | D120: DB Size | E120: DB Size + Overhead | F120: Log Size + Overhead | H120: =IF(HAOption="Yes","Database Copy","Database") -> Database Copy | I120: =IF(LUNArchitecture<>"1 LUN / DB","DB LUN Size Required","DB+Log LUN Size Required") -> DB+Log LUN Size Required | J120: =IF(LUNArchitecture<>"1 LUN / DB","Log LUN Size Required","--") -> --
B121: =IF(ValidationCheck=FALSE,IF(HAOption="Yes","DB-x",1),"--") -> DB-x | C121: =IF(B121<>"--",MBXPerDB,0) -> 200 | D121: =IF(B121<>"--",(MBXPerDB*((Tier1MBXRatio*Tier1MBXSize)+(Tier3MBXRatio*Tier3MBXSize)+(Tier2MBXRatio*Tier2MBXSize)+(Tier4MBXRatio*Tier4MBXSize))/1024),0) -> 1063.476562 | E121: =DBSize*(1+DataGrowth) -> 1276.171875 | F121: =IF(B121<>"--",TotLogDiskSpace/RecNumDBs,0) -> 26.82421875 | H121: =IF(ValidationCheck=FALSE,IF(OR(LUNDesign=1,NumDBLUN=1),"DB1","DB1" & "-DB" & ROUND(TotNumDBCopiesServer/NumDBLUN,0)),"--") -> DB1 | I121: =IF(H121="--",0,(SUMIF(C$6:C$105,D6,E$121:E$220)+IF(RestoreLUN="Yes",0,(SUMIF(C$6:C$105,D6,E$121:E$220)*1.1))+IF(ContentIndexing="Enabled",SUMIF(C$6:C$105,D6,E$121:E$220)*CIFactor)+IF(LUNArchitecture="1 LUN / DB",SUMIF(C$6:C$105,D6,F$121:F$220),0))/(1-LUNGrowth)) -> 1788.266602 | J121: =IF(LUNArchitecture<>"1 LUN / DB",IF(H121="--",0,SUMIF(C$6:C$105,D6,F$121:F$220)/(1-LUNGrowth)),0) -> 0
B122: =IF(AND(TotNumDBCopiesServer>COUNTA(B$121:B121),ValidationCheck=FALSE),IF(HAOption="Yes","DB-x",B121+1),"--") -> DB-x | C122: =IF(B122<>"--",IF(HAOption="Yes",IF(TotNumDBCopiesServer>=COUNT(B$121:B122),IF(TotNumDBCopiesServer<=COUNT(B$121:B122),IF(calcTotNumMBXPerSvr>TotalMBXPerSvr,TotMBXPerDAG-SUM(C$121:C121),MBXPerDB),MBXPerDB)),IF(RecNumDBs>=B122,IF(RecNumDBs<=B122,IF(calcTotNumMBXPerSvr>TotalMBXPerSvr,TotalMBXPerSvr-SUM(C$121:C121),MBXPerDB),MBXPerDB))),0) -> 200 | D122: =IF(C122=0,0,(C122*((Tier1MBXRatio*Tier1MBXSize)+(Tier3MBXRatio*Tier3MBXSize)+(Tier2MBXRatio*Tier2MBXSize)+(Tier4MBXRatio*Tier4MBXSize)))/1024) -> 1063.476562 | E122: =IF(B122<>"--",D122*(1+DataGrowth),0) -> 1276.171875 | F122: =IF(B122="--",0,TotLogDiskSpace/RecNumDBs) -> 26.82421875 | H122: =IF(ValidationCheck=FALSE,IFERROR(IF(TotNumDBCopiesServer>=2,IF(OR(LUNDesign=1,NumDBLUN=1),"DB2",IF((MID(H121,IF(LEN(H121)=7,LEN(H121),LEN(H121)-1),2)+1)>TotNumDBCopiesServer,"--","DB" & (MID(H121,IF(LEN(H121)=7,LEN(H121),LEN(H121)-1),2)+1) & "-DB" & IF((VALUE((MID(H121,IF(LEN(H121)=7,LEN(H121),LEN(H121)-1),2)+1))+ROUND(TotNumDBCopiesServer/NumDBLUN,0))>TotNumDBCopiesServer,TotNumDBCopiesServer,(VALUE((MID(H121,IF(LEN(H121)=7,LEN(H121),LEN(H121)-1),2)))+ROUND(TotNumDBCopiesServer/NumDBLUN,0))))),"--"),"--"),"--") -> DB2 | I122: 1788.266602 | J122: 0
B123: =IF(AND(TotNumDBCopiesServer>COUNTA(B$121:B122),ValidationCheck=FALSE),IF(HAOption="Yes","DB-x",B122+1),"--") -> DB-x | C123: =IF(B123<>"--",IF(HAOption="Yes",IF(TotNumDBCopiesServer>=COUNT(B$121:B123),IF(TotNumDBCopiesServer<=COUNT(B$121:B123),IF(calcTotNumMBXPerSvr>TotalMBXPerSvr,TotMBXPerDAG-SUM(C$121:C122),MBXPerDB),MBXPerDB)),IF(RecNumDBs>=B123,IF(RecNumDBs<=B123,IF(calcTotNumMBXPerSvr>TotalMBXPerSvr,TotalMBXPerSvr-SUM(C$121:C122),MBXPerDB),MBXPerDB))),0) -> 200 | D123: 1063.476562 | E123: 1276.171875 | F123: 26.82421875 | H123: =IF(ValidationCheck=FALSE,IFERROR(IF(TotNumDBCopiesServer>=3,IF(OR(LUNDesign=1,NumDBLUN=1),"DB3",IF((MID(H122,IF(LEN(H122)=7,LEN(H122),LEN(H122)-1),2)+1)>TotNumDBCopiesServer,"--","DB" & (MID(H122,IF(LEN(H122)=7,LEN(H122),LEN(H122)-1),2)+1) & "-DB" & IF((VALUE((MID(H122,IF(LEN(H122)=7,LEN(H122),LEN(H122)-1),2)+1))+ROUND(TotNumDBCopiesServer/NumDBLUN,0))>TotNumDBCopiesServer,TotNumDBCopiesServer,(VALUE((MID(H122,IF(LEN(H122)=7,LEN(H122),LEN(H122)-1),2)))+ROUND(TotNumDBCopiesServer/NumDBLUN,0))))),"--"),"--"),"--") -> DB3 | I123: 1788.266602 | J123: 0
B124: =IF(AND(TotNumDBCopiesServer>COUNTA(B$121:B123),ValidationCheck=FALSE),IF(HAOption="Yes","DB-x",B123+1),"--") -> DB-x | C124: =IF(B124<>"--",IF(HAOption="Yes",IF(TotNumDBCopiesServer>=COUNT(B$121:B124),IF(TotNumDBCopiesServer<=COUNT(B$121:B124),IF(calcTotNumMBXPerSvr>TotalMBXPerSvr,TotMBXPerDAG-SUM(C$121:C123),MBXPerDB),MBXPerDB)),IF(RecNumDBs>=B124,IF(RecNumDBs<=B124,IF(calcTotNumMBXPerSvr>TotalMBXPerSvr,TotalMBXPerSvr-SUM(C$121:C123),MBXPerDB),MBXPerDB))),0) -> 200 | D124: 1063.476562 | E124: 1276.171875 | F124: 26.82421875 | H124: =IF(ValidationCheck=FALSE,IFERROR(IF(TotNumDBCopiesServer>=4,IF(OR(LUNDesign=1,NumDBLUN=1),"DB4",IF((MID(H123,IF(LEN(H123)=7,LEN(H123),LEN(H123)-1),2)+1)>TotNumDBCopiesServer,"--","DB" & (MID(H123,IF(LEN(H123)=7,LEN(H123),LEN(H123)-1),2)+1) & "-DB" & IF((VALUE((MID(H123,IF(LEN(H123)=7,LEN(H123),LEN(H123)-1),2)+1))+ROUND(TotNumDBCopiesServer/NumDBLUN,0))>TotNumDBCopiesServer,TotNumDBCopiesServer,(VALUE((MID(H123,IF(LEN(H123)=7,LEN(H123),LEN(H123)-1),2)))+ROUND(TotNumDBCopiesServer/NumDBLUN,0))))),"--"),"--"),"--") -> DB4 | I124: 1788.266602 | J124: 0
B125: =IF(AND(TotNumDBCopiesServer>COUNTA(B$121:B124),ValidationCheck=FALSE),IF(HAOption="Yes","DB-x",B124+1),"--") -> DB-x | C125: =IF(B125<>"--",IF(HAOption="Yes",IF(TotNumDBCopiesServer>=COUNT(B$121:B125),IF(TotNumDBCopiesServer<=COUNT(B$121:B125),IF(calcTotNumMBXPerSvr>TotalMBXPerSvr,TotMBXPerDAG-SUM(C$121:C124),MBXPerDB),MBXPerDB)),IF(RecNumDBs>=B125,IF(RecNumDBs<=B125,IF(calcTotNumMBXPerSvr>TotalMBXPerSvr,TotalMBXPerSvr-SUM(C$121:C124),MBXPerDB),MBXPerDB))),0) -> 200 | D125: 1063.476562 | E125: 1276.171875 | F125: 26.82421875 | H125: =IF(ValidationCheck=FALSE,IFERROR(IF(TotNumDBCopiesServer>=5,IF(OR(LUNDesign=1,NumDBLUN=1),"DB5",IF((MID(H124,IF(LEN(H124)=7,LEN(H124),LEN(H124)-1),2)+1)>TotNumDBCopiesServer,"--","DB" & (MID(H124,IF(LEN(H124)=7,LEN(H124),LEN(H124)-1),2)+1) & "-DB" & IF((VALUE((MID(H124,IF(LEN(H124)=7,LEN(H124),LEN(H124)-1),2)+1))+ROUND(TotNumDBCopiesServer/NumDBLUN,0))>TotNumDBCopiesServer,TotNumDBCopiesServer,(VALUE((MID(H124,IF(LEN(H124)=7,LEN(H124),LEN(H124)-1),2)))+ROUND(TotNumDBCopiesServer/NumDBLUN,0))))),"--"),"--"),"--") -> DB5 | I125: 1788.266602 | J125: 0
B126: =IF(AND(TotNumDBCopiesServer>COUNTA(B$121:B125),ValidationCheck=FALSE),IF(HAOption="Yes","DB-x",B125+1),"--") -> DB-x | C126: =IF(B126<>"--",IF(HAOption="Yes",IF(TotNumDBCopiesServer>=COUNT(B$121:B126),IF(TotNumDBCopiesServer<=COUNT(B$121:B126),IF(calcTotNumMBXPerSvr>TotalMBXPerSvr,TotMBXPerDAG-SUM(C$121:C125),MBXPerDB),MBXPerDB)),IF(RecNumDBs>=B126,IF(RecNumDBs<=B126,IF(calcTotNumMBXPerSvr>TotalMBXPerSvr,TotalMBXPerSvr-SUM(C$121:C125),MBXPerDB),MBXPerDB))),0) -> 200 | D126: 1063.476562 | E126: 1276.171875 | F126: 26.82421875 | H126: =IF(ValidationCheck=FALSE,IFERROR(IF(TotNumDBCopiesServer>=6,IF(OR(LUNDesign=1,NumDBLUN=1),"DB6",IF((MID(H125,IF(LEN(H125)=7,LEN(H125),LEN(H125)-1),2)+1)>TotNumDBCopiesServer,"--","DB" & (MID(H125,IF(LEN(H125)=7,LEN(H125),LEN(H125)-1),2)+1) & "-DB" & IF((VALUE((MID(H125,IF(LEN(H125)=7,LEN(H125),LEN(H125)-1),2)+1))+ROUND(TotNumDBCopiesServer/NumDBLUN,0))>TotNumDBCopiesServer,TotNumDBCopiesServer,(VALUE((MID(H125,IF(LEN(H125)=7,LEN(H125),LEN(H125)-1),2)))+ROUND(TotNumDBCopiesServer/NumDBLUN,0))))),"--"),"--"),"--") -> DB6 | I126: 1788.266602 | J126: 0
B127: =IF(AND(TotNumDBCopiesServer>COUNTA(B$121:B126),ValidationCheck=FALSE),IF(HAOption="Yes","DB-x",B126+1),"--") -> DB-x | C127: =IF(B127<>"--",IF(HAOption="Yes",IF(TotNumDBCopiesServer>=COUNT(B$121:B127),IF(TotNumDBCopiesServer<=COUNT(B$121:B127),IF(calcTotNumMBXPerSvr>TotalMBXPerSvr,TotMBXPerDAG-SUM(C$121:C126),MBXPerDB),MBXPerDB)),IF(RecNumDBs>=B127,IF(RecNumDBs<=B127,IF(calcTotNumMBXPerSvr>TotalMBXPerSvr,TotalMBXPerSvr-SUM(C$121:C126),MBXPerDB),MBXPerDB))),0) -> 200 | D127: 1063.476562 | E127: 1276.171875 | F127: 26.82421875 | H127: =IF(ValidationCheck=FALSE,IFERROR(IF(TotNumDBCopiesServer>=7,IF(OR(LUNDesign=1,NumDBLUN=1),"DB7",IF((MID(H126,IF(LEN(H126)=7,LEN(H126),LEN(H126)-1),2)+1)>TotNumDBCopiesServer,"--","DB" & (MID(H126,IF(LEN(H126)=7,LEN(H126),LEN(H126)-1),2)+1) & "-DB" & IF((VALUE((MID(H126,IF(LEN(H126)=7,LEN(H126),LEN(H126)-1),2)+1))+ROUND(TotNumDBCopiesServer/NumDBLUN,0))>TotNumDBCopiesServer,TotNumDBCopiesServer,(VALUE((MID(H126,IF(LEN(H126)=7,LEN(H126),LEN(H126)-1),2)))+ROUND(TotNumDBCopiesServer/NumDBLUN,0))))),"--"),"--"),"--") -> DB7 | I127: 1788.266602 | J127: 0
B128: =IF(AND(TotNumDBCopiesServer>COUNTA(B$121:B127),ValidationCheck=FALSE),IF(HAOption="Yes","DB-x",B127+1),"--") -> DB-x | C128: =IF(B128<>"--",IF(HAOption="Yes",IF(TotNumDBCopiesServer>=COUNT(B$121:B128),IF(TotNumDBCopiesServer<=COUNT(B$121:B128),IF(calcTotNumMBXPerSvr>TotalMBXPerSvr,TotMBXPerDAG-SUM(C$121:C127),MBXPerDB),MBXPerDB)),IF(RecNumDBs>=B128,IF(RecNumDBs<=B128,IF(calcTotNumMBXPerSvr>TotalMBXPerSvr,TotalMBXPerSvr-SUM(C$121:C127),MBXPerDB),MBXPerDB))),0) -> 200 | D128: 1063.476562 | E128: 1276.171875 | F128: 26.82421875 | H128: =IF(ValidationCheck=FALSE,IFERROR(IF(TotNumDBCopiesServer>=8,IF(OR(LUNDesign=1,NumDBLUN=1),"DB8",IF((MID(H127,IF(LEN(H127)=7,LEN(H127),LEN(H127)-1),2)+1)>TotNumDBCopiesServer,"--","DB" & (MID(H127,IF(LEN(H127)=7,LEN(H127),LEN(H127)-1),2)+1) & "-DB" & IF((VALUE((MID(H127,IF(LEN(H127)=7,LEN(H127),LEN(H127)-1),2)+1))+ROUND(TotNumDBCopiesServer/NumDBLUN,0))>TotNumDBCopiesServer,TotNumDBCopiesServer,(VALUE((MID(H127,IF(LEN(H127)=7,LEN(H127),LEN(H127)-1),2)))+ROUND(TotNumDBCopiesServer/NumDBLUN,0))))),"--"),"--"),"--") -> DB8 | I128: 1788.266602 | J128: 0
B129: =IF(AND(TotNumDBCopiesServer>COUNTA(B$121:B128),ValidationCheck=FALSE),IF(HAOption="Yes","DB-x",B128+1),"--") -> DB-x | C129: =IF(B129<>"--",IF(HAOption="Yes",IF(TotNumDBCopiesServer>=COUNT(B$121:B129),IF(TotNumDBCopiesServer<=COUNT(B$121:B129),IF(calcTotNumMBXPerSvr>TotalMBXPerSvr,TotMBXPerDAG-SUM(C$121:C128),MBXPerDB),MBXPerDB)),IF(RecNumDBs>=B129,IF(RecNumDBs<=B129,IF(calcTotNumMBXPerSvr>TotalMBXPerSvr,TotalMBXPerSvr-SUM(C$121:C128),MBXPerDB),MBXPerDB))),0) -> 200 | D129: 1063.476562 | E129: 1276.171875 | F129: 26.82421875 | H129: =IF(ValidationCheck=FALSE,IFERROR(IF(TotNumDBCopiesServer>=9,IF(OR(LUNDesign=1,NumDBLUN=1),"DB9",IF((MID(H128,IF(LEN(H128)=7,LEN(H128),LEN(H128)-1),2)+1)>TotNumDBCopiesServer,"--","DB" & (MID(H128,IF(LEN(H128)=7,LEN(H128),LEN(H128)-1),2)+1) & "-DB" & IF((VALUE((MID(H128,IF(LEN(H128)=7,LEN(H128),LEN(H128)-1),2)+1))+ROUND(TotNumDBCopiesServer/NumDBLUN,0))>TotNumDBCopiesServer,TotNumDBCopiesServer,(VALUE((MID(H128,IF(LEN(H128)=7,LEN(H128),LEN(H128)-1),2)))+ROUND(TotNumDBCopiesServer/NumDBLUN,0))))),"--"),"--"),"--") -> DB9 | I129: 1788.266602 | J129: 0
B130: =IF(AND(TotNumDBCopiesServer>COUNTA(B$121:B129),ValidationCheck=FALSE),IF(HAOption="Yes","DB-x",B129+1),"--") -> DB-x | C130: =IF(B130<>"--",IF(HAOption="Yes",IF(TotNumDBCopiesServer>=COUNT(B$121:B130),IF(TotNumDBCopiesServer<=COUNT(B$121:B130),IF(calcTotNumMBXPerSvr>TotalMBXPerSvr,TotMBXPerDAG-SUM(C$121:C129),MBXPerDB),MBXPerDB)),IF(RecNumDBs>=B130,IF(RecNumDBs<=B130,IF(calcTotNumMBXPerSvr>TotalMBXPerSvr,TotalMBXPerSvr-SUM(C$121:C129),MBXPerDB),MBXPerDB))),0) -> 200 | D130: 1063.476562 | E130: 1276.171875 | F130: 26.82421875 | H130: =IF(ValidationCheck=FALSE,IFERROR(IF(TotNumDBCopiesServer>=10,IF(OR(LUNDesign=1,NumDBLUN=1),"DB10",IF((MID(H129,IF(LEN(H129)=7,LEN(H129),LEN(H129)-1),2)+1)>TotNumDBCopiesServer,"--","DB" & (MID(H129,IF(LEN(H129)=7,LEN(H129),LEN(H129)-1),2)+1) & "-DB" & IF((VALUE((MID(H129,IF(LEN(H129)=7,LEN(H129),LEN(H129)-1),2)+1))+ROUND(TotNumDBCopiesServer/NumDBLUN,0))>TotNumDBCopiesServer,TotNumDBCopiesServer,(VALUE((MID(H129,IF(LEN(H129)=7,LEN(H129),LEN(H129)-1),2)))+ROUND(TotNumDBCopiesServer/NumDBLUN,0))))),"--"),"--"),"--") -> DB10 | I130: 1788.266602 | J130: 0
B131: =IF(AND(TotNumDBCopiesServer>COUNTA(B$121:B130),ValidationCheck=FALSE),IF(HAOption="Yes","DB-x",B130+1),"--") -> DB-x | C131: =IF(B131<>"--",IF(HAOption="Yes",IF(TotNumDBCopiesServer>=COUNT(B$121:B131),IF(TotNumDBCopiesServer<=COUNT(B$121:B131),IF(calcTotNumMBXPerSvr>TotalMBXPerSvr,TotMBXPerDAG-SUM(C$121:C130),MBXPerDB),MBXPerDB)),IF(RecNumDBs>=B131,IF(RecNumDBs<=B131,IF(calcTotNumMBXPerSvr>TotalMBXPerSvr,TotalMBXPerSvr-SUM(C$121:C130),MBXPerDB),MBXPerDB))),0) -> 200 | D131: 1063.476562 | E131: 1276.171875 | F131: 26.82421875 | H131: =IF(ValidationCheck=FALSE,IFERROR(IF(TotNumDBCopiesServer>=11,IF(OR(LUNDesign=1,NumDBLUN=1),"DB11",IF((MID(H130,IF(LEN(H130)=7,LEN(H130),LEN(H130)-1),2)+1)>TotNumDBCopiesServer,"--","DB" & (MID(H130,IF(LEN(H130)=7,LEN(H130),LEN(H130)-1),2)+1) & "-DB" & IF((VALUE((MID(H130,IF(LEN(H130)=7,LEN(H130),LEN(H130)-1),2)+1))+ROUND(TotNumDBCopiesServer/NumDBLUN,0))>TotNumDBCopiesServer,TotNumDBCopiesServer,(VALUE((MID(H130,IF(LEN(H130)=7,LEN(H130),LEN(H130)-1),2)))+ROUND(TotNumDBCopiesServer/NumDBLUN,0))))),"--"),"--"),"--") -> DB11 | I131: 1788.266602 | J131: 0
B132: =IF(AND(TotNumDBCopiesServer>COUNTA(B$121:B131),ValidationCheck=FALSE),IF(HAOption="Yes","DB-x",B131+1),"--") -> DB-x | C132: =IF(B132<>"--",IF(HAOption="Yes",IF(TotNumDBCopiesServer>=COUNT(B$121:B132),IF(TotNumDBCopiesServer<=COUNT(B$121:B132),IF(calcTotNumMBXPerSvr>TotalMBXPerSvr,TotMBXPerDAG-SUM(C$121:C131),MBXPerDB),MBXPerDB)),IF(RecNumDBs>=B132,IF(RecNumDBs<=B132,IF(calcTotNumMBXPerSvr>TotalMBXPerSvr,TotalMBXPerSvr-SUM(C$121:C131),MBXPerDB),MBXPerDB))),0) -> 200 | D132: 1063.476562 | E132: 1276.171875 | F132: 26.82421875 | H132: =IF(ValidationCheck=FALSE,IFERROR(IF(TotNumDBCopiesServer>=12,IF(OR(LUNDesign=1,NumDBLUN=1),"DB12",IF((MID(H131,IF(LEN(H131)=7,LEN(H131),LEN(H131)-1),2)+1)>TotNumDBCopiesServer,"--","DB" & (MID(H131,IF(LEN(H131)=7,LEN(H131),LEN(H131)-1),2)+1) & "-DB" & IF((VALUE((MID(H131,IF(LEN(H131)=7,LEN(H131),LEN(H131)-1),2)+1))+ROUND(TotNumDBCopiesServer/NumDBLUN,0))>TotNumDBCopiesServer,TotNumDBCopiesServer,(VALUE((MID(H131,IF(LEN(H131)=7,LEN(H131),LEN(H131)-1),2)))+ROUND(TotNumDBCopiesServer/NumDBLUN,0))))),"--"),"--"),"--") -> DB12 | I132: 1788.266602 | J132: 0
B133: =IF(AND(TotNumDBCopiesServer>COUNTA(B$121:B132),ValidationCheck=FALSE),IF(HAOption="Yes","DB-x",B132+1),"--") -> DB-x | C133: =IF(B133<>"--",IF(HAOption="Yes",IF(TotNumDBCopiesServer>=COUNT(B$121:B133),IF(TotNumDBCopiesServer<=COUNT(B$121:B133),IF(calcTotNumMBXPerSvr>TotalMBXPerSvr,TotMBXPerDAG-SUM(C$121:C132),MBXPerDB),MBXPerDB)),IF(RecNumDBs>=B133,IF(RecNumDBs<=B133,IF(calcTotNumMBXPerSvr>TotalMBXPerSvr,TotalMBXPerSvr-SUM(C$121:C132),MBXPerDB),MBXPerDB))),0) -> 200 | D133: 1063.476562 | E133: 1276.171875 | F133: 26.82421875 | H133: =IF(ValidationCheck=FALSE,IFERROR(IF(TotNumDBCopiesServer>=13,IF(OR(LUNDesign=1,NumDBLUN=1),"DB13",IF((MID(H132,IF(LEN(H132)=7,LEN(H132),LEN(H132)-1),2)+1)>TotNumDBCopiesServer,"--","DB" & (MID(H132,IF(LEN(H132)=7,LEN(H132),LEN(H132)-1),2)+1) & "-DB" & IF((VALUE((MID(H132,IF(LEN(H132)=7,LEN(H132),LEN(H132)-1),2)+1))+ROUND(TotNumDBCopiesServer/NumDBLUN,0))>TotNumDBCopiesServer,TotNumDBCopiesServer,(VALUE((MID(H132,IF(LEN(H132)=7,LEN(H132),LEN(H132)-1),2)))+ROUND(TotNumDBCopiesServer/NumDBLUN,0))))),"--"),"--"),"--") -> DB13 | I133: 1788.266602 | J133: 0
B134: =IF(AND(TotNumDBCopiesServer>COUNTA(B$121:B133),ValidationCheck=FALSE),IF(HAOption="Yes","DB-x",B133+1),"--") -> DB-x | C134: =IF(B134<>"--",IF(HAOption="Yes",IF(TotNumDBCopiesServer>=COUNT(B$121:B134),IF(TotNumDBCopiesServer<=COUNT(B$121:B134),IF(calcTotNumMBXPerSvr>TotalMBXPerSvr,TotMBXPerDAG-SUM(C$121:C133),MBXPerDB),MBXPerDB)),IF(RecNumDBs>=B134,IF(RecNumDBs<=B134,IF(calcTotNumMBXPerSvr>TotalMBXPerSvr,TotalMBXPerSvr-SUM(C$121:C133),MBXPerDB),MBXPerDB))),0) -> 200 | D134: 1063.476562 | E134: 1276.171875 | F134: 26.82421875 | H134: =IF(ValidationCheck=FALSE,IFERROR(IF(TotNumDBCopiesServer>=14,IF(OR(LUNDesign=1,NumDBLUN=1),"DB14",IF((MID(H133,IF(LEN(H133)=7,LEN(H133),LEN(H133)-1),2)+1)>TotNumDBCopiesServer,"--","DB" & (MID(H133,IF(LEN(H133)=7,LEN(H133),LEN(H133)-1),2)+1) & "-DB" & IF((VALUE((MID(H133,IF(LEN(H133)=7,LEN(H133),LEN(H133)-1),2)+1))+ROUND(TotNumDBCopiesServer/NumDBLUN,0))>TotNumDBCopiesServer,TotNumDBCopiesServer,(VALUE((MID(H133,IF(LEN(H133)=7,LEN(H133),LEN(H133)-1),2)))+ROUND(TotNumDBCopiesServer/NumDBLUN,0))))),"--"),"--"),"--") -> DB14 | I134: 1788.266602 | J134: 0
B135: =IF(AND(TotNumDBCopiesServer>COUNTA(B$121:B134),ValidationCheck=FALSE),IF(HAOption="Yes","DB-x",B134+1),"--") -> DB-x | C135: =IF(B135<>"--",IF(HAOption="Yes",IF(TotNumDBCopiesServer>=COUNT(B$121:B135),IF(TotNumDBCopiesServer<=COUNT(B$121:B135),IF(calcTotNumMBXPerSvr>TotalMBXPerSvr,TotMBXPerDAG-SUM(C$121:C134),MBXPerDB),MBXPerDB)),IF(RecNumDBs>=B135,IF(RecNumDBs<=B135,IF(calcTotNumMBXPerSvr>TotalMBXPerSvr,TotalMBXPerSvr-SUM(C$121:C134),MBXPerDB),MBXPerDB))),0) -> 200 | D135: 1063.476562 | E135: 1276.171875 | F135: 26.82421875 | H135: =IF(ValidationCheck=FALSE,IFERROR(IF(TotNumDBCopiesServer>=15,IF(OR(LUNDesign=1,NumDBLUN=1),"DB15",IF((MID(H134,IF(LEN(H134)=7,LEN(H134),LEN(H134)-2),3)+1)>TotNumDBCopiesServer,"--","DB" & (MID(H134,IF(LEN(H134)=7,LEN(H134),LEN(H134)-2),3)+1) & "-DB" & IF((VALUE((MID(H134,IF(LEN(H134)=7,LEN(H134),LEN(H134)-2),3)+1))+ROUND(TotNumDBCopiesServer/NumDBLUN,0))>TotNumDBCopiesServer,TotNumDBCopiesServer,(VALUE((MID(H134,IF(LEN(H134)=7,LEN(H134),LEN(H134)-2),3)))+ROUND(TotNumDBCopiesServer/NumDBLUN,0))))),"--"),"--"),"--") -> DB15 | I135: 1788.266602 | J135: 0
B136: =IF(AND(TotNumDBCopiesServer>COUNTA(B$121:B135),ValidationCheck=FALSE),IF(HAOption="Yes","DB-x",B135+1),"--") -> DB-x | C136: =IF(B136<>"--",IF(HAOption="Yes",IF(TotNumDBCopiesServer>=COUNT(B$121:B136),IF(TotNumDBCopiesServer<=COUNT(B$121:B136),IF(calcTotNumMBXPerSvr>TotalMBXPerSvr,TotMBXPerDAG-SUM(C$121:C135),MBXPerDB),MBXPerDB)),IF(RecNumDBs>=B136,IF(RecNumDBs<=B136,IF(calcTotNumMBXPerSvr>TotalMBXPerSvr,TotalMBXPerSvr-SUM(C$121:C135),MBXPerDB),MBXPerDB))),0) -> 200 | D136: 1063.476562 | E136: 1276.171875 | F136: 26.82421875 | H136: =IF(OR(LUNDesign="1/7",ValidationCheck=TRUE),"--",IF(TotNumDBCopiesServer>=16,"DB16","--")) -> DB16 | I136: 1788.266602 | J136: 0
B137: =IF(AND(TotNumDBCopiesServer>COUNTA(B$121:B136),ValidationCheck=FALSE),IF(HAOption="Yes","DB-x",B136+1),"--") -> DB-x | C137: =IF(B137<>"--",IF(HAOption="Yes",IF(TotNumDBCopiesServer>=COUNT(B$121:B137),IF(TotNumDBCopiesServer<=COUNT(B$121:B137),IF(calcTotNumMBXPerSvr>TotalMBXPerSvr,TotMBXPerDAG-SUM(C$121:C136),MBXPerDB),MBXPerDB)),IF(RecNumDBs>=B137,IF(RecNumDBs<=B137,IF(calcTotNumMBXPerSvr>TotalMBXPerSvr,TotalMBXPerSvr-SUM(C$121:C136),MBXPerDB),MBXPerDB))),0) -> 200 | D137: 1063.476562 | E137: 1276.171875 | F137: 26.82421875 | H137: =IF(OR(LUNDesign="1/7",ValidationCheck=TRUE),"--",IF(TotNumDBCopiesServer>=17,"DB17","--")) -> DB17 | I137: 1788.266602 | J137: 0
B138: =IF(AND(TotNumDBCopiesServer>COUNTA(B$121:B137),ValidationCheck=FALSE),IF(HAOption="Yes","DB-x",B137+1),"--") -> DB-x | C138: =IF(B138<>"--",IF(HAOption="Yes",IF(TotNumDBCopiesServer>=COUNT(B$121:B138),IF(TotNumDBCopiesServer<=COUNT(B$121:B138),IF(calcTotNumMBXPerSvr>TotalMBXPerSvr,TotMBXPerDAG-SUM(C$121:C137),MBXPerDB),MBXPerDB)),IF(RecNumDBs>=B138,IF(RecNumDBs<=B138,IF(calcTotNumMBXPerSvr>TotalMBXPerSvr,TotalMBXPerSvr-SUM(C$121:C137),MBXPerDB),MBXPerDB))),0) -> 200 | D138: 1063.476562 | E138: 1276.171875 | F138: 26.82421875 | H138: =IF(OR(LUNDesign="1/7",ValidationCheck=TRUE),"--",IF(TotNumDBCopiesServer>=18,"DB18","--")) -> DB18 | I138: 1788.266602 | J138: 0
B139: =IF(AND(TotNumDBCopiesServer>COUNTA(B$121:B138),ValidationCheck=FALSE),IF(HAOption="Yes","DB-x",B138+1),"--") -> DB-x | C139: =IF(B139<>"--",IF(HAOption="Yes",IF(TotNumDBCopiesServer>=COUNT(B$121:B139),IF(TotNumDBCopiesServer<=COUNT(B$121:B139),IF(calcTotNumMBXPerSvr>TotalMBXPerSvr,TotMBXPerDAG-SUM(C$121:C138),MBXPerDB),MBXPerDB)),IF(RecNumDBs>=B139,IF(RecNumDBs<=B139,IF(calcTotNumMBXPerSvr>TotalMBXPerSvr,TotalMBXPerSvr-SUM(C$121:C138),MBXPerDB),MBXPerDB))),0) -> 200 | D139: 1063.476562 | E139: 1276.171875 | F139: 26.82421875 | H139: =IF(OR(LUNDesign="1/7",ValidationCheck=TRUE),"--",IF(TotNumDBCopiesServer>=19,"DB19","--")) -> DB19 | I139: 1788.266602 | J139: 0
B140: =IF(AND(TotNumDBCopiesServer>COUNTA(B$121:B139),ValidationCheck=FALSE),IF(HAOption="Yes","DB-x",B139+1),"--") -> DB-x | C140: =IF(B140<>"--",IF(HAOption="Yes",IF(TotNumDBCopiesServer>=COUNT(B$121:B140),IF(TotNumDBCopiesServer<=COUNT(B$121:B140),IF(calcTotNumMBXPerSvr>TotalMBXPerSvr,TotMBXPerDAG-SUM(C$121:C139),MBXPerDB),MBXPerDB)),IF(RecNumDBs>=B140,IF(RecNumDBs<=B140,IF(calcTotNumMBXPerSvr>TotalMBXPerSvr,TotalMBXPerSvr-SUM(C$121:C139),MBXPerDB),MBXPerDB))),0) -> 200 | D140: 1063.476562 | E140: 1276.171875 | F140: 26.82421875 | H140: =IF(OR(LUNDesign="1/7",ValidationCheck=TRUE),"--",IF(TotNumDBCopiesServer>=20,"DB20","--")) -> DB20 | I140: 1788.266602 | J140: 0
B141: =IF(AND(TotNumDBCopiesServer>COUNTA(B$121:B140),ValidationCheck=FALSE),IF(HAOption="Yes","DB-x",B140+1),"--") -> DB-x | C141: =IF(B141<>"--",IF(HAOption="Yes",IF(TotNumDBCopiesServer>=COUNT(B$121:B141),IF(TotNumDBCopiesServer<=COUNT(B$121:B141),IF(calcTotNumMBXPerSvr>TotalMBXPerSvr,TotMBXPerDAG-SUM(C$121:C140),MBXPerDB),MBXPerDB)),IF(RecNumDBs>=B141,IF(RecNumDBs<=B141,IF(calcTotNumMBXPerSvr>TotalMBXPerSvr,TotalMBXPerSvr-SUM(C$121:C140),MBXPerDB),MBXPerDB))),0) -> 200 | D141: 1063.476562 | E141: 1276.171875 | F141: 26.82421875 | H141: =IF(OR(LUNDesign="1/7",ValidationCheck=TRUE),"--",IF(TotNumDBCopiesServer>=21,"DB21","--")) -> DB21 | I141: 1788.266602 | J141: 0
B142: =IF(AND(TotNumDBCopiesServer>COUNTA(B$121:B141),ValidationCheck=FALSE),IF(HAOption="Yes","DB-x",B141+1),"--") -> DB-x | C142: =IF(B142<>"--",IF(HAOption="Yes",IF(TotNumDBCopiesServer>=COUNT(B$121:B142),IF(TotNumDBCopiesServer<=COUNT(B$121:B142),IF(calcTotNumMBXPerSvr>TotalMBXPerSvr,TotMBXPerDAG-SUM(C$121:C141),MBXPerDB),MBXPerDB)),IF(RecNumDBs>=B142,IF(RecNumDBs<=B142,IF(calcTotNumMBXPerSvr>TotalMBXPerSvr,TotalMBXPerSvr-SUM(C$121:C141),MBXPerDB),MBXPerDB))),0) -> 200 | D142: 1063.476562 | E142: 1276.171875 | F142: 26.82421875 | H142: =IF(OR(LUNDesign="1/7",ValidationCheck=TRUE),"--",IF(TotNumDBCopiesServer>=22,"DB22","--")) -> DB22 | I142: 1788.266602 | J142: 0
B143: =IF(AND(TotNumDBCopiesServer>COUNTA(B$121:B142),ValidationCheck=FALSE),IF(HAOption="Yes","DB-x",B142+1),"--") -> DB-x | C143: =IF(B143<>"--",IF(HAOption="Yes",IF(TotNumDBCopiesServer>=COUNT(B$121:B143),IF(TotNumDBCopiesServer<=COUNT(B$121:B143),IF(calcTotNumMBXPerSvr>TotalMBXPerSvr,TotMBXPerDAG-SUM(C$121:C142),MBXPerDB),MBXPerDB)),IF(RecNumDBs>=B143,IF(RecNumDBs<=B143,IF(calcTotNumMBXPerSvr>TotalMBXPerSvr,TotalMBXPerSvr-SUM(C$121:C142),MBXPerDB),MBXPerDB))),0) -> 200 | D143: 1063.476562 | E143: 1276.171875 | F143: 26.82421875 | H143: =IF(OR(LUNDesign="1/7",ValidationCheck=TRUE),"--",IF(TotNumDBCopiesServer>=23,"DB23","--")) -> DB23 | I143: 1788.266602 | J143: 0
B144: =IF(AND(TotNumDBCopiesServer>COUNTA(B$121:B143),ValidationCheck=FALSE),IF(HAOption="Yes","DB-x",B143+1),"--") -> DB-x | C144: =IF(B144<>"--",IF(HAOption="Yes",IF(TotNumDBCopiesServer>=COUNT(B$121:B144),IF(TotNumDBCopiesServer<=COUNT(B$121:B144),IF(calcTotNumMBXPerSvr>TotalMBXPerSvr,TotMBXPerDAG-SUM(C$121:C143),MBXPerDB),MBXPerDB)),IF(RecNumDBs>=B144,IF(RecNumDBs<=B144,IF(calcTotNumMBXPerSvr>TotalMBXPerSvr,TotalMBXPerSvr-SUM(C$121:C143),MBXPerDB),MBXPerDB))),0) -> 200 | D144: 1063.476562 | E144: 1276.171875 | F144: 26.82421875 | H144: =IF(OR(LUNDesign="1/7",ValidationCheck=TRUE),"--",IF(TotNumDBCopiesServer>=24,"DB24","--")) -> DB24 | I144: 1788.266602 | J144: 0
B145: =IF(AND(TotNumDBCopiesServer>COUNTA(B$121:B144),ValidationCheck=FALSE),IF(HAOption="Yes","DB-x",B144+1),"--") -> DB-x | C145: =IF(B145<>"--",IF(HAOption="Yes",IF(TotNumDBCopiesServer>=COUNT(B$121:B145),IF(TotNumDBCopiesServer<=COUNT(B$121:B145),IF(calcTotNumMBXPerSvr>TotalMBXPerSvr,TotMBXPerDAG-SUM(C$121:C144),MBXPerDB),MBXPerDB)),IF(RecNumDBs>=B145,IF(RecNumDBs<=B145,IF(calcTotNumMBXPerSvr>TotalMBXPerSvr,TotalMBXPerSvr-SUM(C$121:C144),MBXPerDB),MBXPerDB))),0) -> 200 | D145: 1063.476562 | E145: 1276.171875 | F145: 26.82421875 | H145: =IF(OR(LUNDesign="1/7",ValidationCheck=TRUE),"--",IF(TotNumDBCopiesServer>=25,"DB25","--")) -> DB25 | I145: 1788.266602 | J145: 0
B146: =IF(AND(TotNumDBCopiesServer>COUNTA(B$121:B145),ValidationCheck=FALSE),IF(HAOption="Yes","DB-x",B145+1),"--") -> DB-x | C146: =IF(B146<>"--",IF(HAOption="Yes",IF(TotNumDBCopiesServer>=COUNT(B$121:B146),IF(TotNumDBCopiesServer<=COUNT(B$121:B146),IF(calcTotNumMBXPerSvr>TotalMBXPerSvr,TotMBXPerDAG-SUM(C$121:C145),MBXPerDB),MBXPerDB)),IF(RecNumDBs>=B146,IF(RecNumDBs<=B146,IF(calcTotNumMBXPerSvr>TotalMBXPerSvr,TotalMBXPerSvr-SUM(C$121:C145),MBXPerDB),MBXPerDB))),0) -> 200 | D146: 1063.476562 | E146: 1276.171875 | F146: 26.82421875 | H146: =IF(OR(LUNDesign="1/7",ValidationCheck=TRUE),"--",IF(TotNumDBCopiesServer>=26,"DB26","--")) -> DB26 | I146: 1788.266602 | J146: 0
B147: =IF(AND(TotNumDBCopiesServer>COUNTA(B$121:B146),ValidationCheck=FALSE),IF(HAOption="Yes","DB-x",B146+1),"--") -> DB-x | C147: =IF(B147<>"--",IF(HAOption="Yes",IF(TotNumDBCopiesServer>=COUNT(B$121:B147),IF(TotNumDBCopiesServer<=COUNT(B$121:B147),IF(calcTotNumMBXPerSvr>TotalMBXPerSvr,TotMBXPerDAG-SUM(C$121:C146),MBXPerDB),MBXPerDB)),IF(RecNumDBs>=B147,IF(RecNumDBs<=B147,IF(calcTotNumMBXPerSvr>TotalMBXPerSvr,TotalMBXPerSvr-SUM(C$121:C146),MBXPerDB),MBXPerDB))),0) -> 200 | D147: 1063.476562 | E147: 1276.171875 | F147: 26.82421875 | H147: =IF(OR(LUNDesign="1/7",ValidationCheck=TRUE),"--",IF(TotNumDBCopiesServer>=27,"DB27","--")) -> DB27 | I147: 1788.266602 | J147: 0
B148: =IF(AND(TotNumDBCopiesServer>COUNTA(B$121:B147),ValidationCheck=FALSE),IF(HAOption="Yes","DB-x",B147+1),"--") -> DB-x | C148: =IF(B148<>"--",IF(HAOption="Yes",IF(TotNumDBCopiesServer>=COUNT(B$121:B148),IF(TotNumDBCopiesServer<=COUNT(B$121:B148),IF(calcTotNumMBXPerSvr>TotalMBXPerSvr,TotMBXPerDAG-SUM(C$121:C147),MBXPerDB),MBXPerDB)),IF(RecNumDBs>=B148,IF(RecNumDBs<=B148,IF(calcTotNumMBXPerSvr>TotalMBXPerSvr,TotalMBXPerSvr-SUM(C$121:C147),MBXPerDB),MBXPerDB))),0) -> 200 | D148: 1063.476562 | E148: 1276.171875 | F148: 26.82421875 | H148: =IF(OR(LUNDesign="1/7",ValidationCheck=TRUE),"--",IF(TotNumDBCopiesServer>=28,"DB28","--")) -> DB28 | I148: 1788.266602 | J148: 0
B149: =IF(AND(TotNumDBCopiesServer>COUNTA(B$121:B148),ValidationCheck=FALSE),IF(HAOption="Yes","DB-x",B148+1),"--") -> DB-x | C149: =IF(B149<>"--",IF(HAOption="Yes",IF(TotNumDBCopiesServer>=COUNT(B$121:B149),IF(TotNumDBCopiesServer<=COUNT(B$121:B149),IF(calcTotNumMBXPerSvr>TotalMBXPerSvr,TotMBXPerDAG-SUM(C$121:C148),MBXPerDB),MBXPerDB)),IF(RecNumDBs>=B149,IF(RecNumDBs<=B149,IF(calcTotNumMBXPerSvr>TotalMBXPerSvr,TotalMBXPerSvr-SUM(C$121:C148),MBXPerDB),MBXPerDB))),0) -> 200 | D149: 1063.476562 | E149: 1276.171875 | F149: 26.82421875 | H149: =IF(OR(LUNDesign="1/7",ValidationCheck=TRUE),"--",IF(TotNumDBCopiesServer>=29,"DB29","--")) -> DB29 | I149: 1788.266602 | J149: 0
B150: =IF(AND(TotNumDBCopiesServer>COUNTA(B$121:B149),ValidationCheck=FALSE),IF(HAOption="Yes","DB-x",B149+1),"--") -> DB-x | C150: =IF(B150<>"--",IF(HAOption="Yes",IF(TotNumDBCopiesServer>=COUNT(B$121:B150),IF(TotNumDBCopiesServer<=COUNT(B$121:B150),IF(calcTotNumMBXPerSvr>TotalMBXPerSvr,TotMBXPerDAG-SUM(C$121:C149),MBXPerDB),MBXPerDB)),IF(RecNumDBs>=B150,IF(RecNumDBs<=B150,IF(calcTotNumMBXPerSvr>TotalMBXPerSvr,TotalMBXPerSvr-SUM(C$121:C149),MBXPerDB),MBXPerDB))),0) -> 200 | D150: 1063.476562 | E150: 1276.171875 | F150: 26.82421875 | H150: =IF(OR(LUNDesign="1/7",ValidationCheck=TRUE),"--",IF(TotNumDBCopiesServer>=30,"DB30","--")) -> DB30 | I150: 1788.266602 | J150: 0
B151: =IF(AND(TotNumDBCopiesServer>COUNTA(B$121:B150),ValidationCheck=FALSE),IF(HAOption="Yes","DB-x",B150+1),"--") -> DB-x | C151: =IF(B151<>"--",IF(HAOption="Yes",IF(TotNumDBCopiesServer>=COUNT(B$121:B151),IF(TotNumDBCopiesServer<=COUNT(B$121:B151),IF(calcTotNumMBXPerSvr>TotalMBXPerSvr,TotMBXPerDAG-SUM(C$121:C150),MBXPerDB),MBXPerDB)),IF(RecNumDBs>=B151,IF(RecNumDBs<=B151,IF(calcTotNumMBXPerSvr>TotalMBXPerSvr,TotalMBXPerSvr-SUM(C$121:C150),MBXPerDB),MBXPerDB))),0) -> 200 | D151: 1063.476562 | E151: 1276.171875 | F151: 26.82421875 | H151: =IF(OR(LUNDesign="1/7",ValidationCheck=TRUE),"--",IF(TotNumDBCopiesServer>=31,"DB31","--")) -> DB31 | I151: 1788.266602 | J151: 0
B152: =IF(AND(TotNumDBCopiesServer>COUNTA(B$121:B151),ValidationCheck=FALSE),IF(HAOption="Yes","DB-x",B151+1),"--") -> DB-x | C152: =IF(B152<>"--",IF(HAOption="Yes",IF(TotNumDBCopiesServer>=COUNT(B$121:B152),IF(TotNumDBCopiesServer<=COUNT(B$121:B152),IF(calcTotNumMBXPerSvr>TotalMBXPerSvr,TotMBXPerDAG-SUM(C$121:C151),MBXPerDB),MBXPerDB)),IF(RecNumDBs>=B152,IF(RecNumDBs<=B152,IF(calcTotNumMBXPerSvr>TotalMBXPerSvr,TotalMBXPerSvr-SUM(C$121:C151),MBXPerDB),MBXPerDB))),0) -> 200 | D152: 1063.476562 | E152: 1276.171875 | F152: 26.82421875 | H152: =IF(OR(LUNDesign="1/7",ValidationCheck=TRUE),"--",IF(TotNumDBCopiesServer>=32,"DB32","--")) -> DB32 | I152: 1788.266602 | J152: 0
B153: =IF(AND(TotNumDBCopiesServer>COUNTA(B$121:B152),ValidationCheck=FALSE),IF(HAOption="Yes","DB-x",B152+1),"--") -> DB-x | C153: =IF(B153<>"--",IF(HAOption="Yes",IF(TotNumDBCopiesServer>=COUNT(B$121:B153),IF(TotNumDBCopiesServer<=COUNT(B$121:B153),IF(calcTotNumMBXPerSvr>TotalMBXPerSvr,TotMBXPerDAG-SUM(C$121:C152),MBXPerDB),MBXPerDB)),IF(RecNumDBs>=B153,IF(RecNumDBs<=B153,IF(calcTotNumMBXPerSvr>TotalMBXPerSvr,TotalMBXPerSvr-SUM(C$121:C152),MBXPerDB),MBXPerDB))),0) -> 200 | D153: 1063.476562 | E153: 1276.171875 | F153: 26.82421875 | H153: =IF(OR(LUNDesign="1/7",ValidationCheck=TRUE),"--",IF(TotNumDBCopiesServer>=33,"DB33","--")) -> DB33 | I153: =IF(H153="--",0,(SUMIF(C$6:C$105,D38,E$121:E$220)+IF(RestoreLUN="Yes",0,(SUMIF(C$6:C$105,D38,E$121:E$220)*1.1))+IF(ContentIndexing="Enabled",SUMIF(C$6:C$105,D38,E$121:E$220)*CIFactor)+IF(LUNArchitecture="1 LUN / DB",SUMIF(C$6:C$105,D38,F$121:F$220),0))/(1-LUNGrowth)) -> 1788.266602 | J153: =IF(LUNArchitecture<>"1 LUN / DB",IF(H153="--",0,SUMIF(C$6:C$105,D38,F$121:F$220)/(1-LUNGrowth)),0) -> 0
B154: =IF(AND(TotNumDBCopiesServer>COUNTA(B$121:B153),ValidationCheck=FALSE),IF(HAOption="Yes","DB-x",B153+1),"--") -> DB-x | C154: =IF(B154<>"--",IF(HAOption="Yes",IF(TotNumDBCopiesServer>=COUNT(B$121:B154),IF(TotNumDBCopiesServer<=COUNT(B$121:B154),IF(calcTotNumMBXPerSvr>TotalMBXPerSvr,TotMBXPerDAG-SUM(C$121:C153),MBXPerDB),MBXPerDB)),IF(RecNumDBs>=B154,IF(RecNumDBs<=B154,IF(calcTotNumMBXPerSvr>TotalMBXPerSvr,TotalMBXPerSvr-SUM(C$121:C153),MBXPerDB),MBXPerDB))),0) -> 200 | D154: =IF(C154=0,0,(C154*((Tier1MBXRatio*Tier1MBXSize)+(Tier3MBXRatio*Tier3MBXSize)+(Tier2MBXRatio*Tier2MBXSize)+(Tier4MBXRatio*Tier4MBXSize)))/1024) -> 1063.476562 | E154: =IF(B154<>"--",D154*(1+DataGrowth),0) -> 1276.171875 | F154: =IF(B154="--",0,TotLogDiskSpace/RecNumDBs) -> 26.82421875 | H154: =IF(OR(LUNDesign="1/7",ValidationCheck=TRUE),"--",IF(TotNumDBCopiesServer>=34,"DB34","--")) -> DB34 | I154: 1788.266602 | J154: 0
B155: =IF(AND(TotNumDBCopiesServer>COUNTA(B$121:B154),ValidationCheck=FALSE),IF(HAOption="Yes","DB-x",B154+1),"--") -> DB-x | C155: =IF(B155<>"--",IF(HAOption="Yes",IF(TotNumDBCopiesServer>=COUNT(B$121:B155),IF(TotNumDBCopiesServer<=COUNT(B$121:B155),IF(calcTotNumMBXPerSvr>TotalMBXPerSvr,TotMBXPerDAG-SUM(C$121:C154),MBXPerDB),MBXPerDB)),IF(RecNumDBs>=B155,IF(RecNumDBs<=B155,IF(calcTotNumMBXPerSvr>TotalMBXPerSvr,TotalMBXPerSvr-SUM(C$121:C154),MBXPerDB),MBXPerDB))),0) -> 200 | D155: 1063.476562 | E155: 1276.171875 | F155: 26.82421875 | H155: =IF(OR(LUNDesign="1/7",ValidationCheck=TRUE),"--",IF(TotNumDBCopiesServer>=35,"DB35","--")) -> DB35 | I155: 1788.266602 | J155: 0
B156: =IF(AND(TotNumDBCopiesServer>COUNTA(B$121:B155),ValidationCheck=FALSE),IF(HAOption="Yes","DB-x",B155+1),"--") -> DB-x | C156: =IF(B156<>"--",IF(HAOption="Yes",IF(TotNumDBCopiesServer>=COUNT(B$121:B156),IF(TotNumDBCopiesServer<=COUNT(B$121:B156),IF(calcTotNumMBXPerSvr>TotalMBXPerSvr,TotMBXPerDAG-SUM(C$121:C155),MBXPerDB),MBXPerDB)),IF(RecNumDBs>=B156,IF(RecNumDBs<=B156,IF(calcTotNumMBXPerSvr>TotalMBXPerSvr,TotalMBXPerSvr-SUM(C$121:C155),MBXPerDB),MBXPerDB))),0) -> 200 | D156: 1063.476562 | E156: 1276.171875 | F156: 26.82421875 | H156: =IF(OR(LUNDesign="1/7",ValidationCheck=TRUE),"--",IF(TotNumDBCopiesServer>=36,"DB36","--")) -> DB36 | I156: 1788.266602 | J156: 0
B157: =IF(AND(TotNumDBCopiesServer>COUNTA(B$121:B156),ValidationCheck=FALSE),IF(HAOption="Yes","DB-x",B156+1),"--") -> DB-x | C157: =IF(B157<>"--",IF(HAOption="Yes",IF(TotNumDBCopiesServer>=COUNT(B$121:B157),IF(TotNumDBCopiesServer<=COUNT(B$121:B157),IF(calcTotNumMBXPerSvr>TotalMBXPerSvr,TotMBXPerDAG-SUM(C$121:C156),MBXPerDB),MBXPerDB)),IF(RecNumDBs>=B157,IF(RecNumDBs<=B157,IF(calcTotNumMBXPerSvr>TotalMBXPerSvr,TotalMBXPerSvr-SUM(C$121:C156),MBXPerDB),MBXPerDB))),0) -> 200 | D157: 1063.476562 | E157: 1276.171875 | F157: 26.82421875 | H157: =IF(OR(LUNDesign="1/7",ValidationCheck=TRUE),"--",IF(TotNumDBCopiesServer>=37,"DB37","--")) -> DB37 | I157: 1788.266602 | J157: 0
B158: =IF(AND(TotNumDBCopiesServer>COUNTA(B$121:B157),ValidationCheck=FALSE),IF(HAOption="Yes","DB-x",B157+1),"--") -> DB-x | C158: =IF(B158<>"--",IF(HAOption="Yes",IF(TotNumDBCopiesServer>=COUNT(B$121:B158),IF(TotNumDBCopiesServer<=COUNT(B$121:B158),IF(calcTotNumMBXPerSvr>TotalMBXPerSvr,TotMBXPerDAG-SUM(C$121:C157),MBXPerDB),MBXPerDB)),IF(RecNumDBs>=B158,IF(RecNumDBs<=B158,IF(calcTotNumMBXPerSvr>TotalMBXPerSvr,TotalMBXPerSvr-SUM(C$121:C157),MBXPerDB),MBXPerDB))),0) -> 200 | D158: 1063.476562 | E158: 1276.171875 | F158: 26.82421875 | H158: =IF(OR(LUNDesign="1/7",ValidationCheck=TRUE),"--",IF(TotNumDBCopiesServer>=38,"DB38","--")) -> DB38 | I158: 1788.266602 | J158: 0
B159: =IF(AND(TotNumDBCopiesServer>COUNTA(B$121:B158),ValidationCheck=FALSE),IF(HAOption="Yes","DB-x",B158+1),"--") -> DB-x | C159: =IF(B159<>"--",IF(HAOption="Yes",IF(TotNumDBCopiesServer>=COUNT(B$121:B159),IF(TotNumDBCopiesServer<=COUNT(B$121:B159),IF(calcTotNumMBXPerSvr>TotalMBXPerSvr,TotMBXPerDAG-SUM(C$121:C158),MBXPerDB),MBXPerDB)),IF(RecNumDBs>=B159,IF(RecNumDBs<=B159,IF(calcTotNumMBXPerSvr>TotalMBXPerSvr,TotalMBXPerSvr-SUM(C$121:C158),MBXPerDB),MBXPerDB))),0) -> 200 | D159: 1063.476562 | E159: 1276.171875 | F159: 26.82421875 | H159: =IF(OR(LUNDesign="1/7",ValidationCheck=TRUE),"--",IF(TotNumDBCopiesServer>=39,"DB39","--")) -> DB39 | I159: 1788.266602 | J159: 0
B160: =IF(AND(TotNumDBCopiesServer>COUNTA(B$121:B159),ValidationCheck=FALSE),IF(HAOption="Yes","DB-x",B159+1),"--") -> DB-x | C160: =IF(B160<>"--",IF(HAOption="Yes",IF(TotNumDBCopiesServer>=COUNT(B$121:B160),IF(TotNumDBCopiesServer<=COUNT(B$121:B160),IF(calcTotNumMBXPerSvr>TotalMBXPerSvr,TotMBXPerDAG-SUM(C$121:C159),MBXPerDB),MBXPerDB)),IF(RecNumDBs>=B160,IF(RecNumDBs<=B160,IF(calcTotNumMBXPerSvr>TotalMBXPerSvr,TotalMBXPerSvr-SUM(C$121:C159),MBXPerDB),MBXPerDB))),0) -> 200 | D160: 1063.476562 | E160: 1276.171875 | F160: 26.82421875 | H160: =IF(OR(LUNDesign="1/7",ValidationCheck=TRUE),"--",IF(TotNumDBCopiesServer>=40,"DB40","--")) -> DB40 | I160: 1788.266602 | J160: 0
B161: =IF(AND(TotNumDBCopiesServer>COUNTA(B$121:B160),ValidationCheck=FALSE),IF(HAOption="Yes","DB-x",B160+1),"--") -> DB-x | C161: =IF(B161<>"--",IF(HAOption="Yes",IF(TotNumDBCopiesServer>=COUNT(B$121:B161),IF(TotNumDBCopiesServer<=COUNT(B$121:B161),IF(calcTotNumMBXPerSvr>TotalMBXPerSvr,TotMBXPerDAG-SUM(C$121:C160),MBXPerDB),MBXPerDB)),IF(RecNumDBs>=B161,IF(RecNumDBs<=B161,IF(calcTotNumMBXPerSvr>TotalMBXPerSvr,TotalMBXPerSvr-SUM(C$121:C160),MBXPerDB),MBXPerDB))),0) -> 200 | D161: 1063.476562 | E161: 1276.171875 | F161: 26.82421875 | H161: =IF(OR(LUNDesign="1/7",ValidationCheck=TRUE),"--",IF(TotNumDBCopiesServer>=41,"DB41","--")) -> DB41 | I161: 1788.266602 | J161: 0
B162: =IF(AND(TotNumDBCopiesServer>COUNTA(B$121:B161),ValidationCheck=FALSE),IF(HAOption="Yes","DB-x",B161+1),"--") -> DB-x | C162: =IF(B162<>"--",IF(HAOption="Yes",IF(TotNumDBCopiesServer>=COUNT(B$121:B162),IF(TotNumDBCopiesServer<=COUNT(B$121:B162),IF(calcTotNumMBXPerSvr>TotalMBXPerSvr,TotMBXPerDAG-SUM(C$121:C161),MBXPerDB),MBXPerDB)),IF(RecNumDBs>=B162,IF(RecNumDBs<=B162,IF(calcTotNumMBXPerSvr>TotalMBXPerSvr,TotalMBXPerSvr-SUM(C$121:C161),MBXPerDB),MBXPerDB))),0) -> 200 | D162: 1063.476562 | E162: 1276.171875 | F162: 26.82421875 | H162: =IF(OR(LUNDesign="1/7",ValidationCheck=TRUE),"--",IF(TotNumDBCopiesServer>=42,"DB42","--")) -> DB42 | I162: 1788.266602 | J162: 0
B163: =IF(AND(TotNumDBCopiesServer>COUNTA(B$121:B162),ValidationCheck=FALSE),IF(HAOption="Yes","DB-x",B162+1),"--") -> DB-x | C163: =IF(B163<>"--",IF(HAOption="Yes",IF(TotNumDBCopiesServer>=COUNT(B$121:B163),IF(TotNumDBCopiesServer<=COUNT(B$121:B163),IF(calcTotNumMBXPerSvr>TotalMBXPerSvr,TotMBXPerDAG-SUM(C$121:C162),MBXPerDB),MBXPerDB)),IF(RecNumDBs>=B163,IF(RecNumDBs<=B163,IF(calcTotNumMBXPerSvr>TotalMBXPerSvr,TotalMBXPerSvr-SUM(C$121:C162),MBXPerDB),MBXPerDB))),0) -> 200 | D163: 1063.476562 | E163: 1276.171875 | F163: 26.82421875 | H163: =IF(OR(LUNDesign="1/7",ValidationCheck=TRUE),"--",IF(TotNumDBCopiesServer>=43,"DB43","--")) -> DB43 | I163: 1788.266602 | J163: 0
B164: =IF(AND(TotNumDBCopiesServer>COUNTA(B$121:B163),ValidationCheck=FALSE),IF(HAOption="Yes","DB-x",B163+1),"--") -> DB-x | C164: =IF(B164<>"--",IF(HAOption="Yes",IF(TotNumDBCopiesServer>=COUNT(B$121:B164),IF(TotNumDBCopiesServer<=COUNT(B$121:B164),IF(calcTotNumMBXPerSvr>TotalMBXPerSvr,TotMBXPerDAG-SUM(C$121:C163),MBXPerDB),MBXPerDB)),IF(RecNumDBs>=B164,IF(RecNumDBs<=B164,IF(calcTotNumMBXPerSvr>TotalMBXPerSvr,TotalMBXPerSvr-SUM(C$121:C163),MBXPerDB),MBXPerDB))),0) -> 200 | D164: 1063.476562 | E164: 1276.171875 | F164: 26.82421875 | H164: =IF(OR(LUNDesign="1/7",ValidationCheck=TRUE),"--",IF(TotNumDBCopiesServer>=44,"DB44","--")) -> DB44 | I164: 1788.266602 | J164: 0
B165: =IF(AND(TotNumDBCopiesServer>COUNTA(B$121:B164),ValidationCheck=FALSE),IF(HAOption="Yes","DB-x",B164+1),"--") -> DB-x | C165: =IF(B165<>"--",IF(HAOption="Yes",IF(TotNumDBCopiesServer>=COUNT(B$121:B165),IF(TotNumDBCopiesServer<=COUNT(B$121:B165),IF(calcTotNumMBXPerSvr>TotalMBXPerSvr,TotMBXPerDAG-SUM(C$121:C164),MBXPerDB),MBXPerDB)),IF(RecNumDBs>=B165,IF(RecNumDBs<=B165,IF(calcTotNumMBXPerSvr>TotalMBXPerSvr,TotalMBXPerSvr-SUM(C$121:C164),MBXPerDB),MBXPerDB))),0) -> 200 | D165: 1063.476562 | E165: 1276.171875 | F165: 26.82421875 | H165: =IF(OR(LUNDesign="1/7",ValidationCheck=TRUE),"--",IF(TotNumDBCopiesServer>=45,"DB45","--")) -> DB45 | I165: 1788.266602 | J165: 0
B166: =IF(AND(TotNumDBCopiesServer>COUNTA(B$121:B165),ValidationCheck=FALSE),IF(HAOption="Yes","DB-x",B165+1),"--") -> DB-x | C166: =IF(B166<>"--",IF(HAOption="Yes",IF(TotNumDBCopiesServer>=COUNT(B$121:B166),IF(TotNumDBCopiesServer<=COUNT(B$121:B166),IF(calcTotNumMBXPerSvr>TotalMBXPerSvr,TotMBXPerDAG-SUM(C$121:C165),MBXPerDB),MBXPerDB)),IF(RecNumDBs>=B166,IF(RecNumDBs<=B166,IF(calcTotNumMBXPerSvr>TotalMBXPerSvr,TotalMBXPerSvr-SUM(C$121:C165),MBXPerDB),MBXPerDB))),0) -> 200 | D166: 1063.476562 | E166: 1276.171875 | F166: 26.82421875 | H166: =IF(OR(LUNDesign="1/7",ValidationCheck=TRUE),"--",IF(TotNumDBCopiesServer>=46,"DB46","--")) -> DB46 | I166: 1788.266602 | J166: 0
B167: =IF(AND(TotNumDBCopiesServer>COUNTA(B$121:B166),ValidationCheck=FALSE),IF(HAOption="Yes","DB-x",B166+1),"--") -> DB-x | C167: =IF(B167<>"--",IF(HAOption="Yes",IF(TotNumDBCopiesServer>=COUNT(B$121:B167),IF(TotNumDBCopiesServer<=COUNT(B$121:B167),IF(calcTotNumMBXPerSvr>TotalMBXPerSvr,TotMBXPerDAG-SUM(C$121:C166),MBXPerDB),MBXPerDB)),IF(RecNumDBs>=B167,IF(RecNumDBs<=B167,IF(calcTotNumMBXPerSvr>TotalMBXPerSvr,TotalMBXPerSvr-SUM(C$121:C166),MBXPerDB),MBXPerDB))),0) -> 200 | D167: 1063.476562 | E167: 1276.171875 | F167: 26.82421875 | H167: =IF(OR(LUNDesign="1/7",ValidationCheck=TRUE),"--",IF(TotNumDBCopiesServer>=47,"DB47","--")) -> DB47 | I167: 1788.266602 | J167: 0
B168: =IF(AND(TotNumDBCopiesServer>COUNTA(B$121:B167),ValidationCheck=FALSE),IF(HAOption="Yes","DB-x",B167+1),"--") -> DB-x | C168: =IF(B168<>"--",IF(HAOption="Yes",IF(TotNumDBCopiesServer>=COUNT(B$121:B168),IF(TotNumDBCopiesServer<=COUNT(B$121:B168),IF(calcTotNumMBXPerSvr>TotalMBXPerSvr,TotMBXPerDAG-SUM(C$121:C167),MBXPerDB),MBXPerDB)),IF(RecNumDBs>=B168,IF(RecNumDBs<=B168,IF(calcTotNumMBXPerSvr>TotalMBXPerSvr,TotalMBXPerSvr-SUM(C$121:C167),MBXPerDB),MBXPerDB))),0) -> 200 | D168: 1063.476562 | E168: 1276.171875 | F168: 26.82421875 | H168: =IF(OR(LUNDesign="1/7",ValidationCheck=TRUE),"--",IF(TotNumDBCopiesServer>=48,"DB48","--")) -> DB48 | I168: 1788.266602 | J168: 0
B169: =IF(AND(TotNumDBCopiesServer>COUNTA(B$121:B168),ValidationCheck=FALSE),IF(HAOption="Yes","DB-x",B168+1),"--") -> DB-x | C169: =IF(B169<>"--",IF(HAOption="Yes",IF(TotNumDBCopiesServer>=COUNT(B$121:B169),IF(TotNumDBCopiesServer<=COUNT(B$121:B169),IF(calcTotNumMBXPerSvr>TotalMBXPerSvr,TotMBXPerDAG-SUM(C$121:C168),MBXPerDB),MBXPerDB)),IF(RecNumDBs>=B169,IF(RecNumDBs<=B169,IF(calcTotNumMBXPerSvr>TotalMBXPerSvr,TotalMBXPerSvr-SUM(C$121:C168),MBXPerDB),MBXPerDB))),0) -> 200 | D169: 1063.476562 | E169: 1276.171875 | F169: 26.82421875 | H169: =IF(OR(LUNDesign="1/7",ValidationCheck=TRUE),"--",IF(TotNumDBCopiesServer>=49,"DB49","--")) -> DB49 | I169: 1788.266602 | J169: 0
B170: =IF(AND(TotNumDBCopiesServer>COUNTA(B$121:B169),ValidationCheck=FALSE),IF(HAOption="Yes","DB-x",B169+1),"--") -> DB-x | C170: =IF(B170<>"--",IF(HAOption="Yes",IF(TotNumDBCopiesServer>=COUNT(B$121:B170),IF(TotNumDBCopiesServer<=COUNT(B$121:B170),IF(calcTotNumMBXPerSvr>TotalMBXPerSvr,TotMBXPerDAG-SUM(C$121:C169),MBXPerDB),MBXPerDB)),IF(RecNumDBs>=B170,IF(RecNumDBs<=B170,IF(calcTotNumMBXPerSvr>TotalMBXPerSvr,TotalMBXPerSvr-SUM(C$121:C169),MBXPerDB),MBXPerDB))),0) -> 200 | D170: 1063.476562 | E170: 1276.171875 | F170: 26.82421875 | H170: =IF(OR(LUNDesign="1/7",ValidationCheck=TRUE),"--",IF(TotNumDBCopiesServer>=50,"DB50","--")) -> DB50 | I170: 1788.266602 | J170: 0
B171: =IF(AND(TotNumDBCopiesServer>COUNTA(B$121:B170),ValidationCheck=FALSE),IF(HAOption="Yes","DB-x",B170+1),"--") -> DB-x | C171: =IF(B171<>"--",IF(HAOption="Yes",IF(TotNumDBCopiesServer>=COUNT(B$121:B171),IF(TotNumDBCopiesServer<=COUNT(B$121:B171),IF(calcTotNumMBXPerSvr>TotalMBXPerSvr,TotMBXPerDAG-SUM(C$121:C170),MBXPerDB),MBXPerDB)),IF(RecNumDBs>=B171,IF(RecNumDBs<=B171,IF(calcTotNumMBXPerSvr>TotalMBXPerSvr,TotalMBXPerSvr-SUM(C$121:C170),MBXPerDB),MBXPerDB))),0) -> 200 | D171: 1063.476562 | E171: 1276.171875 | F171: 26.82421875 | H171: =IF(OR(LUNDesign="1/7",ValidationCheck=TRUE),"--",IF(TotNumDBCopiesServer>=51,"DB51","--")) -> DB51 | I171: 1788.266602 | J171: 0
B172: =IF(AND(TotNumDBCopiesServer>COUNTA(B$121:B171),ValidationCheck=FALSE),IF(HAOption="Yes","DB-x",B171+1),"--") -> DB-x | C172: =IF(B172<>"--",IF(HAOption="Yes",IF(TotNumDBCopiesServer>=COUNT(B$121:B172),IF(TotNumDBCopiesServer<=COUNT(B$121:B172),IF(calcTotNumMBXPerSvr>TotalMBXPerSvr,TotMBXPerDAG-SUM(C$121:C171),MBXPerDB),MBXPerDB)),IF(RecNumDBs>=B172,IF(RecNumDBs<=B172,IF(calcTotNumMBXPerSvr>TotalMBXPerSvr,TotalMBXPerSvr-SUM(C$121:C171),MBXPerDB),MBXPerDB))),0) -> 200 | D172: 1063.476562 | E172: 1276.171875 | F172: 26.82421875 | H172: =IF(OR(LUNDesign="1/7",ValidationCheck=TRUE),"--",IF(TotNumDBCopiesServer>=52,"DB52","--")) -> DB52 | I172: 1788.266602 | J172: 0
B173: =IF(AND(TotNumDBCopiesServer>COUNTA(B$121:B172),ValidationCheck=FALSE),IF(HAOption="Yes","DB-x",B172+1),"--") -> DB-x | C173: =IF(B173<>"--",IF(HAOption="Yes",IF(TotNumDBCopiesServer>=COUNT(B$121:B173),IF(TotNumDBCopiesServer<=COUNT(B$121:B173),IF(calcTotNumMBXPerSvr>TotalMBXPerSvr,TotMBXPerDAG-SUM(C$121:C172),MBXPerDB),MBXPerDB)),IF(RecNumDBs>=B173,IF(RecNumDBs<=B173,IF(calcTotNumMBXPerSvr>TotalMBXPerSvr,TotalMBXPerSvr-SUM(C$121:C172),MBXPerDB),MBXPerDB))),0) -> 200 | D173: 1063.476562 | E173: 1276.171875 | F173: 26.82421875 | H173: =IF(OR(LUNDesign="1/7",ValidationCheck=TRUE),"--",IF(TotNumDBCopiesServer>=53,"DB53","--")) -> DB53 | I173: 1788.266602 | J173: 0
B174: =IF(AND(TotNumDBCopiesServer>COUNTA(B$121:B173),ValidationCheck=FALSE),IF(HAOption="Yes","DB-x",B173+1),"--") -> DB-x | C174: =IF(B174<>"--",IF(HAOption="Yes",IF(TotNumDBCopiesServer>=COUNT(B$121:B174),IF(TotNumDBCopiesServer<=COUNT(B$121:B174),IF(calcTotNumMBXPerSvr>TotalMBXPerSvr,TotMBXPerDAG-SUM(C$121:C173),MBXPerDB),MBXPerDB)),IF(RecNumDBs>=B174,IF(RecNumDBs<=B174,IF(calcTotNumMBXPerSvr>TotalMBXPerSvr,TotalMBXPerSvr-SUM(C$121:C173),MBXPerDB),MBXPerDB))),0) -> 200 | D174: 1063.476562 | E174: 1276.171875 | F174: 26.82421875 | H174: =IF(OR(LUNDesign="1/7",ValidationCheck=TRUE),"--",IF(TotNumDBCopiesServer>=54,"DB54","--")) -> DB54 | I174: 1788.266602 | J174: 0
B175: =IF(AND(TotNumDBCopiesServer>COUNTA(B$121:B174),ValidationCheck=FALSE),IF(HAOption="Yes","DB-x",B174+1),"--") -> DB-x | C175: =IF(B175<>"--",IF(HAOption="Yes",IF(TotNumDBCopiesServer>=COUNT(B$121:B175),IF(TotNumDBCopiesServer<=COUNT(B$121:B175),IF(calcTotNumMBXPerSvr>TotalMBXPerSvr,TotMBXPerDAG-SUM(C$121:C174),MBXPerDB),MBXPerDB)),IF(RecNumDBs>=B175,IF(RecNumDBs<=B175,IF(calcTotNumMBXPerSvr>TotalMBXPerSvr,TotalMBXPerSvr-SUM(C$121:C174),MBXPerDB),MBXPerDB))),0) -> 200 | D175: 1063.476562 | E175: 1276.171875 | F175: 26.82421875 | H175: =IF(OR(LUNDesign="1/7",ValidationCheck=TRUE),"--",IF(TotNumDBCopiesServer>=55,"DB55","--")) -> DB55 | I175: 1788.266602 | J175: 0
B176: =IF(AND(TotNumDBCopiesServer>COUNTA(B$121:B175),ValidationCheck=FALSE),IF(HAOption="Yes","DB-x",B175+1),"--") -> DB-x | C176: =IF(B176<>"--",IF(HAOption="Yes",IF(TotNumDBCopiesServer>=COUNT(B$121:B176),IF(TotNumDBCopiesServer<=COUNT(B$121:B176),IF(calcTotNumMBXPerSvr>TotalMBXPerSvr,TotMBXPerDAG-SUM(C$121:C175),MBXPerDB),MBXPerDB)),IF(RecNumDBs>=B176,IF(RecNumDBs<=B176,IF(calcTotNumMBXPerSvr>TotalMBXPerSvr,TotalMBXPerSvr-SUM(C$121:C175),MBXPerDB),MBXPerDB))),0) -> 200 | D176: 1063.476562 | E176: 1276.171875 | F176: 26.82421875 | H176: =IF(OR(LUNDesign="1/7",ValidationCheck=TRUE),"--",IF(TotNumDBCopiesServer>=56,"DB56","--")) -> DB56 | I176: 1788.266602 | J176: 0
B177: =IF(AND(TotNumDBCopiesServer>COUNTA(B$121:B176),ValidationCheck=FALSE),IF(HAOption="Yes","DB-x",B176+1),"--") -> DB-x | C177: =IF(B177<>"--",IF(HAOption="Yes",IF(TotNumDBCopiesServer>=COUNT(B$121:B177),IF(TotNumDBCopiesServer<=COUNT(B$121:B177),IF(calcTotNumMBXPerSvr>TotalMBXPerSvr,TotMBXPerDAG-SUM(C$121:C176),MBXPerDB),MBXPerDB)),IF(RecNumDBs>=B177,IF(RecNumDBs<=B177,IF(calcTotNumMBXPerSvr>TotalMBXPerSvr,TotalMBXPerSvr-SUM(C$121:C176),MBXPerDB),MBXPerDB))),0) -> 200 | D177: 1063.476562 | E177: 1276.171875 | F177: 26.82421875 | H177: =IF(OR(LUNDesign="1/7",ValidationCheck=TRUE),"--",IF(TotNumDBCopiesServer>=57,"DB57","--")) -> DB57 | I177: 1788.266602 | J177: 0
B178: =IF(AND(TotNumDBCopiesServer>COUNTA(B$121:B177),ValidationCheck=FALSE),IF(HAOption="Yes","DB-x",B177+1),"--") -> DB-x | C178: =IF(B178<>"--",IF(HAOption="Yes",IF(TotNumDBCopiesServer>=COUNT(B$121:B178),IF(TotNumDBCopiesServer<=COUNT(B$121:B178),IF(calcTotNumMBXPerSvr>TotalMBXPerSvr,TotMBXPerDAG-SUM(C$121:C177),MBXPerDB),MBXPerDB)),IF(RecNumDBs>=B178,IF(RecNumDBs<=B178,IF(calcTotNumMBXPerSvr>TotalMBXPerSvr,TotalMBXPerSvr-SUM(C$121:C177),MBXPerDB),MBXPerDB))),0) -> 200 | D178: 1063.476562 | E178: 1276.171875 | F178: 26.82421875 | H178: =IF(OR(LUNDesign="1/7",ValidationCheck=TRUE),"--",IF(TotNumDBCopiesServer>=58,"DB58","--")) -> DB58 | I178: 1788.266602 | J178: 0
B179: =IF(AND(TotNumDBCopiesServer>COUNTA(B$121:B178),ValidationCheck=FALSE),IF(HAOption="Yes","DB-x",B178+1),"--") -> DB-x | C179: =IF(B179<>"--",IF(HAOption="Yes",IF(TotNumDBCopiesServer>=COUNT(B$121:B179),IF(TotNumDBCopiesServer<=COUNT(B$121:B179),IF(calcTotNumMBXPerSvr>TotalMBXPerSvr,TotMBXPerDAG-SUM(C$121:C178),MBXPerDB),MBXPerDB)),IF(RecNumDBs>=B179,IF(RecNumDBs<=B179,IF(calcTotNumMBXPerSvr>TotalMBXPerSvr,TotalMBXPerSvr-SUM(C$121:C178),MBXPerDB),MBXPerDB))),0) -> 200 | D179: 1063.476562 | E179: 1276.171875 | F179: 26.82421875 | H179: =IF(OR(LUNDesign="1/7",ValidationCheck=TRUE),"--",IF(TotNumDBCopiesServer>=59,"DB59","--")) -> DB59 | I179: 1788.266602 | J179: 0
B180: =IF(AND(TotNumDBCopiesServer>COUNTA(B$121:B179),ValidationCheck=FALSE),IF(HAOption="Yes","DB-x",B179+1),"--") -> DB-x | C180: =IF(B180<>"--",IF(HAOption="Yes",IF(TotNumDBCopiesServer>=COUNT(B$121:B180),IF(TotNumDBCopiesServer<=COUNT(B$121:B180),IF(calcTotNumMBXPerSvr>TotalMBXPerSvr,TotMBXPerDAG-SUM(C$121:C179),MBXPerDB),MBXPerDB)),IF(RecNumDBs>=B180,IF(RecNumDBs<=B180,IF(calcTotNumMBXPerSvr>TotalMBXPerSvr,TotalMBXPerSvr-SUM(C$121:C179),MBXPerDB),MBXPerDB))),0) -> 200 | D180: 1063.476562 | E180: 1276.171875 | F180: 26.82421875 | H180: =IF(OR(LUNDesign="1/7",ValidationCheck=TRUE),"--",IF(TotNumDBCopiesServer>=60,"DB60","--")) -> DB60 | I180: 1788.266602 | J180: 0
B181: =IF(AND(TotNumDBCopiesServer>COUNTA(B$121:B180),ValidationCheck=FALSE),IF(HAOption="Yes","DB-x",B180+1),"--") -> DB-x | C181: =IF(B181<>"--",IF(HAOption="Yes",IF(TotNumDBCopiesServer>=COUNT(B$121:B181),IF(TotNumDBCopiesServer<=COUNT(B$121:B181),IF(calcTotNumMBXPerSvr>TotalMBXPerSvr,TotMBXPerDAG-SUM(C$121:C180),MBXPerDB),MBXPerDB)),IF(RecNumDBs>=B181,IF(RecNumDBs<=B181,IF(calcTotNumMBXPerSvr>TotalMBXPerSvr,TotalMBXPerSvr-SUM(C$121:C180),MBXPerDB),MBXPerDB))),0) -> 200 | D181: 1063.476562 | E181: 1276.171875 | F181: 26.82421875 | H181: =IF(OR(LUNDesign="1/7",ValidationCheck=TRUE),"--",IF(TotNumDBCopiesServer>=61,"DB61","--")) -> DB61 | I181: 1788.266602 | J181: 0
B182: =IF(AND(TotNumDBCopiesServer>COUNTA(B$121:B181),ValidationCheck=FALSE),IF(HAOption="Yes","DB-x",B181+1),"--") -> DB-x | C182: =IF(B182<>"--",IF(HAOption="Yes",IF(TotNumDBCopiesServer>=COUNT(B$121:B182),IF(TotNumDBCopiesServer<=COUNT(B$121:B182),IF(calcTotNumMBXPerSvr>TotalMBXPerSvr,TotMBXPerDAG-SUM(C$121:C181),MBXPerDB),MBXPerDB)),IF(RecNumDBs>=B182,IF(RecNumDBs<=B182,IF(calcTotNumMBXPerSvr>TotalMBXPerSvr,TotalMBXPerSvr-SUM(C$121:C181),MBXPerDB),MBXPerDB))),0) -> 200 | D182: 1063.476562 | E182: 1276.171875 | F182: 26.82421875 | H182: =IF(OR(LUNDesign="1/7",ValidationCheck=TRUE),"--",IF(TotNumDBCopiesServer>=62,"DB62","--")) -> DB62 | I182: 1788.266602 | J182: 0
B183: =IF(AND(TotNumDBCopiesServer>COUNTA(B$121:B182),ValidationCheck=FALSE),IF(HAOption="Yes","DB-x",B182+1),"--") -> DB-x | C183: =IF(B183<>"--",IF(HAOption="Yes",IF(TotNumDBCopiesServer>=COUNT(B$121:B183),IF(TotNumDBCopiesServer<=COUNT(B$121:B183),IF(calcTotNumMBXPerSvr>TotalMBXPerSvr,TotMBXPerDAG-SUM(C$121:C182),MBXPerDB),MBXPerDB)),IF(RecNumDBs>=B183,IF(RecNumDBs<=B183,IF(calcTotNumMBXPerSvr>TotalMBXPerSvr,TotalMBXPerSvr-SUM(C$121:C182),MBXPerDB),MBXPerDB))),0) -> 200 | D183: 1063.476562 | E183: 1276.171875 | F183: 26.82421875 | H183: =IF(OR(LUNDesign="1/7",ValidationCheck=TRUE),"--",IF(TotNumDBCopiesServer>=63,"DB63","--")) -> DB63 | I183: 1788.266602 | J183: 0
B184: =IF(AND(TotNumDBCopiesServer>COUNTA(B$121:B183),ValidationCheck=FALSE),IF(HAOption="Yes","DB-x",B183+1),"--") -> DB-x | C184: =IF(B184<>"--",IF(HAOption="Yes",IF(TotNumDBCopiesServer>=COUNT(B$121:B184),IF(TotNumDBCopiesServer<=COUNT(B$121:B184),IF(calcTotNumMBXPerSvr>TotalMBXPerSvr,TotMBXPerDAG-SUM(C$121:C183),MBXPerDB),MBXPerDB)),IF(RecNumDBs>=B184,IF(RecNumDBs<=B184,IF(calcTotNumMBXPerSvr>TotalMBXPerSvr,TotalMBXPerSvr-SUM(C$121:C183),MBXPerDB),MBXPerDB))),0) -> 200 | D184: 1063.476562 | E184: 1276.171875 | F184: 26.82421875 | H184: =IF(OR(LUNDesign="1/7",ValidationCheck=TRUE),"--",IF(TotNumDBCopiesServer>=64,"DB64","--")) -> DB64 | I184: 1788.266602 | J184: 0
B185: =IF(AND(TotNumDBCopiesServer>COUNTA(B$121:B184),ValidationCheck=FALSE),IF(HAOption="Yes","DB-x",B184+1),"--") -> DB-x | C185: =IF(B185<>"--",IF(HAOption="Yes",IF(TotNumDBCopiesServer>=COUNT(B$121:B185),IF(TotNumDBCopiesServer<=COUNT(B$121:B185),IF(calcTotNumMBXPerSvr>TotalMBXPerSvr,TotMBXPerDAG-SUM(C$121:C184),MBXPerDB),MBXPerDB)),IF(RecNumDBs>=B185,IF(RecNumDBs<=B185,IF(calcTotNumMBXPerSvr>TotalMBXPerSvr,TotalMBXPerSvr-SUM(C$121:C184),MBXPerDB),MBXPerDB))),0) -> 200 | D185: 1063.476562 | E185: 1276.171875 | F185: 26.82421875 | H185: =IF(OR(LUNDesign="1/7",ValidationCheck=TRUE),"--",IF(TotNumDBCopiesServer>=65,"DB65","--")) -> DB65 | I185: =IF(H185="--",0,(SUMIF(C$6:C$105,D70,E$121:E$220)+IF(RestoreLUN="Yes",0,(SUMIF(C$6:C$105,D70,E$121:E$220)*1.1))+IF(ContentIndexing="Enabled",SUMIF(C$6:C$105,D70,E$121:E$220)*CIFactor)+IF(LUNArchitecture="1 LUN / DB",SUMIF(C$6:C$105,D70,F$121:F$220),0))/(1-LUNGrowth)) -> 1788.266602 | J185: =IF(LUNArchitecture<>"1 LUN / DB",IF(H185="--",0,SUMIF(C$6:C$105,D70,F$121:F$220)/(1-LUNGrowth)),0) -> 0
B186: =IF(AND(TotNumDBCopiesServer>COUNTA(B$121:B185),ValidationCheck=FALSE),IF(HAOption="Yes","DB-x",B185+1),"--") -> DB-x | C186: =IF(B186<>"--",IF(HAOption="Yes",IF(TotNumDBCopiesServer>=COUNT(B$121:B186),IF(TotNumDBCopiesServer<=COUNT(B$121:B186),IF(calcTotNumMBXPerSvr>TotalMBXPerSvr,TotMBXPerDAG-SUM(C$121:C185),MBXPerDB),MBXPerDB)),IF(RecNumDBs>=B186,IF(RecNumDBs<=B186,IF(calcTotNumMBXPerSvr>TotalMBXPerSvr,TotalMBXPerSvr-SUM(C$121:C185),MBXPerDB),MBXPerDB))),0) -> 200 | D186: =IF(C186=0,0,(C186*((Tier1MBXRatio*Tier1MBXSize)+(Tier3MBXRatio*Tier3MBXSize)+(Tier2MBXRatio*Tier2MBXSize)+(Tier4MBXRatio*Tier4MBXSize)))/1024) -> 1063.476562 | E186: =IF(B186<>"--",D186*(1+DataGrowth),0) -> 1276.171875 | F186: =IF(B186="--",0,TotLogDiskSpace/RecNumDBs) -> 26.82421875 | H186: =IF(OR(LUNDesign="1/7",ValidationCheck=TRUE),"--",IF(TotNumDBCopiesServer>=66,"DB66","--")) -> DB66 | I186: 1788.266602 | J186: 0
B187: =IF(AND(TotNumDBCopiesServer>COUNTA(B$121:B186),ValidationCheck=FALSE),IF(HAOption="Yes","DB-x",B186+1),"--") -> DB-x | C187: =IF(B187<>"--",IF(HAOption="Yes",IF(TotNumDBCopiesServer>=COUNT(B$121:B187),IF(TotNumDBCopiesServer<=COUNT(B$121:B187),IF(calcTotNumMBXPerSvr>TotalMBXPerSvr,TotMBXPerDAG-SUM(C$121:C186),MBXPerDB),MBXPerDB)),IF(RecNumDBs>=B187,IF(RecNumDBs<=B187,IF(calcTotNumMBXPerSvr>TotalMBXPerSvr,TotalMBXPerSvr-SUM(C$121:C186),MBXPerDB),MBXPerDB))),0) -> 200 | D187: 1063.476562 | E187: 1276.171875 | F187: 26.82421875 | H187: =IF(OR(LUNDesign="1/7",ValidationCheck=TRUE),"--",IF(TotNumDBCopiesServer>=67,"DB67","--")) -> DB67 | I187: 1788.266602 | J187: 0
B188: =IF(AND(TotNumDBCopiesServer>COUNTA(B$121:B187),ValidationCheck=FALSE),IF(HAOption="Yes","DB-x",B187+1),"--") -> DB-x | C188: =IF(B188<>"--",IF(HAOption="Yes",IF(TotNumDBCopiesServer>=COUNT(B$121:B188),IF(TotNumDBCopiesServer<=COUNT(B$121:B188),IF(calcTotNumMBXPerSvr>TotalMBXPerSvr,TotMBXPerDAG-SUM(C$121:C187),MBXPerDB),MBXPerDB)),IF(RecNumDBs>=B188,IF(RecNumDBs<=B188,IF(calcTotNumMBXPerSvr>TotalMBXPerSvr,TotalMBXPerSvr-SUM(C$121:C187),MBXPerDB),MBXPerDB))),0) -> 200 | D188: 1063.476562 | E188: 1276.171875 | F188: 26.82421875 | H188: =IF(OR(LUNDesign="1/7",ValidationCheck=TRUE),"--",IF(TotNumDBCopiesServer>=68,"DB68","--")) -> DB68 | I188: 1788.266602 | J188: 0
B189: =IF(AND(TotNumDBCopiesServer>COUNTA(B$121:B188),ValidationCheck=FALSE),IF(HAOption="Yes","DB-x",B188+1),"--") -> DB-x | C189: =IF(B189<>"--",IF(HAOption="Yes",IF(TotNumDBCopiesServer>=COUNT(B$121:B189),IF(TotNumDBCopiesServer<=COUNT(B$121:B189),IF(calcTotNumMBXPerSvr>TotalMBXPerSvr,TotMBXPerDAG-SUM(C$121:C188),MBXPerDB),MBXPerDB)),IF(RecNumDBs>=B189,IF(RecNumDBs<=B189,IF(calcTotNumMBXPerSvr>TotalMBXPerSvr,TotalMBXPerSvr-SUM(C$121:C188),MBXPerDB),MBXPerDB))),0) -> 200 | D189: 1063.476562 | E189: 1276.171875 | F189: 26.82421875 | H189: =IF(OR(LUNDesign="1/7",ValidationCheck=TRUE),"--",IF(TotNumDBCopiesServer>=69,"DB69","--")) -> DB69 | I189: 1788.266602 | J189: 0
B190: =IF(AND(TotNumDBCopiesServer>COUNTA(B$121:B189),ValidationCheck=FALSE),IF(HAOption="Yes","DB-x",B189+1),"--") -> DB-x | C190: =IF(B190<>"--",IF(HAOption="Yes",IF(TotNumDBCopiesServer>=COUNT(B$121:B190),IF(TotNumDBCopiesServer<=COUNT(B$121:B190),IF(calcTotNumMBXPerSvr>TotalMBXPerSvr,TotMBXPerDAG-SUM(C$121:C189),MBXPerDB),MBXPerDB)),IF(RecNumDBs>=B190,IF(RecNumDBs<=B190,IF(calcTotNumMBXPerSvr>TotalMBXPerSvr,TotalMBXPerSvr-SUM(C$121:C189),MBXPerDB),MBXPerDB))),0) -> 200 | D190: 1063.476562 | E190: 1276.171875 | F190: 26.82421875 | H190: =IF(OR(LUNDesign="1/7",ValidationCheck=TRUE),"--",IF(TotNumDBCopiesServer>=70,"DB70","--")) -> DB70 | I190: 1788.266602 | J190: 0
B191: =IF(AND(TotNumDBCopiesServer>COUNTA(B$121:B190),ValidationCheck=FALSE),IF(HAOption="Yes","DB-x",B190+1),"--") -> DB-x | C191: =IF(B191<>"--",IF(HAOption="Yes",IF(TotNumDBCopiesServer>=COUNT(B$121:B191),IF(TotNumDBCopiesServer<=COUNT(B$121:B191),IF(calcTotNumMBXPerSvr>TotalMBXPerSvr,TotMBXPerDAG-SUM(C$121:C190),MBXPerDB),MBXPerDB)),IF(RecNumDBs>=B191,IF(RecNumDBs<=B191,IF(calcTotNumMBXPerSvr>TotalMBXPerSvr,TotalMBXPerSvr-SUM(C$121:C190),MBXPerDB),MBXPerDB))),0) -> 200 | D191: 1063.476562 | E191: 1276.171875 | F191: 26.82421875 | H191: =IF(OR(LUNDesign="1/7",ValidationCheck=TRUE),"--",IF(TotNumDBCopiesServer>=71,"DB71","--")) -> DB71 | I191: 1788.266602 | J191: 0
B192: =IF(AND(TotNumDBCopiesServer>COUNTA(B$121:B191),ValidationCheck=FALSE),IF(HAOption="Yes","DB-x",B191+1),"--") -> DB-x | C192: =IF(B192<>"--",IF(HAOption="Yes",IF(TotNumDBCopiesServer>=COUNT(B$121:B192),IF(TotNumDBCopiesServer<=COUNT(B$121:B192),IF(calcTotNumMBXPerSvr>TotalMBXPerSvr,TotMBXPerDAG-SUM(C$121:C191),MBXPerDB),MBXPerDB)),IF(RecNumDBs>=B192,IF(RecNumDBs<=B192,IF(calcTotNumMBXPerSvr>TotalMBXPerSvr,TotalMBXPerSvr-SUM(C$121:C191),MBXPerDB),MBXPerDB))),0) -> 200 | D192: 1063.476562 | E192: 1276.171875 | F192: 26.82421875 | H192: =IF(OR(LUNDesign="1/7",ValidationCheck=TRUE),"--",IF(TotNumDBCopiesServer>=72,"DB72","--")) -> DB72 | I192: 1788.266602 | J192: 0
B193: =IF(AND(TotNumDBCopiesServer>COUNTA(B$121:B192),ValidationCheck=FALSE),IF(HAOption="Yes","DB-x",B192+1),"--") -> DB-x | C193: =IF(B193<>"--",IF(HAOption="Yes",IF(TotNumDBCopiesServer>=COUNT(B$121:B193),IF(TotNumDBCopiesServer<=COUNT(B$121:B193),IF(calcTotNumMBXPerSvr>TotalMBXPerSvr,TotMBXPerDAG-SUM(C$121:C192),MBXPerDB),MBXPerDB)),IF(RecNumDBs>=B193,IF(RecNumDBs<=B193,IF(calcTotNumMBXPerSvr>TotalMBXPerSvr,TotalMBXPerSvr-SUM(C$121:C192),MBXPerDB),MBXPerDB))),0) -> 200 | D193: 1063.476562 | E193: 1276.171875 | F193: 26.82421875 | H193: =IF(OR(LUNDesign="1/7",ValidationCheck=TRUE),"--",IF(TotNumDBCopiesServer>=73,"DB73","--")) -> DB73 | I193: 1788.266602 | J193: 0
B194: =IF(AND(TotNumDBCopiesServer>COUNTA(B$121:B193),ValidationCheck=FALSE),IF(HAOption="Yes","DB-x",B193+1),"--") -> DB-x | C194: =IF(B194<>"--",IF(HAOption="Yes",IF(TotNumDBCopiesServer>=COUNT(B$121:B194),IF(TotNumDBCopiesServer<=COUNT(B$121:B194),IF(calcTotNumMBXPerSvr>TotalMBXPerSvr,TotMBXPerDAG-SUM(C$121:C193),MBXPerDB),MBXPerDB)),IF(RecNumDBs>=B194,IF(RecNumDBs<=B194,IF(calcTotNumMBXPerSvr>TotalMBXPerSvr,TotalMBXPerSvr-SUM(C$121:C193),MBXPerDB),MBXPerDB))),0) -> 200 | D194: 1063.476562 | E194: 1276.171875 | F194: 26.82421875 | H194: =IF(OR(LUNDesign="1/7",ValidationCheck=TRUE),"--",IF(TotNumDBCopiesServer>=74,"DB74","--")) -> DB74 | I194: 1788.266602 | J194: 0
B195: =IF(AND(TotNumDBCopiesServer>COUNTA(B$121:B194),ValidationCheck=FALSE),IF(HAOption="Yes","DB-x",B194+1),"--") -> DB-x | C195: =IF(B195<>"--",IF(HAOption="Yes",IF(TotNumDBCopiesServer>=COUNT(B$121:B195),IF(TotNumDBCopiesServer<=COUNT(B$121:B195),IF(calcTotNumMBXPerSvr>TotalMBXPerSvr,TotMBXPerDAG-SUM(C$121:C194),MBXPerDB),MBXPerDB)),IF(RecNumDBs>=B195,IF(RecNumDBs<=B195,IF(calcTotNumMBXPerSvr>TotalMBXPerSvr,TotalMBXPerSvr-SUM(C$121:C194),MBXPerDB),MBXPerDB))),0) -> 200 | D195: 1063.476562 | E195: 1276.171875 | F195: 26.82421875 | H195: =IF(OR(LUNDesign="1/7",ValidationCheck=TRUE),"--",IF(TotNumDBCopiesServer>=75,"DB75","--")) -> DB75 | I195: 1788.266602 | J195: 0
B196: =IF(AND(TotNumDBCopiesServer>COUNTA(B$121:B195),ValidationCheck=FALSE),IF(HAOption="Yes","DB-x",B195+1),"--") -> DB-x | C196: =IF(B196<>"--",IF(HAOption="Yes",IF(TotNumDBCopiesServer>=COUNT(B$121:B196),IF(TotNumDBCopiesServer<=COUNT(B$121:B196),IF(calcTotNumMBXPerSvr>TotalMBXPerSvr,TotMBXPerDAG-SUM(C$121:C195),MBXPerDB),MBXPerDB)),IF(RecNumDBs>=B196,IF(RecNumDBs<=B196,IF(calcTotNumMBXPerSvr>TotalMBXPerSvr,TotalMBXPerSvr-SUM(C$121:C195),MBXPerDB),MBXPerDB))),0) -> 200 | D196: 1063.476562 | E196: 1276.171875 | F196: 26.82421875 | H196: =IF(OR(LUNDesign="1/7",ValidationCheck=TRUE),"--",IF(TotNumDBCopiesServer>=76,"DB76","--")) -> DB76 | I196: 1788.266602 | J196: 0
B197: =IF(AND(TotNumDBCopiesServer>COUNTA(B$121:B196),ValidationCheck=FALSE),IF(HAOption="Yes","DB-x",B196+1),"--") -> DB-x | C197: =IF(B197<>"--",IF(HAOption="Yes",IF(TotNumDBCopiesServer>=COUNT(B$121:B197),IF(TotNumDBCopiesServer<=COUNT(B$121:B197),IF(calcTotNumMBXPerSvr>TotalMBXPerSvr,TotMBXPerDAG-SUM(C$121:C196),MBXPerDB),MBXPerDB)),IF(RecNumDBs>=B197,IF(RecNumDBs<=B197,IF(calcTotNumMBXPerSvr>TotalMBXPerSvr,TotalMBXPerSvr-SUM(C$121:C196),MBXPerDB),MBXPerDB))),0) -> 200 | D197: 1063.476562 | E197: 1276.171875 | F197: 26.82421875 | H197: =IF(OR(LUNDesign="1/7",ValidationCheck=TRUE),"--",IF(TotNumDBCopiesServer>=77,"DB77","--")) -> DB77 | I197: 1788.266602 | J197: 0
B198: =IF(AND(TotNumDBCopiesServer>COUNTA(B$121:B197),ValidationCheck=FALSE),IF(HAOption="Yes","DB-x",B197+1),"--") -> DB-x | C198: =IF(B198<>"--",IF(HAOption="Yes",IF(TotNumDBCopiesServer>=COUNT(B$121:B198),IF(TotNumDBCopiesServer<=COUNT(B$121:B198),IF(calcTotNumMBXPerSvr>TotalMBXPerSvr,TotMBXPerDAG-SUM(C$121:C197),MBXPerDB),MBXPerDB)),IF(RecNumDBs>=B198,IF(RecNumDBs<=B198,IF(calcTotNumMBXPerSvr>TotalMBXPerSvr,TotalMBXPerSvr-SUM(C$121:C197),MBXPerDB),MBXPerDB))),0) -> 200 | D198: 1063.476562 | E198: 1276.171875 | F198: 26.82421875 | H198: =IF(OR(LUNDesign="1/7",ValidationCheck=TRUE),"--",IF(TotNumDBCopiesServer>=78,"DB78","--")) -> DB78 | I198: 1788.266602 | J198: 0
B199: =IF(AND(TotNumDBCopiesServer>COUNTA(B$121:B198),ValidationCheck=FALSE),IF(HAOption="Yes","DB-x",B198+1),"--") -> DB-x | C199: =IF(B199<>"--",IF(HAOption="Yes",IF(TotNumDBCopiesServer>=COUNT(B$121:B199),IF(TotNumDBCopiesServer<=COUNT(B$121:B199),IF(calcTotNumMBXPerSvr>TotalMBXPerSvr,TotMBXPerDAG-SUM(C$121:C198),MBXPerDB),MBXPerDB)),IF(RecNumDBs>=B199,IF(RecNumDBs<=B199,IF(calcTotNumMBXPerSvr>TotalMBXPerSvr,TotalMBXPerSvr-SUM(C$121:C198),MBXPerDB),MBXPerDB))),0) -> 200 | D199: 1063.476562 | E199: 1276.171875 | F199: 26.82421875 | H199: =IF(OR(LUNDesign="1/7",ValidationCheck=TRUE),"--",IF(TotNumDBCopiesServer>=79,"DB79","--")) -> DB79 | I199: 1788.266602 | J199: 0
B200: =IF(AND(TotNumDBCopiesServer>COUNTA(B$121:B199),ValidationCheck=FALSE),IF(HAOption="Yes","DB-x",B199+1),"--") -> DB-x | C200: =IF(B200<>"--",IF(HAOption="Yes",IF(TotNumDBCopiesServer>=COUNT(B$121:B200),IF(TotNumDBCopiesServer<=COUNT(B$121:B200),IF(calcTotNumMBXPerSvr>TotalMBXPerSvr,TotMBXPerDAG-SUM(C$121:C199),MBXPerDB),MBXPerDB)),IF(RecNumDBs>=B200,IF(RecNumDBs<=B200,IF(calcTotNumMBXPerSvr>TotalMBXPerSvr,TotalMBXPerSvr-SUM(C$121:C199),MBXPerDB),MBXPerDB))),0) -> 200 | D200: 1063.476562 | E200: 1276.171875 | F200: 26.82421875 | H200: =IF(OR(LUNDesign="1/7",ValidationCheck=TRUE),"--",IF(TotNumDBCopiesServer>=80,"DB80","--")) -> DB80 | I200: 1788.266602 | J200: 0
B201: =IF(AND(TotNumDBCopiesServer>COUNTA(B$121:B200),ValidationCheck=FALSE),IF(HAOption="Yes","DB-x",B200+1),"--") -> -- | C201: =IF(B201<>"--",IF(HAOption="Yes",IF(TotNumDBCopiesServer>=COUNT(B$121:B201),IF(TotNumDBCopiesServer<=COUNT(B$121:B201),IF(calcTotNumMBXPerSvr>TotalMBXPerSvr,TotMBXPerDAG-SUM(C$121:C200),MBXPerDB),MBXPerDB)),IF(RecNumDBs>=B201,IF(RecNumDBs<=B201,IF(calcTotNumMBXPerSvr>TotalMBXPerSvr,TotalMBXPerSvr-SUM(C$121:C200),MBXPerDB),MBXPerDB))),0) -> 0 | D201: 0 | E201: 0 | F201: 0 | H201: =IF(OR(LUNDesign="1/7",ValidationCheck=TRUE),"--",IF(TotNumDBCopiesServer>=81,"DB81","--")) -> -- | I201: 0 | J201: 0
B202: =IF(AND(TotNumDBCopiesServer>COUNTA(B$121:B201),ValidationCheck=FALSE),IF(HAOption="Yes","DB-x",B201+1),"--") -> -- | C202: =IF(B202<>"--",IF(HAOption="Yes",IF(TotNumDBCopiesServer>=COUNT(B$121:B202),IF(TotNumDBCopiesServer<=COUNT(B$121:B202),IF(calcTotNumMBXPerSvr>TotalMBXPerSvr,TotMBXPerDAG-SUM(C$121:C201),MBXPerDB),MBXPerDB)),IF(RecNumDBs>=B202,IF(RecNumDBs<=B202,IF(calcTotNumMBXPerSvr>TotalMBXPerSvr,TotalMBXPerSvr-SUM(C$121:C201),MBXPerDB),MBXPerDB))),0) -> 0 | D202: 0 | E202: 0 | F202: 0 | H202: =IF(OR(LUNDesign="1/7",ValidationCheck=TRUE),"--",IF(TotNumDBCopiesServer>=82,"DB82","--")) -> -- | I202: 0 | J202: 0
B203: =IF(AND(TotNumDBCopiesServer>COUNTA(B$121:B202),ValidationCheck=FALSE),IF(HAOption="Yes","DB-x",B202+1),"--") -> -- | C203: =IF(B203<>"--",IF(HAOption="Yes",IF(TotNumDBCopiesServer>=COUNT(B$121:B203),IF(TotNumDBCopiesServer<=COUNT(B$121:B203),IF(calcTotNumMBXPerSvr>TotalMBXPerSvr,TotMBXPerDAG-SUM(C$121:C202),MBXPerDB),MBXPerDB)),IF(RecNumDBs>=B203,IF(RecNumDBs<=B203,IF(calcTotNumMBXPerSvr>TotalMBXPerSvr,TotalMBXPerSvr-SUM(C$121:C202),MBXPerDB),MBXPerDB))),0) -> 0 | D203: 0 | E203: 0 | F203: 0 | H203: =IF(OR(LUNDesign="1/7",ValidationCheck=TRUE),"--",IF(TotNumDBCopiesServer>=83,"DB83","--")) -> -- | I203: 0 | J203: 0
B204: =IF(AND(TotNumDBCopiesServer>COUNTA(B$121:B203),ValidationCheck=FALSE),IF(HAOption="Yes","DB-x",B203+1),"--") -> -- | C204: =IF(B204<>"--",IF(HAOption="Yes",IF(TotNumDBCopiesServer>=COUNT(B$121:B204),IF(TotNumDBCopiesServer<=COUNT(B$121:B204),IF(calcTotNumMBXPerSvr>TotalMBXPerSvr,TotMBXPerDAG-SUM(C$121:C203),MBXPerDB),MBXPerDB)),IF(RecNumDBs>=B204,IF(RecNumDBs<=B204,IF(calcTotNumMBXPerSvr>TotalMBXPerSvr,TotalMBXPerSvr-SUM(C$121:C203),MBXPerDB),MBXPerDB))),0) -> 0 | D204: 0 | E204: 0 | F204: 0 | H204: =IF(OR(LUNDesign="1/7",ValidationCheck=TRUE),"--",IF(TotNumDBCopiesServer>=84,"DB84","--")) -> -- | I204: 0 | J204: 0
B205: =IF(AND(TotNumDBCopiesServer>COUNTA(B$121:B204),ValidationCheck=FALSE),IF(HAOption="Yes","DB-x",B204+1),"--") -> -- | C205: =IF(B205<>"--",IF(HAOption="Yes",IF(TotNumDBCopiesServer>=COUNT(B$121:B205),IF(TotNumDBCopiesServer<=COUNT(B$121:B205),IF(calcTotNumMBXPerSvr>TotalMBXPerSvr,TotMBXPerDAG-SUM(C$121:C204),MBXPerDB),MBXPerDB)),IF(RecNumDBs>=B205,IF(RecNumDBs<=B205,IF(calcTotNumMBXPerSvr>TotalMBXPerSvr,TotalMBXPerSvr-SUM(C$121:C204),MBXPerDB),MBXPerDB))),0) -> 0 | D205: 0 | E205: 0 | F205: 0 | H205: =IF(OR(LUNDesign="1/7",ValidationCheck=TRUE),"--",IF(TotNumDBCopiesServer>=85,"DB85","--")) -> -- | I205: 0 | J205: 0
B206: =IF(AND(TotNumDBCopiesServer>COUNTA(B$121:B205),ValidationCheck=FALSE),IF(HAOption="Yes","DB-x",B205+1),"--") -> -- | C206: =IF(B206<>"--",IF(HAOption="Yes",IF(TotNumDBCopiesServer>=COUNT(B$121:B206),IF(TotNumDBCopiesServer<=COUNT(B$121:B206),IF(calcTotNumMBXPerSvr>TotalMBXPerSvr,TotMBXPerDAG-SUM(C$121:C205),MBXPerDB),MBXPerDB)),IF(RecNumDBs>=B206,IF(RecNumDBs<=B206,IF(calcTotNumMBXPerSvr>TotalMBXPerSvr,TotalMBXPerSvr-SUM(C$121:C205),MBXPerDB),MBXPerDB))),0) -> 0 | D206: 0 | E206: 0 | F206: 0 | H206: =IF(OR(LUNDesign="1/7",ValidationCheck=TRUE),"--",IF(TotNumDBCopiesServer>=86,"DB86","--")) -> -- | I206: 0 | J206: 0
... 17 more rows

Sheet Backup Requirements
B1: Note1: Do not make any changes to this sheet. This sheet is only used for calculation purposes.
B3: Backup Requirements Calculations Pane
B6: Backup Requirements Results Pane
B8: Backup Configuration | F8: Note: The below table identifies databases by a unique number. However, databases copies are distributed across the servers, and thus, these numbers hold no significance and are used solely as an example to show a server's LUN layout.
B9: Number of Databases / LUN | C9: =IF(ValidationCheck=FALSE,NumDBPerLUN,"--") -> 1
B10: Backup Methodology | C10: =BackupMethod -> Exchange Native Data Protection
B11: Backup Frequency | C11: =IF(BackupMethod="Exchange Native Data Protection","--",BackupFreq) -> --
B13: Backup Frequency Configuration / Server
B14: Database | C14: Monday | D14: Tuesday | E14: Wednesday | F14: Thursday | G14: Friday | H14: Saturday | I14: Sunday
B15: =IF(BackupMethod="Exchange Native Data Protection","--",1) -> -- | C15: =IF(B15="--","--",IF(BackupFreq="Daily Full","Full",IF(OR(IF(DBSet1="--",0,VALUE(IF(NumDBLUN=1,RIGHT(DBSet1,1),MID(DBSet1,IF(LEN(DBSet1)=7,LEN(DBSet1)-4,LEN(DBSet1)-6),1))))=B15,IF(DBSet2="--",0,VALUE(IF(NumDBLUN=1,RIGHT(DBSet2,1),IF(LEN(DBSet2)<9,MID(DBSet2,IF(LEN(DBSet2)=7,LEN(DBSet2)-4,LEN(DBSet2)-5),1),MID(DBSet2,LEN(DBSet2)-5,2)))))=B15,IF(DBSet3="--",0,VALUE(IF(NumDBLUN=1,RIGHT(DBSet3,1),IF(LEN(DBSet3)<9,MID(DBSet3,IF(LEN(DBSet3)=7,LEN(DBSet3)-4,LEN(DBSet3)-5),1),MID(DBSet3,LEN(DBSet3)-6,2)))))=B15,IF(DBSet4="--",0,VALUE(IF(NumDBLUN=1,RIGHT(DBSet4,1),IF(LEN(DBSet4)<9,MID(DBSet4,IF(LEN(DBSet4)=7,LEN(DBSet4)-4,LEN(DBSet4)-5),1),MID(DBSet4,LEN(DBSet4)-6,2)))))=B15,IF(DBSet5="--",0,VALUE(IF(NumDBLUN=1,RIGHT(DBSet5,1),IF(LEN(DBSet5)<9,MID(DBSet5,IF(LEN(DBSet5)=7,LEN(DBSet5)-4,LEN(DBSet5)-5),1),MID(DBSet5,LEN(DBSet5)-6,2)))))=B15,IF(DBSet6="--",0,VALUE(IF(NumDBLUN=1,RIGHT(DBSet6,1),IF(LEN(DBSet6)<9,MID(DBSet6,IF(LEN(DBSet6)=7,LEN(DBSet6)-4,LEN(DBSet6)-5),1),MID(DBSet6,LEN(DBSet6)-6,2)))))=B15,IF(DBSet7="--",0,VALUE(IF(NumDBLUN=1,RIGHT(DBSet7,1),IF(LEN(DBSet7)<9,MID(DBSet7,IF(LEN(DBSet7)=7,LEN(DBSet7)-4,LEN(DBSet7)-5),1),MID(DBSet7,LEN(DBSet7)-6,2)))))=B15,IF(DBSet8="--",0,VALUE(IF(NumDBLUN=1,RIGHT(DBSet8,1),IF(LEN(DBSet8)<9,MID(DBSet8,IF(LEN(DBSet8)=7,LEN(DBSet8)-4,LEN(DBSet8)-5),1),MID(DBSet8,LEN(DBSet8)-6,2)))))=B15,IF(DBSet9="--",0,VALUE(IF(NumDBLUN=1,RIGHT(DBSet9,1),IF(LEN(DBSet9)<9,MID(DBSet9,IF(LEN(DBSet9)=7,LEN(DBSet9)-4,LEN(DBSet9)-5),1),MID(DBSet9,LEN(DBSet9)-6,2)))))=B15,IF(DBSet10="--",0,VALUE(IF(NumDBLUN=1,RIGHT(DBSet10,2),IF(LEN(DBSet10)<9,MID(DBSet10,IF(LEN(DBSet10)=7,LEN(DBSet10)-4,LEN(DBSet10)-5),1),MID(DBSet10,LEN(DBSet10)-6,2)))))=B15,IF(DBSet11="--",0,VALUE(IF(NumDBLUN=1,RIGHT(DBSet11,2),IF(LEN(DBSet11)<9,MID(DBSet11,IF(LEN(DBSet11)=7,LEN(DBSet11)-4,LEN(DBSet11)-5),1),MID(DBSet11,LEN(DBSet11)-6,2)))))=B15,IF(DBSet12="--",0,VALUE(IF(NumDBLUN=1,RIGHT(DBSet12,2),IF(LEN(DBSet12)<9,MID(DBSet12,IF(LEN(DBSet12)=7,LEN(DBSet12)-4,LEN(DBSet12)-5),1),MID(DBSet12,LEN(DBSet12)-6,2)))))=B15,IF(DBSet13="--",0,VALUE(IF(NumDBLUN=1,RIGHT(DBSet13,2),IF(LEN(DBSet13)<9,MID(DBSet13,IF(LEN(DBSet13)=7,LEN(DBSet13)-4,LEN(DBSet13)-5),1),MID(DBSet13,LEN(DBSet13)-6,2)))))=B15,IF(DBSet14="--",0,VALUE(IF(NumDBLUN=1,RIGHT(DBSet14,2),IF(LEN(DBSet14)<9,MID(DBSet14,IF(LEN(DBSet14)=7,LEN(DBSet14)-4,LEN(DBSet14)-5),1),MID(DBSet14,LEN(DBSet14)-6,2)))))=B15,IF(DBSet15="--",0,VALUE(IF(NumDBLUN=1,RIGHT(DBSet15,2),IF(LEN(DBSet15)<9,MID(DBSet15,IF(LEN(DBSet15)=7,LEN(DBSet15)-4,LEN(DBSet15)-5),1),MID(DBSet15,LEN(DBSet15)-6,2)))))=B15)=TRUE,"Full",IF(BackupFreq="Weekly Full / Daily Incremental","Incremental","Differential")))) -> -- | D15: =IF($B15="--","--",IF(BackupFreq="Daily Full","Full",IF(BackupFreq="Weekly Full / Daily Incremental","Incremental","Differential"))) -> -- | E15: -- | F15: =IF($B15="--","--",IF(BackupFreq="Daily Full","Full",IF(BackupFreq="Weekly Full / Daily Incremental","Incremental","Differential"))) -> -- | G15: -- | H15: -- | I15: --
B16: =IF(BackupMethod="Exchange Native Data Protection","--",IF(TotNumDBCopiesServer>COUNTA(B$15:B15),B15+1,"--")) -> -- | C16: =IF(B16="--","--",IF(BackupFreq="Daily Full","Full",IF(AND(NumDBLUN=1,$C15="Full"),IF(BackupFreq="Weekly Full / Daily Incremental","Incremental","Differential"),IF(OR(IF(DBSet1="--",0,VALUE(IF(NumDBLUN=1,RIGHT(DBSet1,1),MID(DBSet1,IF(LEN(DBSet1)=7,LEN(DBSet1)-4,LEN(DBSet1)-6),1))))=B16,IF(DBSet2="--",0,VALUE(IF(NumDBLUN=1,RIGHT(DBSet2,1),IF(LEN(DBSet2)<9,MID(DBSet2,IF(LEN(DBSet2)=7,LEN(DBSet2)-4,LEN(DBSet2)-5),1),MID(DBSet2,LEN(DBSet2)-5,2)))))=B16,IF(DBSet3="--",0,VALUE(IF(NumDBLUN=1,RIGHT(DBSet3,1),IF(LEN(DBSet3)<9,MID(DBSet3,IF(LEN(DBSet3)=7,LEN(DBSet3)-4,LEN(DBSet3)-5),1),MID(DBSet3,LEN(DBSet3)-6,2)))))=B16,IF(DBSet4="--",0,VALUE(IF(NumDBLUN=1,RIGHT(DBSet4,1),IF(LEN(DBSet4)<9,MID(DBSet4,IF(LEN(DBSet4)=7,LEN(DBSet4)-4,LEN(DBSet4)-5),1),MID(DBSet4,LEN(DBSet4)-6,2)))))=B16,IF(DBSet5="--",0,VALUE(IF(NumDBLUN=1,RIGHT(DBSet5,1),IF(LEN(DBSet5)<9,MID(DBSet5,IF(LEN(DBSet5)=7,LEN(DBSet5)-4,LEN(DBSet5)-5),1),MID(DBSet5,LEN(DBSet5)-6,2)))))=B16,IF(DBSet6="--",0,VALUE(IF(NumDBLUN=1,RIGHT(DBSet6,1),IF(LEN(DBSet6)<9,MID(DBSet6,IF(LEN(DBSet6)=7,LEN(DBSet6)-4,LEN(DBSet6)-5),1),MID(DBSet6,LEN(DBSet6)-6,2)))))=B16,IF(DBSet7="--",0,VALUE(IF(NumDBLUN=1,RIGHT(DBSet7,1),IF(LEN(DBSet7)<9,MID(DBSet7,IF(LEN(DBSet7)=7,LEN(DBSet7)-4,LEN(DBSet7)-5),1),MID(DBSet7,LEN(DBSet7)-6,2)))))=B16,IF(DBSet8="--",0,VALUE(IF(NumDBLUN=1,RIGHT(DBSet8,1),IF(LEN(DBSet8)<9,MID(DBSet8,IF(LEN(DBSet8)=7,LEN(DBSet8)-4,LEN(DBSet8)-5),1),MID(DBSet8,LEN(DBSet8)-6,2)))))=B16,IF(DBSet9="--",0,VALUE(IF(NumDBLUN=1,RIGHT(DBSet9,1),IF(LEN(DBSet9)<9,MID(DBSet9,IF(LEN(DBSet9)=7,LEN(DBSet9)-4,LEN(DBSet9)-5),1),MID(DBSet9,LEN(DBSet9)-6,2)))))=B16,IF(DBSet10="--",0,VALUE(IF(NumDBLUN=1,RIGHT(DBSet10,2),IF(LEN(DBSet10)<9,MID(DBSet10,IF(LEN(DBSet10)=7,LEN(DBSet10)-4,LEN(DBSet10)-5),1),MID(DBSet10,LEN(DBSet10)-6,2)))))=B16,IF(DBSet11="--",0,VALUE(IF(NumDBLUN=1,RIGHT(DBSet11,2),IF(LEN(DBSet11)<9,MID(DBSet11,IF(LEN(DBSet11)=7,LEN(DBSet11)-4,LEN(DBSet11)-5),1),MID(DBSet11,LEN(DBSet11)-6,2)))))=B16,IF(DBSet12="--",0,VALUE(IF(NumDBLUN=1,RIGHT(DBSet12,2),IF(LEN(DBSet12)<9,MID(DBSet12,IF(LEN(DBSet12)=7,LEN(DBSet12)-4,LEN(DBSet12)-5),1),MID(DBSet12,LEN(DBSet12)-6,2)))))=B16,IF(DBSet13="--",0,VALUE(IF(NumDBLUN=1,RIGHT(DBSet13,2),IF(LEN(DBSet13)<9,MID(DBSet13,IF(LEN(DBSet13)=7,LEN(DBSet13)-4,LEN(DBSet13)-5),1),MID(DBSet13,LEN(DBSet13)-6,2)))))=B16,IF(DBSet14="--",0,VALUE(IF(NumDBLUN=1,RIGHT(DBSet14,2),IF(LEN(DBSet14)<9,MID(DBSet14,IF(LEN(DBSet14)=7,LEN(DBSet14)-4,LEN(DBSet14)-5),1),MID(DBSet14,LEN(DBSet14)-6,2)))))=B16,IF(DBSet15="--",0,VALUE(IF(NumDBLUN=1,RIGHT(DBSet15,2),IF(LEN(DBSet15)<9,MID(DBSet15,IF(LEN(DBSet15)=7,LEN(DBSet15)-4,LEN(DBSet15)-5),1),MID(DBSet15,LEN(DBSet15)-6,2)))))=B16)=TRUE,"Full",IF(BackupFreq="Weekly Full / Daily Incremental","Incremental","Differential"))))) -> -- | D16: =IF($B16="--","--",IF(BackupFreq="Daily Full","Full",IF(AND($C15="Full",ROW(D16)<>ROW($C15)),"Full",IF(BackupFreq="Weekly Full / Daily Incremental","Incremental","Differential")))) -> -- | E16: =IF($B16="--","--",IF(BackupFreq="Daily Full","Full",IF(AND(D16="Full",ROW(E16)=ROW(D16)),IF(BackupFreq="Weekly Full / Daily Incremental","Incremental","Differential"),IF(AND($D15="Full",ROW(E16)<>ROW($D15)),"Full",IF(BackupFreq="Weekly Full / Daily Incremental","Incremental","Differential"))))) -> -- | F16: =IF($B16="--","--",IF(BackupFreq="Daily Full","Full",IF(ISNA(MATCH("Full",B16:E16,0))=FALSE,IF(BackupFreq="Weekly Full / Daily Incremental","Incremental","Differential"),IF(AND(E16="Full",ROW(F16)=ROW(E16)),IF(BackupFreq="Weekly Full / Daily Incremental","Incremental","Differential"),IF(AND($E15="Full",ROW(F16)<>ROW($E15)),"Full",IF(BackupFreq="Weekly Full / Daily Incremental","Incremental","Differential")))))) -> -- | G16: =IF($B16="--","--",IF(BackupFreq="Daily Full","Full",IF(ISNA(MATCH("Full",C16:F16,0))=FALSE,IF(BackupFreq="Weekly Full / Daily Incremental","Incremental","Differential"),IF(AND(F16="Full",ROW(G16)=ROW(F16)),IF(BackupFreq="Weekly Full / Daily Incremental","Incremental","Differential"),IF(AND($F15="Full",ROW(G16)<>ROW($F15)),"Full",IF(BackupFreq="Weekly Full / Daily Incremental","Incremental","Differential")))))) -> -- | H16: =IF($B16="--","--",IF(BackupFreq="Daily Full","Full",IF(ISNA(MATCH("Full",C16:G16,0))=FALSE,IF(BackupFreq="Weekly Full / Daily Incremental","Incremental","Differential"),IF(AND(G16="Full",ROW(H16)=ROW(G16)),IF(BackupFreq="Weekly Full / Daily Incremental","Incremental","Differential"),IF(AND($G15="Full",ROW(H16)<>ROW($G15)),"Full",IF(BackupFreq="Weekly Full / Daily Incremental","Incremental","Differential")))))) -> -- | I16: =IF($B16="--","--",IF(BackupFreq="Daily Full","Full",IF(ISNA(MATCH("Full",C16:H16,0))=FALSE,IF(BackupFreq="Weekly Full / Daily Incremental","Incremental","Differential"),IF(AND(H16="Full",ROW(I16)=ROW(H16)),IF(BackupFreq="Weekly Full / Daily Incremental","Incremental","Differential"),IF(AND($H15="Full",ROW(I16)<>ROW($H15)),"Full",IF(BackupFreq="Weekly Full / Daily Incremental","Incremental","Differential")))))) -> --
B17: =IF(BackupMethod="Exchange Native Data Protection","--",IF(TotNumDBCopiesServer>COUNTA(B$15:B16),B16+1,"--")) -> -- | C17: =IF(B17="--","--",IF(BackupFreq="Daily Full","Full",IF(AND(NumDBLUN=1,OR($C16="Incremental",$C16="Differential")),IF(BackupFreq="Weekly Full / Daily Incremental","Incremental","Differential"),IF(OR(IF(DBSet1="--",0,VALUE(IF(NumDBLUN=1,RIGHT(DBSet1,1),MID(DBSet1,IF(LEN(DBSet1)=7,LEN(DBSet1)-4,LEN(DBSet1)-6),1))))=B17,IF(DBSet2="--",0,VALUE(IF(NumDBLUN=1,RIGHT(DBSet2,1),IF(LEN(DBSet2)<9,MID(DBSet2,IF(LEN(DBSet2)=7,LEN(DBSet2)-4,LEN(DBSet2)-5),1),MID(DBSet2,LEN(DBSet2)-5,2)))))=B17,IF(DBSet3="--",0,VALUE(IF(NumDBLUN=1,RIGHT(DBSet3,1),IF(LEN(DBSet3)<9,MID(DBSet3,IF(LEN(DBSet3)=7,LEN(DBSet3)-4,LEN(DBSet3)-5),1),MID(DBSet3,LEN(DBSet3)-6,2)))))=B17,IF(DBSet4="--",0,VALUE(IF(NumDBLUN=1,RIGHT(DBSet4,1),IF(LEN(DBSet4)<9,MID(DBSet4,IF(LEN(DBSet4)=7,LEN(DBSet4)-4,LEN(DBSet4)-5),1),MID(DBSet4,LEN(DBSet4)-6,2)))))=B17,IF(DBSet5="--",0,VALUE(IF(NumDBLUN=1,RIGHT(DBSet5,1),IF(LEN(DBSet5)<9,MID(DBSet5,IF(LEN(DBSet5)=7,LEN(DBSet5)-4,LEN(DBSet5)-5),1),MID(DBSet5,LEN(DBSet5)-6,2)))))=B17,IF(DBSet6="--",0,VALUE(IF(NumDBLUN=1,RIGHT(DBSet6,1),IF(LEN(DBSet6)<9,MID(DBSet6,IF(LEN(DBSet6)=7,LEN(DBSet6)-4,LEN(DBSet6)-5),1),MID(DBSet6,LEN(DBSet6)-6,2)))))=B17,IF(DBSet7="--",0,VALUE(IF(NumDBLUN=1,RIGHT(DBSet7,1),IF(LEN(DBSet7)<9,MID(DBSet7,IF(LEN(DBSet7)=7,LEN(DBSet7)-4,LEN(DBSet7)-5),1),MID(DBSet7,LEN(DBSet7)-6,2)))))=B17,IF(DBSet8="--",0,VALUE(IF(NumDBLUN=1,RIGHT(DBSet8,1),IF(LEN(DBSet8)<9,MID(DBSet8,IF(LEN(DBSet8)=7,LEN(DBSet8)-4,LEN(DBSet8)-5),1),MID(DBSet8,LEN(DBSet8)-6,2)))))=B17,IF(DBSet9="--",0,VALUE(IF(NumDBLUN=1,RIGHT(DBSet9,1),IF(LEN(DBSet9)<9,MID(DBSet9,IF(LEN(DBSet9)=7,LEN(DBSet9)-4,LEN(DBSet9)-5),1),MID(DBSet9,LEN(DBSet9)-6,2)))))=B17,IF(DBSet10="--",0,VALUE(IF(NumDBLUN=1,RIGHT(DBSet10,2),IF(LEN(DBSet10)<9,MID(DBSet10,IF(LEN(DBSet10)=7,LEN(DBSet10)-4,LEN(DBSet10)-5),1),MID(DBSet10,LEN(DBSet10)-6,2)))))=B17,IF(DBSet11="--",0,VALUE(IF(NumDBLUN=1,RIGHT(DBSet11,2),IF(LEN(DBSet11)<9,MID(DBSet11,IF(LEN(DBSet11)=7,LEN(DBSet11)-4,LEN(DBSet11)-5),1),MID(DBSet11,LEN(DBSet11)-6,2)))))=B17,IF(DBSet12="--",0,VALUE(IF(NumDBLUN=1,RIGHT(DBSet12,2),IF(LEN(DBSet12)<9,MID(DBSet12,IF(LEN(DBSet12)=7,LEN(DBSet12)-4,LEN(DBSet12)-5),1),MID(DBSet12,LEN(DBSet12)-6,2)))))=B17,IF(DBSet13="--",0,VALUE(IF(NumDBLUN=1,RIGHT(DBSet13,2),IF(LEN(DBSet13)<9,MID(DBSet13,IF(LEN(DBSet13)=7,LEN(DBSet13)-4,LEN(DBSet13)-5),1),MID(DBSet13,LEN(DBSet13)-6,2)))))=B17,IF(DBSet14="--",0,VALUE(IF(NumDBLUN=1,RIGHT(DBSet14,2),IF(LEN(DBSet14)<9,MID(DBSet14,IF(LEN(DBSet14)=7,LEN(DBSet14)-4,LEN(DBSet14)-5),1),MID(DBSet14,LEN(DBSet14)-6,2)))))=B17,IF(DBSet15="--",0,VALUE(IF(NumDBLUN=1,RIGHT(DBSet15,2),IF(LEN(DBSet15)<9,MID(DBSet15,IF(LEN(DBSet15)=7,LEN(DBSet15)-4,LEN(DBSet15)-5),1),MID(DBSet15,LEN(DBSet15)-6,2)))))=B17)=TRUE,"Full",IF(BackupFreq="Weekly Full / Daily Incremental","Incremental","Differential"))))) -> -- | D17: -- | E17: -- | F17: -- | G17: -- | H17: -- | I17: --
B18: =IF(BackupMethod="Exchange Native Data Protection","--",IF(TotNumDBCopiesServer>COUNTA(B$15:B17),B17+1,"--")) -> -- | C18: =IF(B18="--","--",IF(BackupFreq="Daily Full","Full",IF(AND(NumDBLUN=1,OR($C17="Incremental",$C17="Differential")),IF(BackupFreq="Weekly Full / Daily Incremental","Incremental","Differential"),IF(OR(IF(DBSet1="--",0,VALUE(IF(NumDBLUN=1,RIGHT(DBSet1,1),MID(DBSet1,IF(LEN(DBSet1)=7,LEN(DBSet1)-4,LEN(DBSet1)-6),1))))=B18,IF(DBSet2="--",0,VALUE(IF(NumDBLUN=1,RIGHT(DBSet2,1),IF(LEN(DBSet2)<9,MID(DBSet2,IF(LEN(DBSet2)=7,LEN(DBSet2)-4,LEN(DBSet2)-5),1),MID(DBSet2,LEN(DBSet2)-5,2)))))=B18,IF(DBSet3="--",0,VALUE(IF(NumDBLUN=1,RIGHT(DBSet3,1),IF(LEN(DBSet3)<9,MID(DBSet3,IF(LEN(DBSet3)=7,LEN(DBSet3)-4,LEN(DBSet3)-5),1),MID(DBSet3,LEN(DBSet3)-6,2)))))=B18,IF(DBSet4="--",0,VALUE(IF(NumDBLUN=1,RIGHT(DBSet4,1),IF(LEN(DBSet4)<9,MID(DBSet4,IF(LEN(DBSet4)=7,LEN(DBSet4)-4,LEN(DBSet4)-5),1),MID(DBSet4,LEN(DBSet4)-6,2)))))=B18,IF(DBSet5="--",0,VALUE(IF(NumDBLUN=1,RIGHT(DBSet5,1),IF(LEN(DBSet5)<9,MID(DBSet5,IF(LEN(DBSet5)=7,LEN(DBSet5)-4,LEN(DBSet5)-5),1),MID(DBSet5,LEN(DBSet5)-6,2)))))=B18,IF(DBSet6="--",0,VALUE(IF(NumDBLUN=1,RIGHT(DBSet6,1),IF(LEN(DBSet6)<9,MID(DBSet6,IF(LEN(DBSet6)=7,LEN(DBSet6)-4,LEN(DBSet6)-5),1),MID(DBSet6,LEN(DBSet6)-6,2)))))=B18,IF(DBSet7="--",0,VALUE(IF(NumDBLUN=1,RIGHT(DBSet7,1),IF(LEN(DBSet7)<9,MID(DBSet7,IF(LEN(DBSet7)=7,LEN(DBSet7)-4,LEN(DBSet7)-5),1),MID(DBSet7,LEN(DBSet7)-6,2)))))=B18,IF(DBSet8="--",0,VALUE(IF(NumDBLUN=1,RIGHT(DBSet8,1),IF(LEN(DBSet8)<9,MID(DBSet8,IF(LEN(DBSet8)=7,LEN(DBSet8)-4,LEN(DBSet8)-5),1),MID(DBSet8,LEN(DBSet8)-6,2)))))=B18,IF(DBSet9="--",0,VALUE(IF(NumDBLUN=1,RIGHT(DBSet9,1),IF(LEN(DBSet9)<9,MID(DBSet9,IF(LEN(DBSet9)=7,LEN(DBSet9)-4,LEN(DBSet9)-5),1),MID(DBSet9,LEN(DBSet9)-6,2)))))=B18,IF(DBSet10="--",0,VALUE(IF(NumDBLUN=1,RIGHT(DBSet10,2),IF(LEN(DBSet10)<9,MID(DBSet10,IF(LEN(DBSet10)=7,LEN(DBSet10)-4,LEN(DBSet10)-5),1),MID(DBSet10,LEN(DBSet10)-6,2)))))=B18,IF(DBSet11="--",0,VALUE(IF(NumDBLUN=1,RIGHT(DBSet11,2),IF(LEN(DBSet11)<9,MID(DBSet11,IF(LEN(DBSet11)=7,LEN(DBSet11)-4,LEN(DBSet11)-5),1),MID(DBSet11,LEN(DBSet11)-6,2)))))=B18,IF(DBSet12="--",0,VALUE(IF(NumDBLUN=1,RIGHT(DBSet12,2),IF(LEN(DBSet12)<9,MID(DBSet12,IF(LEN(DBSet12)=7,LEN(DBSet12)-4,LEN(DBSet12)-5),1),MID(DBSet12,LEN(DBSet12)-6,2)))))=B18,IF(DBSet13="--",0,VALUE(IF(NumDBLUN=1,RIGHT(DBSet13,2),IF(LEN(DBSet13)<9,MID(DBSet13,IF(LEN(DBSet13)=7,LEN(DBSet13)-4,LEN(DBSet13)-5),1),MID(DBSet13,LEN(DBSet13)-6,2)))))=B18,IF(DBSet14="--",0,VALUE(IF(NumDBLUN=1,RIGHT(DBSet14,2),IF(LEN(DBSet14)<9,MID(DBSet14,IF(LEN(DBSet14)=7,LEN(DBSet14)-4,LEN(DBSet14)-5),1),MID(DBSet14,LEN(DBSet14)-6,2)))))=B18,IF(DBSet15="--",0,VALUE(IF(NumDBLUN=1,RIGHT(DBSet15,2),IF(LEN(DBSet15)<9,MID(DBSet15,IF(LEN(DBSet15)=7,LEN(DBSet15)-4,LEN(DBSet15)-5),1),MID(DBSet15,LEN(DBSet15)-6,2)))))=B18)=TRUE,"Full",IF(BackupFreq="Weekly Full / Daily Incremental","Incremental","Differential"))))) -> -- | D18: -- | E18: -- | F18: -- | G18: -- | H18: -- | I18: --
B19: =IF(BackupMethod="Exchange Native Data Protection","--",IF(TotNumDBCopiesServer>COUNTA(B$15:B18),B18+1,"--")) -> -- | C19: =IF(B19="--","--",IF(BackupFreq="Daily Full","Full",IF(AND(NumDBLUN=1,OR($C18="Incremental",$C18="Differential")),IF(BackupFreq="Weekly Full / Daily Incremental","Incremental","Differential"),IF(OR(IF(DBSet1="--",0,VALUE(IF(NumDBLUN=1,RIGHT(DBSet1,1),MID(DBSet1,IF(LEN(DBSet1)=7,LEN(DBSet1)-4,LEN(DBSet1)-6),1))))=B19,IF(DBSet2="--",0,VALUE(IF(NumDBLUN=1,RIGHT(DBSet2,1),IF(LEN(DBSet2)<9,MID(DBSet2,IF(LEN(DBSet2)=7,LEN(DBSet2)-4,LEN(DBSet2)-5),1),MID(DBSet2,LEN(DBSet2)-5,2)))))=B19,IF(DBSet3="--",0,VALUE(IF(NumDBLUN=1,RIGHT(DBSet3,1),IF(LEN(DBSet3)<9,MID(DBSet3,IF(LEN(DBSet3)=7,LEN(DBSet3)-4,LEN(DBSet3)-5),1),MID(DBSet3,LEN(DBSet3)-6,2)))))=B19,IF(DBSet4="--",0,VALUE(IF(NumDBLUN=1,RIGHT(DBSet4,1),IF(LEN(DBSet4)<9,MID(DBSet4,IF(LEN(DBSet4)=7,LEN(DBSet4)-4,LEN(DBSet4)-5),1),MID(DBSet4,LEN(DBSet4)-6,2)))))=B19,IF(DBSet5="--",0,VALUE(IF(NumDBLUN=1,RIGHT(DBSet5,1),IF(LEN(DBSet5)<9,MID(DBSet5,IF(LEN(DBSet5)=7,LEN(DBSet5)-4,LEN(DBSet5)-5),1),MID(DBSet5,LEN(DBSet5)-6,2)))))=B19,IF(DBSet6="--",0,VALUE(IF(NumDBLUN=1,RIGHT(DBSet6,1),IF(LEN(DBSet6)<9,MID(DBSet6,IF(LEN(DBSet6)=7,LEN(DBSet6)-4,LEN(DBSet6)-5),1),MID(DBSet6,LEN(DBSet6)-6,2)))))=B19,IF(DBSet7="--",0,VALUE(IF(NumDBLUN=1,RIGHT(DBSet7,1),IF(LEN(DBSet7)<9,MID(DBSet7,IF(LEN(DBSet7)=7,LEN(DBSet7)-4,LEN(DBSet7)-5),1),MID(DBSet7,LEN(DBSet7)-6,2)))))=B19,IF(DBSet8="--",0,VALUE(IF(NumDBLUN=1,RIGHT(DBSet8,1),IF(LEN(DBSet8)<9,MID(DBSet8,IF(LEN(DBSet8)=7,LEN(DBSet8)-4,LEN(DBSet8)-5),1),MID(DBSet8,LEN(DBSet8)-6,2)))))=B19,IF(DBSet9="--",0,VALUE(IF(NumDBLUN=1,RIGHT(DBSet9,1),IF(LEN(DBSet9)<9,MID(DBSet9,IF(LEN(DBSet9)=7,LEN(DBSet9)-4,LEN(DBSet9)-5),1),MID(DBSet9,LEN(DBSet9)-6,2)))))=B19,IF(DBSet10="--",0,VALUE(IF(NumDBLUN=1,RIGHT(DBSet10,2),IF(LEN(DBSet10)<9,MID(DBSet10,IF(LEN(DBSet10)=7,LEN(DBSet10)-4,LEN(DBSet10)-5),1),MID(DBSet10,LEN(DBSet10)-6,2)))))=B19,IF(DBSet11="--",0,VALUE(IF(NumDBLUN=1,RIGHT(DBSet11,2),IF(LEN(DBSet11)<9,MID(DBSet11,IF(LEN(DBSet11)=7,LEN(DBSet11)-4,LEN(DBSet11)-5),1),MID(DBSet11,LEN(DBSet11)-6,2)))))=B19,IF(DBSet12="--",0,VALUE(IF(NumDBLUN=1,RIGHT(DBSet12,2),IF(LEN(DBSet12)<9,MID(DBSet12,IF(LEN(DBSet12)=7,LEN(DBSet12)-4,LEN(DBSet12)-5),1),MID(DBSet12,LEN(DBSet12)-6,2)))))=B19,IF(DBSet13="--",0,VALUE(IF(NumDBLUN=1,RIGHT(DBSet13,2),IF(LEN(DBSet13)<9,MID(DBSet13,IF(LEN(DBSet13)=7,LEN(DBSet13)-4,LEN(DBSet13)-5),1),MID(DBSet13,LEN(DBSet13)-6,2)))))=B19,IF(DBSet14="--",0,VALUE(IF(NumDBLUN=1,RIGHT(DBSet14,2),IF(LEN(DBSet14)<9,MID(DBSet14,IF(LEN(DBSet14)=7,LEN(DBSet14)-4,LEN(DBSet14)-5),1),MID(DBSet14,LEN(DBSet14)-6,2)))))=B19,IF(DBSet15="--",0,VALUE(IF(NumDBLUN=1,RIGHT(DBSet15,2),IF(LEN(DBSet15)<9,MID(DBSet15,IF(LEN(DBSet15)=7,LEN(DBSet15)-4,LEN(DBSet15)-5),1),MID(DBSet15,LEN(DBSet15)-6,2)))))=B19)=TRUE,"Full",IF(BackupFreq="Weekly Full / Daily Incremental","Incremental","Differential"))))) -> -- | D19: -- | E19: -- | F19: -- | G19: -- | H19: -- | I19: --
B20: =IF(BackupMethod="Exchange Native Data Protection","--",IF(TotNumDBCopiesServer>COUNTA(B$15:B19),B19+1,"--")) -> -- | C20: =IF(B20="--","--",IF(BackupFreq="Daily Full","Full",IF(AND(NumDBLUN=1,OR($C19="Incremental",$C19="Differential")),IF(BackupFreq="Weekly Full / Daily Incremental","Incremental","Differential"),IF(OR(IF(DBSet1="--",0,VALUE(IF(NumDBLUN=1,RIGHT(DBSet1,1),MID(DBSet1,IF(LEN(DBSet1)=7,LEN(DBSet1)-4,LEN(DBSet1)-6),1))))=B20,IF(DBSet2="--",0,VALUE(IF(NumDBLUN=1,RIGHT(DBSet2,1),IF(LEN(DBSet2)<9,MID(DBSet2,IF(LEN(DBSet2)=7,LEN(DBSet2)-4,LEN(DBSet2)-5),1),MID(DBSet2,LEN(DBSet2)-5,2)))))=B20,IF(DBSet3="--",0,VALUE(IF(NumDBLUN=1,RIGHT(DBSet3,1),IF(LEN(DBSet3)<9,MID(DBSet3,IF(LEN(DBSet3)=7,LEN(DBSet3)-4,LEN(DBSet3)-5),1),MID(DBSet3,LEN(DBSet3)-6,2)))))=B20,IF(DBSet4="--",0,VALUE(IF(NumDBLUN=1,RIGHT(DBSet4,1),IF(LEN(DBSet4)<9,MID(DBSet4,IF(LEN(DBSet4)=7,LEN(DBSet4)-4,LEN(DBSet4)-5),1),MID(DBSet4,LEN(DBSet4)-6,2)))))=B20,IF(DBSet5="--",0,VALUE(IF(NumDBLUN=1,RIGHT(DBSet5,1),IF(LEN(DBSet5)<9,MID(DBSet5,IF(LEN(DBSet5)=7,LEN(DBSet5)-4,LEN(DBSet5)-5),1),MID(DBSet5,LEN(DBSet5)-6,2)))))=B20,IF(DBSet6="--",0,VALUE(IF(NumDBLUN=1,RIGHT(DBSet6,1),IF(LEN(DBSet6)<9,MID(DBSet6,IF(LEN(DBSet6)=7,LEN(DBSet6)-4,LEN(DBSet6)-5),1),MID(DBSet6,LEN(DBSet6)-6,2)))))=B20,IF(DBSet7="--",0,VALUE(IF(NumDBLUN=1,RIGHT(DBSet7,1),IF(LEN(DBSet7)<9,MID(DBSet7,IF(LEN(DBSet7)=7,LEN(DBSet7)-4,LEN(DBSet7)-5),1),MID(DBSet7,LEN(DBSet7)-6,2)))))=B20,IF(DBSet8="--",0,VALUE(IF(NumDBLUN=1,RIGHT(DBSet8,1),IF(LEN(DBSet8)<9,MID(DBSet8,IF(LEN(DBSet8)=7,LEN(DBSet8)-4,LEN(DBSet8)-5),1),MID(DBSet8,LEN(DBSet8)-6,2)))))=B20,IF(DBSet9="--",0,VALUE(IF(NumDBLUN=1,RIGHT(DBSet9,1),IF(LEN(DBSet9)<9,MID(DBSet9,IF(LEN(DBSet9)=7,LEN(DBSet9)-4,LEN(DBSet9)-5),1),MID(DBSet9,LEN(DBSet9)-6,2)))))=B20,IF(DBSet10="--",0,VALUE(IF(NumDBLUN=1,RIGHT(DBSet10,2),IF(LEN(DBSet10)<9,MID(DBSet10,IF(LEN(DBSet10)=7,LEN(DBSet10)-4,LEN(DBSet10)-5),1),MID(DBSet10,LEN(DBSet10)-6,2)))))=B20,IF(DBSet11="--",0,VALUE(IF(NumDBLUN=1,RIGHT(DBSet11,2),IF(LEN(DBSet11)<9,MID(DBSet11,IF(LEN(DBSet11)=7,LEN(DBSet11)-4,LEN(DBSet11)-5),1),MID(DBSet11,LEN(DBSet11)-6,2)))))=B20,IF(DBSet12="--",0,VALUE(IF(NumDBLUN=1,RIGHT(DBSet12,2),IF(LEN(DBSet12)<9,MID(DBSet12,IF(LEN(DBSet12)=7,LEN(DBSet12)-4,LEN(DBSet12)-5),1),MID(DBSet12,LEN(DBSet12)-6,2)))))=B20,IF(DBSet13="--",0,VALUE(IF(NumDBLUN=1,RIGHT(DBSet13,2),IF(LEN(DBSet13)<9,MID(DBSet13,IF(LEN(DBSet13)=7,LEN(DBSet13)-4,LEN(DBSet13)-5),1),MID(DBSet13,LEN(DBSet13)-6,2)))))=B20,IF(DBSet14="--",0,VALUE(IF(NumDBLUN=1,RIGHT(DBSet14,2),IF(LEN(DBSet14)<9,MID(DBSet14,IF(LEN(DBSet14)=7,LEN(DBSet14)-4,LEN(DBSet14)-5),1),MID(DBSet14,LEN(DBSet14)-6,2)))))=B20,IF(DBSet15="--",0,VALUE(IF(NumDBLUN=1,RIGHT(DBSet15,2),IF(LEN(DBSet15)<9,MID(DBSet15,IF(LEN(DBSet15)=7,LEN(DBSet15)-4,LEN(DBSet15)-5),1),MID(DBSet15,LEN(DBSet15)-6,2)))))=B20)=TRUE,"Full",IF(BackupFreq="Weekly Full / Daily Incremental","Incremental","Differential"))))) -> -- | D20: -- | E20: -- | F20: -- | G20: -- | H20: -- | I20: --
B21: =IF(BackupMethod="Exchange Native Data Protection","--",IF(TotNumDBCopiesServer>COUNTA(B$15:B20),B20+1,"--")) -> -- | C21: =IF(B21="--","--",IF(BackupFreq="Daily Full","Full",IF(AND(NumDBLUN=1,OR($C20="Incremental",$C20="Differential")),IF(BackupFreq="Weekly Full / Daily Incremental","Incremental","Differential"),IF(OR(IF(DBSet1="--",0,VALUE(IF(NumDBLUN=1,RIGHT(DBSet1,1),MID(DBSet1,IF(LEN(DBSet1)=7,LEN(DBSet1)-4,LEN(DBSet1)-6),1))))=B21,IF(DBSet2="--",0,VALUE(IF(NumDBLUN=1,RIGHT(DBSet2,1),IF(LEN(DBSet2)<9,MID(DBSet2,IF(LEN(DBSet2)=7,LEN(DBSet2)-4,LEN(DBSet2)-5),1),MID(DBSet2,LEN(DBSet2)-5,2)))))=B21,IF(DBSet3="--",0,VALUE(IF(NumDBLUN=1,RIGHT(DBSet3,1),IF(LEN(DBSet3)<9,MID(DBSet3,IF(LEN(DBSet3)=7,LEN(DBSet3)-4,LEN(DBSet3)-5),1),MID(DBSet3,LEN(DBSet3)-6,2)))))=B21,IF(DBSet4="--",0,VALUE(IF(NumDBLUN=1,RIGHT(DBSet4,1),IF(LEN(DBSet4)<9,MID(DBSet4,IF(LEN(DBSet4)=7,LEN(DBSet4)-4,LEN(DBSet4)-5),1),MID(DBSet4,LEN(DBSet4)-6,2)))))=B21,IF(DBSet5="--",0,VALUE(IF(NumDBLUN=1,RIGHT(DBSet5,1),IF(LEN(DBSet5)<9,MID(DBSet5,IF(LEN(DBSet5)=7,LEN(DBSet5)-4,LEN(DBSet5)-5),1),MID(DBSet5,LEN(DBSet5)-6,2)))))=B21,IF(DBSet6="--",0,VALUE(IF(NumDBLUN=1,RIGHT(DBSet6,1),IF(LEN(DBSet6)<9,MID(DBSet6,IF(LEN(DBSet6)=7,LEN(DBSet6)-4,LEN(DBSet6)-5),1),MID(DBSet6,LEN(DBSet6)-6,2)))))=B21,IF(DBSet7="--",0,VALUE(IF(NumDBLUN=1,RIGHT(DBSet7,1),IF(LEN(DBSet7)<9,MID(DBSet7,IF(LEN(DBSet7)=7,LEN(DBSet7)-4,LEN(DBSet7)-5),1),MID(DBSet7,LEN(DBSet7)-6,2)))))=B21,IF(DBSet8="--",0,VALUE(IF(NumDBLUN=1,RIGHT(DBSet8,1),IF(LEN(DBSet8)<9,MID(DBSet8,IF(LEN(DBSet8)=7,LEN(DBSet8)-4,LEN(DBSet8)-5),1),MID(DBSet8,LEN(DBSet8)-6,2)))))=B21,IF(DBSet9="--",0,VALUE(IF(NumDBLUN=1,RIGHT(DBSet9,1),IF(LEN(DBSet9)<9,MID(DBSet9,IF(LEN(DBSet9)=7,LEN(DBSet9)-4,LEN(DBSet9)-5),1),MID(DBSet9,LEN(DBSet9)-6,2)))))=B21,IF(DBSet10="--",0,VALUE(IF(NumDBLUN=1,RIGHT(DBSet10,2),IF(LEN(DBSet10)<9,MID(DBSet10,IF(LEN(DBSet10)=7,LEN(DBSet10)-4,LEN(DBSet10)-5),1),MID(DBSet10,LEN(DBSet10)-6,2)))))=B21,IF(DBSet11="--",0,VALUE(IF(NumDBLUN=1,RIGHT(DBSet11,2),IF(LEN(DBSet11)<9,MID(DBSet11,IF(LEN(DBSet11)=7,LEN(DBSet11)-4,LEN(DBSet11)-5),1),MID(DBSet11,LEN(DBSet11)-6,2)))))=B21,IF(DBSet12="--",0,VALUE(IF(NumDBLUN=1,RIGHT(DBSet12,2),IF(LEN(DBSet12)<9,MID(DBSet12,IF(LEN(DBSet12)=7,LEN(DBSet12)-4,LEN(DBSet12)-5),1),MID(DBSet12,LEN(DBSet12)-6,2)))))=B21,IF(DBSet13="--",0,VALUE(IF(NumDBLUN=1,RIGHT(DBSet13,2),IF(LEN(DBSet13)<9,MID(DBSet13,IF(LEN(DBSet13)=7,LEN(DBSet13)-4,LEN(DBSet13)-5),1),MID(DBSet13,LEN(DBSet13)-6,2)))))=B21,IF(DBSet14="--",0,VALUE(IF(NumDBLUN=1,RIGHT(DBSet14,2),IF(LEN(DBSet14)<9,MID(DBSet14,IF(LEN(DBSet14)=7,LEN(DBSet14)-4,LEN(DBSet14)-5),1),MID(DBSet14,LEN(DBSet14)-6,2)))))=B21,IF(DBSet15="--",0,VALUE(IF(NumDBLUN=1,RIGHT(DBSet15,2),IF(LEN(DBSet15)<9,MID(DBSet15,IF(LEN(DBSet15)=7,LEN(DBSet15)-4,LEN(DBSet15)-5),1),MID(DBSet15,LEN(DBSet15)-6,2)))))=B21)=TRUE,"Full",IF(BackupFreq="Weekly Full / Daily Incremental","Incremental","Differential"))))) -> -- | D21: -- | E21: -- | F21: -- | G21: -- | H21: -- | I21: --
B22: =IF(BackupMethod="Exchange Native Data Protection","--",IF(TotNumDBCopiesServer>COUNTA(B$15:B21),B21+1,"--")) -> -- | C22: =IF(B22="--","--",IF(BackupFreq="Daily Full","Full",IF(OR(BackupMethod="Hardware VSS Backup/Restore",LUNArchitecture="1 LUN / DB"),IF(IF(LEN('LUN Requirements'!H128)=3,VALUE(RIGHT('LUN Requirements'!H128,1)),VALUE(RIGHT('LUN Requirements'!H128,2)))=B22,"Full","Incremental/Differential"),IF(OR(IF(DBSet1="--",0,VALUE(IF(NumDBLUN=1,RIGHT(DBSet1,1),MID(DBSet1,IF(LEN(DBSet1)=7,LEN(DBSet1)-4,LEN(DBSet1)-6),1))))=B22,IF(DBSet2="--",0,VALUE(IF(NumDBLUN=1,RIGHT(DBSet2,1),IF(LEN(DBSet2)<9,MID(DBSet2,IF(LEN(DBSet2)=7,LEN(DBSet2)-4,LEN(DBSet2)-5),1),MID(DBSet2,LEN(DBSet2)-5,2)))))=B22,IF(DBSet3="--",0,VALUE(IF(NumDBLUN=1,RIGHT(DBSet3,1),IF(LEN(DBSet3)<9,MID(DBSet3,IF(LEN(DBSet3)=7,LEN(DBSet3)-4,LEN(DBSet3)-5),1),MID(DBSet3,LEN(DBSet3)-6,2)))))=B22,IF(DBSet4="--",0,VALUE(IF(NumDBLUN=1,RIGHT(DBSet4,1),IF(LEN(DBSet4)<9,MID(DBSet4,IF(LEN(DBSet4)=7,LEN(DBSet4)-4,LEN(DBSet4)-5),1),MID(DBSet4,LEN(DBSet4)-6,2)))))=B22,IF(DBSet5="--",0,VALUE(IF(NumDBLUN=1,RIGHT(DBSet5,1),IF(LEN(DBSet5)<9,MID(DBSet5,IF(LEN(DBSet5)=7,LEN(DBSet5)-4,LEN(DBSet5)-5),1),MID(DBSet5,LEN(DBSet5)-6,2)))))=B22,IF(DBSet6="--",0,VALUE(IF(NumDBLUN=1,RIGHT(DBSet6,1),IF(LEN(DBSet6)<9,MID(DBSet6,IF(LEN(DBSet6)=7,LEN(DBSet6)-4,LEN(DBSet6)-5),1),MID(DBSet6,LEN(DBSet6)-6,2)))))=B22,IF(DBSet7="--",0,VALUE(IF(NumDBLUN=1,RIGHT(DBSet7,1),IF(LEN(DBSet7)<9,MID(DBSet7,IF(LEN(DBSet7)=7,LEN(DBSet7)-4,LEN(DBSet7)-5),1),MID(DBSet7,LEN(DBSet7)-6,2)))))=B22,IF(DBSet8="--",0,VALUE(IF(NumDBLUN=1,RIGHT(DBSet8,1),IF(LEN(DBSet8)<9,MID(DBSet8,IF(LEN(DBSet8)=7,LEN(DBSet8)-4,LEN(DBSet8)-5),1),MID(DBSet8,LEN(DBSet8)-6,2)))))=B22,IF(DBSet9="--",0,VALUE(IF(NumDBLUN=1,RIGHT(DBSet9,1),IF(LEN(DBSet9)<9,MID(DBSet9,IF(LEN(DBSet9)=7,LEN(DBSet9)-4,LEN(DBSet9)-5),1),MID(DBSet9,LEN(DBSet9)-6,2)))))=B22,IF(DBSet10="--",0,VALUE(IF(NumDBLUN=1,RIGHT(DBSet10,2),IF(LEN(DBSet10)<9,MID(DBSet10,IF(LEN(DBSet10)=7,LEN(DBSet10)-4,LEN(DBSet10)-5),1),MID(DBSet10,LEN(DBSet10)-6,2)))))=B22,IF(DBSet11="--",0,VALUE(IF(NumDBLUN=1,RIGHT(DBSet11,2),IF(LEN(DBSet11)<9,MID(DBSet11,IF(LEN(DBSet11)=7,LEN(DBSet11)-4,LEN(DBSet11)-5),1),MID(DBSet11,LEN(DBSet11)-6,2)))))=B22,IF(DBSet12="--",0,VALUE(IF(NumDBLUN=1,RIGHT(DBSet12,2),IF(LEN(DBSet12)<9,MID(DBSet12,IF(LEN(DBSet12)=7,LEN(DBSet12)-4,LEN(DBSet12)-5),1),MID(DBSet12,LEN(DBSet12)-6,2)))))=B22,IF(DBSet13="--",0,VALUE(IF(NumDBLUN=1,RIGHT(DBSet13,2),IF(LEN(DBSet13)<9,MID(DBSet13,IF(LEN(DBSet13)=7,LEN(DBSet13)-4,LEN(DBSet13)-5),1),MID(DBSet13,LEN(DBSet13)-6,2)))))=B22,IF(DBSet14="--",0,VALUE(IF(NumDBLUN=1,RIGHT(DBSet14,2),IF(LEN(DBSet14)<9,MID(DBSet14,IF(LEN(DBSet14)=7,LEN(DBSet14)-4,LEN(DBSet14)-5),1),MID(DBSet14,LEN(DBSet14)-6,2)))))=B22,IF(DBSet15="--",0,VALUE(IF(NumDBLUN=1,RIGHT(DBSet15,2),IF(LEN(DBSet15)<9,MID(DBSet15,IF(LEN(DBSet15)=7,LEN(DBSet15)-4,LEN(DBSet15)-5),1),MID(DBSet15,LEN(DBSet15)-6,2)))))=B22)=TRUE,"Full",IF(BackupFreq="Weekly Full / Daily Incremental","Incremental","Differential"))))) -> -- | D22: -- | E22: -- | F22: -- | G22: -- | H22: -- | I22: --
B23: =IF(BackupMethod="Exchange Native Data Protection","--",IF(TotNumDBCopiesServer>COUNTA(B$15:B22),B22+1,"--")) -> -- | C23: =IF(B23="--","--",IF(BackupFreq="Daily Full","Full",IF(AND(NumDBLUN=1,$C22="Full"),IF(BackupFreq="Weekly Full / Daily Incremental","Incremental","Differential"),IF(OR(IF(DBSet1="--",0,VALUE(IF(NumDBLUN=1,RIGHT(DBSet1,1),MID(DBSet1,IF(LEN(DBSet1)=7,LEN(DBSet1)-4,LEN(DBSet1)-6),1))))=B23,IF(DBSet2="--",0,VALUE(IF(NumDBLUN=1,RIGHT(DBSet2,1),IF(LEN(DBSet2)<9,MID(DBSet2,IF(LEN(DBSet2)=7,LEN(DBSet2)-4,LEN(DBSet2)-5),1),MID(DBSet2,LEN(DBSet2)-5,2)))))=B23,IF(DBSet3="--",0,VALUE(IF(NumDBLUN=1,RIGHT(DBSet3,1),IF(LEN(DBSet3)<9,MID(DBSet3,IF(LEN(DBSet3)=7,LEN(DBSet3)-4,LEN(DBSet3)-5),1),MID(DBSet3,LEN(DBSet3)-6,2)))))=B23,IF(DBSet4="--",0,VALUE(IF(NumDBLUN=1,RIGHT(DBSet4,1),IF(LEN(DBSet4)<9,MID(DBSet4,IF(LEN(DBSet4)=7,LEN(DBSet4)-4,LEN(DBSet4)-5),1),MID(DBSet4,LEN(DBSet4)-6,2)))))=B23,IF(DBSet5="--",0,VALUE(IF(NumDBLUN=1,RIGHT(DBSet5,1),IF(LEN(DBSet5)<9,MID(DBSet5,IF(LEN(DBSet5)=7,LEN(DBSet5)-4,LEN(DBSet5)-5),1),MID(DBSet5,LEN(DBSet5)-6,2)))))=B23,IF(DBSet6="--",0,VALUE(IF(NumDBLUN=1,RIGHT(DBSet6,1),IF(LEN(DBSet6)<9,MID(DBSet6,IF(LEN(DBSet6)=7,LEN(DBSet6)-4,LEN(DBSet6)-5),1),MID(DBSet6,LEN(DBSet6)-6,2)))))=B23,IF(DBSet7="--",0,VALUE(IF(NumDBLUN=1,RIGHT(DBSet7,1),IF(LEN(DBSet7)<9,MID(DBSet7,IF(LEN(DBSet7)=7,LEN(DBSet7)-4,LEN(DBSet7)-5),1),MID(DBSet7,LEN(DBSet7)-6,2)))))=B23,IF(DBSet8="--",0,VALUE(IF(NumDBLUN=1,RIGHT(DBSet8,1),IF(LEN(DBSet8)<9,MID(DBSet8,IF(LEN(DBSet8)=7,LEN(DBSet8)-4,LEN(DBSet8)-5),1),MID(DBSet8,LEN(DBSet8)-6,2)))))=B23,IF(DBSet9="--",0,VALUE(IF(NumDBLUN=1,RIGHT(DBSet9,1),IF(LEN(DBSet9)<9,MID(DBSet9,IF(LEN(DBSet9)=7,LEN(DBSet9)-4,LEN(DBSet9)-5),1),MID(DBSet9,LEN(DBSet9)-6,2)))))=B23,IF(DBSet10="--",0,VALUE(IF(NumDBLUN=1,RIGHT(DBSet10,2),IF(LEN(DBSet10)<9,MID(DBSet10,IF(LEN(DBSet10)=7,LEN(DBSet10)-4,LEN(DBSet10)-5),1),MID(DBSet10,LEN(DBSet10)-6,2)))))=B23,IF(DBSet11="--",0,VALUE(IF(NumDBLUN=1,RIGHT(DBSet11,2),IF(LEN(DBSet11)<9,MID(DBSet11,IF(LEN(DBSet11)=7,LEN(DBSet11)-4,LEN(DBSet11)-5),1),MID(DBSet11,LEN(DBSet11)-6,2)))))=B23,IF(DBSet12="--",0,VALUE(IF(NumDBLUN=1,RIGHT(DBSet12,2),IF(LEN(DBSet12)<9,MID(DBSet12,IF(LEN(DBSet12)=7,LEN(DBSet12)-4,LEN(DBSet12)-5),1),MID(DBSet12,LEN(DBSet12)-6,2)))))=B23,IF(DBSet13="--",0,VALUE(IF(NumDBLUN=1,RIGHT(DBSet13,2),IF(LEN(DBSet13)<9,MID(DBSet13,IF(LEN(DBSet13)=7,LEN(DBSet13)-4,LEN(DBSet13)-5),1),MID(DBSet13,LEN(DBSet13)-6,2)))))=B23,IF(DBSet14="--",0,VALUE(IF(NumDBLUN=1,RIGHT(DBSet14,2),IF(LEN(DBSet14)<9,MID(DBSet14,IF(LEN(DBSet14)=7,LEN(DBSet14)-4,LEN(DBSet14)-5),1),MID(DBSet14,LEN(DBSet14)-6,2)))))=B23,IF(DBSet15="--",0,VALUE(IF(NumDBLUN=1,RIGHT(DBSet15,2),IF(LEN(DBSet15)<9,MID(DBSet15,IF(LEN(DBSet15)=7,LEN(DBSet15)-4,LEN(DBSet15)-5),1),MID(DBSet15,LEN(DBSet15)-6,2)))))=B23)=TRUE,"Full",IF(BackupFreq="Weekly Full / Daily Incremental","Incremental","Differential"))))) -> -- | D23: -- | E23: -- | F23: -- | G23: -- | H23: -- | I23: --
B24: =IF(BackupMethod="Exchange Native Data Protection","--",IF(TotNumDBCopiesServer>COUNTA(B$15:B23),B23+1,"--")) -> -- | C24: =IF(B24="--","--",IF(BackupFreq="Daily Full","Full",IF(AND(NumDBLUN=1,OR($C23="Incremental",$C23="Differential")),IF(BackupFreq="Weekly Full / Daily Incremental","Incremental","Differential"),IF(OR(IF(DBSet1="--",0,VALUE(IF(NumDBLUN=1,RIGHT(DBSet1,1),MID(DBSet1,IF(LEN(DBSet1)=7,LEN(DBSet1)-4,LEN(DBSet1)-6),1))))=B24,IF(DBSet2="--",0,VALUE(IF(NumDBLUN=1,RIGHT(DBSet2,1),IF(LEN(DBSet2)<9,MID(DBSet2,IF(LEN(DBSet2)=7,LEN(DBSet2)-4,LEN(DBSet2)-5),1),MID(DBSet2,LEN(DBSet2)-5,2)))))=B24,IF(DBSet3="--",0,VALUE(IF(NumDBLUN=1,RIGHT(DBSet3,1),IF(LEN(DBSet3)<9,MID(DBSet3,IF(LEN(DBSet3)=7,LEN(DBSet3)-4,LEN(DBSet3)-5),1),MID(DBSet3,LEN(DBSet3)-6,2)))))=B24,IF(DBSet4="--",0,VALUE(IF(NumDBLUN=1,RIGHT(DBSet4,1),IF(LEN(DBSet4)<9,MID(DBSet4,IF(LEN(DBSet4)=7,LEN(DBSet4)-4,LEN(DBSet4)-5),1),MID(DBSet4,LEN(DBSet4)-6,2)))))=B24,IF(DBSet5="--",0,VALUE(IF(NumDBLUN=1,RIGHT(DBSet5,1),IF(LEN(DBSet5)<9,MID(DBSet5,IF(LEN(DBSet5)=7,LEN(DBSet5)-4,LEN(DBSet5)-5),1),MID(DBSet5,LEN(DBSet5)-6,2)))))=B24,IF(DBSet6="--",0,VALUE(IF(NumDBLUN=1,RIGHT(DBSet6,1),IF(LEN(DBSet6)<9,MID(DBSet6,IF(LEN(DBSet6)=7,LEN(DBSet6)-4,LEN(DBSet6)-5),1),MID(DBSet6,LEN(DBSet6)-6,2)))))=B24,IF(DBSet7="--",0,VALUE(IF(NumDBLUN=1,RIGHT(DBSet7,1),IF(LEN(DBSet7)<9,MID(DBSet7,IF(LEN(DBSet7)=7,LEN(DBSet7)-4,LEN(DBSet7)-5),1),MID(DBSet7,LEN(DBSet7)-6,2)))))=B24,IF(DBSet8="--",0,VALUE(IF(NumDBLUN=1,RIGHT(DBSet8,1),IF(LEN(DBSet8)<9,MID(DBSet8,IF(LEN(DBSet8)=7,LEN(DBSet8)-4,LEN(DBSet8)-5),1),MID(DBSet8,LEN(DBSet8)-6,2)))))=B24,IF(DBSet9="--",0,VALUE(IF(NumDBLUN=1,RIGHT(DBSet9,1),IF(LEN(DBSet9)<9,MID(DBSet9,IF(LEN(DBSet9)=7,LEN(DBSet9)-4,LEN(DBSet9)-5),1),MID(DBSet9,LEN(DBSet9)-6,2)))))=B24,IF(DBSet10="--",0,VALUE(IF(NumDBLUN=1,RIGHT(DBSet10,2),IF(LEN(DBSet10)<9,MID(DBSet10,IF(LEN(DBSet10)=7,LEN(DBSet10)-4,LEN(DBSet10)-5),1),MID(DBSet10,LEN(DBSet10)-6,2)))))=B24,IF(DBSet11="--",0,VALUE(IF(NumDBLUN=1,RIGHT(DBSet11,2),IF(LEN(DBSet11)<9,MID(DBSet11,IF(LEN(DBSet11)=7,LEN(DBSet11)-4,LEN(DBSet11)-5),1),MID(DBSet11,LEN(DBSet11)-6,2)))))=B24,IF(DBSet12="--",0,VALUE(IF(NumDBLUN=1,RIGHT(DBSet12,2),IF(LEN(DBSet12)<9,MID(DBSet12,IF(LEN(DBSet12)=7,LEN(DBSet12)-4,LEN(DBSet12)-5),1),MID(DBSet12,LEN(DBSet12)-6,2)))))=B24,IF(DBSet13="--",0,VALUE(IF(NumDBLUN=1,RIGHT(DBSet13,2),IF(LEN(DBSet13)<9,MID(DBSet13,IF(LEN(DBSet13)=7,LEN(DBSet13)-4,LEN(DBSet13)-5),1),MID(DBSet13,LEN(DBSet13)-6,2)))))=B24,IF(DBSet14="--",0,VALUE(IF(NumDBLUN=1,RIGHT(DBSet14,2),IF(LEN(DBSet14)<9,MID(DBSet14,IF(LEN(DBSet14)=7,LEN(DBSet14)-4,LEN(DBSet14)-5),1),MID(DBSet14,LEN(DBSet14)-6,2)))))=B24,IF(DBSet15="--",0,VALUE(IF(NumDBLUN=1,RIGHT(DBSet15,2),IF(LEN(DBSet15)<9,MID(DBSet15,IF(LEN(DBSet15)=7,LEN(DBSet15)-4,LEN(DBSet15)-5),1),MID(DBSet15,LEN(DBSet15)-6,2)))))=B24)=TRUE,"Full",IF(BackupFreq="Weekly Full / Daily Incremental","Incremental","Differential"))))) -> -- | D24: -- | E24: -- | F24: -- | G24: -- | H24: -- | I24: --
B25: =IF(BackupMethod="Exchange Native Data Protection","--",IF(TotNumDBCopiesServer>COUNTA(B$15:B24),B24+1,"--")) -> -- | C25: =IF(B25="--","--",IF(BackupFreq="Daily Full","Full",IF(AND(NumDBLUN=1,OR($C24="Incremental",$C24="Differential")),IF(BackupFreq="Weekly Full / Daily Incremental","Incremental","Differential"),IF(OR(IF(DBSet1="--",0,VALUE(IF(NumDBLUN=1,RIGHT(DBSet1,1),MID(DBSet1,IF(LEN(DBSet1)=7,LEN(DBSet1)-4,LEN(DBSet1)-6),1))))=B25,IF(DBSet2="--",0,VALUE(IF(NumDBLUN=1,RIGHT(DBSet2,1),IF(LEN(DBSet2)<9,MID(DBSet2,IF(LEN(DBSet2)=7,LEN(DBSet2)-4,LEN(DBSet2)-5),1),MID(DBSet2,LEN(DBSet2)-5,2)))))=B25,IF(DBSet3="--",0,VALUE(IF(NumDBLUN=1,RIGHT(DBSet3,1),IF(LEN(DBSet3)<9,MID(DBSet3,IF(LEN(DBSet3)=7,LEN(DBSet3)-4,LEN(DBSet3)-5),1),MID(DBSet3,LEN(DBSet3)-6,2)))))=B25,IF(DBSet4="--",0,VALUE(IF(NumDBLUN=1,RIGHT(DBSet4,1),IF(LEN(DBSet4)<9,MID(DBSet4,IF(LEN(DBSet4)=7,LEN(DBSet4)-4,LEN(DBSet4)-5),1),MID(DBSet4,LEN(DBSet4)-6,2)))))=B25,IF(DBSet5="--",0,VALUE(IF(NumDBLUN=1,RIGHT(DBSet5,1),IF(LEN(DBSet5)<9,MID(DBSet5,IF(LEN(DBSet5)=7,LEN(DBSet5)-4,LEN(DBSet5)-5),1),MID(DBSet5,LEN(DBSet5)-6,2)))))=B25,IF(DBSet6="--",0,VALUE(IF(NumDBLUN=1,RIGHT(DBSet6,1),IF(LEN(DBSet6)<9,MID(DBSet6,IF(LEN(DBSet6)=7,LEN(DBSet6)-4,LEN(DBSet6)-5),1),MID(DBSet6,LEN(DBSet6)-6,2)))))=B25,IF(DBSet7="--",0,VALUE(IF(NumDBLUN=1,RIGHT(DBSet7,1),IF(LEN(DBSet7)<9,MID(DBSet7,IF(LEN(DBSet7)=7,LEN(DBSet7)-4,LEN(DBSet7)-5),1),MID(DBSet7,LEN(DBSet7)-6,2)))))=B25,IF(DBSet8="--",0,VALUE(IF(NumDBLUN=1,RIGHT(DBSet8,1),IF(LEN(DBSet8)<9,MID(DBSet8,IF(LEN(DBSet8)=7,LEN(DBSet8)-4,LEN(DBSet8)-5),1),MID(DBSet8,LEN(DBSet8)-6,2)))))=B25,IF(DBSet9="--",0,VALUE(IF(NumDBLUN=1,RIGHT(DBSet9,1),IF(LEN(DBSet9)<9,MID(DBSet9,IF(LEN(DBSet9)=7,LEN(DBSet9)-4,LEN(DBSet9)-5),1),MID(DBSet9,LEN(DBSet9)-6,2)))))=B25,IF(DBSet10="--",0,VALUE(IF(NumDBLUN=1,RIGHT(DBSet10,2),IF(LEN(DBSet10)<9,MID(DBSet10,IF(LEN(DBSet10)=7,LEN(DBSet10)-4,LEN(DBSet10)-5),1),MID(DBSet10,LEN(DBSet10)-6,2)))))=B25,IF(DBSet11="--",0,VALUE(IF(NumDBLUN=1,RIGHT(DBSet11,2),IF(LEN(DBSet11)<9,MID(DBSet11,IF(LEN(DBSet11)=7,LEN(DBSet11)-4,LEN(DBSet11)-5),1),MID(DBSet11,LEN(DBSet11)-6,2)))))=B25,IF(DBSet12="--",0,VALUE(IF(NumDBLUN=1,RIGHT(DBSet12,2),IF(LEN(DBSet12)<9,MID(DBSet12,IF(LEN(DBSet12)=7,LEN(DBSet12)-4,LEN(DBSet12)-5),1),MID(DBSet12,LEN(DBSet12)-6,2)))))=B25,IF(DBSet13="--",0,VALUE(IF(NumDBLUN=1,RIGHT(DBSet13,2),IF(LEN(DBSet13)<9,MID(DBSet13,IF(LEN(DBSet13)=7,LEN(DBSet13)-4,LEN(DBSet13)-5),1),MID(DBSet13,LEN(DBSet13)-6,2)))))=B25,IF(DBSet14="--",0,VALUE(IF(NumDBLUN=1,RIGHT(DBSet14,2),IF(LEN(DBSet14)<9,MID(DBSet14,IF(LEN(DBSet14)=7,LEN(DBSet14)-4,LEN(DBSet14)-5),1),MID(DBSet14,LEN(DBSet14)-6,2)))))=B25,IF(DBSet15="--",0,VALUE(IF(NumDBLUN=1,RIGHT(DBSet15,2),IF(LEN(DBSet15)<9,MID(DBSet15,IF(LEN(DBSet15)=7,LEN(DBSet15)-4,LEN(DBSet15)-5),1),MID(DBSet15,LEN(DBSet15)-6,2)))))=B25)=TRUE,"Full",IF(BackupFreq="Weekly Full / Daily Incremental","Incremental","Differential"))))) -> -- | D25: -- | E25: -- | F25: -- | G25: -- | H25: -- | I25: --
B26: =IF(BackupMethod="Exchange Native Data Protection","--",IF(TotNumDBCopiesServer>COUNTA(B$15:B25),B25+1,"--")) -> -- | C26: =IF(B26="--","--",IF(BackupFreq="Daily Full","Full",IF(AND(NumDBLUN=1,OR($C25="Incremental",$C25="Differential")),IF(BackupFreq="Weekly Full / Daily Incremental","Incremental","Differential"),IF(OR(IF(DBSet1="--",0,VALUE(IF(NumDBLUN=1,RIGHT(DBSet1,1),MID(DBSet1,IF(LEN(DBSet1)=7,LEN(DBSet1)-4,LEN(DBSet1)-6),1))))=B26,IF(DBSet2="--",0,VALUE(IF(NumDBLUN=1,RIGHT(DBSet2,1),IF(LEN(DBSet2)<9,MID(DBSet2,IF(LEN(DBSet2)=7,LEN(DBSet2)-4,LEN(DBSet2)-5),1),MID(DBSet2,LEN(DBSet2)-5,2)))))=B26,IF(DBSet3="--",0,VALUE(IF(NumDBLUN=1,RIGHT(DBSet3,1),IF(LEN(DBSet3)<9,MID(DBSet3,IF(LEN(DBSet3)=7,LEN(DBSet3)-4,LEN(DBSet3)-5),1),MID(DBSet3,LEN(DBSet3)-6,2)))))=B26,IF(DBSet4="--",0,VALUE(IF(NumDBLUN=1,RIGHT(DBSet4,1),IF(LEN(DBSet4)<9,MID(DBSet4,IF(LEN(DBSet4)=7,LEN(DBSet4)-4,LEN(DBSet4)-5),1),MID(DBSet4,LEN(DBSet4)-6,2)))))=B26,IF(DBSet5="--",0,VALUE(IF(NumDBLUN=1,RIGHT(DBSet5,1),IF(LEN(DBSet5)<9,MID(DBSet5,IF(LEN(DBSet5)=7,LEN(DBSet5)-4,LEN(DBSet5)-5),1),MID(DBSet5,LEN(DBSet5)-6,2)))))=B26,IF(DBSet6="--",0,VALUE(IF(NumDBLUN=1,RIGHT(DBSet6,1),IF(LEN(DBSet6)<9,MID(DBSet6,IF(LEN(DBSet6)=7,LEN(DBSet6)-4,LEN(DBSet6)-5),1),MID(DBSet6,LEN(DBSet6)-6,2)))))=B26,IF(DBSet7="--",0,VALUE(IF(NumDBLUN=1,RIGHT(DBSet7,1),IF(LEN(DBSet7)<9,MID(DBSet7,IF(LEN(DBSet7)=7,LEN(DBSet7)-4,LEN(DBSet7)-5),1),MID(DBSet7,LEN(DBSet7)-6,2)))))=B26,IF(DBSet8="--",0,VALUE(IF(NumDBLUN=1,RIGHT(DBSet8,1),IF(LEN(DBSet8)<9,MID(DBSet8,IF(LEN(DBSet8)=7,LEN(DBSet8)-4,LEN(DBSet8)-5),1),MID(DBSet8,LEN(DBSet8)-6,2)))))=B26,IF(DBSet9="--",0,VALUE(IF(NumDBLUN=1,RIGHT(DBSet9,1),IF(LEN(DBSet9)<9,MID(DBSet9,IF(LEN(DBSet9)=7,LEN(DBSet9)-4,LEN(DBSet9)-5),1),MID(DBSet9,LEN(DBSet9)-6,2)))))=B26,IF(DBSet10="--",0,VALUE(IF(NumDBLUN=1,RIGHT(DBSet10,2),IF(LEN(DBSet10)<9,MID(DBSet10,IF(LEN(DBSet10)=7,LEN(DBSet10)-4,LEN(DBSet10)-5),1),MID(DBSet10,LEN(DBSet10)-6,2)))))=B26,IF(DBSet11="--",0,VALUE(IF(NumDBLUN=1,RIGHT(DBSet11,2),IF(LEN(DBSet11)<9,MID(DBSet11,IF(LEN(DBSet11)=7,LEN(DBSet11)-4,LEN(DBSet11)-5),1),MID(DBSet11,LEN(DBSet11)-6,2)))))=B26,IF(DBSet12="--",0,VALUE(IF(NumDBLUN=1,RIGHT(DBSet12,2),IF(LEN(DBSet12)<9,MID(DBSet12,IF(LEN(DBSet12)=7,LEN(DBSet12)-4,LEN(DBSet12)-5),1),MID(DBSet12,LEN(DBSet12)-6,2)))))=B26,IF(DBSet13="--",0,VALUE(IF(NumDBLUN=1,RIGHT(DBSet13,2),IF(LEN(DBSet13)<9,MID(DBSet13,IF(LEN(DBSet13)=7,LEN(DBSet13)-4,LEN(DBSet13)-5),1),MID(DBSet13,LEN(DBSet13)-6,2)))))=B26,IF(DBSet14="--",0,VALUE(IF(NumDBLUN=1,RIGHT(DBSet14,2),IF(LEN(DBSet14)<9,MID(DBSet14,IF(LEN(DBSet14)=7,LEN(DBSet14)-4,LEN(DBSet14)-5),1),MID(DBSet14,LEN(DBSet14)-6,2)))))=B26,IF(DBSet15="--",0,VALUE(IF(NumDBLUN=1,RIGHT(DBSet15,2),IF(LEN(DBSet15)<9,MID(DBSet15,IF(LEN(DBSet15)=7,LEN(DBSet15)-4,LEN(DBSet15)-5),1),MID(DBSet15,LEN(DBSet15)-6,2)))))=B26)=TRUE,"Full",IF(BackupFreq="Weekly Full / Daily Incremental","Incremental","Differential"))))) -> -- | D26: -- | E26: -- | F26: -- | G26: -- | H26: -- | I26: --
B27: =IF(BackupMethod="Exchange Native Data Protection","--",IF(TotNumDBCopiesServer>COUNTA(B$15:B26),B26+1,"--")) -> -- | C27: =IF(B27="--","--",IF(BackupFreq="Daily Full","Full",IF(AND(NumDBLUN=1,OR($C26="Incremental",$C26="Differential")),IF(BackupFreq="Weekly Full / Daily Incremental","Incremental","Differential"),IF(OR(IF(DBSet1="--",0,VALUE(IF(NumDBLUN=1,RIGHT(DBSet1,1),MID(DBSet1,IF(LEN(DBSet1)=7,LEN(DBSet1)-4,LEN(DBSet1)-6),1))))=B27,IF(DBSet2="--",0,VALUE(IF(NumDBLUN=1,RIGHT(DBSet2,1),IF(LEN(DBSet2)<9,MID(DBSet2,IF(LEN(DBSet2)=7,LEN(DBSet2)-4,LEN(DBSet2)-5),1),MID(DBSet2,LEN(DBSet2)-5,2)))))=B27,IF(DBSet3="--",0,VALUE(IF(NumDBLUN=1,RIGHT(DBSet3,1),IF(LEN(DBSet3)<9,MID(DBSet3,IF(LEN(DBSet3)=7,LEN(DBSet3)-4,LEN(DBSet3)-5),1),MID(DBSet3,LEN(DBSet3)-6,2)))))=B27,IF(DBSet4="--",0,VALUE(IF(NumDBLUN=1,RIGHT(DBSet4,1),IF(LEN(DBSet4)<9,MID(DBSet4,IF(LEN(DBSet4)=7,LEN(DBSet4)-4,LEN(DBSet4)-5),1),MID(DBSet4,LEN(DBSet4)-6,2)))))=B27,IF(DBSet5="--",0,VALUE(IF(NumDBLUN=1,RIGHT(DBSet5,1),IF(LEN(DBSet5)<9,MID(DBSet5,IF(LEN(DBSet5)=7,LEN(DBSet5)-4,LEN(DBSet5)-5),1),MID(DBSet5,LEN(DBSet5)-6,2)))))=B27,IF(DBSet6="--",0,VALUE(IF(NumDBLUN=1,RIGHT(DBSet6,1),IF(LEN(DBSet6)<9,MID(DBSet6,IF(LEN(DBSet6)=7,LEN(DBSet6)-4,LEN(DBSet6)-5),1),MID(DBSet6,LEN(DBSet6)-6,2)))))=B27,IF(DBSet7="--",0,VALUE(IF(NumDBLUN=1,RIGHT(DBSet7,1),IF(LEN(DBSet7)<9,MID(DBSet7,IF(LEN(DBSet7)=7,LEN(DBSet7)-4,LEN(DBSet7)-5),1),MID(DBSet7,LEN(DBSet7)-6,2)))))=B27,IF(DBSet8="--",0,VALUE(IF(NumDBLUN=1,RIGHT(DBSet8,1),IF(LEN(DBSet8)<9,MID(DBSet8,IF(LEN(DBSet8)=7,LEN(DBSet8)-4,LEN(DBSet8)-5),1),MID(DBSet8,LEN(DBSet8)-6,2)))))=B27,IF(DBSet9="--",0,VALUE(IF(NumDBLUN=1,RIGHT(DBSet9,1),IF(LEN(DBSet9)<9,MID(DBSet9,IF(LEN(DBSet9)=7,LEN(DBSet9)-4,LEN(DBSet9)-5),1),MID(DBSet9,LEN(DBSet9)-6,2)))))=B27,IF(DBSet10="--",0,VALUE(IF(NumDBLUN=1,RIGHT(DBSet10,2),IF(LEN(DBSet10)<9,MID(DBSet10,IF(LEN(DBSet10)=7,LEN(DBSet10)-4,LEN(DBSet10)-5),1),MID(DBSet10,LEN(DBSet10)-6,2)))))=B27,IF(DBSet11="--",0,VALUE(IF(NumDBLUN=1,RIGHT(DBSet11,2),IF(LEN(DBSet11)<9,MID(DBSet11,IF(LEN(DBSet11)=7,LEN(DBSet11)-4,LEN(DBSet11)-5),1),MID(DBSet11,LEN(DBSet11)-6,2)))))=B27,IF(DBSet12="--",0,VALUE(IF(NumDBLUN=1,RIGHT(DBSet12,2),IF(LEN(DBSet12)<9,MID(DBSet12,IF(LEN(DBSet12)=7,LEN(DBSet12)-4,LEN(DBSet12)-5),1),MID(DBSet12,LEN(DBSet12)-6,2)))))=B27,IF(DBSet13="--",0,VALUE(IF(NumDBLUN=1,RIGHT(DBSet13,2),IF(LEN(DBSet13)<9,MID(DBSet13,IF(LEN(DBSet13)=7,LEN(DBSet13)-4,LEN(DBSet13)-5),1),MID(DBSet13,LEN(DBSet13)-6,2)))))=B27,IF(DBSet14="--",0,VALUE(IF(NumDBLUN=1,RIGHT(DBSet14,2),IF(LEN(DBSet14)<9,MID(DBSet14,IF(LEN(DBSet14)=7,LEN(DBSet14)-4,LEN(DBSet14)-5),1),MID(DBSet14,LEN(DBSet14)-6,2)))))=B27,IF(DBSet15="--",0,VALUE(IF(NumDBLUN=1,RIGHT(DBSet15,2),IF(LEN(DBSet15)<9,MID(DBSet15,IF(LEN(DBSet15)=7,LEN(DBSet15)-4,LEN(DBSet15)-5),1),MID(DBSet15,LEN(DBSet15)-6,2)))))=B27)=TRUE,"Full",IF(BackupFreq="Weekly Full / Daily Incremental","Incremental","Differential"))))) -> -- | D27: -- | E27: -- | F27: -- | G27: -- | H27: -- | I27: --
B28: =IF(BackupMethod="Exchange Native Data Protection","--",IF(TotNumDBCopiesServer>COUNTA(B$15:B27),B27+1,"--")) -> -- | C28: =IF(B28="--","--",IF(BackupFreq="Daily Full","Full",IF(AND(NumDBLUN=1,OR($C27="Incremental",$C27="Differential")),IF(BackupFreq="Weekly Full / Daily Incremental","Incremental","Differential"),IF(OR(IF(DBSet1="--",0,VALUE(IF(NumDBLUN=1,RIGHT(DBSet1,1),MID(DBSet1,IF(LEN(DBSet1)=7,LEN(DBSet1)-4,LEN(DBSet1)-6),1))))=B28,IF(DBSet2="--",0,VALUE(IF(NumDBLUN=1,RIGHT(DBSet2,1),IF(LEN(DBSet2)<9,MID(DBSet2,IF(LEN(DBSet2)=7,LEN(DBSet2)-4,LEN(DBSet2)-5),1),MID(DBSet2,LEN(DBSet2)-5,2)))))=B28,IF(DBSet3="--",0,VALUE(IF(NumDBLUN=1,RIGHT(DBSet3,1),IF(LEN(DBSet3)<9,MID(DBSet3,IF(LEN(DBSet3)=7,LEN(DBSet3)-4,LEN(DBSet3)-5),1),MID(DBSet3,LEN(DBSet3)-6,2)))))=B28,IF(DBSet4="--",0,VALUE(IF(NumDBLUN=1,RIGHT(DBSet4,1),IF(LEN(DBSet4)<9,MID(DBSet4,IF(LEN(DBSet4)=7,LEN(DBSet4)-4,LEN(DBSet4)-5),1),MID(DBSet4,LEN(DBSet4)-6,2)))))=B28,IF(DBSet5="--",0,VALUE(IF(NumDBLUN=1,RIGHT(DBSet5,1),IF(LEN(DBSet5)<9,MID(DBSet5,IF(LEN(DBSet5)=7,LEN(DBSet5)-4,LEN(DBSet5)-5),1),MID(DBSet5,LEN(DBSet5)-6,2)))))=B28,IF(DBSet6="--",0,VALUE(IF(NumDBLUN=1,RIGHT(DBSet6,1),IF(LEN(DBSet6)<9,MID(DBSet6,IF(LEN(DBSet6)=7,LEN(DBSet6)-4,LEN(DBSet6)-5),1),MID(DBSet6,LEN(DBSet6)-6,2)))))=B28,IF(DBSet7="--",0,VALUE(IF(NumDBLUN=1,RIGHT(DBSet7,1),IF(LEN(DBSet7)<9,MID(DBSet7,IF(LEN(DBSet7)=7,LEN(DBSet7)-4,LEN(DBSet7)-5),1),MID(DBSet7,LEN(DBSet7)-6,2)))))=B28,IF(DBSet8="--",0,VALUE(IF(NumDBLUN=1,RIGHT(DBSet8,1),IF(LEN(DBSet8)<9,MID(DBSet8,IF(LEN(DBSet8)=7,LEN(DBSet8)-4,LEN(DBSet8)-5),1),MID(DBSet8,LEN(DBSet8)-6,2)))))=B28,IF(DBSet9="--",0,VALUE(IF(NumDBLUN=1,RIGHT(DBSet9,1),IF(LEN(DBSet9)<9,MID(DBSet9,IF(LEN(DBSet9)=7,LEN(DBSet9)-4,LEN(DBSet9)-5),1),MID(DBSet9,LEN(DBSet9)-6,2)))))=B28,IF(DBSet10="--",0,VALUE(IF(NumDBLUN=1,RIGHT(DBSet10,2),IF(LEN(DBSet10)<9,MID(DBSet10,IF(LEN(DBSet10)=7,LEN(DBSet10)-4,LEN(DBSet10)-5),1),MID(DBSet10,LEN(DBSet10)-6,2)))))=B28,IF(DBSet11="--",0,VALUE(IF(NumDBLUN=1,RIGHT(DBSet11,2),IF(LEN(DBSet11)<9,MID(DBSet11,IF(LEN(DBSet11)=7,LEN(DBSet11)-4,LEN(DBSet11)-5),1),MID(DBSet11,LEN(DBSet11)-6,2)))))=B28,IF(DBSet12="--",0,VALUE(IF(NumDBLUN=1,RIGHT(DBSet12,2),IF(LEN(DBSet12)<9,MID(DBSet12,IF(LEN(DBSet12)=7,LEN(DBSet12)-4,LEN(DBSet12)-5),1),MID(DBSet12,LEN(DBSet12)-6,2)))))=B28,IF(DBSet13="--",0,VALUE(IF(NumDBLUN=1,RIGHT(DBSet13,2),IF(LEN(DBSet13)<9,MID(DBSet13,IF(LEN(DBSet13)=7,LEN(DBSet13)-4,LEN(DBSet13)-5),1),MID(DBSet13,LEN(DBSet13)-6,2)))))=B28,IF(DBSet14="--",0,VALUE(IF(NumDBLUN=1,RIGHT(DBSet14,2),IF(LEN(DBSet14)<9,MID(DBSet14,IF(LEN(DBSet14)=7,LEN(DBSet14)-4,LEN(DBSet14)-5),1),MID(DBSet14,LEN(DBSet14)-6,2)))))=B28,IF(DBSet15="--",0,VALUE(IF(NumDBLUN=1,RIGHT(DBSet15,2),IF(LEN(DBSet15)<9,MID(DBSet15,IF(LEN(DBSet15)=7,LEN(DBSet15)-4,LEN(DBSet15)-5),1),MID(DBSet15,LEN(DBSet15)-6,2)))))=B28)=TRUE,"Full",IF(BackupFreq="Weekly Full / Daily Incremental","Incremental","Differential"))))) -> -- | D28: -- | E28: -- | F28: -- | G28: -- | H28: -- | I28: --
B29: =IF(BackupMethod="Exchange Native Data Protection","--",IF(TotNumDBCopiesServer>COUNTA(B$15:B28),B28+1,"--")) -> -- | C29: =IF(B29="--","--",IF(BackupFreq="Daily Full","Full",IF(OR(BackupMethod="Hardware VSS Backup/Restore",LUNArchitecture="1 LUN / DB"),IF(IF(LEN('LUN Requirements'!H135)=3,VALUE(RIGHT('LUN Requirements'!H135,1)),VALUE(RIGHT('LUN Requirements'!H135,2)))=B29,"Full","Incremental/Differential"),IF(OR(IF(DBSet1="--",0,VALUE(IF(NumDBLUN=1,RIGHT(DBSet1,1),MID(DBSet1,IF(LEN(DBSet1)=7,LEN(DBSet1)-4,LEN(DBSet1)-6),1))))=B29,IF(DBSet2="--",0,VALUE(IF(NumDBLUN=1,RIGHT(DBSet2,1),IF(LEN(DBSet2)<9,MID(DBSet2,IF(LEN(DBSet2)=7,LEN(DBSet2)-4,LEN(DBSet2)-5),1),MID(DBSet2,LEN(DBSet2)-5,2)))))=B29,IF(DBSet3="--",0,VALUE(IF(NumDBLUN=1,RIGHT(DBSet3,1),IF(LEN(DBSet3)<9,MID(DBSet3,IF(LEN(DBSet3)=7,LEN(DBSet3)-4,LEN(DBSet3)-5),1),MID(DBSet3,LEN(DBSet3)-6,2)))))=B29,IF(DBSet4="--",0,VALUE(IF(NumDBLUN=1,RIGHT(DBSet4,1),IF(LEN(DBSet4)<9,MID(DBSet4,IF(LEN(DBSet4)=7,LEN(DBSet4)-4,LEN(DBSet4)-5),1),MID(DBSet4,LEN(DBSet4)-6,2)))))=B29,IF(DBSet5="--",0,VALUE(IF(NumDBLUN=1,RIGHT(DBSet5,1),IF(LEN(DBSet5)<9,MID(DBSet5,IF(LEN(DBSet5)=7,LEN(DBSet5)-4,LEN(DBSet5)-5),1),MID(DBSet5,LEN(DBSet5)-6,2)))))=B29,IF(DBSet6="--",0,VALUE(IF(NumDBLUN=1,RIGHT(DBSet6,1),IF(LEN(DBSet6)<9,MID(DBSet6,IF(LEN(DBSet6)=7,LEN(DBSet6)-4,LEN(DBSet6)-5),1),MID(DBSet6,LEN(DBSet6)-6,2)))))=B29,IF(DBSet7="--",0,VALUE(IF(NumDBLUN=1,RIGHT(DBSet7,1),IF(LEN(DBSet7)<9,MID(DBSet7,IF(LEN(DBSet7)=7,LEN(DBSet7)-4,LEN(DBSet7)-5),1),MID(DBSet7,LEN(DBSet7)-6,2)))))=B29,IF(DBSet8="--",0,VALUE(IF(NumDBLUN=1,RIGHT(DBSet8,1),IF(LEN(DBSet8)<9,MID(DBSet8,IF(LEN(DBSet8)=7,LEN(DBSet8)-4,LEN(DBSet8)-5),1),MID(DBSet8,LEN(DBSet8)-6,2)))))=B29,IF(DBSet9="--",0,VALUE(IF(NumDBLUN=1,RIGHT(DBSet9,1),IF(LEN(DBSet9)<9,MID(DBSet9,IF(LEN(DBSet9)=7,LEN(DBSet9)-4,LEN(DBSet9)-5),1),MID(DBSet9,LEN(DBSet9)-6,2)))))=B29,IF(DBSet10="--",0,VALUE(IF(NumDBLUN=1,RIGHT(DBSet10,2),IF(LEN(DBSet10)<9,MID(DBSet10,IF(LEN(DBSet10)=7,LEN(DBSet10)-4,LEN(DBSet10)-5),1),MID(DBSet10,LEN(DBSet10)-6,2)))))=B29,IF(DBSet11="--",0,VALUE(IF(NumDBLUN=1,RIGHT(DBSet11,2),IF(LEN(DBSet11)<9,MID(DBSet11,IF(LEN(DBSet11)=7,LEN(DBSet11)-4,LEN(DBSet11)-5),1),MID(DBSet11,LEN(DBSet11)-6,2)))))=B29,IF(DBSet12="--",0,VALUE(IF(NumDBLUN=1,RIGHT(DBSet12,2),IF(LEN(DBSet12)<9,MID(DBSet12,IF(LEN(DBSet12)=7,LEN(DBSet12)-4,LEN(DBSet12)-5),1),MID(DBSet12,LEN(DBSet12)-6,2)))))=B29,IF(DBSet13="--",0,VALUE(IF(NumDBLUN=1,RIGHT(DBSet13,2),IF(LEN(DBSet13)<9,MID(DBSet13,IF(LEN(DBSet13)=7,LEN(DBSet13)-4,LEN(DBSet13)-5),1),MID(DBSet13,LEN(DBSet13)-6,2)))))=B29,IF(DBSet14="--",0,VALUE(IF(NumDBLUN=1,RIGHT(DBSet14,2),IF(LEN(DBSet14)<9,MID(DBSet14,IF(LEN(DBSet14)=7,LEN(DBSet14)-4,LEN(DBSet14)-5),1),MID(DBSet14,LEN(DBSet14)-6,2)))))=B29,IF(DBSet15="--",0,VALUE(IF(NumDBLUN=1,RIGHT(DBSet15,2),IF(LEN(DBSet15)<9,MID(DBSet15,IF(LEN(DBSet15)=7,LEN(DBSet15)-4,LEN(DBSet15)-5),1),MID(DBSet15,LEN(DBSet15)-6,2)))))=B29)=TRUE,"Full",IF(BackupFreq="Weekly Full / Daily Incremental","Incremental","Differential"))))) -> -- | D29: -- | E29: -- | F29: -- | G29: -- | H29: -- | I29: --
B30: =IF(BackupMethod="Exchange Native Data Protection","--",IF(TotNumDBCopiesServer>COUNTA(B$15:B29),B29+1,"--")) -> -- | C30: =IF(B30="--","--",IF(BackupFreq="Daily Full","Full",IF(AND(NumDBLUN=1,$C29="Full"),IF(BackupFreq="Weekly Full / Daily Incremental","Incremental","Differential"),IF(OR(IF(DBSet1="--",0,VALUE(IF(NumDBLUN=1,RIGHT(DBSet1,1),MID(DBSet1,IF(LEN(DBSet1)=7,LEN(DBSet1)-4,LEN(DBSet1)-6),1))))=B30,IF(DBSet2="--",0,VALUE(IF(NumDBLUN=1,RIGHT(DBSet2,1),IF(LEN(DBSet2)<9,MID(DBSet2,IF(LEN(DBSet2)=7,LEN(DBSet2)-4,LEN(DBSet2)-5),1),MID(DBSet2,LEN(DBSet2)-5,2)))))=B30,IF(DBSet3="--",0,VALUE(IF(NumDBLUN=1,RIGHT(DBSet3,1),IF(LEN(DBSet3)<9,MID(DBSet3,IF(LEN(DBSet3)=7,LEN(DBSet3)-4,LEN(DBSet3)-5),1),MID(DBSet3,LEN(DBSet3)-6,2)))))=B30,IF(DBSet4="--",0,VALUE(IF(NumDBLUN=1,RIGHT(DBSet4,1),IF(LEN(DBSet4)<9,MID(DBSet4,IF(LEN(DBSet4)=7,LEN(DBSet4)-4,LEN(DBSet4)-5),1),MID(DBSet4,LEN(DBSet4)-6,2)))))=B30,IF(DBSet5="--",0,VALUE(IF(NumDBLUN=1,RIGHT(DBSet5,1),IF(LEN(DBSet5)<9,MID(DBSet5,IF(LEN(DBSet5)=7,LEN(DBSet5)-4,LEN(DBSet5)-5),1),MID(DBSet5,LEN(DBSet5)-6,2)))))=B30,IF(DBSet6="--",0,VALUE(IF(NumDBLUN=1,RIGHT(DBSet6,1),IF(LEN(DBSet6)<9,MID(DBSet6,IF(LEN(DBSet6)=7,LEN(DBSet6)-4,LEN(DBSet6)-5),1),MID(DBSet6,LEN(DBSet6)-6,2)))))=B30,IF(DBSet7="--",0,VALUE(IF(NumDBLUN=1,RIGHT(DBSet7,1),IF(LEN(DBSet7)<9,MID(DBSet7,IF(LEN(DBSet7)=7,LEN(DBSet7)-4,LEN(DBSet7)-5),1),MID(DBSet7,LEN(DBSet7)-6,2)))))=B30,IF(DBSet8="--",0,VALUE(IF(NumDBLUN=1,RIGHT(DBSet8,1),IF(LEN(DBSet8)<9,MID(DBSet8,IF(LEN(DBSet8)=7,LEN(DBSet8)-4,LEN(DBSet8)-5),1),MID(DBSet8,LEN(DBSet8)-6,2)))))=B30,IF(DBSet9="--",0,VALUE(IF(NumDBLUN=1,RIGHT(DBSet9,1),IF(LEN(DBSet9)<9,MID(DBSet9,IF(LEN(DBSet9)=7,LEN(DBSet9)-4,LEN(DBSet9)-5),1),MID(DBSet9,LEN(DBSet9)-6,2)))))=B30,IF(DBSet10="--",0,VALUE(IF(NumDBLUN=1,RIGHT(DBSet10,2),IF(LEN(DBSet10)<9,MID(DBSet10,IF(LEN(DBSet10)=7,LEN(DBSet10)-4,LEN(DBSet10)-5),1),MID(DBSet10,LEN(DBSet10)-6,2)))))=B30,IF(DBSet11="--",0,VALUE(IF(NumDBLUN=1,RIGHT(DBSet11,2),IF(LEN(DBSet11)<9,MID(DBSet11,IF(LEN(DBSet11)=7,LEN(DBSet11)-4,LEN(DBSet11)-5),1),MID(DBSet11,LEN(DBSet11)-6,2)))))=B30,IF(DBSet12="--",0,VALUE(IF(NumDBLUN=1,RIGHT(DBSet12,2),IF(LEN(DBSet12)<9,MID(DBSet12,IF(LEN(DBSet12)=7,LEN(DBSet12)-4,LEN(DBSet12)-5),1),MID(DBSet12,LEN(DBSet12)-6,2)))))=B30,IF(DBSet13="--",0,VALUE(IF(NumDBLUN=1,RIGHT(DBSet13,2),IF(LEN(DBSet13)<9,MID(DBSet13,IF(LEN(DBSet13)=7,LEN(DBSet13)-4,LEN(DBSet13)-5),1),MID(DBSet13,LEN(DBSet13)-6,2)))))=B30,IF(DBSet14="--",0,VALUE(IF(NumDBLUN=1,RIGHT(DBSet14,2),IF(LEN(DBSet14)<9,MID(DBSet14,IF(LEN(DBSet14)=7,LEN(DBSet14)-4,LEN(DBSet14)-5),1),MID(DBSet14,LEN(DBSet14)-6,2)))))=B30,IF(DBSet15="--",0,VALUE(IF(NumDBLUN=1,RIGHT(DBSet15,2),IF(LEN(DBSet15)<9,MID(DBSet15,IF(LEN(DBSet15)=7,LEN(DBSet15)-4,LEN(DBSet15)-5),1),MID(DBSet15,LEN(DBSet15)-6,2)))))=B30)=TRUE,"Full",IF(BackupFreq="Weekly Full / Daily Incremental","Incremental","Differential"))))) -> -- | D30: -- | E30: -- | F30: -- | G30: -- | H30: -- | I30: --
B31: =IF(BackupMethod="Exchange Native Data Protection","--",IF(TotNumDBCopiesServer>COUNTA(B$15:B30),B30+1,"--")) -> -- | C31: =IF(B31="--","--",IF(BackupFreq="Daily Full","Full",IF(AND(NumDBLUN=1,OR($C30="Incremental",$C30="Differential")),IF(BackupFreq="Weekly Full / Daily Incremental","Incremental","Differential"),IF(OR(IF(DBSet1="--",0,VALUE(IF(NumDBLUN=1,RIGHT(DBSet1,1),MID(DBSet1,IF(LEN(DBSet1)=7,LEN(DBSet1)-4,LEN(DBSet1)-6),1))))=B31,IF(DBSet2="--",0,VALUE(IF(NumDBLUN=1,RIGHT(DBSet2,1),IF(LEN(DBSet2)<9,MID(DBSet2,IF(LEN(DBSet2)=7,LEN(DBSet2)-4,LEN(DBSet2)-5),1),MID(DBSet2,LEN(DBSet2)-5,2)))))=B31,IF(DBSet3="--",0,VALUE(IF(NumDBLUN=1,RIGHT(DBSet3,1),IF(LEN(DBSet3)<9,MID(DBSet3,IF(LEN(DBSet3)=7,LEN(DBSet3)-4,LEN(DBSet3)-5),1),MID(DBSet3,LEN(DBSet3)-6,2)))))=B31,IF(DBSet4="--",0,VALUE(IF(NumDBLUN=1,RIGHT(DBSet4,1),IF(LEN(DBSet4)<9,MID(DBSet4,IF(LEN(DBSet4)=7,LEN(DBSet4)-4,LEN(DBSet4)-5),1),MID(DBSet4,LEN(DBSet4)-6,2)))))=B31,IF(DBSet5="--",0,VALUE(IF(NumDBLUN=1,RIGHT(DBSet5,1),IF(LEN(DBSet5)<9,MID(DBSet5,IF(LEN(DBSet5)=7,LEN(DBSet5)-4,LEN(DBSet5)-5),1),MID(DBSet5,LEN(DBSet5)-6,2)))))=B31,IF(DBSet6="--",0,VALUE(IF(NumDBLUN=1,RIGHT(DBSet6,1),IF(LEN(DBSet6)<9,MID(DBSet6,IF(LEN(DBSet6)=7,LEN(DBSet6)-4,LEN(DBSet6)-5),1),MID(DBSet6,LEN(DBSet6)-6,2)))))=B31,IF(DBSet7="--",0,VALUE(IF(NumDBLUN=1,RIGHT(DBSet7,1),IF(LEN(DBSet7)<9,MID(DBSet7,IF(LEN(DBSet7)=7,LEN(DBSet7)-4,LEN(DBSet7)-5),1),MID(DBSet7,LEN(DBSet7)-6,2)))))=B31,IF(DBSet8="--",0,VALUE(IF(NumDBLUN=1,RIGHT(DBSet8,1),IF(LEN(DBSet8)<9,MID(DBSet8,IF(LEN(DBSet8)=7,LEN(DBSet8)-4,LEN(DBSet8)-5),1),MID(DBSet8,LEN(DBSet8)-6,2)))))=B31,IF(DBSet9="--",0,VALUE(IF(NumDBLUN=1,RIGHT(DBSet9,1),IF(LEN(DBSet9)<9,MID(DBSet9,IF(LEN(DBSet9)=7,LEN(DBSet9)-4,LEN(DBSet9)-5),1),MID(DBSet9,LEN(DBSet9)-6,2)))))=B31,IF(DBSet10="--",0,VALUE(IF(NumDBLUN=1,RIGHT(DBSet10,2),IF(LEN(DBSet10)<9,MID(DBSet10,IF(LEN(DBSet10)=7,LEN(DBSet10)-4,LEN(DBSet10)-5),1),MID(DBSet10,LEN(DBSet10)-6,2)))))=B31,IF(DBSet11="--",0,VALUE(IF(NumDBLUN=1,RIGHT(DBSet11,2),IF(LEN(DBSet11)<9,MID(DBSet11,IF(LEN(DBSet11)=7,LEN(DBSet11)-4,LEN(DBSet11)-5),1),MID(DBSet11,LEN(DBSet11)-6,2)))))=B31,IF(DBSet12="--",0,VALUE(IF(NumDBLUN=1,RIGHT(DBSet12,2),IF(LEN(DBSet12)<9,MID(DBSet12,IF(LEN(DBSet12)=7,LEN(DBSet12)-4,LEN(DBSet12)-5),1),MID(DBSet12,LEN(DBSet12)-6,2)))))=B31,IF(DBSet13="--",0,VALUE(IF(NumDBLUN=1,RIGHT(DBSet13,2),IF(LEN(DBSet13)<9,MID(DBSet13,IF(LEN(DBSet13)=7,LEN(DBSet13)-4,LEN(DBSet13)-5),1),MID(DBSet13,LEN(DBSet13)-6,2)))))=B31,IF(DBSet14="--",0,VALUE(IF(NumDBLUN=1,RIGHT(DBSet14,2),IF(LEN(DBSet14)<9,MID(DBSet14,IF(LEN(DBSet14)=7,LEN(DBSet14)-4,LEN(DBSet14)-5),1),MID(DBSet14,LEN(DBSet14)-6,2)))))=B31,IF(DBSet15="--",0,VALUE(IF(NumDBLUN=1,RIGHT(DBSet15,2),IF(LEN(DBSet15)<9,MID(DBSet15,IF(LEN(DBSet15)=7,LEN(DBSet15)-4,LEN(DBSet15)-5),1),MID(DBSet15,LEN(DBSet15)-6,2)))))=B31)=TRUE,"Full",IF(BackupFreq="Weekly Full / Daily Incremental","Incremental","Differential"))))) -> -- | D31: -- | E31: -- | F31: -- | G31: -- | H31: -- | I31: --
B32: =IF(BackupMethod="Exchange Native Data Protection","--",IF(TotNumDBCopiesServer>COUNTA(B$15:B31),B31+1,"--")) -> -- | C32: =IF(B32="--","--",IF(BackupFreq="Daily Full","Full",IF(AND(NumDBLUN=1,OR($C31="Incremental",$C31="Differential")),IF(BackupFreq="Weekly Full / Daily Incremental","Incremental","Differential"),IF(OR(IF(DBSet1="--",0,VALUE(IF(NumDBLUN=1,RIGHT(DBSet1,1),MID(DBSet1,IF(LEN(DBSet1)=7,LEN(DBSet1)-4,LEN(DBSet1)-6),1))))=B32,IF(DBSet2="--",0,VALUE(IF(NumDBLUN=1,RIGHT(DBSet2,1),IF(LEN(DBSet2)<9,MID(DBSet2,IF(LEN(DBSet2)=7,LEN(DBSet2)-4,LEN(DBSet2)-5),1),MID(DBSet2,LEN(DBSet2)-5,2)))))=B32,IF(DBSet3="--",0,VALUE(IF(NumDBLUN=1,RIGHT(DBSet3,1),IF(LEN(DBSet3)<9,MID(DBSet3,IF(LEN(DBSet3)=7,LEN(DBSet3)-4,LEN(DBSet3)-5),1),MID(DBSet3,LEN(DBSet3)-6,2)))))=B32,IF(DBSet4="--",0,VALUE(IF(NumDBLUN=1,RIGHT(DBSet4,1),IF(LEN(DBSet4)<9,MID(DBSet4,IF(LEN(DBSet4)=7,LEN(DBSet4)-4,LEN(DBSet4)-5),1),MID(DBSet4,LEN(DBSet4)-6,2)))))=B32,IF(DBSet5="--",0,VALUE(IF(NumDBLUN=1,RIGHT(DBSet5,1),IF(LEN(DBSet5)<9,MID(DBSet5,IF(LEN(DBSet5)=7,LEN(DBSet5)-4,LEN(DBSet5)-5),1),MID(DBSet5,LEN(DBSet5)-6,2)))))=B32,IF(DBSet6="--",0,VALUE(IF(NumDBLUN=1,RIGHT(DBSet6,1),IF(LEN(DBSet6)<9,MID(DBSet6,IF(LEN(DBSet6)=7,LEN(DBSet6)-4,LEN(DBSet6)-5),1),MID(DBSet6,LEN(DBSet6)-6,2)))))=B32,IF(DBSet7="--",0,VALUE(IF(NumDBLUN=1,RIGHT(DBSet7,1),IF(LEN(DBSet7)<9,MID(DBSet7,IF(LEN(DBSet7)=7,LEN(DBSet7)-4,LEN(DBSet7)-5),1),MID(DBSet7,LEN(DBSet7)-6,2)))))=B32,IF(DBSet8="--",0,VALUE(IF(NumDBLUN=1,RIGHT(DBSet8,1),IF(LEN(DBSet8)<9,MID(DBSet8,IF(LEN(DBSet8)=7,LEN(DBSet8)-4,LEN(DBSet8)-5),1),MID(DBSet8,LEN(DBSet8)-6,2)))))=B32,IF(DBSet9="--",0,VALUE(IF(NumDBLUN=1,RIGHT(DBSet9,1),IF(LEN(DBSet9)<9,MID(DBSet9,IF(LEN(DBSet9)=7,LEN(DBSet9)-4,LEN(DBSet9)-5),1),MID(DBSet9,LEN(DBSet9)-6,2)))))=B32,IF(DBSet10="--",0,VALUE(IF(NumDBLUN=1,RIGHT(DBSet10,2),IF(LEN(DBSet10)<9,MID(DBSet10,IF(LEN(DBSet10)=7,LEN(DBSet10)-4,LEN(DBSet10)-5),1),MID(DBSet10,LEN(DBSet10)-6,2)))))=B32,IF(DBSet11="--",0,VALUE(IF(NumDBLUN=1,RIGHT(DBSet11,2),IF(LEN(DBSet11)<9,MID(DBSet11,IF(LEN(DBSet11)=7,LEN(DBSet11)-4,LEN(DBSet11)-5),1),MID(DBSet11,LEN(DBSet11)-6,2)))))=B32,IF(DBSet12="--",0,VALUE(IF(NumDBLUN=1,RIGHT(DBSet12,2),IF(LEN(DBSet12)<9,MID(DBSet12,IF(LEN(DBSet12)=7,LEN(DBSet12)-4,LEN(DBSet12)-5),1),MID(DBSet12,LEN(DBSet12)-6,2)))))=B32,IF(DBSet13="--",0,VALUE(IF(NumDBLUN=1,RIGHT(DBSet13,2),IF(LEN(DBSet13)<9,MID(DBSet13,IF(LEN(DBSet13)=7,LEN(DBSet13)-4,LEN(DBSet13)-5),1),MID(DBSet13,LEN(DBSet13)-6,2)))))=B32,IF(DBSet14="--",0,VALUE(IF(NumDBLUN=1,RIGHT(DBSet14,2),IF(LEN(DBSet14)<9,MID(DBSet14,IF(LEN(DBSet14)=7,LEN(DBSet14)-4,LEN(DBSet14)-5),1),MID(DBSet14,LEN(DBSet14)-6,2)))))=B32,IF(DBSet15="--",0,VALUE(IF(NumDBLUN=1,RIGHT(DBSet15,2),IF(LEN(DBSet15)<9,MID(DBSet15,IF(LEN(DBSet15)=7,LEN(DBSet15)-4,LEN(DBSet15)-5),1),MID(DBSet15,LEN(DBSet15)-6,2)))))=B32)=TRUE,"Full",IF(BackupFreq="Weekly Full / Daily Incremental","Incremental","Differential"))))) -> -- | D32: -- | E32: -- | F32: -- | G32: -- | H32: -- | I32: --
B33: =IF(BackupMethod="Exchange Native Data Protection","--",IF(TotNumDBCopiesServer>COUNTA(B$15:B32),B32+1,"--")) -> -- | C33: =IF(B33="--","--",IF(BackupFreq="Daily Full","Full",IF(AND(NumDBLUN=1,OR($C32="Incremental",$C32="Differential")),IF(BackupFreq="Weekly Full / Daily Incremental","Incremental","Differential"),IF(OR(IF(DBSet1="--",0,VALUE(IF(NumDBLUN=1,RIGHT(DBSet1,1),MID(DBSet1,IF(LEN(DBSet1)=7,LEN(DBSet1)-4,LEN(DBSet1)-6),1))))=B33,IF(DBSet2="--",0,VALUE(IF(NumDBLUN=1,RIGHT(DBSet2,1),IF(LEN(DBSet2)<9,MID(DBSet2,IF(LEN(DBSet2)=7,LEN(DBSet2)-4,LEN(DBSet2)-5),1),MID(DBSet2,LEN(DBSet2)-5,2)))))=B33,IF(DBSet3="--",0,VALUE(IF(NumDBLUN=1,RIGHT(DBSet3,1),IF(LEN(DBSet3)<9,MID(DBSet3,IF(LEN(DBSet3)=7,LEN(DBSet3)-4,LEN(DBSet3)-5),1),MID(DBSet3,LEN(DBSet3)-6,2)))))=B33,IF(DBSet4="--",0,VALUE(IF(NumDBLUN=1,RIGHT(DBSet4,1),IF(LEN(DBSet4)<9,MID(DBSet4,IF(LEN(DBSet4)=7,LEN(DBSet4)-4,LEN(DBSet4)-5),1),MID(DBSet4,LEN(DBSet4)-6,2)))))=B33,IF(DBSet5="--",0,VALUE(IF(NumDBLUN=1,RIGHT(DBSet5,1),IF(LEN(DBSet5)<9,MID(DBSet5,IF(LEN(DBSet5)=7,LEN(DBSet5)-4,LEN(DBSet5)-5),1),MID(DBSet5,LEN(DBSet5)-6,2)))))=B33,IF(DBSet6="--",0,VALUE(IF(NumDBLUN=1,RIGHT(DBSet6,1),IF(LEN(DBSet6)<9,MID(DBSet6,IF(LEN(DBSet6)=7,LEN(DBSet6)-4,LEN(DBSet6)-5),1),MID(DBSet6,LEN(DBSet6)-6,2)))))=B33,IF(DBSet7="--",0,VALUE(IF(NumDBLUN=1,RIGHT(DBSet7,1),IF(LEN(DBSet7)<9,MID(DBSet7,IF(LEN(DBSet7)=7,LEN(DBSet7)-4,LEN(DBSet7)-5),1),MID(DBSet7,LEN(DBSet7)-6,2)))))=B33,IF(DBSet8="--",0,VALUE(IF(NumDBLUN=1,RIGHT(DBSet8,1),IF(LEN(DBSet8)<9,MID(DBSet8,IF(LEN(DBSet8)=7,LEN(DBSet8)-4,LEN(DBSet8)-5),1),MID(DBSet8,LEN(DBSet8)-6,2)))))=B33,IF(DBSet9="--",0,VALUE(IF(NumDBLUN=1,RIGHT(DBSet9,1),IF(LEN(DBSet9)<9,MID(DBSet9,IF(LEN(DBSet9)=7,LEN(DBSet9)-4,LEN(DBSet9)-5),1),MID(DBSet9,LEN(DBSet9)-6,2)))))=B33,IF(DBSet10="--",0,VALUE(IF(NumDBLUN=1,RIGHT(DBSet10,2),IF(LEN(DBSet10)<9,MID(DBSet10,IF(LEN(DBSet10)=7,LEN(DBSet10)-4,LEN(DBSet10)-5),1),MID(DBSet10,LEN(DBSet10)-6,2)))))=B33,IF(DBSet11="--",0,VALUE(IF(NumDBLUN=1,RIGHT(DBSet11,2),IF(LEN(DBSet11)<9,MID(DBSet11,IF(LEN(DBSet11)=7,LEN(DBSet11)-4,LEN(DBSet11)-5),1),MID(DBSet11,LEN(DBSet11)-6,2)))))=B33,IF(DBSet12="--",0,VALUE(IF(NumDBLUN=1,RIGHT(DBSet12,2),IF(LEN(DBSet12)<9,MID(DBSet12,IF(LEN(DBSet12)=7,LEN(DBSet12)-4,LEN(DBSet12)-5),1),MID(DBSet12,LEN(DBSet12)-6,2)))))=B33,IF(DBSet13="--",0,VALUE(IF(NumDBLUN=1,RIGHT(DBSet13,2),IF(LEN(DBSet13)<9,MID(DBSet13,IF(LEN(DBSet13)=7,LEN(DBSet13)-4,LEN(DBSet13)-5),1),MID(DBSet13,LEN(DBSet13)-6,2)))))=B33,IF(DBSet14="--",0,VALUE(IF(NumDBLUN=1,RIGHT(DBSet14,2),IF(LEN(DBSet14)<9,MID(DBSet14,IF(LEN(DBSet14)=7,LEN(DBSet14)-4,LEN(DBSet14)-5),1),MID(DBSet14,LEN(DBSet14)-6,2)))))=B33,IF(DBSet15="--",0,VALUE(IF(NumDBLUN=1,RIGHT(DBSet15,2),IF(LEN(DBSet15)<9,MID(DBSet15,IF(LEN(DBSet15)=7,LEN(DBSet15)-4,LEN(DBSet15)-5),1),MID(DBSet15,LEN(DBSet15)-6,2)))))=B33)=TRUE,"Full",IF(BackupFreq="Weekly Full / Daily Incremental","Incremental","Differential"))))) -> -- | D33: -- | E33: -- | F33: -- | G33: -- | H33: -- | I33: --
B34: =IF(BackupMethod="Exchange Native Data Protection","--",IF(TotNumDBCopiesServer>COUNTA(B$15:B33),B33+1,"--")) -> -- | C34: =IF(B34="--","--",IF(BackupFreq="Daily Full","Full",IF(AND(NumDBLUN=1,OR($C33="Incremental",$C33="Differential")),IF(BackupFreq="Weekly Full / Daily Incremental","Incremental","Differential"),IF(OR(IF(DBSet1="--",0,VALUE(IF(NumDBLUN=1,RIGHT(DBSet1,1),MID(DBSet1,IF(LEN(DBSet1)=7,LEN(DBSet1)-4,LEN(DBSet1)-6),1))))=B34,IF(DBSet2="--",0,VALUE(IF(NumDBLUN=1,RIGHT(DBSet2,1),IF(LEN(DBSet2)<9,MID(DBSet2,IF(LEN(DBSet2)=7,LEN(DBSet2)-4,LEN(DBSet2)-5),1),MID(DBSet2,LEN(DBSet2)-5,2)))))=B34,IF(DBSet3="--",0,VALUE(IF(NumDBLUN=1,RIGHT(DBSet3,1),IF(LEN(DBSet3)<9,MID(DBSet3,IF(LEN(DBSet3)=7,LEN(DBSet3)-4,LEN(DBSet3)-5),1),MID(DBSet3,LEN(DBSet3)-6,2)))))=B34,IF(DBSet4="--",0,VALUE(IF(NumDBLUN=1,RIGHT(DBSet4,1),IF(LEN(DBSet4)<9,MID(DBSet4,IF(LEN(DBSet4)=7,LEN(DBSet4)-4,LEN(DBSet4)-5),1),MID(DBSet4,LEN(DBSet4)-6,2)))))=B34,IF(DBSet5="--",0,VALUE(IF(NumDBLUN=1,RIGHT(DBSet5,1),IF(LEN(DBSet5)<9,MID(DBSet5,IF(LEN(DBSet5)=7,LEN(DBSet5)-4,LEN(DBSet5)-5),1),MID(DBSet5,LEN(DBSet5)-6,2)))))=B34,IF(DBSet6="--",0,VALUE(IF(NumDBLUN=1,RIGHT(DBSet6,1),IF(LEN(DBSet6)<9,MID(DBSet6,IF(LEN(DBSet6)=7,LEN(DBSet6)-4,LEN(DBSet6)-5),1),MID(DBSet6,LEN(DBSet6)-6,2)))))=B34,IF(DBSet7="--",0,VALUE(IF(NumDBLUN=1,RIGHT(DBSet7,1),IF(LEN(DBSet7)<9,MID(DBSet7,IF(LEN(DBSet7)=7,LEN(DBSet7)-4,LEN(DBSet7)-5),1),MID(DBSet7,LEN(DBSet7)-6,2)))))=B34,IF(DBSet8="--",0,VALUE(IF(NumDBLUN=1,RIGHT(DBSet8,1),IF(LEN(DBSet8)<9,MID(DBSet8,IF(LEN(DBSet8)=7,LEN(DBSet8)-4,LEN(DBSet8)-5),1),MID(DBSet8,LEN(DBSet8)-6,2)))))=B34,IF(DBSet9="--",0,VALUE(IF(NumDBLUN=1,RIGHT(DBSet9,1),IF(LEN(DBSet9)<9,MID(DBSet9,IF(LEN(DBSet9)=7,LEN(DBSet9)-4,LEN(DBSet9)-5),1),MID(DBSet9,LEN(DBSet9)-6,2)))))=B34,IF(DBSet10="--",0,VALUE(IF(NumDBLUN=1,RIGHT(DBSet10,2),IF(LEN(DBSet10)<9,MID(DBSet10,IF(LEN(DBSet10)=7,LEN(DBSet10)-4,LEN(DBSet10)-5),1),MID(DBSet10,LEN(DBSet10)-6,2)))))=B34,IF(DBSet11="--",0,VALUE(IF(NumDBLUN=1,RIGHT(DBSet11,2),IF(LEN(DBSet11)<9,MID(DBSet11,IF(LEN(DBSet11)=7,LEN(DBSet11)-4,LEN(DBSet11)-5),1),MID(DBSet11,LEN(DBSet11)-6,2)))))=B34,IF(DBSet12="--",0,VALUE(IF(NumDBLUN=1,RIGHT(DBSet12,2),IF(LEN(DBSet12)<9,MID(DBSet12,IF(LEN(DBSet12)=7,LEN(DBSet12)-4,LEN(DBSet12)-5),1),MID(DBSet12,LEN(DBSet12)-6,2)))))=B34,IF(DBSet13="--",0,VALUE(IF(NumDBLUN=1,RIGHT(DBSet13,2),IF(LEN(DBSet13)<9,MID(DBSet13,IF(LEN(DBSet13)=7,LEN(DBSet13)-4,LEN(DBSet13)-5),1),MID(DBSet13,LEN(DBSet13)-6,2)))))=B34,IF(DBSet14="--",0,VALUE(IF(NumDBLUN=1,RIGHT(DBSet14,2),IF(LEN(DBSet14)<9,MID(DBSet14,IF(LEN(DBSet14)=7,LEN(DBSet14)-4,LEN(DBSet14)-5),1),MID(DBSet14,LEN(DBSet14)-6,2)))))=B34,IF(DBSet15="--",0,VALUE(IF(NumDBLUN=1,RIGHT(DBSet15,2),IF(LEN(DBSet15)<9,MID(DBSet15,IF(LEN(DBSet15)=7,LEN(DBSet15)-4,LEN(DBSet15)-5),1),MID(DBSet15,LEN(DBSet15)-6,2)))))=B34)=TRUE,"Full",IF(BackupFreq="Weekly Full / Daily Incremental","Incremental","Differential"))))) -> -- | D34: -- | E34: -- | F34: -- | G34: -- | H34: -- | I34: --
B35: =IF(BackupMethod="Exchange Native Data Protection","--",IF(TotNumDBCopiesServer>COUNTA(B$15:B34),B34+1,"--")) -> -- | C35: =IF(B35="--","--",IF(BackupFreq="Daily Full","Full",IF(AND(NumDBLUN=1,OR($C34="Incremental",$C34="Differential")),IF(BackupFreq="Weekly Full / Daily Incremental","Incremental","Differential"),IF(OR(IF(DBSet1="--",0,VALUE(IF(NumDBLUN=1,RIGHT(DBSet1,1),MID(DBSet1,IF(LEN(DBSet1)=7,LEN(DBSet1)-4,LEN(DBSet1)-6),1))))=B35,IF(DBSet2="--",0,VALUE(IF(NumDBLUN=1,RIGHT(DBSet2,1),IF(LEN(DBSet2)<9,MID(DBSet2,IF(LEN(DBSet2)=7,LEN(DBSet2)-4,LEN(DBSet2)-5),1),MID(DBSet2,LEN(DBSet2)-5,2)))))=B35,IF(DBSet3="--",0,VALUE(IF(NumDBLUN=1,RIGHT(DBSet3,1),IF(LEN(DBSet3)<9,MID(DBSet3,IF(LEN(DBSet3)=7,LEN(DBSet3)-4,LEN(DBSet3)-5),1),MID(DBSet3,LEN(DBSet3)-6,2)))))=B35,IF(DBSet4="--",0,VALUE(IF(NumDBLUN=1,RIGHT(DBSet4,1),IF(LEN(DBSet4)<9,MID(DBSet4,IF(LEN(DBSet4)=7,LEN(DBSet4)-4,LEN(DBSet4)-5),1),MID(DBSet4,LEN(DBSet4)-6,2)))))=B35,IF(DBSet5="--",0,VALUE(IF(NumDBLUN=1,RIGHT(DBSet5,1),IF(LEN(DBSet5)<9,MID(DBSet5,IF(LEN(DBSet5)=7,LEN(DBSet5)-4,LEN(DBSet5)-5),1),MID(DBSet5,LEN(DBSet5)-6,2)))))=B35,IF(DBSet6="--",0,VALUE(IF(NumDBLUN=1,RIGHT(DBSet6,1),IF(LEN(DBSet6)<9,MID(DBSet6,IF(LEN(DBSet6)=7,LEN(DBSet6)-4,LEN(DBSet6)-5),1),MID(DBSet6,LEN(DBSet6)-6,2)))))=B35,IF(DBSet7="--",0,VALUE(IF(NumDBLUN=1,RIGHT(DBSet7,1),IF(LEN(DBSet7)<9,MID(DBSet7,IF(LEN(DBSet7)=7,LEN(DBSet7)-4,LEN(DBSet7)-5),1),MID(DBSet7,LEN(DBSet7)-6,2)))))=B35,IF(DBSet8="--",0,VALUE(IF(NumDBLUN=1,RIGHT(DBSet8,1),IF(LEN(DBSet8)<9,MID(DBSet8,IF(LEN(DBSet8)=7,LEN(DBSet8)-4,LEN(DBSet8)-5),1),MID(DBSet8,LEN(DBSet8)-6,2)))))=B35,IF(DBSet9="--",0,VALUE(IF(NumDBLUN=1,RIGHT(DBSet9,1),IF(LEN(DBSet9)<9,MID(DBSet9,IF(LEN(DBSet9)=7,LEN(DBSet9)-4,LEN(DBSet9)-5),1),MID(DBSet9,LEN(DBSet9)-6,2)))))=B35,IF(DBSet10="--",0,VALUE(IF(NumDBLUN=1,RIGHT(DBSet10,2),IF(LEN(DBSet10)<9,MID(DBSet10,IF(LEN(DBSet10)=7,LEN(DBSet10)-4,LEN(DBSet10)-5),1),MID(DBSet10,LEN(DBSet10)-6,2)))))=B35,IF(DBSet11="--",0,VALUE(IF(NumDBLUN=1,RIGHT(DBSet11,2),IF(LEN(DBSet11)<9,MID(DBSet11,IF(LEN(DBSet11)=7,LEN(DBSet11)-4,LEN(DBSet11)-5),1),MID(DBSet11,LEN(DBSet11)-6,2)))))=B35,IF(DBSet12="--",0,VALUE(IF(NumDBLUN=1,RIGHT(DBSet12,2),IF(LEN(DBSet12)<9,MID(DBSet12,IF(LEN(DBSet12)=7,LEN(DBSet12)-4,LEN(DBSet12)-5),1),MID(DBSet12,LEN(DBSet12)-6,2)))))=B35,IF(DBSet13="--",0,VALUE(IF(NumDBLUN=1,RIGHT(DBSet13,2),IF(LEN(DBSet13)<9,MID(DBSet13,IF(LEN(DBSet13)=7,LEN(DBSet13)-4,LEN(DBSet13)-5),1),MID(DBSet13,LEN(DBSet13)-6,2)))))=B35,IF(DBSet14="--",0,VALUE(IF(NumDBLUN=1,RIGHT(DBSet14,2),IF(LEN(DBSet14)<9,MID(DBSet14,IF(LEN(DBSet14)=7,LEN(DBSet14)-4,LEN(DBSet14)-5),1),MID(DBSet14,LEN(DBSet14)-6,2)))))=B35,IF(DBSet15="--",0,VALUE(IF(NumDBLUN=1,RIGHT(DBSet15,2),IF(LEN(DBSet15)<9,MID(DBSet15,IF(LEN(DBSet15)=7,LEN(DBSet15)-4,LEN(DBSet15)-5),1),MID(DBSet15,LEN(DBSet15)-6,2)))))=B35)=TRUE,"Full",IF(BackupFreq="Weekly Full / Daily Incremental","Incremental","Differential"))))) -> -- | D35: -- | E35: -- | F35: -- | G35: -- | H35: -- | I35: --
B36: =IF(BackupMethod="Exchange Native Data Protection","--",IF(TotNumDBCopiesServer>COUNTA(B$15:B35),B35+1,"--")) -> -- | C36: =IF(B36="--","--",IF(BackupFreq="Daily Full","Full",IF(OR(BackupMethod="Hardware VSS Backup/Restore",LUNArchitecture="1 LUN / DB"),IF(IF(LEN('LUN Requirements'!H142)=3,VALUE(RIGHT('LUN Requirements'!H142,1)),VALUE(RIGHT('LUN Requirements'!H142,2)))=B36,"Full","Incremental/Differential"),IF(OR(IF(DBSet1="--",0,VALUE(IF(NumDBLUN=1,RIGHT(DBSet1,1),MID(DBSet1,IF(LEN(DBSet1)=7,LEN(DBSet1)-4,LEN(DBSet1)-6),1))))=B36,IF(DBSet2="--",0,VALUE(IF(NumDBLUN=1,RIGHT(DBSet2,1),IF(LEN(DBSet2)<9,MID(DBSet2,IF(LEN(DBSet2)=7,LEN(DBSet2)-4,LEN(DBSet2)-5),1),MID(DBSet2,LEN(DBSet2)-5,2)))))=B36,IF(DBSet3="--",0,VALUE(IF(NumDBLUN=1,RIGHT(DBSet3,1),IF(LEN(DBSet3)<9,MID(DBSet3,IF(LEN(DBSet3)=7,LEN(DBSet3)-4,LEN(DBSet3)-5),1),MID(DBSet3,LEN(DBSet3)-6,2)))))=B36,IF(DBSet4="--",0,VALUE(IF(NumDBLUN=1,RIGHT(DBSet4,1),IF(LEN(DBSet4)<9,MID(DBSet4,IF(LEN(DBSet4)=7,LEN(DBSet4)-4,LEN(DBSet4)-5),1),MID(DBSet4,LEN(DBSet4)-6,2)))))=B36,IF(DBSet5="--",0,VALUE(IF(NumDBLUN=1,RIGHT(DBSet5,1),IF(LEN(DBSet5)<9,MID(DBSet5,IF(LEN(DBSet5)=7,LEN(DBSet5)-4,LEN(DBSet5)-5),1),MID(DBSet5,LEN(DBSet5)-6,2)))))=B36,IF(DBSet6="--",0,VALUE(IF(NumDBLUN=1,RIGHT(DBSet6,1),IF(LEN(DBSet6)<9,MID(DBSet6,IF(LEN(DBSet6)=7,LEN(DBSet6)-4,LEN(DBSet6)-5),1),MID(DBSet6,LEN(DBSet6)-6,2)))))=B36,IF(DBSet7="--",0,VALUE(IF(NumDBLUN=1,RIGHT(DBSet7,1),IF(LEN(DBSet7)<9,MID(DBSet7,IF(LEN(DBSet7)=7,LEN(DBSet7)-4,LEN(DBSet7)-5),1),MID(DBSet7,LEN(DBSet7)-6,2)))))=B36,IF(DBSet8="--",0,VALUE(IF(NumDBLUN=1,RIGHT(DBSet8,1),IF(LEN(DBSet8)<9,MID(DBSet8,IF(LEN(DBSet8)=7,LEN(DBSet8)-4,LEN(DBSet8)-5),1),MID(DBSet8,LEN(DBSet8)-6,2)))))=B36,IF(DBSet9="--",0,VALUE(IF(NumDBLUN=1,RIGHT(DBSet9,1),IF(LEN(DBSet9)<9,MID(DBSet9,IF(LEN(DBSet9)=7,LEN(DBSet9)-4,LEN(DBSet9)-5),1),MID(DBSet9,LEN(DBSet9)-6,2)))))=B36,IF(DBSet10="--",0,VALUE(IF(NumDBLUN=1,RIGHT(DBSet10,2),IF(LEN(DBSet10)<9,MID(DBSet10,IF(LEN(DBSet10)=7,LEN(DBSet10)-4,LEN(DBSet10)-5),1),MID(DBSet10,LEN(DBSet10)-6,2)))))=B36,IF(DBSet11="--",0,VALUE(IF(NumDBLUN=1,RIGHT(DBSet11,2),IF(LEN(DBSet11)<9,MID(DBSet11,IF(LEN(DBSet11)=7,LEN(DBSet11)-4,LEN(DBSet11)-5),1),MID(DBSet11,LEN(DBSet11)-6,2)))))=B36,IF(DBSet12="--",0,VALUE(IF(NumDBLUN=1,RIGHT(DBSet12,2),IF(LEN(DBSet12)<9,MID(DBSet12,IF(LEN(DBSet12)=7,LEN(DBSet12)-4,LEN(DBSet12)-5),1),MID(DBSet12,LEN(DBSet12)-6,2)))))=B36,IF(DBSet13="--",0,VALUE(IF(NumDBLUN=1,RIGHT(DBSet13,2),IF(LEN(DBSet13)<9,MID(DBSet13,IF(LEN(DBSet13)=7,LEN(DBSet13)-4,LEN(DBSet13)-5),1),MID(DBSet13,LEN(DBSet13)-6,2)))))=B36,IF(DBSet14="--",0,VALUE(IF(NumDBLUN=1,RIGHT(DBSet14,2),IF(LEN(DBSet14)<9,MID(DBSet14,IF(LEN(DBSet14)=7,LEN(DBSet14)-4,LEN(DBSet14)-5),1),MID(DBSet14,LEN(DBSet14)-6,2)))))=B36,IF(DBSet15="--",0,VALUE(IF(NumDBLUN=1,RIGHT(DBSet15,2),IF(LEN(DBSet15)<9,MID(DBSet15,IF(LEN(DBSet15)=7,LEN(DBSet15)-4,LEN(DBSet15)-5),1),MID(DBSet15,LEN(DBSet15)-6,2)))))=B36)=TRUE,"Full",IF(BackupFreq="Weekly Full / Daily Incremental","Incremental","Differential"))))) -> -- | D36: -- | E36: -- | F36: -- | G36: -- | H36: -- | I36: --
B37: =IF(BackupMethod="Exchange Native Data Protection","--",IF(TotNumDBCopiesServer>COUNTA(B$15:B36),B36+1,"--")) -> -- | C37: =IF(B37="--","--",IF(BackupFreq="Daily Full","Full",IF(AND(NumDBLUN=1,$C36="Full"),IF(BackupFreq="Weekly Full / Daily Incremental","Incremental","Differential"),IF(OR(IF(DBSet1="--",0,VALUE(IF(NumDBLUN=1,RIGHT(DBSet1,1),MID(DBSet1,IF(LEN(DBSet1)=7,LEN(DBSet1)-4,LEN(DBSet1)-6),1))))=B37,IF(DBSet2="--",0,VALUE(IF(NumDBLUN=1,RIGHT(DBSet2,1),IF(LEN(DBSet2)<9,MID(DBSet2,IF(LEN(DBSet2)=7,LEN(DBSet2)-4,LEN(DBSet2)-5),1),MID(DBSet2,LEN(DBSet2)-5,2)))))=B37,IF(DBSet3="--",0,VALUE(IF(NumDBLUN=1,RIGHT(DBSet3,1),IF(LEN(DBSet3)<9,MID(DBSet3,IF(LEN(DBSet3)=7,LEN(DBSet3)-4,LEN(DBSet3)-5),1),MID(DBSet3,LEN(DBSet3)-6,2)))))=B37,IF(DBSet4="--",0,VALUE(IF(NumDBLUN=1,RIGHT(DBSet4,1),IF(LEN(DBSet4)<9,MID(DBSet4,IF(LEN(DBSet4)=7,LEN(DBSet4)-4,LEN(DBSet4)-5),1),MID(DBSet4,LEN(DBSet4)-6,2)))))=B37,IF(DBSet5="--",0,VALUE(IF(NumDBLUN=1,RIGHT(DBSet5,1),IF(LEN(DBSet5)<9,MID(DBSet5,IF(LEN(DBSet5)=7,LEN(DBSet5)-4,LEN(DBSet5)-5),1),MID(DBSet5,LEN(DBSet5)-6,2)))))=B37,IF(DBSet6="--",0,VALUE(IF(NumDBLUN=1,RIGHT(DBSet6,1),IF(LEN(DBSet6)<9,MID(DBSet6,IF(LEN(DBSet6)=7,LEN(DBSet6)-4,LEN(DBSet6)-5),1),MID(DBSet6,LEN(DBSet6)-6,2)))))=B37,IF(DBSet7="--",0,VALUE(IF(NumDBLUN=1,RIGHT(DBSet7,1),IF(LEN(DBSet7)<9,MID(DBSet7,IF(LEN(DBSet7)=7,LEN(DBSet7)-4,LEN(DBSet7)-5),1),MID(DBSet7,LEN(DBSet7)-6,2)))))=B37,IF(DBSet8="--",0,VALUE(IF(NumDBLUN=1,RIGHT(DBSet8,1),IF(LEN(DBSet8)<9,MID(DBSet8,IF(LEN(DBSet8)=7,LEN(DBSet8)-4,LEN(DBSet8)-5),1),MID(DBSet8,LEN(DBSet8)-6,2)))))=B37,IF(DBSet9="--",0,VALUE(IF(NumDBLUN=1,RIGHT(DBSet9,1),IF(LEN(DBSet9)<9,MID(DBSet9,IF(LEN(DBSet9)=7,LEN(DBSet9)-4,LEN(DBSet9)-5),1),MID(DBSet9,LEN(DBSet9)-6,2)))))=B37,IF(DBSet10="--",0,VALUE(IF(NumDBLUN=1,RIGHT(DBSet10,2),IF(LEN(DBSet10)<9,MID(DBSet10,IF(LEN(DBSet10)=7,LEN(DBSet10)-4,LEN(DBSet10)-5),1),MID(DBSet10,LEN(DBSet10)-6,2)))))=B37,IF(DBSet11="--",0,VALUE(IF(NumDBLUN=1,RIGHT(DBSet11,2),IF(LEN(DBSet11)<9,MID(DBSet11,IF(LEN(DBSet11)=7,LEN(DBSet11)-4,LEN(DBSet11)-5),1),MID(DBSet11,LEN(DBSet11)-6,2)))))=B37,IF(DBSet12="--",0,VALUE(IF(NumDBLUN=1,RIGHT(DBSet12,2),IF(LEN(DBSet12)<9,MID(DBSet12,IF(LEN(DBSet12)=7,LEN(DBSet12)-4,LEN(DBSet12)-5),1),MID(DBSet12,LEN(DBSet12)-6,2)))))=B37,IF(DBSet13="--",0,VALUE(IF(NumDBLUN=1,RIGHT(DBSet13,2),IF(LEN(DBSet13)<9,MID(DBSet13,IF(LEN(DBSet13)=7,LEN(DBSet13)-4,LEN(DBSet13)-5),1),MID(DBSet13,LEN(DBSet13)-6,2)))))=B37,IF(DBSet14="--",0,VALUE(IF(NumDBLUN=1,RIGHT(DBSet14,2),IF(LEN(DBSet14)<9,MID(DBSet14,IF(LEN(DBSet14)=7,LEN(DBSet14)-4,LEN(DBSet14)-5),1),MID(DBSet14,LEN(DBSet14)-6,2)))))=B37,IF(DBSet15="--",0,VALUE(IF(NumDBLUN=1,RIGHT(DBSet15,2),IF(LEN(DBSet15)<9,MID(DBSet15,IF(LEN(DBSet15)=7,LEN(DBSet15)-4,LEN(DBSet15)-5),1),MID(DBSet15,LEN(DBSet15)-6,2)))))=B37)=TRUE,"Full",IF(BackupFreq="Weekly Full / Daily Incremental","Incremental","Differential"))))) -> -- | D37: -- | E37: -- | F37: -- | G37: -- | H37: -- | I37: --
B38: =IF(BackupMethod="Exchange Native Data Protection","--",IF(TotNumDBCopiesServer>COUNTA(B$15:B37),B37+1,"--")) -> -- | C38: =IF(B38="--","--",IF(BackupFreq="Daily Full","Full",IF(AND(NumDBLUN=1,OR($C37="Incremental",$C37="Differential")),IF(BackupFreq="Weekly Full / Daily Incremental","Incremental","Differential"),IF(OR(IF(DBSet1="--",0,VALUE(IF(NumDBLUN=1,RIGHT(DBSet1,1),MID(DBSet1,IF(LEN(DBSet1)=7,LEN(DBSet1)-4,LEN(DBSet1)-6),1))))=B38,IF(DBSet2="--",0,VALUE(IF(NumDBLUN=1,RIGHT(DBSet2,1),IF(LEN(DBSet2)<9,MID(DBSet2,IF(LEN(DBSet2)=7,LEN(DBSet2)-4,LEN(DBSet2)-5),1),MID(DBSet2,LEN(DBSet2)-5,2)))))=B38,IF(DBSet3="--",0,VALUE(IF(NumDBLUN=1,RIGHT(DBSet3,1),IF(LEN(DBSet3)<9,MID(DBSet3,IF(LEN(DBSet3)=7,LEN(DBSet3)-4,LEN(DBSet3)-5),1),MID(DBSet3,LEN(DBSet3)-6,2)))))=B38,IF(DBSet4="--",0,VALUE(IF(NumDBLUN=1,RIGHT(DBSet4,1),IF(LEN(DBSet4)<9,MID(DBSet4,IF(LEN(DBSet4)=7,LEN(DBSet4)-4,LEN(DBSet4)-5),1),MID(DBSet4,LEN(DBSet4)-6,2)))))=B38,IF(DBSet5="--",0,VALUE(IF(NumDBLUN=1,RIGHT(DBSet5,1),IF(LEN(DBSet5)<9,MID(DBSet5,IF(LEN(DBSet5)=7,LEN(DBSet5)-4,LEN(DBSet5)-5),1),MID(DBSet5,LEN(DBSet5)-6,2)))))=B38,IF(DBSet6="--",0,VALUE(IF(NumDBLUN=1,RIGHT(DBSet6,1),IF(LEN(DBSet6)<9,MID(DBSet6,IF(LEN(DBSet6)=7,LEN(DBSet6)-4,LEN(DBSet6)-5),1),MID(DBSet6,LEN(DBSet6)-6,2)))))=B38,IF(DBSet7="--",0,VALUE(IF(NumDBLUN=1,RIGHT(DBSet7,1),IF(LEN(DBSet7)<9,MID(DBSet7,IF(LEN(DBSet7)=7,LEN(DBSet7)-4,LEN(DBSet7)-5),1),MID(DBSet7,LEN(DBSet7)-6,2)))))=B38,IF(DBSet8="--",0,VALUE(IF(NumDBLUN=1,RIGHT(DBSet8,1),IF(LEN(DBSet8)<9,MID(DBSet8,IF(LEN(DBSet8)=7,LEN(DBSet8)-4,LEN(DBSet8)-5),1),MID(DBSet8,LEN(DBSet8)-6,2)))))=B38,IF(DBSet9="--",0,VALUE(IF(NumDBLUN=1,RIGHT(DBSet9,1),IF(LEN(DBSet9)<9,MID(DBSet9,IF(LEN(DBSet9)=7,LEN(DBSet9)-4,LEN(DBSet9)-5),1),MID(DBSet9,LEN(DBSet9)-6,2)))))=B38,IF(DBSet10="--",0,VALUE(IF(NumDBLUN=1,RIGHT(DBSet10,2),IF(LEN(DBSet10)<9,MID(DBSet10,IF(LEN(DBSet10)=7,LEN(DBSet10)-4,LEN(DBSet10)-5),1),MID(DBSet10,LEN(DBSet10)-6,2)))))=B38,IF(DBSet11="--",0,VALUE(IF(NumDBLUN=1,RIGHT(DBSet11,2),IF(LEN(DBSet11)<9,MID(DBSet11,IF(LEN(DBSet11)=7,LEN(DBSet11)-4,LEN(DBSet11)-5),1),MID(DBSet11,LEN(DBSet11)-6,2)))))=B38,IF(DBSet12="--",0,VALUE(IF(NumDBLUN=1,RIGHT(DBSet12,2),IF(LEN(DBSet12)<9,MID(DBSet12,IF(LEN(DBSet12)=7,LEN(DBSet12)-4,LEN(DBSet12)-5),1),MID(DBSet12,LEN(DBSet12)-6,2)))))=B38,IF(DBSet13="--",0,VALUE(IF(NumDBLUN=1,RIGHT(DBSet13,2),IF(LEN(DBSet13)<9,MID(DBSet13,IF(LEN(DBSet13)=7,LEN(DBSet13)-4,LEN(DBSet13)-5),1),MID(DBSet13,LEN(DBSet13)-6,2)))))=B38,IF(DBSet14="--",0,VALUE(IF(NumDBLUN=1,RIGHT(DBSet14,2),IF(LEN(DBSet14)<9,MID(DBSet14,IF(LEN(DBSet14)=7,LEN(DBSet14)-4,LEN(DBSet14)-5),1),MID(DBSet14,LEN(DBSet14)-6,2)))))=B38,IF(DBSet15="--",0,VALUE(IF(NumDBLUN=1,RIGHT(DBSet15,2),IF(LEN(DBSet15)<9,MID(DBSet15,IF(LEN(DBSet15)=7,LEN(DBSet15)-4,LEN(DBSet15)-5),1),MID(DBSet15,LEN(DBSet15)-6,2)))))=B38)=TRUE,"Full",IF(BackupFreq="Weekly Full / Daily Incremental","Incremental","Differential"))))) -> -- | D38: -- | E38: -- | F38: -- | G38: -- | H38: -- | I38: --
B39: =IF(BackupMethod="Exchange Native Data Protection","--",IF(TotNumDBCopiesServer>COUNTA(B$15:B38),B38+1,"--")) -> -- | C39: =IF(B39="--","--",IF(BackupFreq="Daily Full","Full",IF(AND(NumDBLUN=1,OR($C38="Incremental",$C38="Differential")),IF(BackupFreq="Weekly Full / Daily Incremental","Incremental","Differential"),IF(OR(IF(DBSet1="--",0,VALUE(IF(NumDBLUN=1,RIGHT(DBSet1,1),MID(DBSet1,IF(LEN(DBSet1)=7,LEN(DBSet1)-4,LEN(DBSet1)-6),1))))=B39,IF(DBSet2="--",0,VALUE(IF(NumDBLUN=1,RIGHT(DBSet2,1),IF(LEN(DBSet2)<9,MID(DBSet2,IF(LEN(DBSet2)=7,LEN(DBSet2)-4,LEN(DBSet2)-5),1),MID(DBSet2,LEN(DBSet2)-5,2)))))=B39,IF(DBSet3="--",0,VALUE(IF(NumDBLUN=1,RIGHT(DBSet3,1),IF(LEN(DBSet3)<9,MID(DBSet3,IF(LEN(DBSet3)=7,LEN(DBSet3)-4,LEN(DBSet3)-5),1),MID(DBSet3,LEN(DBSet3)-6,2)))))=B39,IF(DBSet4="--",0,VALUE(IF(NumDBLUN=1,RIGHT(DBSet4,1),IF(LEN(DBSet4)<9,MID(DBSet4,IF(LEN(DBSet4)=7,LEN(DBSet4)-4,LEN(DBSet4)-5),1),MID(DBSet4,LEN(DBSet4)-6,2)))))=B39,IF(DBSet5="--",0,VALUE(IF(NumDBLUN=1,RIGHT(DBSet5,1),IF(LEN(DBSet5)<9,MID(DBSet5,IF(LEN(DBSet5)=7,LEN(DBSet5)-4,LEN(DBSet5)-5),1),MID(DBSet5,LEN(DBSet5)-6,2)))))=B39,IF(DBSet6="--",0,VALUE(IF(NumDBLUN=1,RIGHT(DBSet6,1),IF(LEN(DBSet6)<9,MID(DBSet6,IF(LEN(DBSet6)=7,LEN(DBSet6)-4,LEN(DBSet6)-5),1),MID(DBSet6,LEN(DBSet6)-6,2)))))=B39,IF(DBSet7="--",0,VALUE(IF(NumDBLUN=1,RIGHT(DBSet7,1),IF(LEN(DBSet7)<9,MID(DBSet7,IF(LEN(DBSet7)=7,LEN(DBSet7)-4,LEN(DBSet7)-5),1),MID(DBSet7,LEN(DBSet7)-6,2)))))=B39,IF(DBSet8="--",0,VALUE(IF(NumDBLUN=1,RIGHT(DBSet8,1),IF(LEN(DBSet8)<9,MID(DBSet8,IF(LEN(DBSet8)=7,LEN(DBSet8)-4,LEN(DBSet8)-5),1),MID(DBSet8,LEN(DBSet8)-6,2)))))=B39,IF(DBSet9="--",0,VALUE(IF(NumDBLUN=1,RIGHT(DBSet9,1),IF(LEN(DBSet9)<9,MID(DBSet9,IF(LEN(DBSet9)=7,LEN(DBSet9)-4,LEN(DBSet9)-5),1),MID(DBSet9,LEN(DBSet9)-6,2)))))=B39,IF(DBSet10="--",0,VALUE(IF(NumDBLUN=1,RIGHT(DBSet10,2),IF(LEN(DBSet10)<9,MID(DBSet10,IF(LEN(DBSet10)=7,LEN(DBSet10)-4,LEN(DBSet10)-5),1),MID(DBSet10,LEN(DBSet10)-6,2)))))=B39,IF(DBSet11="--",0,VALUE(IF(NumDBLUN=1,RIGHT(DBSet11,2),IF(LEN(DBSet11)<9,MID(DBSet11,IF(LEN(DBSet11)=7,LEN(DBSet11)-4,LEN(DBSet11)-5),1),MID(DBSet11,LEN(DBSet11)-6,2)))))=B39,IF(DBSet12="--",0,VALUE(IF(NumDBLUN=1,RIGHT(DBSet12,2),IF(LEN(DBSet12)<9,MID(DBSet12,IF(LEN(DBSet12)=7,LEN(DBSet12)-4,LEN(DBSet12)-5),1),MID(DBSet12,LEN(DBSet12)-6,2)))))=B39,IF(DBSet13="--",0,VALUE(IF(NumDBLUN=1,RIGHT(DBSet13,2),IF(LEN(DBSet13)<9,MID(DBSet13,IF(LEN(DBSet13)=7,LEN(DBSet13)-4,LEN(DBSet13)-5),1),MID(DBSet13,LEN(DBSet13)-6,2)))))=B39,IF(DBSet14="--",0,VALUE(IF(NumDBLUN=1,RIGHT(DBSet14,2),IF(LEN(DBSet14)<9,MID(DBSet14,IF(LEN(DBSet14)=7,LEN(DBSet14)-4,LEN(DBSet14)-5),1),MID(DBSet14,LEN(DBSet14)-6,2)))))=B39,IF(DBSet15="--",0,VALUE(IF(NumDBLUN=1,RIGHT(DBSet15,2),IF(LEN(DBSet15)<9,MID(DBSet15,IF(LEN(DBSet15)=7,LEN(DBSet15)-4,LEN(DBSet15)-5),1),MID(DBSet15,LEN(DBSet15)-6,2)))))=B39)=TRUE,"Full",IF(BackupFreq="Weekly Full / Daily Incremental","Incremental","Differential"))))) -> -- | D39: -- | E39: -- | F39: -- | G39: -- | H39: -- | I39: --
B40: =IF(BackupMethod="Exchange Native Data Protection","--",IF(TotNumDBCopiesServer>COUNTA(B$15:B39),B39+1,"--")) -> -- | C40: =IF(B40="--","--",IF(BackupFreq="Daily Full","Full",IF(AND(NumDBLUN=1,OR($C39="Incremental",$C39="Differential")),IF(BackupFreq="Weekly Full / Daily Incremental","Incremental","Differential"),IF(OR(IF(DBSet1="--",0,VALUE(IF(NumDBLUN=1,RIGHT(DBSet1,1),MID(DBSet1,IF(LEN(DBSet1)=7,LEN(DBSet1)-4,LEN(DBSet1)-6),1))))=B40,IF(DBSet2="--",0,VALUE(IF(NumDBLUN=1,RIGHT(DBSet2,1),IF(LEN(DBSet2)<9,MID(DBSet2,IF(LEN(DBSet2)=7,LEN(DBSet2)-4,LEN(DBSet2)-5),1),MID(DBSet2,LEN(DBSet2)-5,2)))))=B40,IF(DBSet3="--",0,VALUE(IF(NumDBLUN=1,RIGHT(DBSet3,1),IF(LEN(DBSet3)<9,MID(DBSet3,IF(LEN(DBSet3)=7,LEN(DBSet3)-4,LEN(DBSet3)-5),1),MID(DBSet3,LEN(DBSet3)-6,2)))))=B40,IF(DBSet4="--",0,VALUE(IF(NumDBLUN=1,RIGHT(DBSet4,1),IF(LEN(DBSet4)<9,MID(DBSet4,IF(LEN(DBSet4)=7,LEN(DBSet4)-4,LEN(DBSet4)-5),1),MID(DBSet4,LEN(DBSet4)-6,2)))))=B40,IF(DBSet5="--",0,VALUE(IF(NumDBLUN=1,RIGHT(DBSet5,1),IF(LEN(DBSet5)<9,MID(DBSet5,IF(LEN(DBSet5)=7,LEN(DBSet5)-4,LEN(DBSet5)-5),1),MID(DBSet5,LEN(DBSet5)-6,2)))))=B40,IF(DBSet6="--",0,VALUE(IF(NumDBLUN=1,RIGHT(DBSet6,1),IF(LEN(DBSet6)<9,MID(DBSet6,IF(LEN(DBSet6)=7,LEN(DBSet6)-4,LEN(DBSet6)-5),1),MID(DBSet6,LEN(DBSet6)-6,2)))))=B40,IF(DBSet7="--",0,VALUE(IF(NumDBLUN=1,RIGHT(DBSet7,1),IF(LEN(DBSet7)<9,MID(DBSet7,IF(LEN(DBSet7)=7,LEN(DBSet7)-4,LEN(DBSet7)-5),1),MID(DBSet7,LEN(DBSet7)-6,2)))))=B40,IF(DBSet8="--",0,VALUE(IF(NumDBLUN=1,RIGHT(DBSet8,1),IF(LEN(DBSet8)<9,MID(DBSet8,IF(LEN(DBSet8)=7,LEN(DBSet8)-4,LEN(DBSet8)-5),1),MID(DBSet8,LEN(DBSet8)-6,2)))))=B40,IF(DBSet9="--",0,VALUE(IF(NumDBLUN=1,RIGHT(DBSet9,1),IF(LEN(DBSet9)<9,MID(DBSet9,IF(LEN(DBSet9)=7,LEN(DBSet9)-4,LEN(DBSet9)-5),1),MID(DBSet9,LEN(DBSet9)-6,2)))))=B40,IF(DBSet10="--",0,VALUE(IF(NumDBLUN=1,RIGHT(DBSet10,2),IF(LEN(DBSet10)<9,MID(DBSet10,IF(LEN(DBSet10)=7,LEN(DBSet10)-4,LEN(DBSet10)-5),1),MID(DBSet10,LEN(DBSet10)-6,2)))))=B40,IF(DBSet11="--",0,VALUE(IF(NumDBLUN=1,RIGHT(DBSet11,2),IF(LEN(DBSet11)<9,MID(DBSet11,IF(LEN(DBSet11)=7,LEN(DBSet11)-4,LEN(DBSet11)-5),1),MID(DBSet11,LEN(DBSet11)-6,2)))))=B40,IF(DBSet12="--",0,VALUE(IF(NumDBLUN=1,RIGHT(DBSet12,2),IF(LEN(DBSet12)<9,MID(DBSet12,IF(LEN(DBSet12)=7,LEN(DBSet12)-4,LEN(DBSet12)-5),1),MID(DBSet12,LEN(DBSet12)-6,2)))))=B40,IF(DBSet13="--",0,VALUE(IF(NumDBLUN=1,RIGHT(DBSet13,2),IF(LEN(DBSet13)<9,MID(DBSet13,IF(LEN(DBSet13)=7,LEN(DBSet13)-4,LEN(DBSet13)-5),1),MID(DBSet13,LEN(DBSet13)-6,2)))))=B40,IF(DBSet14="--",0,VALUE(IF(NumDBLUN=1,RIGHT(DBSet14,2),IF(LEN(DBSet14)<9,MID(DBSet14,IF(LEN(DBSet14)=7,LEN(DBSet14)-4,LEN(DBSet14)-5),1),MID(DBSet14,LEN(DBSet14)-6,2)))))=B40,IF(DBSet15="--",0,VALUE(IF(NumDBLUN=1,RIGHT(DBSet15,2),IF(LEN(DBSet15)<9,MID(DBSet15,IF(LEN(DBSet15)=7,LEN(DBSet15)-4,LEN(DBSet15)-5),1),MID(DBSet15,LEN(DBSet15)-6,2)))))=B40)=TRUE,"Full",IF(BackupFreq="Weekly Full / Daily Incremental","Incremental","Differential"))))) -> -- | D40: -- | E40: -- | F40: -- | G40: -- | H40: -- | I40: --
